Workbook

Sheet LÍNEA 1
B3: ALCALDÍA DE BUCARAMANGA
B4: PLAN DE DESARROLLO 2016 - 2019 "GOBIERNO DE LAS CIUDADANAS Y LOS CIUDADANOS"
B5: LÍNEA ESTRATÉGICA 1: GOBERNANZA DEMOCRÁTICA
B8: POND | C8: LÍNEA ESTRATÉGICA | D8: POND | E8: COMPONENTE | F8: META DE RESULTADO | G8: LÍNEA BASE | H8: RESULTADO CUATRIENIO | I8: POND | J8: PROGRAMA | K8: META DE PRODUCTO | L8: RUBRO PPTAL | M8: INDICADOR DE PRODUCTO | T8: LOGRO POR VIGENCIA | X8: PORCENTAJE DE CUMPLIMIENTO | AI8: RECURSOS POR FUENTE DE FINANCIACIÓN PARA CADA VIGENCIA (Cifras en Miles de Pesos) | BH8: ODS | BI8: SECTOR
AI9: 2016 | AN9: 2017 | AS9: 2018 | AX9: 2019 | BC9: 2016 - 2019
M10: NOMBRE INDICADOR | N10: LÍNEA BASE | O10: ESPERADO CUATRIENIO | P10: 2016 | Q10: 2017 | R10: 2018 | S10: 2019 | T10: 2016 | U10: 2017 | V10: 2018 | W10: 2019 | X10: 2016 | Z10: 2017 | AB10: 2018 | AD10: 2019 | AF10: 2016 - 2019 | AI10: RECURSOS PROGRAMADOS | AJ10: RECURSOS EJECUTADOS | AK10: RECURSOS GESTIONADOS | AL10: PORCENTAJE EJECUCIÓN | AM10: NIVEL DE GESTIÓN | AN10: RECURSOS PROGRAMADOS | AO10: RECURSOS EJECUTADOS | AP10: RECURSOS GESTIONADOS | AQ10: PORCENTAJE EJECUCIÓN | AR10: NIVEL DE GESTIÓN | AS10: RECURSOS PROGRAMADOS | AT10: RECURSOS EJECUTADOS | AU10: RECURSOS GESTIONADOS | AV10: PORCENTAJE EJECUCIÓN | AW10: NIVEL DE GESTIÓN | AX10: RECURSOS PROGRAMADOS | AY10: RECURSOS EJECUTADOS | AZ10: RECURSOS GESTIONADOS | BA10: PORCENTAJE EJECUCIÓN | BB10: NIVEL DE GESTIÓN | BC10: RECURSOS PROGRAMADOS | BD10: RECURSOS EJECUTADOS | BE10: RECURSOS GESTIONADOS | BF10: PORCENTAJE EJECUCIÓN | BG10: NIVEL DE GESTIÓN | BJ10: RESPONSABLE
B11: =+RESUMEN!J8 -> 0.1787327506 | C11: 1 - GOBERNANZA DEMOCRÁTICA | D11: =+RESUMEN!J9 -> 0.1760088869 | E11: GOBIERNO PARTICIPATIVO Y ABIERTO | F11: Lograr una calificación de 85 sobre 100 en el componente visibilidad en el Índice de Transparencia de las Entidades Públicas - ITEP. | G11: 69.8 | H11: ='[1]LÍNEA 1'!H11 -> 85 | I11: =+RESUMEN!J10 -> 0.1119047619 | J11: NUEVOS LIDERAZGOS | K11: Implementar y mantener la estrategia de casas para nuevos liderazgos. | L11: ='[1]LÍNEA 1'!P11 -> 2210980 | M11: ='[1]LÍNEA 1'!Q11 -> Número de estrategias de casas para nuevos liderazgos implementadas y mantenidas. | N11: 0 | O11: ='[1]LÍNEA 1'!S11 -> 1 | P11: ='[1]LÍNEA 1'!T11 -> 1 | Q11: ='[1]LÍNEA 1'!U11 -> 1 | R11: ='[1]LÍNEA 1'!V11 -> 1 | S11: ='[1]LÍNEA 1'!W11 -> 1 | T11: ='[2]2016'!$K$12 -> 1 | U11: ='[2]2017'!$K$12 -> 0 | V11: ='[2]2018'!$K$12 -> 0 | W11: ='[2]2019'!$K$12 -> 0 | X11: =IF(P11=0," -",T11/P11) -> 1 | Y11: =IF(P11=0," -",IF(X11>100%,100%,X11)) -> 1 | Z11: =IF(Q11=0," -",U11/Q11) -> 0 | AA11: =IF(Q11=0," -",IF(Z11>100%,100%,Z11)) -> 0 | AB11: =IF(R11=0," -",V11/R11) -> 0 | AC11: =IF(R11=0," -",IF(AB11>100%,100%,AB11)) -> 0 | AD11: =IF(S11=0," -",W11/S11) -> 0 | AE11: =IF(S11=0," -",IF(AD11>100%,100%,AD11)) -> 0 | AF11: =+AVERAGE(T11:W11)/O11 -> 0.25 | AG11: =+IF(AF11>100%,100%,AF11) -> 0.25 | AH11: =+AG11 -> 0.25 | AI11: ='[2]2016'!P12 -> 100000 | AJ11: ='[2]2016'!Q12 -> 65333 | AK11: ='[2]2016'!R12 -> 0 | AL11: =IF(AI11=0," -",AJ11/AI11) -> 0.65333 | AM11: =IF(AK11=0," -",IF(AJ11=0,100%,AK11/AJ11)) -> - | AN11: ='[2]2017'!P12 -> 137500 | AO11: ='[2]2017'!Q12 -> 0 | AP11: ='[2]2017'!R12 -> 0 | AQ11: =IF(AN11=0," -",AO11/AN11) -> 0 | AR11: =IF(AP11=0," -",IF(AO11=0,100%,AP11/AO11)) -> - | AS11: ='[2]2018'!P12 -> 223500 | AT11: ='[2]2018'!Q12 -> 0 | AU11: ='[2]2018'!R12 -> 0 | AV11: =IF(AS11=0," -",AT11/AS11) -> 0 | AW11: =IF(AU11=0," -",IF(AT11=0,100%,AU11/AT11)) -> - | AX11: ='[2]2019'!P12 -> 213500 | AY11: ='[2]2019'!Q12 -> 0 | AZ11: ='[2]2019'!R12 -> 0 | BA11: =IF(AX11=0," -",AY11/AX11) -> 0 | BB11: =IF(AZ11=0," -",IF(AY11=0,100%,AZ11/AY11)) -> - | BC11: =+AI11+AN11+AS11+AX11 -> 674500 | BD11: 65333 | BE11: 0 | BF11: =IF(BC11=0," -",BD11/BC11) -> 0.0968613788 | BG11: =IF(BE11=0," -",IF(BD11=0,100%,BE11/BD11)) -> - | BH11: ='[1]LÍNEA 1'!AO11 -> 16. Paz, justicia e instituciones sólidas | BI11: ='[1]LÍNEA 1'!AP11 -> Promoción del Desarrollo | BJ11: Sec. Interior
K12: Implementar y mantener la estrategia escuela de liderazgo para mujeres las Mil Manuelas. | L12: ='[1]LÍNEA 1'!P12 -> 0 | M12: ='[1]LÍNEA 1'!Q12 -> Número de estrategias escuela de liderazgo para mujeres las Mil Manuelas implementadas y mantenidas. | N12: 0 | O12: ='[1]LÍNEA 1'!S12 -> 1 | P12: ='[1]LÍNEA 1'!T12 -> 0 | Q12: ='[1]LÍNEA 1'!U12 -> 1 | R12: ='[1]LÍNEA 1'!V12 -> 1 | S12: ='[1]LÍNEA 1'!W12 -> 1 | T12: ='[3]2016'!$K$12 -> 0 | U12: ='[3]2017'!$K$12 -> 0 | V12: ='[3]2018'!$K$12 -> 0 | W12: ='[3]2019'!$K$12 -> 0 | X12: =IF(P12=0," -",T12/P12) -> - | Y12: =IF(P12=0," -",IF(X12>100%,100%,X12)) -> - | Z12: =IF(Q12=0," -",U12/Q12) -> 0 | AA12: =IF(Q12=0," -",IF(Z12>100%,100%,Z12)) -> 0 | AB12: =IF(R12=0," -",V12/R12) -> 0 | AC12: =IF(R12=0," -",IF(AB12>100%,100%,AB12)) -> 0 | AD12: =IF(S12=0," -",W12/S12) -> 0 | AE12: =IF(S12=0," -",IF(AD12>100%,100%,AD12)) -> 0 | AF12: =+AVERAGE(U12:W12)/O12 -> 0 | AG12: =+IF(AF12>100%,100%,AF12) -> 0 | AH12: =+AG12 -> 0 | AI12: ='[3]2016'!P12 -> 0 | AJ12: ='[3]2016'!Q12 -> 0 | AK12: ='[3]2016'!R12 -> 0 | AL12: =IF(AI12=0," -",AJ12/AI12) -> - | AM12: =IF(AK12=0," -",IF(AJ12=0,100%,AK12/AJ12)) -> - | AN12: ='[3]2017'!P12 -> 50000 | AO12: ='[3]2017'!Q12 -> 0 | AP12: ='[3]2017'!R12 -> 0 | AQ12: =IF(AN12=0," -",AO12/AN12) -> 0 | AR12: =IF(AP12=0," -",IF(AO12=0,100%,AP12/AO12)) -> - | AS12: ='[3]2018'!P12 -> 150000 | AT12: ='[3]2018'!Q12 -> 0 | AU12: ='[3]2018'!R12 -> 0 | AV12: =IF(AS12=0," -",AT12/AS12) -> 0 | AW12: =IF(AU12=0," -",IF(AT12=0,100%,AU12/AT12)) -> - | AX12: ='[3]2019'!P12 -> 150000 | AY12: ='[3]2019'!Q12 -> 0 | AZ12: ='[3]2019'!R12 -> 0 | BA12: =IF(AX12=0," -",AY12/AX12) -> 0 | BB12: =IF(AZ12=0," -",IF(AY12=0,100%,AZ12/AY12)) -> - | BC12: 350000 | BD12: 0 | BE12: 0 | BF12: =IF(BC12=0," -",BD12/BC12) -> 0 | BG12: =IF(BE12=0," -",IF(BD12=0,100%,BE12/BD12)) -> - | BH12: ='[1]LÍNEA 1'!AO12 -> 10. Reducción de las desigualdades | BI12: ='[1]LÍNEA 1'!AP12 -> Promoción del Desarrollo | BJ12: Sec. Desarrollo Social
K13: Realizar 35 actividades o iniciativas para promover, visibilizar y empoderar el gobierno escolar en las instituciones educativas oficiales. | L13: ='[1]LÍNEA 1'!P13 -> 0 | M13: ='[1]LÍNEA 1'!Q13 -> Número de actividades o iniciativas realizadas para promover, visibilizar y empoderar el gobierno escolar en las instituciones educativas oficiales. | N13: 0 | O13: ='[1]LÍNEA 1'!S13 -> 35 | P13: ='[1]LÍNEA 1'!T13 -> 3 | Q13: ='[1]LÍNEA 1'!U13 -> 12 | R13: ='[1]LÍNEA 1'!V13 -> 10 | S13: ='[1]LÍNEA 1'!W13 -> 10 | T13: ='[4]2016'!$K$12 -> 3 | U13: ='[4]2017'!$K$12 -> 0 | V13: ='[4]2018'!$K$12 -> 0 | W13: ='[4]2019'!$K$12 -> 0 | X13: =IF(P13=0," -",T13/P13) -> 1 | Y13: =IF(P13=0," -",IF(X13>100%,100%,X13)) -> 1 | Z13: =IF(Q13=0," -",U13/Q13) -> 0 | AA13: =IF(Q13=0," -",IF(Z13>100%,100%,Z13)) -> 0 | AB13: =IF(R13=0," -",V13/R13) -> 0 | AC13: =IF(R13=0," -",IF(AB13>100%,100%,AB13)) -> 0 | AD13: =IF(S13=0," -",W13/S13) -> 0 | AE13: =IF(S13=0," -",IF(AD13>100%,100%,AD13)) -> 0 | AF13: =+SUM(T13:W13)/O13 -> 0.08571428571 | AG13: 0.08571428571 | AH13: 0.08571428571 | AI13: ='[4]2016'!P12 -> 0 | AJ13: ='[4]2016'!Q12 -> 0 | AK13: ='[4]2016'!R12 -> 0 | AL13: =IF(AI13=0," -",AJ13/AI13) -> - | AM13: =IF(AK13=0," -",IF(AJ13=0,100%,AK13/AJ13)) -> - | AN13: ='[4]2017'!P12 -> 20000 | AO13: ='[4]2017'!Q12 -> 0 | AP13: ='[4]2017'!R12 -> 0 | AQ13: =IF(AN13=0," -",AO13/AN13) -> 0 | AR13: =IF(AP13=0," -",IF(AO13=0,100%,AP13/AO13)) -> - | AS13: ='[4]2018'!P12 -> 20000 | AT13: ='[4]2018'!Q12 -> 0 | AU13: ='[4]2018'!R12 -> 0 | AV13: =IF(AS13=0," -",AT13/AS13) -> 0 | AW13: =IF(AU13=0," -",IF(AT13=0,100%,AU13/AT13)) -> - | AX13: ='[4]2019'!P12 -> 20000 | AY13: ='[4]2019'!Q12 -> 0 | AZ13: ='[4]2019'!R12 -> 0 | BA13: =IF(AX13=0," -",AY13/AX13) -> 0 | BB13: =IF(AZ13=0," -",IF(AY13=0,100%,AZ13/AY13)) -> - | BC13: =+AI13+AN13+AS13+AX13 -> 60000 | BD13: =+AJ13+AO13+AT13+AY13 -> 0 | BE13: =+AK13+AP13+AU13+AZ13 -> 0 | BF13: =IF(BC13=0," -",BD13/BC13) -> 0 | BG13: =IF(BE13=0," -",IF(BD13=0,100%,BE13/BD13)) -> - | BH13: ='[1]LÍNEA 1'!AO13 -> 16. Paz, justicia e instituciones sólidas | BI13: ='[1]LÍNEA 1'!AP13 -> Educación | BJ13: Sec. Educación
I14: =+RESUMEN!J11 -> 0.2083333333 | J14: PRESUPUESTOS INCLUYENTES | K14: Crear y mantener 1 sección web en línea para que la ciudadanía pueda consultar el presupuesto y vigilar su aprobación y ejecución. | L14: ='[1]LÍNEA 1'!P14 -> - | M14: ='[1]LÍNEA 1'!Q14 -> Número de secciones web en línea creadas y mantenidas para que la ciudadanía pueda consultar el presupuesto y vigilar su aprobación y ejecución. | N14: 0 | O14: ='[1]LÍNEA 1'!S14 -> 1 | P14: ='[1]LÍNEA 1'!T14 -> 1 | Q14: ='[1]LÍNEA 1'!U14 -> 1 | R14: ='[1]LÍNEA 1'!V14 -> 1 | S14: ='[1]LÍNEA 1'!W14 -> 1 | T14: ='[5]2016'!K12 -> 1 | U14: ='[5]2017'!K12 -> 0 | V14: ='[5]2018'!K12 -> 0 | W14: ='[5]2019'!K12 -> 0 | X14: =IF(P14=0," -",T14/P14) -> 1 | Y14: =IF(P14=0," -",IF(X14>100%,100%,X14)) -> 1 | Z14: =IF(Q14=0," -",U14/Q14) -> 0 | AA14: =IF(Q14=0," -",IF(Z14>100%,100%,Z14)) -> 0 | AB14: =IF(R14=0," -",V14/R14) -> 0 | AC14: =IF(R14=0," -",IF(AB14>100%,100%,AB14)) -> 0 | AD14: =IF(S14=0," -",W14/S14) -> 0 | AE14: =IF(S14=0," -",IF(AD14>100%,100%,AD14)) -> 0 | AF14: =+AVERAGE(T14:W14)/O14 -> 0.25 | AG14: 0.25 | AH14: 0.25 | AI14: ='[5]2016'!P12 -> 0 | AJ14: ='[5]2016'!Q12 -> 0 | AK14: ='[5]2016'!R12 -> 0 | AL14: - | AM14: - | AN14: ='[5]2017'!P12 -> 0 | AO14: ='[5]2017'!Q12 -> 0 | AP14: ='[5]2017'!R12 -> 0 | AQ14: - | AR14: - | AS14: ='[5]2018'!P12 -> 0 | AT14: ='[5]2018'!Q12 -> 0 | AU14: ='[5]2018'!R12 -> 0 | AV14: - | AW14: - | AX14: ='[5]2019'!P12 -> 0 | AY14: ='[5]2019'!Q12 -> 0 | AZ14: ='[5]2019'!R12 -> 0 | BA14: - | BB14: - | BC14: 0 | BD14: 0 | BE14: 0 | BF14: - | BG14: - | BH14: ='[1]LÍNEA 1'!AO14 -> 16. Paz, justicia e instituciones sólidas | BI14: ='[1]LÍNEA 1'!AP14 -> Fortalecimiento Institucional | BJ14: Sec. Hacienda
K15: Ejecutar 4 planes de socialización del proyecto de acuerdo del presupuesto municipal previa presentación al Concejo. | L15: ='[1]LÍNEA 1'!P15 -> - | M15: ='[1]LÍNEA 1'!Q15 -> Número de planes de socialización ejecutados del proyecto de acuerdo del presupuesto municipal previa presentación al Concejo. | N15: 0 | O15: ='[1]LÍNEA 1'!S15 -> 4 | P15: ='[1]LÍNEA 1'!T15 -> 1 | Q15: ='[1]LÍNEA 1'!U15 -> 1 | R15: ='[1]LÍNEA 1'!V15 -> 1 | S15: ='[1]LÍNEA 1'!W15 -> 1 | T15: ='[5]2016'!K13 -> 1 | U15: ='[5]2017'!K13 -> 0 | V15: ='[5]2018'!K13 -> 0 | W15: ='[5]2019'!K13 -> 0 | X15: =IF(P15=0," -",T15/P15) -> 1 | Y15: =IF(P15=0," -",IF(X15>100%,100%,X15)) -> 1 | Z15: =IF(Q15=0," -",U15/Q15) -> 0 | AA15: =IF(Q15=0," -",IF(Z15>100%,100%,Z15)) -> 0 | AB15: =IF(R15=0," -",V15/R15) -> 0 | AC15: =IF(R15=0," -",IF(AB15>100%,100%,AB15)) -> 0 | AD15: =IF(S15=0," -",W15/S15) -> 0 | AE15: =IF(S15=0," -",IF(AD15>100%,100%,AD15)) -> 0 | AF15: =+SUM(T15:W15)/O15 -> 0.25 | AG15: 0.25 | AH15: 0.25 | AI15: ='[5]2016'!P13 -> 0 | AJ15: ='[5]2016'!Q13 -> 0 | AK15: ='[5]2016'!R13 -> 0 | AL15: - | AM15: - | AN15: ='[5]2017'!P13 -> 0 | AO15: ='[5]2017'!Q13 -> 0 | AP15: ='[5]2017'!R13 -> 0 | AQ15: - | AR15: - | AS15: ='[5]2018'!P13 -> 0 | AT15: ='[5]2018'!Q13 -> 0 | AU15: ='[5]2018'!R13 -> 0 | AV15: - | AW15: - | AX15: ='[5]2019'!P13 -> 0 | AY15: ='[5]2019'!Q13 -> 0 | AZ15: ='[5]2019'!R13 -> 0 | BA15: - | BB15: - | BC15: 0 | BD15: 0 | BE15: 0 | BF15: - | BG15: - | BH15: ='[1]LÍNEA 1'!AO15 -> 16. Paz, justicia e instituciones sólidas | BI15: ='[1]LÍNEA 1'!AP15 -> Fortalecimiento Institucional | BJ15: Sec. Hacienda
K16: Celebrar 4 cabildos ciudadanos para asignar presupuesto a obras comunitarias y discutir otros asuntos del presupuesto. | L16: ='[1]LÍNEA 1'!P16 -> - | M16: ='[1]LÍNEA 1'!Q16 -> Número de cabildos ciudadanos celebrados para asignar presupuesto a obras comunitarias y discutir otros asuntos del presupuesto. | N16: 0 | O16: ='[1]LÍNEA 1'!S16 -> 4 | P16: ='[1]LÍNEA 1'!T16 -> 1 | Q16: ='[1]LÍNEA 1'!U16 -> 1 | R16: ='[1]LÍNEA 1'!V16 -> 1 | S16: ='[1]LÍNEA 1'!W16 -> 1 | T16: ='[5]2016'!K14 -> 1 | U16: ='[5]2017'!K14 -> 0 | V16: ='[5]2018'!K14 -> 0 | W16: ='[5]2019'!K14 -> 0 | X16: =IF(P16=0," -",T16/P16) -> 1 | Y16: =IF(P16=0," -",IF(X16>100%,100%,X16)) -> 1 | Z16: =IF(Q16=0," -",U16/Q16) -> 0 | AA16: =IF(Q16=0," -",IF(Z16>100%,100%,Z16)) -> 0 | AB16: =IF(R16=0," -",V16/R16) -> 0 | AC16: =IF(R16=0," -",IF(AB16>100%,100%,AB16)) -> 0 | AD16: =IF(S16=0," -",W16/S16) -> 0 | AE16: =IF(S16=0," -",IF(AD16>100%,100%,AD16)) -> 0 | AF16: =+SUM(T16:W16)/O16 -> 0.25 | AG16: 0.25 | AH16: 0.25 | AI16: ='[5]2016'!P14 -> 0 | AJ16: ='[5]2016'!Q14 -> 0 | AK16: ='[5]2016'!R14 -> 0 | AL16: - | AM16: - | AN16: ='[5]2017'!P14 -> 0 | AO16: ='[5]2017'!Q14 -> 0 | AP16: ='[5]2017'!R14 -> 0 | AQ16: - | AR16: - | AS16: ='[5]2018'!P14 -> 0 | AT16: ='[5]2018'!Q14 -> 0 | AU16: ='[5]2018'!R14 -> 0 | AV16: - | AW16: - | AX16: ='[5]2019'!P14 -> 0 | AY16: ='[5]2019'!Q14 -> 0 | AZ16: ='[5]2019'!R14 -> 0 | BA16: - | BB16: - | BC16: 0 | BD16: 0 | BE16: 0 | BF16: - | BG16: - | BH16: ='[1]LÍNEA 1'!AO16 -> 16. Paz, justicia e instituciones sólidas | BI16: ='[1]LÍNEA 1'!AP16 -> Fortalecimiento Institucional | BJ16: Sec. Hacienda
K17: Implementar y mantener 1 estrategia de implementación del acuerdo de presupuestos participativos y del decreto reglamentario. | L17: ='[1]LÍNEA 1'!P17 -> - | M17: ='[1]LÍNEA 1'!Q17 -> Número de estrategias de implementación del acuerdo de presupuestos participativos y del decreto reglamentario implementadas y mantenidas. | N17: 1 | O17: ='[1]LÍNEA 1'!S17 -> 1 | P17: ='[1]LÍNEA 1'!T17 -> 1 | Q17: ='[1]LÍNEA 1'!U17 -> 1 | R17: ='[1]LÍNEA 1'!V17 -> 1 | S17: ='[1]LÍNEA 1'!W17 -> 1 | T17: ='[6]2016'!$K$12 -> 1 | U17: ='[6]2017'!$K$12 -> 0 | V17: ='[6]2018'!$K$12 -> 0 | W17: ='[6]2019'!$K$12 -> 0 | X17: =IF(P17=0," -",T17/P17) -> 1 | Y17: =IF(P17=0," -",IF(X17>100%,100%,X17)) -> 1 | Z17: =IF(Q17=0," -",U17/Q17) -> 0 | AA17: =IF(Q17=0," -",IF(Z17>100%,100%,Z17)) -> 0 | AB17: =IF(R17=0," -",V17/R17) -> 0 | AC17: =IF(R17=0," -",IF(AB17>100%,100%,AB17)) -> 0 | AD17: =IF(S17=0," -",W17/S17) -> 0 | AE17: =IF(S17=0," -",IF(AD17>100%,100%,AD17)) -> 0 | AF17: =+AVERAGE(T17:W17)/O17 -> 0.25 | AG17: 0.25 | AH17: 0.25 | AI17: ='[6]2016'!P12 -> 0 | AJ17: ='[6]2016'!Q12 -> 0 | AK17: ='[6]2016'!R12 -> 0 | AL17: - | AM17: - | AN17: ='[6]2017'!P12 -> 0 | AO17: ='[6]2017'!Q12 -> 0 | AP17: ='[6]2017'!R12 -> 0 | AQ17: - | AR17: - | AS17: ='[6]2018'!P12 -> 0 | AT17: ='[6]2018'!Q12 -> 0 | AU17: ='[6]2018'!R12 -> 0 | AV17: - | AW17: - | AX17: ='[6]2019'!P12 -> 0 | AY17: ='[6]2019'!Q12 -> 0 | AZ17: ='[6]2019'!R12 -> 0 | BA17: - | BB17: - | BC17: 0 | BD17: 0 | BE17: 0 | BF17: - | BG17: - | BH17: ='[1]LÍNEA 1'!AO17 -> 16. Paz, justicia e instituciones sólidas | BI17: ='[1]LÍNEA 1'!AP17 -> Fortalecimiento Institucional | BJ17: Sec. Planeación
K18: Implementar 1 estrategia para la formación y capacitación técnica en planeación participativa para los ciudadanos bumangueses. | L18: ='[1]LÍNEA 1'!P18 -> 2210230 | M18: ='[1]LÍNEA 1'!Q18 -> Número de estrategias implementadas para la formación y capacitación técnica en planeación participativa para los ciudadanos bumangueses. | N18: 0 | O18: ='[1]LÍNEA 1'!S18 -> 1 | P18: ='[1]LÍNEA 1'!T18 -> 1 | Q18: ='[1]LÍNEA 1'!U18 -> 1 | R18: ='[1]LÍNEA 1'!V18 -> 1 | S18: ='[1]LÍNEA 1'!W18 -> 1 | T18: ='[3]2016'!$K$13 -> 1 | U18: ='[3]2017'!$K$13 -> 0 | V18: ='[3]2018'!$K$13 -> 0 | W18: ='[3]2019'!$K$13 -> 0 | X18: =IF(P18=0," -",T18/P18) -> 1 | Y18: =IF(P18=0," -",IF(X18>100%,100%,X18)) -> 1 | Z18: =IF(Q18=0," -",U18/Q18) -> 0 | AA18: =IF(Q18=0," -",IF(Z18>100%,100%,Z18)) -> 0 | AB18: =IF(R18=0," -",V18/R18) -> 0 | AC18: =IF(R18=0," -",IF(AB18>100%,100%,AB18)) -> 0 | AD18: =IF(S18=0," -",W18/S18) -> 0 | AE18: =IF(S18=0," -",IF(AD18>100%,100%,AD18)) -> 0 | AF18: =+AVERAGE(T18:W18)/O18 -> 0.25 | AG18: 0.25 | AH18: 0.25 | AI18: ='[3]2016'!P13 -> 35000 | AJ18: ='[3]2016'!Q13 -> 15000 | AK18: ='[3]2016'!R13 -> 0 | AL18: 0.4285714286 | AM18: - | AN18: ='[3]2017'!P13 -> 0 | AO18: ='[3]2017'!Q13 -> 0 | AP18: ='[3]2017'!R13 -> 0 | AQ18: - | AR18: - | AS18: ='[3]2018'!P13 -> 50000 | AT18: ='[3]2018'!Q13 -> 0 | AU18: ='[3]2018'!R13 -> 0 | AV18: 0 | AW18: - | AX18: ='[3]2019'!P13 -> 50000 | AY18: ='[3]2019'!Q13 -> 0 | AZ18: ='[3]2019'!R13 -> 0 | BA18: 0 | BB18: - | BC18: 135000 | BD18: 15000 | BE18: 0 | BF18: 0.1111111111 | BG18: - | BH18: ='[1]LÍNEA 1'!AO18 -> 16. Paz, justicia e instituciones sólidas | BI18: ='[1]LÍNEA 1'!AP18 -> Fortalecimiento Institucional | BJ18: Sec. Desarrollo Social
K19: Ejecutar obras comunitarias con presupuestos participatios en las 17 comunas. | L19: ='[1]LÍNEA 1'!P19 -> - | M19: ='[1]LÍNEA 1'!Q19 -> Número de comunas con obras comunitarias ejecutadas con presupuesto participativo. | N19: 0 | O19: ='[1]LÍNEA 1'!S19 -> 17 | P19: ='[1]LÍNEA 1'!T19 -> 17 | Q19: ='[1]LÍNEA 1'!U19 -> 17 | R19: ='[1]LÍNEA 1'!V19 -> 17 | S19: ='[1]LÍNEA 1'!W19 -> 17 | T19: ='[7]2016'!$K$12 -> 0 | U19: ='[7]2017'!$K$12 -> 0 | V19: ='[7]2018'!$K$12 -> 0 | W19: ='[7]2019'!$K$12 -> 0 | X19: =IF(P19=0," -",T19/P19) -> 0 | Y19: =IF(P19=0," -",IF(X19>100%,100%,X19)) -> 0 | Z19: =IF(Q19=0," -",U19/Q19) -> 0 | AA19: =IF(Q19=0," -",IF(Z19>100%,100%,Z19)) -> 0 | AB19: =IF(R19=0," -",V19/R19) -> 0 | AC19: =IF(R19=0," -",IF(AB19>100%,100%,AB19)) -> 0 | AD19: =IF(S19=0," -",W19/S19) -> 0 | AE19: =IF(S19=0," -",IF(AD19>100%,100%,AD19)) -> 0 | AF19: =+AVERAGE(T19:W19)/O19 -> 0 | AG19: 0 | AH19: 0 | AI19: ='[7]2016'!P12 -> 0 | AJ19: ='[7]2016'!Q12 -> 0 | AK19: ='[7]2016'!R12 -> 0 | AL19: - | AM19: - | AN19: ='[7]2017'!P12 -> 6000 | AO19: ='[7]2017'!Q12 -> 0 | AP19: ='[7]2017'!R12 -> 0 | AQ19: 0 | AR19: - | AS19: ='[7]2018'!P12 -> 0 | AT19: ='[7]2018'!Q12 -> 0 | AU19: ='[7]2018'!R12 -> 0 | AV19: - | AW19: - | AX19: ='[7]2019'!P12 -> 0 | AY19: ='[7]2019'!Q12 -> 0 | AZ19: ='[7]2019'!R12 -> 0 | BA19: - | BB19: - | BC19: 6000 | BD19: 0 | BE19: 0 | BF19: 0 | BG19: - | BH19: ='[1]LÍNEA 1'!AO19 -> 16. Paz, justicia e instituciones sólidas | BI19: ='[1]LÍNEA 1'!AP19 -> Fortalecimiento Institucional | BJ19: Sec. Infraestructura
I20: =+RESUMEN!J12 -> 0.1655555556 | J20: CIUDADANÍA EMPODERADA Y DEBATE PÚBLICO | K20: Implementar y mantener 1 estrategia de comunicaciones para difundir las iniciativas de la Administración Municipal y promover el debate público sobre temas de gobierno y de ciudad. | L20: ='[1]LÍNEA 1'!P20 -> 0 | M20: ='[1]LÍNEA 1'!Q20 -> Número de estrategias de comunicación implementadas y mantenidas para difundir las iniciativas de la Administración Municipal y promover el debate público sobre temas de gobierno y de ciudad. | N20: 0 | O20: ='[1]LÍNEA 1'!S20 -> 1 | P20: ='[1]LÍNEA 1'!T20 -> 1 | Q20: ='[1]LÍNEA 1'!U20 -> 1 | R20: ='[1]LÍNEA 1'!V20 -> 1 | S20: ='[1]LÍNEA 1'!W20 -> 1 | T20: ='[8]2016'!K12 -> 1 | U20: ='[8]2017'!K12 -> 0 | V20: ='[8]2018'!K12 -> 0 | W20: ='[8]2019'!K12 -> 0 | X20: =IF(P20=0," -",T20/P20) -> 1 | Y20: =IF(P20=0," -",IF(X20>100%,100%,X20)) -> 1 | Z20: =IF(Q20=0," -",U20/Q20) -> 0 | AA20: =IF(Q20=0," -",IF(Z20>100%,100%,Z20)) -> 0 | AB20: =IF(R20=0," -",V20/R20) -> 0 | AC20: =IF(R20=0," -",IF(AB20>100%,100%,AB20)) -> 0 | AD20: =IF(S20=0," -",W20/S20) -> 0 | AE20: =IF(S20=0," -",IF(AD20>100%,100%,AD20)) -> 0 | AF20: =+AVERAGE(T20:W20)/O20 -> 0.25 | AG20: 0.25 | AH20: 0.25 | AI20: ='[8]2016'!P12 -> 1190000 | AJ20: ='[8]2016'!Q12 -> 213597 | AK20: ='[8]2016'!R12 -> 0 | AL20: 0.1794932773 | AM20: - | AN20: ='[8]2017'!P12 -> 380000 | AO20: ='[8]2017'!Q12 -> 0 | AP20: ='[8]2017'!R12 -> 0 | AQ20: 0 | AR20: - | AS20: ='[8]2018'!P12 -> 500000 | AT20: ='[8]2018'!Q12 -> 0 | AU20: ='[8]2018'!R12 -> 0 | AV20: 0 | AW20: - | AX20: ='[8]2019'!P12 -> 500000 | AY20: ='[8]2019'!Q12 -> 0 | AZ20: ='[8]2019'!R12 -> 0 | BA20: 0 | BB20: - | BC20: 2570000 | BD20: 213597 | BE20: 0 | BF20: 0.08311167315 | BG20: - | BH20: ='[1]LÍNEA 1'!AO20 -> 16. Paz, justicia e instituciones sólidas | BI20: ='[1]LÍNEA 1'!AP20 -> Fortalecimiento Institucional | BJ20: Ofc. Prensa
K21: Implementar y mantener 1 Plan de medios para informar a la ciudadanía sobre las políticas e iniciativas del gobierno. | L21: ='[1]LÍNEA 1'!P21 -> - | M21: ='[1]LÍNEA 1'!Q21 -> Número de Planes de medios implementados y mantenidos para informar a la ciudadanía las políticas e iniciativas del gobierno. | N21: 0 | O21: ='[1]LÍNEA 1'!S21 -> 1 | P21: ='[1]LÍNEA 1'!T21 -> 1 | Q21: ='[1]LÍNEA 1'!U21 -> 1 | R21: ='[1]LÍNEA 1'!V21 -> 1 | S21: ='[1]LÍNEA 1'!W21 -> 1 | T21: ='[8]2016'!K13 -> 1 | U21: ='[8]2017'!K13 -> 0 | V21: ='[8]2018'!K13 -> 0 | W21: ='[8]2019'!K13 -> 0 | X21: =IF(P21=0," -",T21/P21) -> 1 | Y21: =IF(P21=0," -",IF(X21>100%,100%,X21)) -> 1 | Z21: =IF(Q21=0," -",U21/Q21) -> 0 | AA21: =IF(Q21=0," -",IF(Z21>100%,100%,Z21)) -> 0 | AB21: =IF(R21=0," -",V21/R21) -> 0 | AC21: =IF(R21=0," -",IF(AB21>100%,100%,AB21)) -> 0 | AD21: =IF(S21=0," -",W21/S21) -> 0 | AE21: =IF(S21=0," -",IF(AD21>100%,100%,AD21)) -> 0 | AF21: =+AVERAGE(T21:W21)/O21 -> 0.25 | AG21: 0.25 | AH21: 0.25 | AI21: ='[8]2016'!P13 -> 600000 | AJ21: ='[8]2016'!Q13 -> 213597 | AK21: ='[8]2016'!R13 -> 0 | AL21: 0.355995 | AM21: - | AN21: ='[8]2017'!P13 -> 720000 | AO21: ='[8]2017'!Q13 -> 0 | AP21: ='[8]2017'!R13 -> 0 | AQ21: 0 | AR21: - | AS21: ='[8]2018'!P13 -> 0 | AT21: ='[8]2018'!Q13 -> 0 | AU21: ='[8]2018'!R13 -> 0 | AV21: - | AW21: - | AX21: ='[8]2019'!P13 -> 0 | AY21: ='[8]2019'!Q13 -> 0 | AZ21: ='[8]2019'!R13 -> 0 | BA21: - | BB21: - | BC21: 1320000 | BD21: 213597 | BE21: 0 | BF21: 0.1618159091 | BG21: - | BH21: ='[1]LÍNEA 1'!AO21 -> 16. Paz, justicia e instituciones sólidas | BI21: ='[1]LÍNEA 1'!AP21 -> Fortalecimiento Institucional | BJ21: Ofc. Prensa
K22: Implementar y mantener 1 estrategia de comunicaciones para difundir las acciones de la Administración Municipal y promover el debate público sobre temas de gobierno y de ciudad en la emisora cultural. | L22: ='[1]LÍNEA 1'!P22 -> 0 | M22: ='[1]LÍNEA 1'!Q22 -> Número de estrategias de comunicación implementadas y mantenidas para difundir las acciones de la Administración Municipal y promover el debate público sobre temas de gobierno y de ciudad en la emisora cultural. | N22: 0 | O22: ='[1]LÍNEA 1'!S22 -> 1 | P22: ='[1]LÍNEA 1'!T22 -> 1 | Q22: ='[1]LÍNEA 1'!U22 -> 1 | R22: ='[1]LÍNEA 1'!V22 -> 1 | S22: ='[1]LÍNEA 1'!W22 -> 1 | T22: ='[8]2016'!K14 -> 1 | U22: ='[8]2017'!K14 -> 0 | V22: ='[8]2018'!K14 -> 0 | W22: ='[8]2019'!K14 -> 0 | X22: =IF(P22=0," -",T22/P22) -> 1 | Y22: =IF(P22=0," -",IF(X22>100%,100%,X22)) -> 1 | Z22: =IF(Q22=0," -",U22/Q22) -> 0 | AA22: =IF(Q22=0," -",IF(Z22>100%,100%,Z22)) -> 0 | AB22: =IF(R22=0," -",V22/R22) -> 0 | AC22: =IF(R22=0," -",IF(AB22>100%,100%,AB22)) -> 0 | AD22: =IF(S22=0," -",W22/S22) -> 0 | AE22: =IF(S22=0," -",IF(AD22>100%,100%,AD22)) -> 0 | AF22: =+AVERAGE(T22:W22)/O22 -> 0.25 | AG22: 0.25 | AH22: 0.25 | AI22: ='[8]2016'!P14 -> 100000 | AJ22: ='[8]2016'!Q14 -> 0 | AK22: ='[8]2016'!R14 -> 0 | AL22: 0 | AM22: - | AN22: ='[8]2017'!P14 -> 100000 | AO22: ='[8]2017'!Q14 -> 0 | AP22: ='[8]2017'!R14 -> 0 | AQ22: 0 | AR22: - | AS22: ='[8]2018'!P14 -> 200000 | AT22: ='[8]2018'!Q14 -> 0 | AU22: ='[8]2018'!R14 -> 0 | AV22: 0 | AW22: - | AX22: ='[8]2019'!P14 -> 300000 | AY22: ='[8]2019'!Q14 -> 0 | AZ22: ='[8]2019'!R14 -> 0 | BA22: 0 | BB22: - | BC22: 700000 | BD22: 0 | BE22: 0 | BF22: 0 | BG22: - | BH22: ='[1]LÍNEA 1'!AO22 -> 16. Paz, justicia e instituciones sólidas | BI22: ='[1]LÍNEA 1'!AP22 -> Fortalecimiento Institucional | BJ22: Ofc. Prensa
K23: Convocar y realizar 40 ruedas de prensa por el despacho del Alcalde. | L23: ='[1]LÍNEA 1'!P23 -> - | M23: ='[1]LÍNEA 1'!Q23 -> Número de ruedas de prensa convocadas y realizadas por el despacho del Alcalde. | N23: 0 | O23: ='[1]LÍNEA 1'!S23 -> 40 | P23: ='[1]LÍNEA 1'!T23 -> 6 | Q23: ='[1]LÍNEA 1'!U23 -> 12 | R23: ='[1]LÍNEA 1'!V23 -> 12 | S23: ='[1]LÍNEA 1'!W23 -> 10 | T23: ='[8]2016'!K15 -> 31 | U23: ='[8]2017'!K15 -> 0 | V23: ='[8]2018'!K15 -> 0 | W23: ='[8]2019'!K15 -> 0 | X23: =IF(P23=0," -",T23/P23) -> 5.166666667 | Y23: =IF(P23=0," -",IF(X23>100%,100%,X23)) -> 1 | Z23: =IF(Q23=0," -",U23/Q23) -> 0 | AA23: =IF(Q23=0," -",IF(Z23>100%,100%,Z23)) -> 0 | AB23: =IF(R23=0," -",V23/R23) -> 0 | AC23: =IF(R23=0," -",IF(AB23>100%,100%,AB23)) -> 0 | AD23: =IF(S23=0," -",W23/S23) -> 0 | AE23: =IF(S23=0," -",IF(AD23>100%,100%,AD23)) -> 0 | AF23: =+SUM(T23:W23)/O23 -> 0.775 | AG23: 0.775 | AH23: 0.775 | AI23: ='[8]2016'!P15 -> 0 | AJ23: ='[8]2016'!Q15 -> 0 | AK23: ='[8]2016'!R15 -> 0 | AL23: - | AM23: - | AN23: ='[8]2017'!P15 -> 0 | AO23: ='[8]2017'!Q15 -> 0 | AP23: ='[8]2017'!R15 -> 0 | AQ23: - | AR23: - | AS23: ='[8]2018'!P15 -> 0 | AT23: ='[8]2018'!Q15 -> 0 | AU23: ='[8]2018'!R15 -> 0 | AV23: - | AW23: - | AX23: ='[8]2019'!P15 -> 0 | AY23: ='[8]2019'!Q15 -> 0 | AZ23: ='[8]2019'!R15 -> 0 | BA23: - | BB23: - | BC23: 0 | BD23: 0 | BE23: 0 | BF23: - | BG23: - | BH23: ='[1]LÍNEA 1'!AO23 -> 16. Paz, justicia e instituciones sólidas | BI23: ='[1]LÍNEA 1'!AP23 -> Fortalecimiento Institucional | BJ23: Ofc. Prensa
K24: Implementar y mantener 1 estrategia de comunicación para promover la participación ciudadana sobre asuntos de interés públicos. | L24: ='[1]LÍNEA 1'!P24 -> 0 | M24: ='[1]LÍNEA 1'!Q24 -> Número de estrategias de comunicación implementadas y mantenidas para promover la participación ciudadana sobre asuntos de interés públicos. | N24: 0 | O24: ='[1]LÍNEA 1'!S24 -> 1 | P24: ='[1]LÍNEA 1'!T24 -> 1 | Q24: ='[1]LÍNEA 1'!U24 -> 1 | R24: ='[1]LÍNEA 1'!V24 -> 1 | S24: ='[1]LÍNEA 1'!W24 -> 1 | T24: ='[8]2016'!K16 -> 1 | U24: ='[8]2017'!K16 -> 0 | V24: ='[8]2018'!K16 -> 0 | W24: ='[8]2019'!K16 -> 0 | X24: =IF(P24=0," -",T24/P24) -> 1 | Y24: =IF(P24=0," -",IF(X24>100%,100%,X24)) -> 1 | Z24: =IF(Q24=0," -",U24/Q24) -> 0 | AA24: =IF(Q24=0," -",IF(Z24>100%,100%,Z24)) -> 0 | AB24: =IF(R24=0," -",V24/R24) -> 0 | AC24: =IF(R24=0," -",IF(AB24>100%,100%,AB24)) -> 0 | AD24: =IF(S24=0," -",W24/S24) -> 0 | AE24: =IF(S24=0," -",IF(AD24>100%,100%,AD24)) -> 0 | AF24: =+AVERAGE(T24:W24)/O24 -> 0.25 | AG24: 0.25 | AH24: 0.25 | AI24: ='[8]2016'!P16 -> 0 | AJ24: ='[8]2016'!Q16 -> 0 | AK24: ='[8]2016'!R16 -> 0 | AL24: - | AM24: - | AN24: ='[8]2017'!P16 -> 0 | AO24: ='[8]2017'!Q16 -> 0 | AP24: ='[8]2017'!R16 -> 0 | AQ24: - | AR24: - | AS24: ='[8]2018'!P16 -> 100000 | AT24: ='[8]2018'!Q16 -> 0 | AU24: ='[8]2018'!R16 -> 0 | AV24: 0 | AW24: - | AX24: ='[8]2019'!P16 -> 100000 | AY24: ='[8]2019'!Q16 -> 0 | AZ24: ='[8]2019'!R16 -> 0 | BA24: 0 | BB24: - | BC24: 200000 | BD24: 0 | BE24: 0 | BF24: 0 | BG24: - | BH24: ='[1]LÍNEA 1'!AO24 -> 16. Paz, justicia e instituciones sólidas | BI24: ='[1]LÍNEA 1'!AP24 -> Fortalecimiento Institucional | BJ24: Ofc. Prensa
F25: Lograr una calificación de 80 sobre 100 en el componente de control y sanción en el Índice de Transparencia de las Entidades Públicas - ITEP. | G25: 62.4 | H25: ='[1]LÍNEA 1'!$H$25 -> 80 | K25: Implementar y mantener 1 estrategia para la creación y promoción del Consejo Municipal de participación ciudadana. | L25: ='[1]LÍNEA 1'!P25 -> 0 | M25: ='[1]LÍNEA 1'!Q25 -> Número de estrategias implementadas y mantenidas para la creación y promoción del Consejo Municipal de participación ciudadana. | N25: 0 | O25: ='[1]LÍNEA 1'!S25 -> 1 | P25: ='[1]LÍNEA 1'!T25 -> 1 | Q25: ='[1]LÍNEA 1'!U25 -> 1 | R25: ='[1]LÍNEA 1'!V25 -> 1 | S25: ='[1]LÍNEA 1'!W25 -> 1 | T25: ='[3]2016'!K14 -> 0 | U25: ='[3]2017'!K14 -> 0 | V25: ='[3]2018'!K14 -> 0 | W25: ='[3]2019'!K14 -> 0 | X25: =IF(P25=0," -",T25/P25) -> 0 | Y25: =IF(P25=0," -",IF(X25>100%,100%,X25)) -> 0 | Z25: =IF(Q25=0," -",U25/Q25) -> 0 | AA25: =IF(Q25=0," -",IF(Z25>100%,100%,Z25)) -> 0 | AB25: =IF(R25=0," -",V25/R25) -> 0 | AC25: =IF(R25=0," -",IF(AB25>100%,100%,AB25)) -> 0 | AD25: =IF(S25=0," -",W25/S25) -> 0 | AE25: =IF(S25=0," -",IF(AD25>100%,100%,AD25)) -> 0 | AF25: =+AVERAGE(T25:W25)/O25 -> 0 | AG25: 0 | AH25: 0 | AI25: ='[3]2016'!P14 -> 0 | AJ25: ='[3]2016'!Q14 -> 0 | AK25: ='[3]2016'!R14 -> 0 | AL25: - | AM25: - | AN25: ='[3]2017'!P14 -> 0 | AO25: ='[3]2017'!Q14 -> 0 | AP25: ='[3]2017'!R14 -> 0 | AQ25: - | AR25: - | AS25: ='[3]2018'!P14 -> 25000 | AT25: ='[3]2018'!Q14 -> 0 | AU25: ='[3]2018'!R14 -> 0 | AV25: 0 | AW25: - | AX25: ='[3]2019'!P14 -> 25000 | AY25: ='[3]2019'!Q14 -> 0 | AZ25: ='[3]2019'!R14 -> 0 | BA25: 0 | BB25: - | BC25: 50000 | BD25: 0 | BE25: 0 | BF25: 0 | BG25: - | BH25: ='[1]LÍNEA 1'!AO25 -> 16. Paz, justicia e instituciones sólidas | BI25: ='[1]LÍNEA 1'!AP25 -> Fortalecimiento Institucional | BJ25: Sec. Desarrollo Social
K26: Implementar y mantener 1 estrategia para difundir la ley 1757 de 2015 y promover la apropiación por parte de la ciudadanía de los mecanismos allí establecidos. | L26: ='[1]LÍNEA 1'!P26 -> 0 | M26: ='[1]LÍNEA 1'!Q26 -> Número de estrategias implementadas y mantenidas para difundir la ley 1757 de 2015 y promover la apropiación por parte de la ciudadanía de los mecanismos allí establecidos. | N26: 0 | O26: ='[1]LÍNEA 1'!S26 -> 1 | P26: ='[1]LÍNEA 1'!T26 -> 1 | Q26: ='[1]LÍNEA 1'!U26 -> 1 | R26: ='[1]LÍNEA 1'!V26 -> 1 | S26: ='[1]LÍNEA 1'!W26 -> 1 | T26: ='[3]2016'!K15 -> 0 | U26: ='[3]2017'!K15 -> 0 | V26: ='[3]2018'!K15 -> 0 | W26: ='[3]2019'!K15 -> 0 | X26: =IF(P26=0," -",T26/P26) -> 0 | Y26: =IF(P26=0," -",IF(X26>100%,100%,X26)) -> 0 | Z26: =IF(Q26=0," -",U26/Q26) -> 0 | AA26: =IF(Q26=0," -",IF(Z26>100%,100%,Z26)) -> 0 | AB26: =IF(R26=0," -",V26/R26) -> 0 | AC26: =IF(R26=0," -",IF(AB26>100%,100%,AB26)) -> 0 | AD26: =IF(S26=0," -",W26/S26) -> 0 | AE26: =IF(S26=0," -",IF(AD26>100%,100%,AD26)) -> 0 | AF26: =+AVERAGE(T26:W26)/O26 -> 0 | AG26: 0 | AH26: 0 | AI26: ='[3]2016'!P15 -> 0 | AJ26: ='[3]2016'!Q15 -> 0 | AK26: ='[3]2016'!R15 -> 0 | AL26: - | AM26: - | AN26: ='[3]2017'!P15 -> 0 | AO26: ='[3]2017'!Q15 -> 0 | AP26: ='[3]2017'!R15 -> 0 | AQ26: - | AR26: - | AS26: ='[3]2018'!P15 -> 25000 | AT26: ='[3]2018'!Q15 -> 0 | AU26: ='[3]2018'!R15 -> 0 | AV26: 0 | AW26: - | AX26: ='[3]2019'!P15 -> 25000 | AY26: ='[3]2019'!Q15 -> 0 | AZ26: ='[3]2019'!R15 -> 0 | BA26: 0 | BB26: - | BC26: 50000 | BD26: 0 | BE26: 0 | BF26: 0 | BG26: - | BH26: ='[1]LÍNEA 1'!AO26 -> 16. Paz, justicia e instituciones sólidas | BI26: ='[1]LÍNEA 1'!AP26 -> Fortalecimiento Institucional | BJ26: Sec. Desarrollo Social
K27: Implementar y mantener 1 estrategia de gobierno para la aplicación cabal de la ley 1757 de 2015 de participación ciudadana. | L27: ='[1]LÍNEA 1'!P27 -> - | M27: ='[1]LÍNEA 1'!Q27 -> Número de estrategias de gobierno implementadas y mantenidas para la aplicación cabal de la ley 1757 de 2015 de participación ciudadana. | N27: 0 | O27: ='[1]LÍNEA 1'!S27 -> 1 | P27: ='[1]LÍNEA 1'!T27 -> 1 | Q27: ='[1]LÍNEA 1'!U27 -> 1 | R27: ='[1]LÍNEA 1'!V27 -> 1 | S27: ='[1]LÍNEA 1'!W27 -> 1 | T27: ='[3]2016'!K16 -> 1 | U27: ='[3]2017'!K16 -> 0 | V27: ='[3]2018'!K16 -> 0 | W27: ='[3]2019'!K16 -> 0 | X27: =IF(P27=0," -",T27/P27) -> 1 | Y27: =IF(P27=0," -",IF(X27>100%,100%,X27)) -> 1 | Z27: =IF(Q27=0," -",U27/Q27) -> 0 | AA27: =IF(Q27=0," -",IF(Z27>100%,100%,Z27)) -> 0 | AB27: =IF(R27=0," -",V27/R27) -> 0 | AC27: =IF(R27=0," -",IF(AB27>100%,100%,AB27)) -> 0 | AD27: =IF(S27=0," -",W27/S27) -> 0 | AE27: =IF(S27=0," -",IF(AD27>100%,100%,AD27)) -> 0 | AF27: =+AVERAGE(T27:W27)/O27 -> 0.25 | AG27: 0.25 | AH27: 0.25 | AI27: ='[3]2016'!P16 -> 0 | AJ27: ='[3]2016'!Q16 -> 0 | AK27: ='[3]2016'!R16 -> 0 | AL27: - | AM27: - | AN27: ='[3]2017'!P16 -> 0 | AO27: ='[3]2017'!Q16 -> 0 | AP27: ='[3]2017'!R16 -> 0 | AQ27: - | AR27: - | AS27: ='[3]2018'!P16 -> 0 | AT27: ='[3]2018'!Q16 -> 0 | AU27: ='[3]2018'!R16 -> 0 | AV27: - | AW27: - | AX27: ='[3]2019'!P16 -> 0 | AY27: ='[3]2019'!Q16 -> 0 | AZ27: ='[3]2019'!R16 -> 0 | BA27: - | BB27: - | BC27: 0 | BD27: 0 | BE27: 0 | BF27: - | BG27: - | BH27: ='[1]LÍNEA 1'!AO27 -> 16. Paz, justicia e instituciones sólidas | BI27: ='[1]LÍNEA 1'!AP27 -> Fortalecimiento Institucional | BJ27: Sec. Desarrollo Social
K28: Implementar y mantener 1 estrategia para la promoción y el fortalecimiento de las veedurías. | L28: ='[1]LÍNEA 1'!P28 -> 0 | M28: ='[1]LÍNEA 1'!Q28 -> Número de estrategias implementadas y mantenidas para la promoción y el fortalecimiento de las veedurías. | N28: 0 | O28: ='[1]LÍNEA 1'!S28 -> 1 | P28: ='[1]LÍNEA 1'!T28 -> 1 | Q28: ='[1]LÍNEA 1'!U28 -> 1 | R28: ='[1]LÍNEA 1'!V28 -> 1 | S28: ='[1]LÍNEA 1'!W28 -> 1 | T28: ='[3]2016'!K17 -> 0 | U28: ='[3]2017'!K17 -> 0 | V28: ='[3]2018'!K17 -> 0 | W28: ='[3]2019'!K17 -> 0 | X28: =IF(P28=0," -",T28/P28) -> 0 | Y28: =IF(P28=0," -",IF(X28>100%,100%,X28)) -> 0 | Z28: =IF(Q28=0," -",U28/Q28) -> 0 | AA28: =IF(Q28=0," -",IF(Z28>100%,100%,Z28)) -> 0 | AB28: =IF(R28=0," -",V28/R28) -> 0 | AC28: =IF(R28=0," -",IF(AB28>100%,100%,AB28)) -> 0 | AD28: =IF(S28=0," -",W28/S28) -> 0 | AE28: =IF(S28=0," -",IF(AD28>100%,100%,AD28)) -> 0 | AF28: =+AVERAGE(T28:W28)/O28 -> 0 | AG28: 0 | AH28: 0 | AI28: ='[3]2016'!P17 -> 0 | AJ28: ='[3]2016'!Q17 -> 0 | AK28: ='[3]2016'!R17 -> 0 | AL28: - | AM28: - | AN28: ='[3]2017'!P17 -> 0 | AO28: ='[3]2017'!Q17 -> 0 | AP28: ='[3]2017'!R17 -> 0 | AQ28: - | AR28: - | AS28: ='[3]2018'!P17 -> 25000 | AT28: ='[3]2018'!Q17 -> 0 | AU28: ='[3]2018'!R17 -> 0 | AV28: 0 | AW28: - | AX28: ='[3]2019'!P17 -> 25000 | AY28: ='[3]2019'!Q17 -> 0 | AZ28: ='[3]2019'!R17 -> 0 | BA28: 0 | BB28: - | BC28: 50000 | BD28: 0 | BE28: 0 | BF28: 0 | BG28: - | BH28: ='[1]LÍNEA 1'!AO28 -> 16. Paz, justicia e instituciones sólidas | BI28: ='[1]LÍNEA 1'!AP28 -> Fortalecimiento Institucional | BJ28: Sec. Desarrollo Social
K29: Implementar y mantener 1 estrategia para el fortalecimiento del Consejo Municipal de Desarrollo Rural. | L29: ='[1]LÍNEA 1'!P29 -> 0 | M29: ='[1]LÍNEA 1'!Q29 -> Número de estrategias implementadas y mantenidas para el fortalecimiento del Consejo Municipal de Desarrollo Rural. | N29: 1 | O29: ='[1]LÍNEA 1'!S29 -> 1 | P29: ='[1]LÍNEA 1'!T29 -> 1 | Q29: ='[1]LÍNEA 1'!U29 -> 1 | R29: ='[1]LÍNEA 1'!V29 -> 1 | S29: ='[1]LÍNEA 1'!W29 -> 1 | T29: ='[3]2016'!K18 -> 1 | U29: ='[3]2017'!K18 -> 0 | V29: ='[3]2018'!K18 -> 0 | W29: ='[3]2019'!K18 -> 0 | X29: =IF(P29=0," -",T29/P29) -> 1 | Y29: =IF(P29=0," -",IF(X29>100%,100%,X29)) -> 1 | Z29: =IF(Q29=0," -",U29/Q29) -> 0 | AA29: =IF(Q29=0," -",IF(Z29>100%,100%,Z29)) -> 0 | AB29: =IF(R29=0," -",V29/R29) -> 0 | AC29: =IF(R29=0," -",IF(AB29>100%,100%,AB29)) -> 0 | AD29: =IF(S29=0," -",W29/S29) -> 0 | AE29: =IF(S29=0," -",IF(AD29>100%,100%,AD29)) -> 0 | AF29: =+AVERAGE(T29:W29)/O29 -> 0.25 | AG29: 0.25 | AH29: 0.25 | AI29: ='[3]2016'!P18 -> 0 | AJ29: ='[3]2016'!Q18 -> 0 | AK29: ='[3]2016'!R18 -> 0 | AL29: - | AM29: - | AN29: ='[3]2017'!P18 -> 0 | AO29: ='[3]2017'!Q18 -> 0 | AP29: ='[3]2017'!R18 -> 0 | AQ29: - | AR29: - | AS29: ='[3]2018'!P18 -> 25000 | AT29: ='[3]2018'!Q18 -> 0 | AU29: ='[3]2018'!R18 -> 0 | AV29: 0 | AW29: - | AX29: ='[3]2019'!P18 -> 25000 | AY29: ='[3]2019'!Q18 -> 0 | AZ29: ='[3]2019'!R18 -> 0 | BA29: 0 | BB29: - | BC29: 50000 | BD29: 0 | BE29: 0 | BF29: 0 | BG29: - | BH29: ='[1]LÍNEA 1'!AO29 -> 16. Paz, justicia e instituciones sólidas | BI29: ='[1]LÍNEA 1'!AP29 -> Fortalecimiento Institucional | BJ29: Sec. Desarrollo Social
K30: Crear 1 cargo del nivel directivo o asesor para que la coordinación de los asuntos de prensa y comunicaciones (Jefe de Prensa). | L30: ='[1]LÍNEA 1'!P30 -> - | M30: ='[1]LÍNEA 1'!Q30 -> Número de cargos creados para la coordinación de los asuntos de prensa y comunicaciones (Jefe de prensa) | N30: 0 | O30: ='[1]LÍNEA 1'!S30 -> 1 | P30: ='[1]LÍNEA 1'!T30 -> 0 | Q30: ='[1]LÍNEA 1'!U30 -> 1 | R30: ='[1]LÍNEA 1'!V30 -> 0 | S30: ='[1]LÍNEA 1'!W30 -> 0 | T30: ='[9]2016'!K12 -> 0 | U30: ='[9]2017'!K12 -> 0 | V30: ='[9]2018'!K12 -> 0 | W30: ='[9]2019'!K12 -> 0 | X30: =IF(P30=0," -",T30/P30) -> - | Y30: =IF(P30=0," -",IF(X30>100%,100%,X30)) -> - | Z30: =IF(Q30=0," -",U30/Q30) -> 0 | AA30: =IF(Q30=0," -",IF(Z30>100%,100%,Z30)) -> 0 | AB30: =IF(R30=0," -",V30/R30) -> - | AC30: =IF(R30=0," -",IF(AB30>100%,100%,AB30)) -> - | AD30: =IF(S30=0," -",W30/S30) -> - | AE30: =IF(S30=0," -",IF(AD30>100%,100%,AD30)) -> - | AF30: =+SUM(T30:W30)/O30 -> 0 | AG30: 0 | AH30: 0 | AI30: ='[9]2016'!P12 -> 0 | AJ30: ='[9]2016'!Q12 -> 0 | AK30: ='[9]2016'!R12 -> 0 | AL30: - | AM30: - | AN30: ='[9]2017'!P12 -> 0 | AO30: ='[9]2017'!Q12 -> 0 | AP30: ='[9]2017'!R12 -> 0 | AQ30: - | AR30: - | AS30: ='[9]2018'!P12 -> 0 | AT30: ='[9]2018'!Q12 -> 0 | AU30: ='[9]2018'!R12 -> 0 | AV30: - | AW30: - | AX30: ='[9]2019'!P12 -> 0 | AY30: ='[9]2019'!Q12 -> 0 | AZ30: ='[9]2019'!R12 -> 0 | BA30: - | BB30: - | BC30: 0 | BD30: 0 | BE30: 0 | BF30: - | BG30: - | BH30: ='[1]LÍNEA 1'!AO30 -> 16. Paz, justicia e instituciones sólidas | BI30: ='[1]LÍNEA 1'!AP30 -> Fortalecimiento Institucional | BJ30: Sec. Administrativa
K31: Crear 1 cargo del nivel directivo y/o asesor adscrito al despacho del Alcalde como encargado de asuntos de participación ciudadana. | L31: ='[1]LÍNEA 1'!P31 -> - | M31: ='[1]LÍNEA 1'!Q31 -> Número de cargos del nivel directivo y/o asesor adscritos al despacho del Alcalde como encargado de asuntos de participación ciudadana. | N31: 0 | O31: ='[1]LÍNEA 1'!S31 -> 1 | P31: ='[1]LÍNEA 1'!T31 -> 0 | Q31: ='[1]LÍNEA 1'!U31 -> 1 | R31: ='[1]LÍNEA 1'!V31 -> 0 | S31: ='[1]LÍNEA 1'!W31 -> 0 | T31: ='[9]2016'!K13 -> 0 | U31: ='[9]2017'!K13 -> 0 | V31: ='[9]2018'!K13 -> 0 | W31: ='[9]2019'!K13 -> 0 | X31: =IF(P31=0," -",T31/P31) -> - | Y31: =IF(P31=0," -",IF(X31>100%,100%,X31)) -> - | Z31: =IF(Q31=0," -",U31/Q31) -> 0 | AA31: =IF(Q31=0," -",IF(Z31>100%,100%,Z31)) -> 0 | AB31: =IF(R31=0," -",V31/R31) -> - | AC31: =IF(R31=0," -",IF(AB31>100%,100%,AB31)) -> - | AD31: =IF(S31=0," -",W31/S31) -> - | AE31: =IF(S31=0," -",IF(AD31>100%,100%,AD31)) -> - | AF31: =+SUM(T31:W31)/O31 -> 0 | AG31: 0 | AH31: 0 | AI31: ='[9]2016'!P13 -> 0 | AJ31: ='[9]2016'!Q13 -> 0 | AK31: ='[9]2016'!R13 -> 0 | AL31: - | AM31: - | AN31: ='[9]2017'!P13 -> 0 | AO31: ='[9]2017'!Q13 -> 0 | AP31: ='[9]2017'!R13 -> 0 | AQ31: - | AR31: - | AS31: ='[9]2018'!P13 -> 0 | AT31: ='[9]2018'!Q13 -> 0 | AU31: ='[9]2018'!R13 -> 0 | AV31: - | AW31: - | AX31: ='[9]2019'!P13 -> 0 | AY31: ='[9]2019'!Q13 -> 0 | AZ31: ='[9]2019'!R13 -> 0 | BA31: - | BB31: - | BC31: 0 | BD31: 0 | BE31: 0 | BF31: - | BG31: - | BH31: ='[1]LÍNEA 1'!AO31 -> 16. Paz, justicia e instituciones sólidas | BI31: ='[1]LÍNEA 1'!AP31 -> Fortalecimiento Institucional | BJ31: Sec. Administrativa
K32: Convocar y realizar 48 conversatorios con organizaciones sociales, organizaciones políticas, periodísticas o grupos de líderes de opinión para discutir asuntos del gobierno y la ciudad. | L32: ='[1]LÍNEA 1'!P32 -> - | M32: ='[1]LÍNEA 1'!Q32 -> Número de conversatorios convocados y realizados con organizaciones sociales, organizaciones políticas, periodísticas o grupos de líderes de opinión para discutir asuntos del gobierno y la ciudad. | N32: 0 | O32: ='[1]LÍNEA 1'!S32 -> 48 | P32: ='[1]LÍNEA 1'!T32 -> 4 | Q32: ='[1]LÍNEA 1'!U32 -> 15 | R32: ='[1]LÍNEA 1'!V32 -> 14 | S32: ='[1]LÍNEA 1'!W32 -> 15 | T32: ='[2]2016'!$K$13 -> 4 | U32: ='[2]2017'!$K$13 -> 0 | V32: ='[2]2018'!$K$13 -> 0 | W32: ='[2]2019'!$K$13 -> 0 | X32: =IF(P32=0," -",T32/P32) -> 1 | Y32: =IF(P32=0," -",IF(X32>100%,100%,X32)) -> 1 | Z32: =IF(Q32=0," -",U32/Q32) -> 0 | AA32: =IF(Q32=0," -",IF(Z32>100%,100%,Z32)) -> 0 | AB32: =IF(R32=0," -",V32/R32) -> 0 | AC32: =IF(R32=0," -",IF(AB32>100%,100%,AB32)) -> 0 | AD32: =IF(S32=0," -",W32/S32) -> 0 | AE32: =IF(S32=0," -",IF(AD32>100%,100%,AD32)) -> 0 | AF32: =+SUM(T32:W32)/O32 -> 0.08333333333 | AG32: 0.08333333333 | AH32: 0.08333333333 | AI32: ='[2]2016'!P13 -> 0 | AJ32: ='[2]2016'!Q13 -> 0 | AK32: ='[2]2016'!R13 -> 0 | AL32: - | AM32: - | AN32: ='[2]2017'!P13 -> 27500 | AO32: ='[2]2017'!Q13 -> 0 | AP32: ='[2]2017'!R13 -> 0 | AQ32: 0 | AR32: - | AS32: ='[2]2018'!P13 -> 0 | AT32: ='[2]2018'!Q13 -> 0 | AU32: ='[2]2018'!R13 -> 0 | AV32: - | AW32: - | AX32: ='[2]2019'!P13 -> 0 | AY32: ='[2]2019'!Q13 -> 0 | AZ32: ='[2]2019'!R13 -> 0 | BA32: - | BB32: - | BC32: 27500 | BD32: 0 | BE32: 0 | BF32: 0 | BG32: - | BH32: ='[1]LÍNEA 1'!AO32 -> 16. Paz, justicia e instituciones sólidas | BI32: ='[1]LÍNEA 1'!AP32 -> Fortalecimiento Institucional | BJ32: Sec. Interior
K33: Implementar y mantener 1 sección en la página web institucional para informar sobre los debates, las relaciones y los acuerdos con el Concejo e interactuar con la ciudadanía. | L33: ='[1]LÍNEA 1'!P33 -> - | M33: ='[1]LÍNEA 1'!Q33 -> Número de secciones implementadas y mantenidas en la página web institucional para informar sobre los debates, las relaciones y los acuerdos con el Concejo e interactuar con la ciudadanía. | N33: 0 | O33: ='[1]LÍNEA 1'!S33 -> 1 | P33: ='[1]LÍNEA 1'!T33 -> 0 | Q33: ='[1]LÍNEA 1'!U33 -> 1 | R33: ='[1]LÍNEA 1'!V33 -> 1 | S33: ='[1]LÍNEA 1'!W33 -> 1 | T33: ='[10]2016'!K12 -> 0.33 | U33: ='[10]2017'!K12 -> 0 | V33: ='[10]2018'!K12 -> 0 | W33: ='[10]2019'!K12 -> 0 | X33: =IF(P33=0," -",T33/P33) -> - | Y33: =IF(P33=0," -",IF(X33>100%,100%,X33)) -> - | Z33: =IF(Q33=0," -",U33/Q33) -> 0 | AA33: =IF(Q33=0," -",IF(Z33>100%,100%,Z33)) -> 0 | AB33: =IF(R33=0," -",V33/R33) -> 0 | AC33: =IF(R33=0," -",IF(AB33>100%,100%,AB33)) -> 0 | AD33: =IF(S33=0," -",W33/S33) -> 0 | AE33: =IF(S33=0," -",IF(AD33>100%,100%,AD33)) -> 0 | AF33: =+AVERAGE(U33:W33)/O33 -> 0 | AG33: 0 | AH33: 0 | AI33: ='[10]2016'!P12 -> 0 | AJ33: ='[10]2016'!Q12 -> 0 | AK33: ='[10]2016'!R12 -> 0 | AL33: - | AM33: - | AN33: ='[10]2017'!P12 -> 0 | AO33: ='[10]2017'!Q12 -> 0 | AP33: ='[10]2017'!R12 -> 0 | AQ33: - | AR33: - | AS33: ='[10]2018'!P12 -> 0 | AT33: ='[10]2018'!Q12 -> 0 | AU33: ='[10]2018'!R12 -> 0 | AV33: - | AW33: - | AX33: ='[10]2019'!P12 -> 0 | AY33: ='[10]2019'!Q12 -> 0 | AZ33: ='[10]2019'!R12 -> 0 | BA33: - | BB33: - | BC33: 0 | BD33: 0 | BE33: 0 | BF33: - | BG33: - | BH33: ='[1]LÍNEA 1'!AO33 -> 16. Paz, justicia e instituciones sólidas | BI33: ='[1]LÍNEA 1'!AP33 -> Fortalecimiento Institucional | BJ33: Ofc. Sistemas
K34: Implementar y mantener 1 sección en la página web institucional para que la ciudadanía pueda compartir textos, imágenes, audios y videos sobre condiciones y problemas de la ciudad o propuestas de política. | L34: ='[1]LÍNEA 1'!P34 -> - | M34: ='[1]LÍNEA 1'!Q34 -> Número de secciones implementadas y mantenidas en la página web institucional para que la ciudadanía pueda compartir textos, imágenes, audios y videos sobre condiciones y problemas de la ciudad o propuestas de política. | N34: 0 | O34: ='[1]LÍNEA 1'!S34 -> 1 | P34: ='[1]LÍNEA 1'!T34 -> 0 | Q34: ='[1]LÍNEA 1'!U34 -> 1 | R34: ='[1]LÍNEA 1'!V34 -> 1 | S34: ='[1]LÍNEA 1'!W34 -> 1 | T34: ='[10]2016'!K13 -> 0.5 | U34: ='[10]2017'!K13 -> 0 | V34: ='[10]2018'!K13 -> 0 | W34: ='[10]2019'!K13 -> 0 | X34: =IF(P34=0," -",T34/P34) -> - | Y34: =IF(P34=0," -",IF(X34>100%,100%,X34)) -> - | Z34: =IF(Q34=0," -",U34/Q34) -> 0 | AA34: =IF(Q34=0," -",IF(Z34>100%,100%,Z34)) -> 0 | AB34: =IF(R34=0," -",V34/R34) -> 0 | AC34: =IF(R34=0," -",IF(AB34>100%,100%,AB34)) -> 0 | AD34: =IF(S34=0," -",W34/S34) -> 0 | AE34: =IF(S34=0," -",IF(AD34>100%,100%,AD34)) -> 0 | AF34: =+AVERAGE(T34:W34)/O34 -> 0.125 | AG34: 0.125 | AH34: 0.125 | AI34: ='[10]2016'!P13 -> 0 | AJ34: ='[10]2016'!Q13 -> 0 | AK34: ='[10]2016'!R13 -> 0 | AL34: - | AM34: - | AN34: ='[10]2017'!P13 -> 0 | AO34: ='[10]2017'!Q13 -> 0 | AP34: ='[10]2017'!R13 -> 0 | AQ34: - | AR34: - | AS34: ='[10]2018'!P13 -> 0 | AT34: ='[10]2018'!Q13 -> 0 | AU34: ='[10]2018'!R13 -> 0 | AV34: - | AW34: - | AX34: ='[10]2019'!P13 -> 0 | AY34: ='[10]2019'!Q13 -> 0 | AZ34: ='[10]2019'!R13 -> 0 | BA34: - | BB34: - | BC34: 0 | BD34: 0 | BE34: 0 | BF34: - | BG34: - | BH34: ='[1]LÍNEA 1'!AO34 -> 16. Paz, justicia e instituciones sólidas | BI34: ='[1]LÍNEA 1'!AP34 -> Fortalecimiento Institucional | BJ34: Ofc. Sistemas
I35: =+RESUMEN!J13 -> 0.2726923077 | J35: INSTITUCIONES DEMOCRÁTICAS DE BASE FORTALECIDAS E INCLUYENTES | K35: Beneficiar al 100% de los ediles con pago de EPS, Pensión, ARL y póliza de vida. | L35: ='[1]LÍNEA 1'!P35 -> 2210216 | M35: ='[1]LÍNEA 1'!Q35 -> Porcentaje de ediles beneficiados con pago de EPS, Pensión, ARL y póliza de vida. | N35: 1 | O35: ='[1]LÍNEA 1'!S35 -> 1 | P35: ='[1]LÍNEA 1'!T35 -> 1 | Q35: ='[1]LÍNEA 1'!U35 -> 1 | R35: ='[1]LÍNEA 1'!V35 -> 1 | S35: ='[1]LÍNEA 1'!W35 -> 1 | T35: ='[3]2016'!K19 -> 1 | U35: ='[3]2017'!K19 -> 0 | V35: ='[3]2018'!K19 -> 0 | W35: ='[3]2019'!K19 -> 0 | X35: =IF(P35=0," -",T35/P35) -> 1 | Y35: =IF(P35=0," -",IF(X35>100%,100%,X35)) -> 1 | Z35: =IF(Q35=0," -",U35/Q35) -> 0 | AA35: =IF(Q35=0," -",IF(Z35>100%,100%,Z35)) -> 0 | AB35: =IF(R35=0," -",V35/R35) -> 0 | AC35: =IF(R35=0," -",IF(AB35>100%,100%,AB35)) -> 0 | AD35: =IF(S35=0," -",W35/S35) -> 0 | AE35: =IF(S35=0," -",IF(AD35>100%,100%,AD35)) -> 0 | AF35: =+AVERAGE(T35:W35)/O35 -> 0.25 | AG35: 0.25 | AH35: 0.25 | AI35: ='[3]2016'!P19 -> 500000 | AJ35: ='[3]2016'!Q19 -> 483730 | AK35: ='[3]2016'!R19 -> 0 | AL35: 0.96746 | AM35: - | AN35: ='[3]2017'!P19 -> 570000 | AO35: ='[3]2017'!Q19 -> 0 | AP35: ='[3]2017'!R19 -> 0 | AQ35: 0 | AR35: - | AS35: ='[3]2018'!P19 -> 873620 | AT35: ='[3]2018'!Q19 -> 0 | AU35: ='[3]2018'!R19 -> 0 | AV35: 0 | AW35: - | AX35: ='[3]2019'!P19 -> 912933 | AY35: ='[3]2019'!Q19 -> 0 | AZ35: ='[3]2019'!R19 -> 0 | BA35: 0 | BB35: - | BC35: 2856553 | BD35: 483730 | BE35: 0 | BF35: 0.1693404603 | BG35: - | BH35: ='[1]LÍNEA 1'!AO35 -> 16. Paz, justicia e instituciones sólidas | BI35: ='[1]LÍNEA 1'!AP35 -> Fortalecimiento Institucional | BJ35: Sec. Desarrollo Social
K36: Implementar y mantener 1 estrategia para fortalecer la Unidad de Desarrollo Comunitario - UNDECO. | L36: ='[1]LÍNEA 1'!P36 -> 2210706 | M36: ='[1]LÍNEA 1'!Q36 -> Número de estrategias implementadas y mantenidas para fortalecer la Unidad de Desarrollo Comunitario - UNDECO. | N36: 1 | O36: ='[1]LÍNEA 1'!S36 -> 1 | P36: ='[1]LÍNEA 1'!T36 -> 1 | Q36: ='[1]LÍNEA 1'!U36 -> 1 | R36: ='[1]LÍNEA 1'!V36 -> 1 | S36: ='[1]LÍNEA 1'!W36 -> 1 | T36: ='[3]2016'!K20 -> 1 | U36: ='[3]2017'!K20 -> 0 | V36: ='[3]2018'!K20 -> 0 | W36: ='[3]2019'!K20 -> 0 | X36: =IF(P36=0," -",T36/P36) -> 1 | Y36: =IF(P36=0," -",IF(X36>100%,100%,X36)) -> 1 | Z36: =IF(Q36=0," -",U36/Q36) -> 0 | AA36: =IF(Q36=0," -",IF(Z36>100%,100%,Z36)) -> 0 | AB36: =IF(R36=0," -",V36/R36) -> 0 | AC36: =IF(R36=0," -",IF(AB36>100%,100%,AB36)) -> 0 | AD36: =IF(S36=0," -",W36/S36) -> 0 | AE36: =IF(S36=0," -",IF(AD36>100%,100%,AD36)) -> 0 | AF36: =+AVERAGE(T36:W36)/O36 -> 0.25 | AG36: 0.25 | AH36: 0.25 | AI36: ='[3]2016'!P20 -> 300000 | AJ36: ='[3]2016'!Q20 -> 246783 | AK36: ='[3]2016'!R20 -> 0 | AL36: 0.82261 | AM36: - | AN36: ='[3]2017'!P20 -> 360000 | AO36: ='[3]2017'!Q20 -> 0 | AP36: ='[3]2017'!R20 -> 0 | AQ36: 0 | AR36: - | AS36: ='[3]2018'!P20 -> 0 | AT36: ='[3]2018'!Q20 -> 0 | AU36: ='[3]2018'!R20 -> 0 | AV36: - | AW36: - | AX36: ='[3]2019'!P20 -> 0 | AY36: ='[3]2019'!Q20 -> 0 | AZ36: ='[3]2019'!R20 -> 0 | BA36: - | BB36: - | BC36: 660000 | BD36: 246783 | BE36: 0 | BF36: 0.3739136364 | BG36: - | BH36: ='[1]LÍNEA 1'!AO36 -> 16. Paz, justicia e instituciones sólidas | BI36: ='[1]LÍNEA 1'!AP36 -> Desarrollo Comunitario | BJ36: Sec. Desarrollo Social
K37: Realizar ejercicios de participación y construcción del territorio con 100 Juntas de Acción Comunal - JAC. | L37: ='[1]LÍNEA 1'!P37 -> 2210706 | M37: ='[1]LÍNEA 1'!Q37 -> Número de Juntas de Acción Comunal - JAC que participan en ejercicios de construcción del territorio. | N37: 0 | O37: ='[1]LÍNEA 1'!S37 -> 100 | P37: ='[1]LÍNEA 1'!T37 -> 25 | Q37: ='[1]LÍNEA 1'!U37 -> 25 | R37: ='[1]LÍNEA 1'!V37 -> 25 | S37: ='[1]LÍNEA 1'!W37 -> 25 | T37: ='[3]2016'!K21 -> 55 | U37: ='[3]2017'!K21 -> 0 | V37: ='[3]2018'!K21 -> 0 | W37: ='[3]2019'!K21 -> 0 | X37: =IF(P37=0," -",T37/P37) -> 2.2 | Y37: =IF(P37=0," -",IF(X37>100%,100%,X37)) -> 1 | Z37: =IF(Q37=0," -",U37/Q37) -> 0 | AA37: =IF(Q37=0," -",IF(Z37>100%,100%,Z37)) -> 0 | AB37: =IF(R37=0," -",V37/R37) -> 0 | AC37: =IF(R37=0," -",IF(AB37>100%,100%,AB37)) -> 0 | AD37: =IF(S37=0," -",W37/S37) -> 0 | AE37: =IF(S37=0," -",IF(AD37>100%,100%,AD37)) -> 0 | AF37: =+SUM(T37:W37)/O37 -> 0.55 | AG37: 0.55 | AH37: 0.55 | AI37: ='[3]2016'!P21 -> 35000 | AJ37: ='[3]2016'!Q21 -> 15000 | AK37: ='[3]2016'!R21 -> 0 | AL37: 0.4285714286 | AM37: - | AN37: ='[3]2017'!P21 -> 0 | AO37: ='[3]2017'!Q21 -> 0 | AP37: ='[3]2017'!R21 -> 0 | AQ37: - | AR37: - | AS37: ='[3]2018'!P21 -> 26125 | AT37: ='[3]2018'!Q21 -> 0 | AU37: ='[3]2018'!R21 -> 0 | AV37: 0 | AW37: - | AX37: ='[3]2019'!P21 -> 27300 | AY37: ='[3]2019'!Q21 -> 0 | AZ37: ='[3]2019'!R21 -> 0 | BA37: 0 | BB37: - | BC37: 88425 | BD37: 15000 | BE37: 0 | BF37: 0.1696352841 | BG37: - | BH37: ='[1]LÍNEA 1'!AO37 -> 16. Paz, justicia e instituciones sólidas | BI37: ='[1]LÍNEA 1'!AP37 -> Desarrollo Comunitario | BJ37: Sec. Desarrollo Social
F38: Lograr que el 60% de los ciudadanos confíe en la gestión del Alcalde/Gobierno Municipal de acuerdo a la encuesta Cómo Vamos. | G38: 0.3 | H38: ='[1]LÍNEA 1'!$H$38 -> 0.6 | K38: Implementar y mantener la estrategia "Voces de los comuneros". | L38: ='[1]LÍNEA 1'!P38 -> - | M38: ='[1]LÍNEA 1'!Q38 -> Número de estrategias "Voces de los comuneros" implementadas y mantenidas. | N38: 0 | O38: ='[1]LÍNEA 1'!S38 -> 1 | P38: ='[1]LÍNEA 1'!T38 -> 1 | Q38: ='[1]LÍNEA 1'!U38 -> 1 | R38: ='[1]LÍNEA 1'!V38 -> 1 | S38: ='[1]LÍNEA 1'!W38 -> 1 | T38: ='[3]2016'!K22 -> 1 | U38: ='[3]2017'!K22 -> 0 | V38: ='[3]2018'!K22 -> 0 | W38: ='[3]2019'!K22 -> 0 | X38: =IF(P38=0," -",T38/P38) -> 1 | Y38: =IF(P38=0," -",IF(X38>100%,100%,X38)) -> 1 | Z38: =IF(Q38=0," -",U38/Q38) -> 0 | AA38: =IF(Q38=0," -",IF(Z38>100%,100%,Z38)) -> 0 | AB38: =IF(R38=0," -",V38/R38) -> 0 | AC38: =IF(R38=0," -",IF(AB38>100%,100%,AB38)) -> 0 | AD38: =IF(S38=0," -",W38/S38) -> 0 | AE38: =IF(S38=0," -",IF(AD38>100%,100%,AD38)) -> 0 | AF38: =+AVERAGE(T38:W38)/O38 -> 0.25 | AG38: 0.25 | AH38: 0.25 | AI38: ='[3]2016'!P22 -> 0 | AJ38: ='[3]2016'!Q22 -> 0 | AK38: ='[3]2016'!R22 -> 0 | AL38: - | AM38: - | AN38: ='[3]2017'!P22 -> 0 | AO38: ='[3]2017'!Q22 -> 0 | AP38: ='[3]2017'!R22 -> 0 | AQ38: - | AR38: - | AS38: ='[3]2018'!P22 -> 0 | AT38: ='[3]2018'!Q22 -> 0 | AU38: ='[3]2018'!R22 -> 0 | AV38: - | AW38: - | AX38: ='[3]2019'!P22 -> 0 | AY38: ='[3]2019'!Q22 -> 0 | AZ38: ='[3]2019'!R22 -> 0 | BA38: - | BB38: - | BC38: 0 | BD38: 0 | BE38: 0 | BF38: - | BG38: - | BH38: ='[1]LÍNEA 1'!AO38 -> 16. Paz, justicia e instituciones sólidas | BI38: ='[1]LÍNEA 1'!AP38 -> Justicia y Seguridad | BJ38: Sec. Desarrollo Social
K39: Realizar 2 actividades de dotación para ediles con el fin de apoyar su ejercicio democrático. | L39: ='[1]LÍNEA 1'!P39 -> 0 | M39: ='[1]LÍNEA 1'!Q39 -> Número de actividades de dotación realizadas para ediles con el fin de apoyar su ejercicio democrático. | N39: 1 | O39: ='[1]LÍNEA 1'!S39 -> 2 | P39: ='[1]LÍNEA 1'!T39 -> 0 | Q39: ='[1]LÍNEA 1'!U39 -> 1 | R39: ='[1]LÍNEA 1'!V39 -> 0 | S39: ='[1]LÍNEA 1'!W39 -> 1 | T39: ='[3]2016'!K23 -> 0 | U39: ='[3]2017'!K23 -> 0 | V39: ='[3]2018'!K23 -> 0 | W39: ='[3]2019'!K23 -> 0 | X39: =IF(P39=0," -",T39/P39) -> - | Y39: =IF(P39=0," -",IF(X39>100%,100%,X39)) -> - | Z39: =IF(Q39=0," -",U39/Q39) -> 0 | AA39: =IF(Q39=0," -",IF(Z39>100%,100%,Z39)) -> 0 | AB39: =IF(R39=0," -",V39/R39) -> - | AC39: =IF(R39=0," -",IF(AB39>100%,100%,AB39)) -> - | AD39: =IF(S39=0," -",W39/S39) -> 0 | AE39: =IF(S39=0," -",IF(AD39>100%,100%,AD39)) -> 0 | AF39: =+SUM(T39:W39)/O39 -> 0 | AG39: 0 | AH39: 0 | AI39: ='[3]2016'!P23 -> 0 | AJ39: ='[3]2016'!Q23 -> 0 | AK39: ='[3]2016'!R23 -> 0 | AL39: - | AM39: - | AN39: ='[3]2017'!P23 -> 40000 | AO39: ='[3]2017'!Q23 -> 0 | AP39: ='[3]2017'!R23 -> 0 | AQ39: 0 | AR39: - | AS39: ='[3]2018'!P23 -> 0 | AT39: ='[3]2018'!Q23 -> 0 | AU39: ='[3]2018'!R23 -> 0 | AV39: - | AW39: - | AX39: ='[3]2019'!P23 -> 41800 | AY39: ='[3]2019'!Q23 -> 0 | AZ39: ='[3]2019'!R23 -> 0 | BA39: 0 | BB39: - | BC39: 81800 | BD39: 0 | BE39: 0 | BF39: 0 | BG39: - | BH39: ='[1]LÍNEA 1'!AO39 -> 16. Paz, justicia e instituciones sólidas | BI39: ='[1]LÍNEA 1'!AP39 -> Desarrollo Comunitario | BJ39: Sec. Desarrollo Social
K40: Realizar 4 concursos "embellece tu barrio". | L40: ='[1]LÍNEA 1'!P40 -> 2210706 | M40: ='[1]LÍNEA 1'!Q40 -> Número de concursos "embellece tu barrio" realizados. | N40: 0 | O40: ='[1]LÍNEA 1'!S40 -> 4 | P40: ='[1]LÍNEA 1'!T40 -> 0 | Q40: ='[1]LÍNEA 1'!U40 -> 1 | R40: ='[1]LÍNEA 1'!V40 -> 1 | S40: ='[1]LÍNEA 1'!W40 -> 2 | T40: ='[3]2016'!K24 -> 0 | U40: ='[3]2017'!K24 -> 0 | V40: ='[3]2018'!K24 -> 0 | W40: ='[3]2019'!K24 -> 0 | X40: =IF(P40=0," -",T40/P40) -> - | Y40: =IF(P40=0," -",IF(X40>100%,100%,X40)) -> - | Z40: =IF(Q40=0," -",U40/Q40) -> 0 | AA40: =IF(Q40=0," -",IF(Z40>100%,100%,Z40)) -> 0 | AB40: =IF(R40=0," -",V40/R40) -> 0 | AC40: =IF(R40=0," -",IF(AB40>100%,100%,AB40)) -> 0 | AD40: =IF(S40=0," -",W40/S40) -> 0 | AE40: =IF(S40=0," -",IF(AD40>100%,100%,AD40)) -> 0 | AF40: =+SUM(T40:W40)/O40 -> 0 | AG40: 0 | AH40: 0 | AI40: ='[3]2016'!P24 -> 30000 | AJ40: ='[3]2016'!Q24 -> 0 | AK40: ='[3]2016'!R24 -> 0 | AL40: 0 | AM40: - | AN40: ='[3]2017'!P24 -> 0 | AO40: ='[3]2017'!Q24 -> 0 | AP40: ='[3]2017'!R24 -> 0 | AQ40: - | AR40: - | AS40: ='[3]2018'!P24 -> 21840 | AT40: ='[3]2018'!Q24 -> 0 | AU40: ='[3]2018'!R24 -> 0 | AV40: 0 | AW40: - | AX40: ='[3]2019'!P24 -> 22823 | AY40: ='[3]2019'!Q24 -> 0 | AZ40: ='[3]2019'!R24 -> 0 | BA40: 0 | BB40: - | BC40: 74663 | BD40: 0 | BE40: 0 | BF40: 0 | BG40: - | BH40: ='[1]LÍNEA 1'!AO40 -> 13. Acción por el clima | BI40: ='[1]LÍNEA 1'!AP40 -> Ambiental | BJ40: Sec. Desarrollo Social
K41: Brindar 10.000 entradas gratuitas a ediles, dignatarios y afiliados de las JAL y JAC a espacios de recreación y cultura. | L41: ='[1]LÍNEA 1'!P41 -> 2210230 | M41: ='[1]LÍNEA 1'!Q41 -> Número de entradas gratuitas brindadas a ediles, dignatarios y afiliados de las JAL y JAC a espacios de recreación y cultura. | N41: 0 | O41: ='[1]LÍNEA 1'!S41 -> 10000 | P41: ='[1]LÍNEA 1'!T41 -> 2500 | Q41: ='[1]LÍNEA 1'!U41 -> 2500 | R41: ='[1]LÍNEA 1'!V41 -> 2500 | S41: ='[1]LÍNEA 1'!W41 -> 2500 | T41: ='[3]2016'!K25 -> 4200 | U41: ='[3]2017'!K25 -> 0 | V41: ='[3]2018'!K25 -> 0 | W41: ='[3]2019'!K25 -> 0 | X41: =IF(P41=0," -",T41/P41) -> 1.68 | Y41: =IF(P41=0," -",IF(X41>100%,100%,X41)) -> 1 | Z41: =IF(Q41=0," -",U41/Q41) -> 0 | AA41: =IF(Q41=0," -",IF(Z41>100%,100%,Z41)) -> 0 | AB41: =IF(R41=0," -",V41/R41) -> 0 | AC41: =IF(R41=0," -",IF(AB41>100%,100%,AB41)) -> 0 | AD41: =IF(S41=0," -",W41/S41) -> 0 | AE41: =IF(S41=0," -",IF(AD41>100%,100%,AD41)) -> 0 | AF41: =+SUM(T41:W41)/O41 -> 0.42 | AG41: 0.42 | AH41: 0.42 | AI41: ='[3]2016'!P25 -> 21000 | AJ41: ='[3]2016'!Q25 -> 21000 | AK41: ='[3]2016'!R25 -> 6300 | AL41: 1 | AM41: 0.3 | AN41: ='[3]2017'!P25 -> 80000 | AO41: ='[3]2017'!Q25 -> 0 | AP41: ='[3]2017'!R25 -> 0 | AQ41: 0 | AR41: - | AS41: ='[3]2018'!P25 -> 0 | AT41: ='[3]2018'!Q25 -> 0 | AU41: ='[3]2018'!R25 -> 0 | AV41: - | AW41: - | AX41: ='[3]2019'!P25 -> 0 | AY41: ='[3]2019'!Q25 -> 0 | AZ41: ='[3]2019'!R25 -> 0 | BA41: - | BB41: - | BC41: 101000 | BD41: 21000 | BE41: 6300 | BF41: 0.2079207921 | BG41: 0.3 | BH41: ='[1]LÍNEA 1'!AO41 -> 16. Paz, justicia e instituciones sólidas | BI41: ='[1]LÍNEA 1'!AP41 -> Desarrollo Comunitario | BJ41: Sec. Desarrollo Social
K42: Realizar 80 reuniones en el territorio con Juntas Administradoras Locales - JAL para discutir política pública y problemas de la comunidad. | L42: ='[1]LÍNEA 1'!P42 -> 2210706 | M42: ='[1]LÍNEA 1'!Q42 -> Número de reuniones realizadas en el territorio con Juntas Administradoras Locales - JAL para discutir política pública y problemas de la comunidad. | N42: 0 | O42: ='[1]LÍNEA 1'!S42 -> 80 | P42: ='[1]LÍNEA 1'!T42 -> 20 | Q42: ='[1]LÍNEA 1'!U42 -> 20 | R42: ='[1]LÍNEA 1'!V42 -> 20 | S42: ='[1]LÍNEA 1'!W42 -> 20 | T42: ='[3]2016'!K26 -> 16 | U42: ='[3]2017'!K26 -> 0 | V42: ='[3]2018'!K26 -> 0 | W42: ='[3]2019'!K26 -> 0 | X42: =IF(P42=0," -",T42/P42) -> 0.8 | Y42: =IF(P42=0," -",IF(X42>100%,100%,X42)) -> 0.8 | Z42: =IF(Q42=0," -",U42/Q42) -> 0 | AA42: =IF(Q42=0," -",IF(Z42>100%,100%,Z42)) -> 0 | AB42: =IF(R42=0," -",V42/R42) -> 0 | AC42: =IF(R42=0," -",IF(AB42>100%,100%,AB42)) -> 0 | AD42: =IF(S42=0," -",W42/S42) -> 0 | AE42: =IF(S42=0," -",IF(AD42>100%,100%,AD42)) -> 0 | AF42: =+SUM(T42:W42)/O42 -> 0.2 | AG42: 0.2 | AH42: 0.2 | AI42: ='[3]2016'!P26 -> 20000 | AJ42: ='[3]2016'!Q26 -> 0 | AK42: ='[3]2016'!R26 -> 0 | AL42: 0 | AM42: - | AN42: ='[3]2017'!P26 -> 0 | AO42: ='[3]2017'!Q26 -> 0 | AP42: ='[3]2017'!R26 -> 0 | AQ42: - | AR42: - | AS42: ='[3]2018'!P26 -> 20000 | AT42: ='[3]2018'!Q26 -> 0 | AU42: ='[3]2018'!R26 -> 0 | AV42: 0 | AW42: - | AX42: ='[3]2019'!P26 -> 20000 | AY42: ='[3]2019'!Q26 -> 0 | AZ42: ='[3]2019'!R26 -> 0 | BA42: 0 | BB42: - | BC42: 60000 | BD42: 0 | BE42: 0 | BF42: 0 | BG42: - | BH42: ='[1]LÍNEA 1'!AO42 -> 16. Paz, justicia e instituciones sólidas | BI42: ='[1]LÍNEA 1'!AP42 -> Desarrollo Comunitario | BJ42: Sec. Desarrollo Social
K43: Desarrollar 1 estrategia para la formación de los conciliadores de las JAC que promuevan una cultura de trasformación de los conflictos cotidianos en la comunidad para disminuir los índices de violencia por intolerancia social. | L43: ='[1]LÍNEA 1'!P43 -> - | M43: ='[1]LÍNEA 1'!Q43 -> Número de estrategias desarrolladas para la formación de los conciliadores de las JAC que promuevan una cultura de trasformación de los conflictos cotidianos en la comunidad para disminuir los índices de violencia por intolerancia social. | N43: 0 | O43: ='[1]LÍNEA 1'!S43 -> 1 | P43: ='[1]LÍNEA 1'!T43 -> 0 | Q43: ='[1]LÍNEA 1'!U43 -> 1 | R43: ='[1]LÍNEA 1'!V43 -> 0 | S43: ='[1]LÍNEA 1'!W43 -> 0 | T43: ='[3]2016'!K27 -> 1 | U43: ='[3]2017'!K27 -> 0 | V43: ='[3]2018'!K27 -> 0 | W43: ='[3]2019'!K27 -> 0 | X43: =IF(P43=0," -",T43/P43) -> - | Y43: =IF(P43=0," -",IF(X43>100%,100%,X43)) -> - | Z43: =IF(Q43=0," -",U43/Q43) -> 0 | AA43: =IF(Q43=0," -",IF(Z43>100%,100%,Z43)) -> 0 | AB43: =IF(R43=0," -",V43/R43) -> - | AC43: =IF(R43=0," -",IF(AB43>100%,100%,AB43)) -> - | AD43: =IF(S43=0," -",W43/S43) -> - | AE43: =IF(S43=0," -",IF(AD43>100%,100%,AD43)) -> - | AF43: =+SUM(T43:W43)/O43 -> 1 | AG43: 1 | AH43: 1 | AI43: ='[3]2016'!P27 -> 0 | AJ43: ='[3]2016'!Q27 -> 0 | AK43: ='[3]2016'!R27 -> 0 | AL43: - | AM43: - | AN43: ='[3]2017'!P27 -> 0 | AO43: ='[3]2017'!Q27 -> 0 | AP43: ='[3]2017'!R27 -> 0 | AQ43: - | AR43: - | AS43: ='[3]2018'!P27 -> 0 | AT43: ='[3]2018'!Q27 -> 0 | AU43: ='[3]2018'!R27 -> 0 | AV43: - | AW43: - | AX43: ='[3]2019'!P27 -> 0 | AY43: ='[3]2019'!Q27 -> 0 | AZ43: ='[3]2019'!R27 -> 0 | BA43: - | BB43: - | BC43: 0 | BD43: 0 | BE43: 0 | BF43: - | BG43: - | BH43: ='[1]LÍNEA 1'!AO43 -> 16. Paz, justicia e instituciones sólidas | BI43: ='[1]LÍNEA 1'!AP43 -> Desarrollo Comunitario | BJ43: Sec. Desarrollo Social
K44: Realizar 8 actividades para el fortalecimiento del Consejo Territorial de Planeación. | L44: ='[1]LÍNEA 1'!P44 -> 2210842 | M44: ='[1]LÍNEA 1'!Q44 -> Número de actividades realizadas para el fortalecimiento del Consejo Territorial de Planeación. | N44: 0 | O44: ='[1]LÍNEA 1'!S44 -> 8 | P44: ='[1]LÍNEA 1'!T44 -> 1 | Q44: ='[1]LÍNEA 1'!U44 -> 3 | R44: ='[1]LÍNEA 1'!V44 -> 2 | S44: ='[1]LÍNEA 1'!W44 -> 2 | T44: ='[6]2016'!$K$13 -> 1 | U44: ='[6]2017'!$K$13 -> 0 | V44: ='[6]2018'!$K$13 -> 0 | W44: ='[6]2019'!$K$13 -> 0 | X44: =IF(P44=0," -",T44/P44) -> 1 | Y44: =IF(P44=0," -",IF(X44>100%,100%,X44)) -> 1 | Z44: =IF(Q44=0," -",U44/Q44) -> 0 | AA44: =IF(Q44=0," -",IF(Z44>100%,100%,Z44)) -> 0 | AB44: =IF(R44=0," -",V44/R44) -> 0 | AC44: =IF(R44=0," -",IF(AB44>100%,100%,AB44)) -> 0 | AD44: =IF(S44=0," -",W44/S44) -> 0 | AE44: =IF(S44=0," -",IF(AD44>100%,100%,AD44)) -> 0 | AF44: =+SUM(T44:W44)/O44 -> 0.125 | AG44: 0.125 | AH44: 0.125 | AI44: ='[6]2016'!P13 -> 33500 | AJ44: ='[6]2016'!Q13 -> 23650 | AK44: ='[6]2016'!R13 -> 0 | AL44: 0.7059701493 | AM44: - | AN44: ='[6]2017'!P13 -> 200000 | AO44: ='[6]2017'!Q13 -> 0 | AP44: ='[6]2017'!R13 -> 0 | AQ44: 0 | AR44: - | AS44: ='[6]2018'!P13 -> 20000 | AT44: ='[6]2018'!Q13 -> 0 | AU44: ='[6]2018'!R13 -> 0 | AV44: 0 | AW44: - | AX44: ='[6]2019'!P13 -> 20000 | AY44: ='[6]2019'!Q13 -> 0 | AZ44: ='[6]2019'!R13 -> 0 | BA44: 0 | BB44: - | BC44: 273500 | BD44: 23650 | BE44: 0 | BF44: 0.08647166362 | BG44: - | BH44: ='[1]LÍNEA 1'!AO44 -> 16. Paz, justicia e instituciones sólidas | BI44: ='[1]LÍNEA 1'!AP44 -> Desarrollo Comunitario | BJ44: Sec. Planeación
K45: Construir o adecuar 1 espacio de trabajo con equipamiento para ediles. | L45: ='[1]LÍNEA 1'!P45 -> 0 | M45: ='[1]LÍNEA 1'!Q45 -> Número de espacios de trabajo construidos o adecuados con equipamiento para ediles. | N45: 0 | O45: ='[1]LÍNEA 1'!S45 -> 1 | P45: ='[1]LÍNEA 1'!T45 -> 0 | Q45: ='[1]LÍNEA 1'!U45 -> 1 | R45: ='[1]LÍNEA 1'!V45 -> 0 | S45: ='[1]LÍNEA 1'!W45 -> 0 | T45: ='[7]2016'!$K$13 -> 0 | U45: ='[7]2017'!$K$13 -> 0 | V45: ='[7]2018'!$K$13 -> 0 | W45: ='[7]2019'!$K$13 -> 0 | X45: =IF(P45=0," -",T45/P45) -> - | Y45: =IF(P45=0," -",IF(X45>100%,100%,X45)) -> - | Z45: =IF(Q45=0," -",U45/Q45) -> 0 | AA45: =IF(Q45=0," -",IF(Z45>100%,100%,Z45)) -> 0 | AB45: =IF(R45=0," -",V45/R45) -> - | AC45: =IF(R45=0," -",IF(AB45>100%,100%,AB45)) -> - | AD45: =IF(S45=0," -",W45/S45) -> - | AE45: =IF(S45=0," -",IF(AD45>100%,100%,AD45)) -> - | AF45: =+SUM(T45:W45)/O45 -> 0 | AG45: 0 | AH45: 0 | AI45: ='[7]2016'!P13 -> 0 | AJ45: ='[7]2016'!Q13 -> 0 | AK45: ='[7]2016'!R13 -> 0 | AL45: - | AM45: - | AN45: ='[7]2017'!P13 -> 44000 | AO45: ='[7]2017'!Q13 -> 0 | AP45: ='[7]2017'!R13 -> 0 | AQ45: 0 | AR45: - | AS45: ='[7]2018'!P13 -> 0 | AT45: ='[7]2018'!Q13 -> 0 | AU45: ='[7]2018'!R13 -> 0 | AV45: - | AW45: - | AX45: ='[7]2019'!P13 -> 0 | AY45: ='[7]2019'!Q13 -> 0 | AZ45: ='[7]2019'!R13 -> 0 | BA45: - | BB45: - | BC45: 44000 | BD45: 0 | BE45: 0 | BF45: 0 | BG45: - | BH45: ='[1]LÍNEA 1'!AO45 -> 16. Paz, justicia e instituciones sólidas | BI45: ='[1]LÍNEA 1'!AP45 -> Desarrollo Comunitario | BJ45: Sec. Infraestructura
K46: Implementar y mantener 1 plataforma de interacción, registro de información y visibilización en línea para Juntas de Acción Comunal, Juntas Administradoras Locales y comités de desarrollo y control social. | L46: ='[1]LÍNEA 1'!P46 -> - | M46: ='[1]LÍNEA 1'!Q46 -> Número de plataformas de interacción, registro de información y visibilización en línea implementadas y mantenidas para Juntas de Acción Comunal, Juntas Administradoras Locales y comités de desarrollo y control social. | N46: 0 | O46: ='[1]LÍNEA 1'!S46 -> 1 | P46: ='[1]LÍNEA 1'!T46 -> 1 | Q46: ='[1]LÍNEA 1'!U46 -> 1 | R46: ='[1]LÍNEA 1'!V46 -> 1 | S46: ='[1]LÍNEA 1'!W46 -> 1 | T46: ='[10]2016'!$K$14 -> 1 | U46: ='[10]2017'!$K$14 -> 0 | V46: ='[10]2018'!$K$14 -> 0 | W46: ='[10]2019'!$K$14 -> 0 | X46: =IF(P46=0," -",T46/P46) -> 1 | Y46: =IF(P46=0," -",IF(X46>100%,100%,X46)) -> 1 | Z46: =IF(Q46=0," -",U46/Q46) -> 0 | AA46: =IF(Q46=0," -",IF(Z46>100%,100%,Z46)) -> 0 | AB46: =IF(R46=0," -",V46/R46) -> 0 | AC46: =IF(R46=0," -",IF(AB46>100%,100%,AB46)) -> 0 | AD46: =IF(S46=0," -",W46/S46) -> 0 | AE46: =IF(S46=0," -",IF(AD46>100%,100%,AD46)) -> 0 | AF46: =+AVERAGE(T46:W46)/O46 -> 0.25 | AG46: 0.25 | AH46: 0.25 | AI46: ='[10]2016'!P14 -> 0 | AJ46: ='[10]2016'!Q14 -> 0 | AK46: ='[10]2016'!R14 -> 0 | AL46: - | AM46: - | AN46: ='[10]2017'!P14 -> 0 | AO46: ='[10]2017'!Q14 -> 0 | AP46: ='[10]2017'!R14 -> 0 | AQ46: - | AR46: - | AS46: ='[10]2018'!P14 -> 0 | AT46: ='[10]2018'!Q14 -> 0 | AU46: ='[10]2018'!R14 -> 0 | AV46: - | AW46: - | AX46: ='[10]2019'!P14 -> 0 | AY46: ='[10]2019'!Q14 -> 0 | AZ46: ='[10]2019'!R14 -> 0 | BA46: - | BB46: - | BC46: 0 | BD46: 0 | BE46: 0 | BF46: - | BG46: - | BH46: ='[1]LÍNEA 1'!AO46 -> 16. Paz, justicia e instituciones sólidas | BI46: ='[1]LÍNEA 1'!AP46 -> Desarrollo Comunitario | BJ46: Ofc. Sistemas
K47: Mantener el acompañamiento y/o asesoría al 100% de los comites de desarrollo y control social que lo requieran. | L47: ='[1]LÍNEA 1'!P47 -> - | M47: ='[1]LÍNEA 1'!Q47 -> Porcentaje de comités de desarrollo y control social con el acompañamiento según lo requerido. | N47: 1 | O47: ='[1]LÍNEA 1'!S47 -> 1 | P47: ='[1]LÍNEA 1'!T47 -> 1 | Q47: ='[1]LÍNEA 1'!U47 -> 1 | R47: ='[1]LÍNEA 1'!V47 -> 1 | S47: ='[1]LÍNEA 1'!W47 -> 1 | T47: ='[11]2016'!$K$12 -> 1 | U47: ='[11]2017'!$K$12 -> 0 | V47: ='[11]2018'!$K$12 -> 0 | W47: ='[11]2019'!$K$12 -> 0 | X47: =IF(P47=0," -",T47/P47) -> 1 | Y47: =IF(P47=0," -",IF(X47>100%,100%,X47)) -> 1 | Z47: =IF(Q47=0," -",U47/Q47) -> 0 | AA47: =IF(Q47=0," -",IF(Z47>100%,100%,Z47)) -> 0 | AB47: =IF(R47=0," -",V47/R47) -> 0 | AC47: =IF(R47=0," -",IF(AB47>100%,100%,AB47)) -> 0 | AD47: =IF(S47=0," -",W47/S47) -> 0 | AE47: =IF(S47=0," -",IF(AD47>100%,100%,AD47)) -> 0 | AF47: =+AVERAGE(T47:W47)/O47 -> 0.25 | AG47: 0.25 | AH47: 0.25 | AI47: ='[11]2016'!P12 -> 0 | AJ47: ='[11]2016'!Q12 -> 0 | AK47: ='[11]2016'!R12 -> 0 | AL47: - | AM47: - | AN47: ='[11]2017'!P12 -> 0 | AO47: ='[11]2017'!Q12 -> 0 | AP47: ='[11]2017'!R12 -> 0 | AQ47: - | AR47: - | AS47: ='[11]2018'!P12 -> 0 | AT47: ='[11]2018'!Q12 -> 0 | AU47: ='[11]2018'!R12 -> 0 | AV47: - | AW47: - | AX47: ='[11]2019'!P12 -> 0 | AY47: ='[11]2019'!Q12 -> 0 | AZ47: ='[11]2019'!R12 -> 0 | BA47: - | BB47: - | BC47: 0 | BD47: 0 | BE47: 0 | BF47: - | BG47: - | BH47: ='[1]LÍNEA 1'!AO47 -> 16. Paz, justicia e instituciones sólidas | BI47: ='[1]LÍNEA 1'!AP47 -> Fortalecimiento Institucional | BJ47: UTSP
I48: =+RESUMEN!J14 -> 0.1825396825 | J48: RENDICIÓN DE CUENTAS PERMANENTE E INTERACTIVA | K48: Mantener 1 sección en línea y actualizada sobre los planes anti-corrupción y su cumplimiento. | L48: ='[1]LÍNEA 1'!P48 -> - | M48: ='[1]LÍNEA 1'!Q48 -> Número de secciones mantenidas en línea y actualizada sobre los planes anti-corrupción y su cumplimiento. | N48: 1 | O48: ='[1]LÍNEA 1'!S48 -> 1 | P48: ='[1]LÍNEA 1'!T48 -> 1 | Q48: ='[1]LÍNEA 1'!U48 -> 1 | R48: ='[1]LÍNEA 1'!V48 -> 1 | S48: ='[1]LÍNEA 1'!W48 -> 1 | T48: ='[10]2016'!K15 -> 1 | U48: ='[10]2017'!K15 -> 0 | V48: ='[10]2018'!K15 -> 0 | W48: ='[10]2019'!K15 -> 0 | X48: =IF(P48=0," -",T48/P48) -> 1 | Y48: =IF(P48=0," -",IF(X48>100%,100%,X48)) -> 1 | Z48: =IF(Q48=0," -",U48/Q48) -> 0 | AA48: =IF(Q48=0," -",IF(Z48>100%,100%,Z48)) -> 0 | AB48: =IF(R48=0," -",V48/R48) -> 0 | AC48: =IF(R48=0," -",IF(AB48>100%,100%,AB48)) -> 0 | AD48: =IF(S48=0," -",W48/S48) -> 0 | AE48: =IF(S48=0," -",IF(AD48>100%,100%,AD48)) -> 0 | AF48: =+AVERAGE(T48:W48)/O48 -> 0.25 | AG48: 0.25 | AH48: 0.25 | AI48: ='[10]2016'!P15 -> 0 | AJ48: ='[10]2016'!Q15 -> 0 | AK48: ='[10]2016'!R15 -> 0 | AL48: - | AM48: - | AN48: ='[10]2017'!P15 -> 0 | AO48: ='[10]2017'!Q15 -> 0 | AP48: ='[10]2017'!R15 -> 0 | AQ48: - | AR48: - | AS48: ='[10]2018'!P15 -> 0 | AT48: ='[10]2018'!Q15 -> 0 | AU48: ='[10]2018'!R15 -> 0 | AV48: - | AW48: - | AX48: ='[10]2019'!P15 -> 0 | AY48: ='[10]2019'!Q15 -> 0 | AZ48: ='[10]2019'!R15 -> 0 | BA48: - | BB48: - | BC48: 0 | BD48: 0 | BE48: 0 | BF48: - | BG48: - | BH48: ='[1]LÍNEA 1'!AO48 -> 16. Paz, justicia e instituciones sólidas | BI48: ='[1]LÍNEA 1'!AP48 -> Fortalecimiento Institucional | BJ48: Ofc. Sistemas
K49: Implementar y mantener 1 sección en línea y actualizada de los planes de compras y adquisiciones y su ejecución. | L49: ='[1]LÍNEA 1'!P49 -> - | M49: ='[1]LÍNEA 1'!Q49 -> Número de secciones implementadas y mantenidas en línea y actualizada de los planes de compras y adquisiciones y su ejecución. | N49: 1 | O49: ='[1]LÍNEA 1'!S49 -> 1 | P49: ='[1]LÍNEA 1'!T49 -> 1 | Q49: ='[1]LÍNEA 1'!U49 -> 1 | R49: ='[1]LÍNEA 1'!V49 -> 1 | S49: ='[1]LÍNEA 1'!W49 -> 1 | T49: ='[10]2016'!K16 -> 1 | U49: ='[10]2017'!K16 -> 0 | V49: ='[10]2018'!K16 -> 0 | W49: ='[10]2019'!K16 -> 0 | X49: =IF(P49=0," -",T49/P49) -> 1 | Y49: =IF(P49=0," -",IF(X49>100%,100%,X49)) -> 1 | Z49: =IF(Q49=0," -",U49/Q49) -> 0 | AA49: =IF(Q49=0," -",IF(Z49>100%,100%,Z49)) -> 0 | AB49: =IF(R49=0," -",V49/R49) -> 0 | AC49: =IF(R49=0," -",IF(AB49>100%,100%,AB49)) -> 0 | AD49: =IF(S49=0," -",W49/S49) -> 0 | AE49: =IF(S49=0," -",IF(AD49>100%,100%,AD49)) -> 0 | AF49: =+AVERAGE(T49:W49)/O49 -> 0.25 | AG49: 0.25 | AH49: 0.25 | AI49: ='[10]2016'!P16 -> 0 | AJ49: ='[10]2016'!Q16 -> 0 | AK49: ='[10]2016'!R16 -> 0 | AL49: - | AM49: - | AN49: ='[10]2017'!P16 -> 0 | AO49: ='[10]2017'!Q16 -> 0 | AP49: ='[10]2017'!R16 -> 0 | AQ49: - | AR49: - | AS49: ='[10]2018'!P16 -> 0 | AT49: ='[10]2018'!Q16 -> 0 | AU49: ='[10]2018'!R16 -> 0 | AV49: - | AW49: - | AX49: ='[10]2019'!P16 -> 0 | AY49: ='[10]2019'!Q16 -> 0 | AZ49: ='[10]2019'!R16 -> 0 | BA49: - | BB49: - | BC49: 0 | BD49: 0 | BE49: 0 | BF49: - | BG49: - | BH49: ='[1]LÍNEA 1'!AO49 -> 16. Paz, justicia e instituciones sólidas | BI49: ='[1]LÍNEA 1'!AP49 -> Fortalecimiento Institucional | BJ49: Ofc. Sistemas
K50: Mantener 1 sección en línea y actualizada sobre el Plan de Desarrollo y su ejecución. | L50: ='[1]LÍNEA 1'!P50 -> - | M50: ='[1]LÍNEA 1'!Q50 -> Número de secciones mantenidas en línea y actualizada sobre el Plan de Desarrollo y su ejecución. | N50: 1 | O50: ='[1]LÍNEA 1'!S50 -> 1 | P50: ='[1]LÍNEA 1'!T50 -> 1 | Q50: ='[1]LÍNEA 1'!U50 -> 1 | R50: ='[1]LÍNEA 1'!V50 -> 1 | S50: ='[1]LÍNEA 1'!W50 -> 1 | T50: ='[10]2016'!K17 -> 1 | U50: ='[10]2017'!K17 -> 0 | V50: ='[10]2018'!K17 -> 0 | W50: ='[10]2019'!K17 -> 0 | X50: =IF(P50=0," -",T50/P50) -> 1 | Y50: =IF(P50=0," -",IF(X50>100%,100%,X50)) -> 1 | Z50: =IF(Q50=0," -",U50/Q50) -> 0 | AA50: =IF(Q50=0," -",IF(Z50>100%,100%,Z50)) -> 0 | AB50: =IF(R50=0," -",V50/R50) -> 0 | AC50: =IF(R50=0," -",IF(AB50>100%,100%,AB50)) -> 0 | AD50: =IF(S50=0," -",W50/S50) -> 0 | AE50: =IF(S50=0," -",IF(AD50>100%,100%,AD50)) -> 0 | AF50: =+AVERAGE(T50:W50)/O50 -> 0.25 | AG50: 0.25 | AH50: 0.25 | AI50: ='[10]2016'!P17 -> 0 | AJ50: ='[10]2016'!Q17 -> 0 | AK50: ='[10]2016'!R17 -> 0 | AL50: - | AM50: - | AN50: ='[10]2017'!P17 -> 0 | AO50: ='[10]2017'!Q17 -> 0 | AP50: ='[10]2017'!R17 -> 0 | AQ50: - | AR50: - | AS50: ='[10]2018'!P17 -> 0 | AT50: ='[10]2018'!Q17 -> 0 | AU50: ='[10]2018'!R17 -> 0 | AV50: - | AW50: - | AX50: ='[10]2019'!P17 -> 0 | AY50: ='[10]2019'!Q17 -> 0 | AZ50: ='[10]2019'!R17 -> 0 | BA50: - | BB50: - | BC50: 0 | BD50: 0 | BE50: 0 | BF50: - | BG50: - | BH50: ='[1]LÍNEA 1'!AO50 -> 16. Paz, justicia e instituciones sólidas | BI50: ='[1]LÍNEA 1'!AP50 -> Fortalecimiento Institucional | BJ50: Ofc. Sistemas
F51: Lograr que el 60% de los ciudadanos considere que la Alcaldía es transparente en sus actividades de acuerdo a encuesta Cómo Vamos. | G51: 0.14 | H51: =+'[1]LÍNEA 1'!H51 -> 0.6 | K51: Implementar y mantener 1 sección en línea y actualizada para que la ciudadanía pueda seguir la ejecución y los costos de las obras de infraestructura. | L51: ='[1]LÍNEA 1'!P51 -> - | M51: ='[1]LÍNEA 1'!Q51 -> Número de secciones implementadas y mantenidas en línea y actualizada para que la ciudadanía pueda seguir la ejecución y los costos de las obras de infraestructura. | N51: 0 | O51: ='[1]LÍNEA 1'!S51 -> 1 | P51: ='[1]LÍNEA 1'!T51 -> 0 | Q51: ='[1]LÍNEA 1'!U51 -> 1 | R51: ='[1]LÍNEA 1'!V51 -> 1 | S51: ='[1]LÍNEA 1'!W51 -> 1 | T51: ='[10]2016'!K18 -> 0 | U51: ='[10]2017'!K18 -> 0 | V51: ='[10]2018'!K18 -> 0 | W51: ='[10]2019'!K18 -> 0 | X51: =IF(P51=0," -",T51/P51) -> - | Y51: =IF(P51=0," -",IF(X51>100%,100%,X51)) -> - | Z51: =IF(Q51=0," -",U51/Q51) -> 0 | AA51: =IF(Q51=0," -",IF(Z51>100%,100%,Z51)) -> 0 | AB51: =IF(R51=0," -",V51/R51) -> 0 | AC51: =IF(R51=0," -",IF(AB51>100%,100%,AB51)) -> 0 | AD51: =IF(S51=0," -",W51/S51) -> 0 | AE51: =IF(S51=0," -",IF(AD51>100%,100%,AD51)) -> 0 | AF51: =+AVERAGE(U51:W51)/O51 -> 0 | AG51: 0 | AH51: 0 | AI51: ='[10]2016'!P18 -> 0 | AJ51: ='[10]2016'!Q18 -> 0 | AK51: ='[10]2016'!R18 -> 0 | AL51: - | AM51: - | AN51: ='[10]2017'!P18 -> 0 | AO51: ='[10]2017'!Q18 -> 0 | AP51: ='[10]2017'!R18 -> 0 | AQ51: - | AR51: - | AS51: ='[10]2018'!P18 -> 0 | AT51: ='[10]2018'!Q18 -> 0 | AU51: ='[10]2018'!R18 -> 0 | AV51: - | AW51: - | AX51: ='[10]2019'!P18 -> 0 | AY51: ='[10]2019'!Q18 -> 0 | AZ51: ='[10]2019'!R18 -> 0 | BA51: - | BB51: - | BC51: 0 | BD51: 0 | BE51: 0 | BF51: - | BG51: - | BH51: ='[1]LÍNEA 1'!AO51 -> 16. Paz, justicia e instituciones sólidas | BI51: ='[1]LÍNEA 1'!AP51 -> Fortalecimiento Institucional | BJ51: Ofc. Sistemas
K52: Implementar y mantener 1 sección en línea y actualizada sobre los contratos de prestación de servicios celebrados por la Administración Central. | L52: ='[1]LÍNEA 1'!P52 -> - | M52: ='[1]LÍNEA 1'!Q52 -> Número de secciones implementadas y mantenidas en línea y actualizada sobre los contratos de prestación de servicios celebrados por la Administración Central. | N52: 0 | O52: ='[1]LÍNEA 1'!S52 -> 1 | P52: ='[1]LÍNEA 1'!T52 -> 1 | Q52: ='[1]LÍNEA 1'!U52 -> 1 | R52: ='[1]LÍNEA 1'!V52 -> 1 | S52: ='[1]LÍNEA 1'!W52 -> 1 | T52: ='[10]2016'!K19 -> 1 | U52: ='[10]2017'!K19 -> 0 | V52: ='[10]2018'!K19 -> 0 | W52: ='[10]2019'!K19 -> 0 | X52: =IF(P52=0," -",T52/P52) -> 1 | Y52: =IF(P52=0," -",IF(X52>100%,100%,X52)) -> 1 | Z52: =IF(Q52=0," -",U52/Q52) -> 0 | AA52: =IF(Q52=0," -",IF(Z52>100%,100%,Z52)) -> 0 | AB52: =IF(R52=0," -",V52/R52) -> 0 | AC52: =IF(R52=0," -",IF(AB52>100%,100%,AB52)) -> 0 | AD52: =IF(S52=0," -",W52/S52) -> 0 | AE52: =IF(S52=0," -",IF(AD52>100%,100%,AD52)) -> 0 | AF52: =+AVERAGE(T52:W52)/O52 -> 0.25 | AG52: 0.25 | AH52: 0.25 | AI52: ='[10]2016'!P19 -> 0 | AJ52: ='[10]2016'!Q19 -> 0 | AK52: ='[10]2016'!R19 -> 0 | AL52: - | AM52: - | AN52: ='[10]2017'!P19 -> 0 | AO52: ='[10]2017'!Q19 -> 0 | AP52: ='[10]2017'!R19 -> 0 | AQ52: - | AR52: - | AS52: ='[10]2018'!P19 -> 0 | AT52: ='[10]2018'!Q19 -> 0 | AU52: ='[10]2018'!R19 -> 0 | AV52: - | AW52: - | AX52: ='[10]2019'!P19 -> 0 | AY52: ='[10]2019'!Q19 -> 0 | AZ52: ='[10]2019'!R19 -> 0 | BA52: - | BB52: - | BC52: 0 | BD52: 0 | BE52: 0 | BF52: - | BG52: - | BH52: ='[1]LÍNEA 1'!AO52 -> 16. Paz, justicia e instituciones sólidas | BI52: ='[1]LÍNEA 1'!AP52 -> Fortalecimiento Institucional | BJ52: Ofc. Sistemas
K53: Implementar y mantener 1 sección en línea y actualizada sobre la ejecución de los proyectos estratégicos. | L53: ='[1]LÍNEA 1'!P53 -> - | M53: ='[1]LÍNEA 1'!Q53 -> Número de secciones implementadas y mantenidas en línea y actualizada sobre la ejecución de los proyectos estratégicos. | N53: 0 | O53: ='[1]LÍNEA 1'!S53 -> 1 | P53: ='[1]LÍNEA 1'!T53 -> 1 | Q53: ='[1]LÍNEA 1'!U53 -> 1 | R53: ='[1]LÍNEA 1'!V53 -> 1 | S53: ='[1]LÍNEA 1'!W53 -> 1 | T53: ='[10]2016'!K20 -> 1 | U53: ='[10]2017'!K20 -> 0 | V53: ='[10]2018'!K20 -> 0 | W53: ='[10]2019'!K20 -> 0 | X53: =IF(P53=0," -",T53/P53) -> 1 | Y53: =IF(P53=0," -",IF(X53>100%,100%,X53)) -> 1 | Z53: =IF(Q53=0," -",U53/Q53) -> 0 | AA53: =IF(Q53=0," -",IF(Z53>100%,100%,Z53)) -> 0 | AB53: =IF(R53=0," -",V53/R53) -> 0 | AC53: =IF(R53=0," -",IF(AB53>100%,100%,AB53)) -> 0 | AD53: =IF(S53=0," -",W53/S53) -> 0 | AE53: =IF(S53=0," -",IF(AD53>100%,100%,AD53)) -> 0 | AF53: =+AVERAGE(T53:W53)/O53 -> 0.25 | AG53: 0.25 | AH53: 0.25 | AI53: ='[10]2016'!P20 -> 0 | AJ53: ='[10]2016'!Q20 -> 0 | AK53: ='[10]2016'!R20 -> 0 | AL53: - | AM53: - | AN53: ='[10]2017'!P20 -> 0 | AO53: ='[10]2017'!Q20 -> 0 | AP53: ='[10]2017'!R20 -> 0 | AQ53: - | AR53: - | AS53: ='[10]2018'!P20 -> 0 | AT53: ='[10]2018'!Q20 -> 0 | AU53: ='[10]2018'!R20 -> 0 | AV53: - | AW53: - | AX53: ='[10]2019'!P20 -> 0 | AY53: ='[10]2019'!Q20 -> 0 | AZ53: ='[10]2019'!R20 -> 0 | BA53: - | BB53: - | BC53: 0 | BD53: 0 | BE53: 0 | BF53: - | BG53: - | BH53: ='[1]LÍNEA 1'!AO53 -> 16. Paz, justicia e instituciones sólidas | BI53: ='[1]LÍNEA 1'!AP53 -> Fortalecimiento Institucional | BJ53: Ofc. Sistemas
K54: Implementar y mantener 1 sección en línea y actualizada sobre los gastos de funcionamiento de la Administración Central. | L54: ='[1]LÍNEA 1'!P54 -> - | M54: ='[1]LÍNEA 1'!Q54 -> Número de secciones implementadas y mantenidas en línea y actualizada sobre los gastos de funcionamiento de la Administración Central. | N54: 1 | O54: ='[1]LÍNEA 1'!S54 -> 1 | P54: ='[1]LÍNEA 1'!T54 -> 1 | Q54: ='[1]LÍNEA 1'!U54 -> 1 | R54: ='[1]LÍNEA 1'!V54 -> 1 | S54: ='[1]LÍNEA 1'!W54 -> 1 | T54: ='[10]2016'!K21 -> 1 | U54: ='[10]2017'!K21 -> 0 | V54: ='[10]2018'!K21 -> 0 | W54: ='[10]2019'!K21 -> 0 | X54: =IF(P54=0," -",T54/P54) -> 1 | Y54: =IF(P54=0," -",IF(X54>100%,100%,X54)) -> 1 | Z54: =IF(Q54=0," -",U54/Q54) -> 0 | AA54: =IF(Q54=0," -",IF(Z54>100%,100%,Z54)) -> 0 | AB54: =IF(R54=0," -",V54/R54) -> 0 | AC54: =IF(R54=0," -",IF(AB54>100%,100%,AB54)) -> 0 | AD54: =IF(S54=0," -",W54/S54) -> 0 | AE54: =IF(S54=0," -",IF(AD54>100%,100%,AD54)) -> 0 | AF54: =+AVERAGE(T54:W54)/O54 -> 0.25 | AG54: 0.25 | AH54: 0.25 | AI54: ='[10]2016'!P21 -> 0 | AJ54: ='[10]2016'!Q21 -> 0 | AK54: ='[10]2016'!R21 -> 0 | AL54: - | AM54: - | AN54: ='[10]2017'!P21 -> 0 | AO54: ='[10]2017'!Q21 -> 0 | AP54: ='[10]2017'!R21 -> 0 | AQ54: - | AR54: - | AS54: ='[10]2018'!P21 -> 0 | AT54: ='[10]2018'!Q21 -> 0 | AU54: ='[10]2018'!R21 -> 0 | AV54: - | AW54: - | AX54: ='[10]2019'!P21 -> 0 | AY54: ='[10]2019'!Q21 -> 0 | AZ54: ='[10]2019'!R21 -> 0 | BA54: - | BB54: - | BC54: 0 | BD54: 0 | BE54: 0 | BF54: - | BG54: - | BH54: ='[1]LÍNEA 1'!AO54 -> 16. Paz, justicia e instituciones sólidas | BI54: ='[1]LÍNEA 1'!AP54 -> Fortalecimiento Institucional | BJ54: Ofc. Sistemas
K55: Celebrar 7 reuniones populares para rendir cuentas de la ejecución del Plan de Desarrollo y la ejecución del presupuesto. | L55: ='[1]LÍNEA 1'!P55 -> 2210277 | M55: ='[1]LÍNEA 1'!Q55 -> Número de reuniones populares celebradas para rendir cuentas de la ejecución del Plan de Desarrollo y la ejecución del presupuesto. | N55: 0 | O55: ='[1]LÍNEA 1'!S55 -> 7 | P55: ='[1]LÍNEA 1'!T55 -> 1 | Q55: ='[1]LÍNEA 1'!U55 -> 2 | R55: ='[1]LÍNEA 1'!V55 -> 2 | S55: ='[1]LÍNEA 1'!W55 -> 2 | T55: ='[5]2016'!$K$15 -> 1 | U55: ='[5]2017'!$K$15 -> 0 | V55: ='[5]2018'!$K$15 -> 0 | W55: ='[5]2019'!$K$15 -> 0 | X55: =IF(P55=0," -",T55/P55) -> 1 | Y55: =IF(P55=0," -",IF(X55>100%,100%,X55)) -> 1 | Z55: =IF(Q55=0," -",U55/Q55) -> 0 | AA55: =IF(Q55=0," -",IF(Z55>100%,100%,Z55)) -> 0 | AB55: =IF(R55=0," -",V55/R55) -> 0 | AC55: =IF(R55=0," -",IF(AB55>100%,100%,AB55)) -> 0 | AD55: =IF(S55=0," -",W55/S55) -> 0 | AE55: =IF(S55=0," -",IF(AD55>100%,100%,AD55)) -> 0 | AF55: =+SUM(T55:W55)/O55 -> 0.1428571429 | AG55: 0.1428571429 | AH55: 0.1428571429 | AI55: ='[5]2016'!P15 -> 0 | AJ55: ='[5]2016'!Q15 -> 0 | AK55: ='[5]2016'!R15 -> 0 | AL55: - | AM55: - | AN55: ='[5]2017'!P15 -> 0 | AO55: ='[5]2017'!Q15 -> 0 | AP55: ='[5]2017'!R15 -> 0 | AQ55: - | AR55: - | AS55: ='[5]2018'!P15 -> 40000 | AT55: ='[5]2018'!Q15 -> 0 | AU55: ='[5]2018'!R15 -> 0 | AV55: 0 | AW55: - | AX55: ='[5]2019'!P15 -> 40000 | AY55: ='[5]2019'!Q15 -> 0 | AZ55: ='[5]2019'!R15 -> 0 | BA55: 0 | BB55: - | BC55: 80000 | BD55: 0 | BE55: 0 | BF55: 0 | BG55: - | BH55: ='[1]LÍNEA 1'!AO55 -> 16. Paz, justicia e instituciones sólidas | BI55: ='[1]LÍNEA 1'!AP55 -> Fortalecimiento Institucional | BJ55: Sec. Hacienda
K56: Implementar y mantener 1 estrategia para el informe anual de rendición de cuentas en cultura. | L56: ='[1]LÍNEA 1'!P56 -> - | M56: ='[1]LÍNEA 1'!Q56 -> Número de estrategias para el informe anual de rendición de cuentas en cultura implementadas y mantenidas | N56: 0 | O56: ='[1]LÍNEA 1'!S56 -> 1 | P56: ='[1]LÍNEA 1'!T56 -> 1 | Q56: ='[1]LÍNEA 1'!U56 -> 1 | R56: ='[1]LÍNEA 1'!V56 -> 1 | S56: ='[1]LÍNEA 1'!W56 -> 1 | T56: ='[12]2016'!$K$12 -> 0 | U56: ='[12]2017'!$K$12 -> 0 | V56: ='[12]2018'!$K$12 -> 0 | W56: ='[12]2019'!$K$12 -> 0 | X56: =IF(P56=0," -",T56/P56) -> 0 | Y56: =IF(P56=0," -",IF(X56>100%,100%,X56)) -> 0 | Z56: =IF(Q56=0," -",U56/Q56) -> 0 | AA56: =IF(Q56=0," -",IF(Z56>100%,100%,Z56)) -> 0 | AB56: =IF(R56=0," -",V56/R56) -> 0 | AC56: =IF(R56=0," -",IF(AB56>100%,100%,AB56)) -> 0 | AD56: =IF(S56=0," -",W56/S56) -> 0 | AE56: =IF(S56=0," -",IF(AD56>100%,100%,AD56)) -> 0 | AF56: =+AVERAGE(T56:W56)/O56 -> 0 | AG56: 0 | AH56: 0 | AI56: ='[12]2016'!P12 -> 0 | AJ56: ='[12]2016'!Q12 -> 0 | AK56: ='[12]2016'!R12 -> 0 | AL56: - | AM56: - | AN56: ='[12]2017'!P12 -> 0 | AO56: ='[12]2017'!Q12 -> 0 | AP56: ='[12]2017'!R12 -> 0 | AQ56: - | AR56: - | AS56: ='[12]2018'!P12 -> 0 | AT56: ='[12]2018'!Q12 -> 0 | AU56: ='[12]2018'!R12 -> 0 | AV56: - | AW56: - | AX56: ='[12]2019'!P12 -> 0 | AY56: ='[12]2019'!Q12 -> 0 | AZ56: ='[12]2019'!R12 -> 0 | BA56: - | BB56: - | BC56: 0 | BD56: 0 | BE56: 0 | BF56: - | BG56: - | BH56: ='[1]LÍNEA 1'!AO56 -> 16. Paz, justicia e instituciones sólidas | BI56: ='[1]LÍNEA 1'!AP56 -> Cultura | BJ56: IMCT
I57: =+RESUMEN!J15 -> 0 | J57: CULTURA METROPOLITANA Y CIUDAD REGIÓN: PARTICIPACIÓN QUE ATRAVIESA FRONTERAS | K57: Realizar 4 audiencias de participación metropolitana en conjunto con la Alcaldía de Floridablanca. | L57: ='[1]LÍNEA 1'!P57 -> - | M57: ='[1]LÍNEA 1'!Q57 -> Número de audiencias de participación metropolitana realizadas en conjunto con la Alcaldía de Floridablanca. | N57: 0 | O57: ='[1]LÍNEA 1'!S57 -> 4 | P57: ='[1]LÍNEA 1'!T57 -> 0 | Q57: ='[1]LÍNEA 1'!U57 -> 1 | R57: ='[1]LÍNEA 1'!V57 -> 2 | S57: ='[1]LÍNEA 1'!W57 -> 1 | T57: ='[13]2016'!K12 -> 0 | U57: ='[13]2017'!K12 -> 0 | V57: ='[13]2018'!K12 -> 0 | W57: ='[13]2019'!K12 -> 0 | X57: =IF(P57=0," -",T57/P57) -> - | Y57: =IF(P57=0," -",IF(X57>100%,100%,X57)) -> - | Z57: =IF(Q57=0," -",U57/Q57) -> 0 | AA57: =IF(Q57=0," -",IF(Z57>100%,100%,Z57)) -> 0 | AB57: =IF(R57=0," -",V57/R57) -> 0 | AC57: =IF(R57=0," -",IF(AB57>100%,100%,AB57)) -> 0 | AD57: =IF(S57=0," -",W57/S57) -> 0 | AE57: =IF(S57=0," -",IF(AD57>100%,100%,AD57)) -> 0 | AF57: =+SUM(T57:W57)/O57 -> 0 | AG57: 0 | AH57: 0 | AI57: ='[13]2016'!P12 -> 0 | AJ57: ='[13]2016'!Q12 -> 0 | AK57: ='[13]2016'!R12 -> 0 | AL57: - | AM57: - | AN57: ='[13]2017'!P12 -> 0 | AO57: ='[13]2017'!Q12 -> 0 | AP57: ='[13]2017'!R12 -> 0 | AQ57: - | AR57: - | AS57: ='[13]2018'!P12 -> 0 | AT57: ='[13]2018'!Q12 -> 0 | AU57: ='[13]2018'!R12 -> 0 | AV57: - | AW57: - | AX57: ='[13]2019'!P12 -> 0 | AY57: ='[13]2019'!Q12 -> 0 | AZ57: ='[13]2019'!R12 -> 0 | BA57: - | BB57: - | BC57: 0 | BD57: 0 | BE57: 0 | BF57: - | BG57: - | BH57: ='[1]LÍNEA 1'!AO57 -> 16. Paz, justicia e instituciones sólidas | BI57: ='[1]LÍNEA 1'!AP57 -> Fortalecimiento Institucional | BJ57: AMB
K58: Realizar 4 audiencias de participación metropolitana en conjunto con la Alcaldía de Piedecuesta. | L58: ='[1]LÍNEA 1'!P58 -> - | M58: ='[1]LÍNEA 1'!Q58 -> Número de audiencias de participación metropolitana realizadas en conjunto con la Alcaldía de Piedecuesta. | N58: 0 | O58: ='[1]LÍNEA 1'!S58 -> 4 | P58: ='[1]LÍNEA 1'!T58 -> 0 | Q58: ='[1]LÍNEA 1'!U58 -> 2 | R58: ='[1]LÍNEA 1'!V58 -> 1 | S58: ='[1]LÍNEA 1'!W58 -> 1 | T58: ='[13]2016'!K13 -> 0 | U58: ='[13]2017'!K13 -> 0 | V58: ='[13]2018'!K13 -> 0 | W58: ='[13]2019'!K13 -> 0 | X58: =IF(P58=0," -",T58/P58) -> - | Y58: =IF(P58=0," -",IF(X58>100%,100%,X58)) -> - | Z58: =IF(Q58=0," -",U58/Q58) -> 0 | AA58: =IF(Q58=0," -",IF(Z58>100%,100%,Z58)) -> 0 | AB58: =IF(R58=0," -",V58/R58) -> 0 | AC58: =IF(R58=0," -",IF(AB58>100%,100%,AB58)) -> 0 | AD58: =IF(S58=0," -",W58/S58) -> 0 | AE58: =IF(S58=0," -",IF(AD58>100%,100%,AD58)) -> 0 | AF58: =+SUM(T58:W58)/O58 -> 0 | AG58: 0 | AH58: 0 | AI58: ='[13]2016'!P13 -> 0 | AJ58: ='[13]2016'!Q13 -> 0 | AK58: ='[13]2016'!R13 -> 0 | AL58: - | AM58: - | AN58: ='[13]2017'!P13 -> 0 | AO58: ='[13]2017'!Q13 -> 0 | AP58: ='[13]2017'!R13 -> 0 | AQ58: - | AR58: - | AS58: ='[13]2018'!P13 -> 0 | AT58: ='[13]2018'!Q13 -> 0 | AU58: ='[13]2018'!R13 -> 0 | AV58: - | AW58: - | AX58: ='[13]2019'!P13 -> 0 | AY58: ='[13]2019'!Q13 -> 0 | AZ58: ='[13]2019'!R13 -> 0 | BA58: - | BB58: - | BC58: 0 | BD58: 0 | BE58: 0 | BF58: - | BG58: - | BH58: ='[1]LÍNEA 1'!AO58 -> 16. Paz, justicia e instituciones sólidas | BI58: ='[1]LÍNEA 1'!AP58 -> Fortalecimiento Institucional | BJ58: AMB
K59: Realizar 4 audiencias de participación metropolitana en conjunto con la Alcaldía de Girón. | L59: ='[1]LÍNEA 1'!P59 -> - | M59: ='[1]LÍNEA 1'!Q59 -> Número de audiencias de participación metropolitana realizadas en conjunto con la Alcaldía de Girón. | N59: 0 | O59: ='[1]LÍNEA 1'!S59 -> 4 | P59: ='[1]LÍNEA 1'!T59 -> 0 | Q59: ='[1]LÍNEA 1'!U59 -> 1 | R59: ='[1]LÍNEA 1'!V59 -> 1 | S59: ='[1]LÍNEA 1'!W59 -> 2 | T59: ='[13]2016'!K14 -> 0 | U59: ='[13]2017'!K14 -> 0 | V59: ='[13]2018'!K14 -> 0 | W59: ='[13]2019'!K14 -> 0 | X59: =IF(P59=0," -",T59/P59) -> - | Y59: =IF(P59=0," -",IF(X59>100%,100%,X59)) -> - | Z59: =IF(Q59=0," -",U59/Q59) -> 0 | AA59: =IF(Q59=0," -",IF(Z59>100%,100%,Z59)) -> 0 | AB59: =IF(R59=0," -",V59/R59) -> 0 | AC59: =IF(R59=0," -",IF(AB59>100%,100%,AB59)) -> 0 | AD59: =IF(S59=0," -",W59/S59) -> 0 | AE59: =IF(S59=0," -",IF(AD59>100%,100%,AD59)) -> 0 | AF59: =+SUM(T59:W59)/O59 -> 0 | AG59: 0 | AH59: 0 | AI59: ='[13]2016'!P14 -> 0 | AJ59: ='[13]2016'!Q14 -> 0 | AK59: ='[13]2016'!R14 -> 0 | AL59: - | AM59: - | AN59: ='[13]2017'!P14 -> 0 | AO59: ='[13]2017'!Q14 -> 0 | AP59: ='[13]2017'!R14 -> 0 | AQ59: - | AR59: - | AS59: ='[13]2018'!P14 -> 0 | AT59: ='[13]2018'!Q14 -> 0 | AU59: ='[13]2018'!R14 -> 0 | AV59: - | AW59: - | AX59: ='[13]2019'!P14 -> 0 | AY59: ='[13]2019'!Q14 -> 0 | AZ59: ='[13]2019'!R14 -> 0 | BA59: - | BB59: - | BC59: 0 | BD59: 0 | BE59: 0 | BF59: - | BG59: - | BH59: ='[1]LÍNEA 1'!AO59 -> 16. Paz, justicia e instituciones sólidas | BI59: ='[1]LÍNEA 1'!AP59 -> Fortalecimiento Institucional | BJ59: AMB
K60: Realizar 8 juntas abiertas del Área Metropolitana de Bucaramanga con presencia de los integrantes de la junta metropolitana y participación de la comunidad para una discusión pública sobre asuntos metropolitanos. | L60: ='[1]LÍNEA 1'!P60 -> - | M60: ='[1]LÍNEA 1'!Q60 -> Número de juntas abiertas del Área Metropolitana de Bucaramanga realizadas con presencia de los integrantes de la junta metropolitana y participación de la comunidad para una discusión pública sobre asuntos metropolitanos. | N60: 0 | O60: ='[1]LÍNEA 1'!S60 -> 8 | P60: ='[1]LÍNEA 1'!T60 -> 0 | Q60: ='[1]LÍNEA 1'!U60 -> 2 | R60: ='[1]LÍNEA 1'!V60 -> 3 | S60: ='[1]LÍNEA 1'!W60 -> 3 | T60: ='[13]2016'!K15 -> 0 | U60: ='[13]2017'!K15 -> 0 | V60: ='[13]2018'!K15 -> 0 | W60: ='[13]2019'!K15 -> 0 | X60: =IF(P60=0," -",T60/P60) -> - | Y60: =IF(P60=0," -",IF(X60>100%,100%,X60)) -> - | Z60: =IF(Q60=0," -",U60/Q60) -> 0 | AA60: =IF(Q60=0," -",IF(Z60>100%,100%,Z60)) -> 0 | AB60: =IF(R60=0," -",V60/R60) -> 0 | AC60: =IF(R60=0," -",IF(AB60>100%,100%,AB60)) -> 0 | AD60: =IF(S60=0," -",W60/S60) -> 0 | AE60: =IF(S60=0," -",IF(AD60>100%,100%,AD60)) -> 0 | AF60: =+SUM(T60:W60)/O60 -> 0 | AG60: 0 | AH60: 0 | AI60: ='[13]2016'!P15 -> 0 | AJ60: ='[13]2016'!Q15 -> 0 | AK60: ='[13]2016'!R15 -> 0 | AL60: - | AM60: - | AN60: ='[13]2017'!P15 -> 0 | AO60: ='[13]2017'!Q15 -> 0 | AP60: ='[13]2017'!R15 -> 0 | AQ60: - | AR60: - | AS60: ='[13]2018'!P15 -> 0 | AT60: ='[13]2018'!Q15 -> 0 | AU60: ='[13]2018'!R15 -> 0 | AV60: - | AW60: - | AX60: ='[13]2019'!P15 -> 0 | AY60: ='[13]2019'!Q15 -> 0 | AZ60: ='[13]2019'!R15 -> 0 | BA60: - | BB60: - | BC60: 0 | BD60: 0 | BE60: 0 | BF60: - | BG60: - | BH60: ='[1]LÍNEA 1'!AO60 -> 16. Paz, justicia e instituciones sólidas | BI60: ='[1]LÍNEA 1'!AP60 -> Desarrollo Comunitario | BJ60: AMB
I61: =+RESUMEN!J16 -> 0.2670454545 | J61: GOBIERNO TRANSPARENTE | K61: Formular e implementar 1 estrategia de comunicación para difundir los procesos de contratación pública de selección abierta y promover la participación de oferentes así como el control social ciudadano. | L61: ='[1]LÍNEA 1'!P61 -> 0 | M61: ='[1]LÍNEA 1'!Q61 -> Número de estrategias de comunicaciones formuladas e implementadas para difundir los procesos de contratación pública de selección abierta y promover la participación de oferentes así como el control social ciudadano. | N61: 0 | O61: ='[1]LÍNEA 1'!S61 -> 1 | P61: ='[1]LÍNEA 1'!T61 -> 1 | Q61: ='[1]LÍNEA 1'!U61 -> 1 | R61: ='[1]LÍNEA 1'!V61 -> 1 | S61: ='[1]LÍNEA 1'!W61 -> 1 | T61: ='[8]2016'!$K$17 -> 1 | U61: ='[8]2017'!$K$17 -> 0 | V61: ='[8]2018'!$K$17 -> 0 | W61: ='[8]2019'!$K$17 -> 0 | X61: =IF(P61=0," -",T61/P61) -> 1 | Y61: =IF(P61=0," -",IF(X61>100%,100%,X61)) -> 1 | Z61: =IF(Q61=0," -",U61/Q61) -> 0 | AA61: =IF(Q61=0," -",IF(Z61>100%,100%,Z61)) -> 0 | AB61: =IF(R61=0," -",V61/R61) -> 0 | AC61: =IF(R61=0," -",IF(AB61>100%,100%,AB61)) -> 0 | AD61: =IF(S61=0," -",W61/S61) -> 0 | AE61: =IF(S61=0," -",IF(AD61>100%,100%,AD61)) -> 0 | AF61: =+AVERAGE(T61:W61)/O61 -> 0.25 | AG61: 0.25 | AH61: 0.25 | AI61: ='[8]2016'!P17 -> 0 | AJ61: ='[8]2016'!Q17 -> 0 | AK61: ='[8]2016'!R17 -> 0 | AL61: - | AM61: - | AN61: ='[8]2017'!P17 -> 0 | AO61: ='[8]2017'!Q17 -> 0 | AP61: ='[8]2017'!R17 -> 0 | AQ61: - | AR61: - | AS61: ='[8]2018'!P17 -> 50000 | AT61: ='[8]2018'!Q17 -> 0 | AU61: ='[8]2018'!R17 -> 0 | AV61: 0 | AW61: - | AX61: ='[8]2019'!P17 -> 50000 | AY61: ='[8]2019'!Q17 -> 0 | AZ61: ='[8]2019'!R17 -> 0 | BA61: 0 | BB61: - | BC61: 100000 | BD61: 0 | BE61: 0 | BF61: 0 | BG61: - | BH61: ='[1]LÍNEA 1'!AO61 -> 16. Paz, justicia e instituciones sólidas | BI61: ='[1]LÍNEA 1'!AP61 -> Fortalecimiento Institucional | BJ61: Ofc. Prensa
K62: Elaborar y difundir 16 informes de contratación pública. | L62: ='[1]LÍNEA 1'!P62 -> - | M62: ='[1]LÍNEA 1'!Q62 -> Número de informes de contratación pública elaboras y difundidas. | N62: 0 | O62: ='[1]LÍNEA 1'!S62 -> 16 | P62: ='[1]LÍNEA 1'!T62 -> 4 | Q62: ='[1]LÍNEA 1'!U62 -> 4 | R62: ='[1]LÍNEA 1'!V62 -> 4 | S62: ='[1]LÍNEA 1'!W62 -> 4 | T62: ='[14]2016'!K12 -> 3 | U62: ='[14]2017'!K12 -> 0 | V62: ='[14]2018'!K12 -> 0 | W62: ='[14]2019'!K12 -> 0 | X62: =IF(P62=0," -",T62/P62) -> 0.75 | Y62: =IF(P62=0," -",IF(X62>100%,100%,X62)) -> 0.75 | Z62: =IF(Q62=0," -",U62/Q62) -> 0 | AA62: =IF(Q62=0," -",IF(Z62>100%,100%,Z62)) -> 0 | AB62: =IF(R62=0," -",V62/R62) -> 0 | AC62: =IF(R62=0," -",IF(AB62>100%,100%,AB62)) -> 0 | AD62: =IF(S62=0," -",W62/S62) -> 0 | AE62: =IF(S62=0," -",IF(AD62>100%,100%,AD62)) -> 0 | AF62: =+SUM(T62:W62)/O62 -> 0.1875 | AG62: 0.1875 | AH62: 0.1875 | AI62: ='[14]2016'!P12 -> 0 | AJ62: ='[14]2016'!Q12 -> 0 | AK62: ='[14]2016'!R12 -> 0 | AL62: - | AM62: - | AN62: ='[14]2017'!P12 -> 0 | AO62: ='[14]2017'!Q12 -> 0 | AP62: ='[14]2017'!R12 -> 0 | AQ62: - | AR62: - | AS62: ='[14]2018'!P12 -> 0 | AT62: ='[14]2018'!Q12 -> 0 | AU62: ='[14]2018'!R12 -> 0 | AV62: - | AW62: - | AX62: ='[14]2019'!P12 -> 0 | AY62: ='[14]2019'!Q12 -> 0 | AZ62: ='[14]2019'!R12 -> 0 | BA62: - | BB62: - | BC62: 0 | BD62: 0 | BE62: 0 | BF62: - | BG62: - | BH62: ='[1]LÍNEA 1'!AO62 -> 16. Paz, justicia e instituciones sólidas | BI62: ='[1]LÍNEA 1'!AP62 -> Fortalecimiento Institucional | BJ62: Sec. Jurídica
K63: Implementar y mantener actualizado en línea 1 registro de intereses privados de los secretarios y sub-secretarios así como de los asesores del despacho del alcalde. | L63: ='[1]LÍNEA 1'!P63 -> - | M63: ='[1]LÍNEA 1'!Q63 -> Número registros implementados y mantenidos actualizados en línea de intereses privados de los secretarios y sub-secretarios así como de los asesores del despacho del alcalde. | N63: 0 | O63: ='[1]LÍNEA 1'!S63 -> 1 | P63: ='[1]LÍNEA 1'!T63 -> 1 | Q63: ='[1]LÍNEA 1'!U63 -> 1 | R63: ='[1]LÍNEA 1'!V63 -> 1 | S63: ='[1]LÍNEA 1'!W63 -> 1 | T63: ='[14]2016'!K13 -> 1 | U63: ='[14]2017'!K13 -> 0 | V63: ='[14]2018'!K13 -> 0 | W63: ='[14]2019'!K13 -> 0 | X63: =IF(P63=0," -",T63/P63) -> 1 | Y63: =IF(P63=0," -",IF(X63>100%,100%,X63)) -> 1 | Z63: =IF(Q63=0," -",U63/Q63) -> 0 | AA63: =IF(Q63=0," -",IF(Z63>100%,100%,Z63)) -> 0 | AB63: =IF(R63=0," -",V63/R63) -> 0 | AC63: =IF(R63=0," -",IF(AB63>100%,100%,AB63)) -> 0 | AD63: =IF(S63=0," -",W63/S63) -> 0 | AE63: =IF(S63=0," -",IF(AD63>100%,100%,AD63)) -> 0 | AF63: =+AVERAGE(T63:W63)/O63 -> 0.25 | AG63: 0.25 | AH63: 0.25 | AI63: ='[14]2016'!P13 -> 0 | AJ63: ='[14]2016'!Q13 -> 0 | AK63: ='[14]2016'!R13 -> 0 | AL63: - | AM63: - | AN63: ='[14]2017'!P13 -> 0 | AO63: ='[14]2017'!Q13 -> 0 | AP63: ='[14]2017'!R13 -> 0 | AQ63: - | AR63: - | AS63: ='[14]2018'!P13 -> 0 | AT63: ='[14]2018'!Q13 -> 0 | AU63: ='[14]2018'!R13 -> 0 | AV63: - | AW63: - | AX63: ='[14]2019'!P13 -> 0 | AY63: ='[14]2019'!Q13 -> 0 | AZ63: ='[14]2019'!R13 -> 0 | BA63: - | BB63: - | BC63: 0 | BD63: 0 | BE63: 0 | BF63: - | BG63: - | BH63: ='[1]LÍNEA 1'!AO63 -> 16. Paz, justicia e instituciones sólidas | BI63: ='[1]LÍNEA 1'!AP63 -> Fortalecimiento Institucional | BJ63: Sec. Jurídica
F64: Lograr una calificación de 90 en el componente exposición de la información del IGA. | G64: 79.4 | H64: =+'[1]LÍNEA 1'!H64 -> 90 | K64: Formular e implementar 1 plan de la excelencia por la transparencia enfocado al mejoramiento continuo del índice ITEP en todas sus dimensiones. | L64: ='[1]LÍNEA 1'!P64 -> 0 | M64: ='[1]LÍNEA 1'!Q64 -> Número de planes de la excelencia formulados e implementados por la transparencia enfocado al mejoramiento continuo del índice ITEP en todas sus dimensiones. | N64: 0 | O64: ='[1]LÍNEA 1'!S64 -> 1 | P64: ='[1]LÍNEA 1'!T64 -> 0 | Q64: ='[1]LÍNEA 1'!U64 -> 1 | R64: ='[1]LÍNEA 1'!V64 -> 1 | S64: ='[1]LÍNEA 1'!W64 -> 1 | T64: ='[14]2016'!K14 -> 0 | U64: ='[14]2017'!K14 -> 0 | V64: ='[14]2018'!K14 -> 0 | W64: ='[14]2019'!K14 -> 0 | X64: =IF(P64=0," -",T64/P64) -> - | Y64: =IF(P64=0," -",IF(X64>100%,100%,X64)) -> - | Z64: =IF(Q64=0," -",U64/Q64) -> 0 | AA64: =IF(Q64=0," -",IF(Z64>100%,100%,Z64)) -> 0 | AB64: =IF(R64=0," -",V64/R64) -> 0 | AC64: =IF(R64=0," -",IF(AB64>100%,100%,AB64)) -> 0 | AD64: =IF(S64=0," -",W64/S64) -> 0 | AE64: =IF(S64=0," -",IF(AD64>100%,100%,AD64)) -> 0 | AF64: =+AVERAGE(U64:W64)/O64 -> 0 | AG64: 0 | AH64: 0 | AI64: ='[14]2016'!P14 -> 0 | AJ64: ='[14]2016'!Q14 -> 0 | AK64: ='[14]2016'!R14 -> 0 | AL64: - | AM64: - | AN64: ='[14]2017'!P14 -> 162500 | AO64: ='[14]2017'!Q14 -> 0 | AP64: ='[14]2017'!R14 -> 0 | AQ64: 0 | AR64: - | AS64: ='[14]2018'!P14 -> 200000 | AT64: ='[14]2018'!Q14 -> 0 | AU64: ='[14]2018'!R14 -> 0 | AV64: 0 | AW64: - | AX64: ='[14]2019'!P14 -> 200000 | AY64: ='[14]2019'!Q14 -> 0 | AZ64: ='[14]2019'!R14 -> 0 | BA64: 0 | BB64: - | BC64: 562500 | BD64: 0 | BE64: 0 | BF64: 0 | BG64: - | BH64: ='[1]LÍNEA 1'!AO64 -> 16. Paz, justicia e instituciones sólidas | BI64: ='[1]LÍNEA 1'!AP64 -> Fortalecimiento Institucional | BJ64: Sec. Jurídica
K65: Actualizar la estrategia integral de gobierno para la aplicación cabal de los postulados y mandatos de la ley 1712 de 2014 de transparencia y del derecho al acceso a la información pública. | L65: ='[1]LÍNEA 1'!P65 -> - | M65: ='[1]LÍNEA 1'!Q65 -> Número de estrategias integrales de gobierno actualizadas para la aplicación cabal de los postulados y mandatos de la ley 1712 de 2014 de transparencia y del derecho al acceso a la información pública. | N65: 1 | O65: ='[1]LÍNEA 1'!S65 -> 1 | P65: ='[1]LÍNEA 1'!T65 -> 1 | Q65: ='[1]LÍNEA 1'!U65 -> 1 | R65: ='[1]LÍNEA 1'!V65 -> 1 | S65: ='[1]LÍNEA 1'!W65 -> 1 | T65: ='[14]2016'!K15 -> 1 | U65: ='[14]2017'!K15 -> 0 | V65: ='[14]2018'!K15 -> 0 | W65: ='[14]2019'!K15 -> 0 | X65: =IF(P65=0," -",T65/P65) -> 1 | Y65: =IF(P65=0," -",IF(X65>100%,100%,X65)) -> 1 | Z65: =IF(Q65=0," -",U65/Q65) -> 0 | AA65: =IF(Q65=0," -",IF(Z65>100%,100%,Z65)) -> 0 | AB65: =IF(R65=0," -",V65/R65) -> 0 | AC65: =IF(R65=0," -",IF(AB65>100%,100%,AB65)) -> 0 | AD65: =IF(S65=0," -",W65/S65) -> 0 | AE65: =IF(S65=0," -",IF(AD65>100%,100%,AD65)) -> 0 | AF65: =+AVERAGE(T65:W65)/O65 -> 0.25 | AG65: 0.25 | AH65: 0.25 | AI65: ='[14]2016'!P15 -> 250000 | AJ65: ='[14]2016'!Q15 -> 14250 | AK65: ='[14]2016'!R15 -> 0 | AL65: 0.057 | AM65: - | AN65: ='[14]2017'!P15 -> 0 | AO65: ='[14]2017'!Q15 -> 0 | AP65: ='[14]2017'!R15 -> 0 | AQ65: - | AR65: - | AS65: ='[14]2018'!P15 -> 0 | AT65: ='[14]2018'!Q15 -> 0 | AU65: ='[14]2018'!R15 -> 0 | AV65: - | AW65: - | AX65: ='[14]2019'!P15 -> 0 | AY65: ='[14]2019'!Q15 -> 0 | AZ65: ='[14]2019'!R15 -> 0 | BA65: - | BB65: - | BC65: 250000 | BD65: 14250 | BE65: 0 | BF65: 0.057 | BG65: - | BH65: ='[1]LÍNEA 1'!AO65 -> 16. Paz, justicia e instituciones sólidas | BI65: ='[1]LÍNEA 1'!AP65 -> Fortalecimiento Institucional | BJ65: Sec. Jurídica
K66: Actualizar el manual de contratación. | L66: ='[1]LÍNEA 1'!P66 -> - | M66: ='[1]LÍNEA 1'!Q66 -> Número de manuales de contratación actualizados. | N66: 1 | O66: ='[1]LÍNEA 1'!S66 -> 1 | P66: ='[1]LÍNEA 1'!T66 -> 1 | Q66: ='[1]LÍNEA 1'!U66 -> 0 | R66: ='[1]LÍNEA 1'!V66 -> 0 | S66: ='[1]LÍNEA 1'!W66 -> 0 | T66: ='[14]2016'!K16 -> 1 | U66: ='[14]2017'!K16 -> 0 | V66: ='[14]2018'!K16 -> 0 | W66: ='[14]2019'!K16 -> 0 | X66: =IF(P66=0," -",T66/P66) -> 1 | Y66: =IF(P66=0," -",IF(X66>100%,100%,X66)) -> 1 | Z66: =IF(Q66=0," -",U66/Q66) -> - | AA66: =IF(Q66=0," -",IF(Z66>100%,100%,Z66)) -> - | AB66: =IF(R66=0," -",V66/R66) -> - | AC66: =IF(R66=0," -",IF(AB66>100%,100%,AB66)) -> - | AD66: =IF(S66=0," -",W66/S66) -> - | AE66: =IF(S66=0," -",IF(AD66>100%,100%,AD66)) -> - | AF66: =+SUM(T66:W66)/O66 -> 1 | AG66: 1 | AH66: 1 | AI66: ='[14]2016'!P16 -> 0 | AJ66: ='[14]2016'!Q16 -> 0 | AK66: ='[14]2016'!R16 -> 0 | AL66: - | AM66: - | AN66: ='[14]2017'!P16 -> 0 | AO66: ='[14]2017'!Q16 -> 0 | AP66: ='[14]2017'!R16 -> 0 | AQ66: - | AR66: - | AS66: ='[14]2018'!P16 -> 0 | AT66: ='[14]2018'!Q16 -> 0 | AU66: ='[14]2018'!R16 -> 0 | AV66: - | AW66: - | AX66: ='[14]2019'!P16 -> 0 | AY66: ='[14]2019'!Q16 -> 0 | AZ66: ='[14]2019'!R16 -> 0 | BA66: - | BB66: - | BC66: 0 | BD66: 0 | BE66: 0 | BF66: - | BG66: - | BH66: ='[1]LÍNEA 1'!AO66 -> 16. Paz, justicia e instituciones sólidas | BI66: ='[1]LÍNEA 1'!AP66 -> Fortalecimiento Institucional | BJ66: Sec. Jurídica
K67: Crear 1 cargo del nivel directivo y/o asesor adscrito al despacho del Alcalde como encargado de asuntos de transparencia en la gestión pública. | L67: ='[1]LÍNEA 1'!P67 -> - | M67: ='[1]LÍNEA 1'!Q67 -> Número de cargos creados del nivel directivo y/o asesor adscritos al despacho del Alcalde como encargado de asuntos de transparencia en la gestión pública | N67: 1 | O67: ='[1]LÍNEA 1'!S67 -> 1 | P67: ='[1]LÍNEA 1'!T67 -> 0 | Q67: ='[1]LÍNEA 1'!U67 -> 1 | R67: ='[1]LÍNEA 1'!V67 -> 0 | S67: ='[1]LÍNEA 1'!W67 -> 0 | T67: ='[9]2016'!K14 -> 0 | U67: ='[9]2017'!K14 -> 0 | V67: ='[9]2018'!K14 -> 0 | W67: ='[9]2019'!K14 -> 0 | X67: =IF(P67=0," -",T67/P67) -> - | Y67: =IF(P67=0," -",IF(X67>100%,100%,X67)) -> - | Z67: =IF(Q67=0," -",U67/Q67) -> 0 | AA67: =IF(Q67=0," -",IF(Z67>100%,100%,Z67)) -> 0 | AB67: =IF(R67=0," -",V67/R67) -> - | AC67: =IF(R67=0," -",IF(AB67>100%,100%,AB67)) -> - | AD67: =IF(S67=0," -",W67/S67) -> - | AE67: =IF(S67=0," -",IF(AD67>100%,100%,AD67)) -> - | AF67: =+SUM(T67:W67)/O67 -> 0 | AG67: 0 | AH67: 0 | AI67: ='[9]2016'!P14 -> 0 | AJ67: ='[9]2016'!Q14 -> 0 | AK67: ='[9]2016'!R14 -> 0 | AL67: - | AM67: - | AN67: ='[9]2017'!P14 -> 0 | AO67: ='[9]2017'!Q14 -> 0 | AP67: ='[9]2017'!R14 -> 0 | AQ67: - | AR67: - | AS67: ='[9]2018'!P14 -> 0 | AT67: ='[9]2018'!Q14 -> 0 | AU67: ='[9]2018'!R14 -> 0 | AV67: - | AW67: - | AX67: ='[9]2019'!P14 -> 0 | AY67: ='[9]2019'!Q14 -> 0 | AZ67: ='[9]2019'!R14 -> 0 | BA67: - | BB67: - | BC67: 0 | BD67: 0 | BE67: 0 | BF67: - | BG67: - | BH67: ='[1]LÍNEA 1'!AO67 -> 16. Paz, justicia e instituciones sólidas | BI67: ='[1]LÍNEA 1'!AP67 -> Fortalecimiento Institucional | BJ67: Sec. Administrativa
K68: Implementar y mantener 1 estrategia para publicar en línea necesidades de trabajo o de provisión de servicios del municipio y recopilar hojas de vida o propuestas (Tu Talento es lo que Vale). | L68: ='[1]LÍNEA 1'!P68 -> - | M68: ='[1]LÍNEA 1'!Q68 -> Número de estrategias implementadas y mantenidas para publicar en línea necesidades de trabajo o de provisión de servicios del municipio y recopilar hojas de vida o propuestas (Tu Talento es lo que Vale). | N68: 0 | O68: ='[1]LÍNEA 1'!S68 -> 1 | P68: ='[1]LÍNEA 1'!T68 -> 1 | Q68: ='[1]LÍNEA 1'!U68 -> 1 | R68: ='[1]LÍNEA 1'!V68 -> 1 | S68: ='[1]LÍNEA 1'!W68 -> 1 | T68: ='[9]2016'!K15 -> 1 | U68: ='[9]2017'!K15 -> 0 | V68: ='[9]2018'!K15 -> 0 | W68: ='[9]2019'!K15 -> 0 | X68: =IF(P68=0," -",T68/P68) -> 1 | Y68: =IF(P68=0," -",IF(X68>100%,100%,X68)) -> 1 | Z68: =IF(Q68=0," -",U68/Q68) -> 0 | AA68: =IF(Q68=0," -",IF(Z68>100%,100%,Z68)) -> 0 | AB68: =IF(R68=0," -",V68/R68) -> 0 | AC68: =IF(R68=0," -",IF(AB68>100%,100%,AB68)) -> 0 | AD68: =IF(S68=0," -",W68/S68) -> 0 | AE68: =IF(S68=0," -",IF(AD68>100%,100%,AD68)) -> 0 | AF68: =+AVERAGE(T68:W68)/O68 -> 0.25 | AG68: 0.25 | AH68: 0.25 | AI68: ='[9]2016'!P15 -> 0 | AJ68: ='[9]2016'!Q15 -> 0 | AK68: ='[9]2016'!R15 -> 0 | AL68: - | AM68: - | AN68: ='[9]2017'!P15 -> 0 | AO68: ='[9]2017'!Q15 -> 0 | AP68: ='[9]2017'!R15 -> 0 | AQ68: - | AR68: - | AS68: ='[9]2018'!P15 -> 0 | AT68: ='[9]2018'!Q15 -> 0 | AU68: ='[9]2018'!R15 -> 0 | AV68: - | AW68: - | AX68: ='[9]2019'!P15 -> 0 | AY68: ='[9]2019'!Q15 -> 0 | AZ68: ='[9]2019'!R15 -> 0 | BA68: - | BB68: - | BC68: 0 | BD68: 0 | BE68: 0 | BF68: - | BG68: - | BH68: ='[1]LÍNEA 1'!AO68 -> 16. Paz, justicia e instituciones sólidas | BI68: ='[1]LÍNEA 1'!AP68 -> Fortalecimiento Institucional | BJ68: Sec. Administrativa
K69: Implementar y mantener 1 sección en línea y actualizada dentro de la página web institucional para consultar todos los procesos de contratación pública. | L69: ='[1]LÍNEA 1'!P69 -> - | M69: ='[1]LÍNEA 1'!Q69 -> Número de secciones implementadas y mantenidas en línea y actualizada dentro de la página web institucional para consultar todos los procesos de contratación pública. | N69: 0 | O69: ='[1]LÍNEA 1'!S69 -> 1 | P69: ='[1]LÍNEA 1'!T69 -> 1 | Q69: ='[1]LÍNEA 1'!U69 -> 1 | R69: ='[1]LÍNEA 1'!V69 -> 1 | S69: ='[1]LÍNEA 1'!W69 -> 1 | T69: ='[10]2016'!K22 -> 1 | U69: ='[10]2017'!K22 -> 0 | V69: ='[10]2018'!K22 -> 0 | W69: ='[10]2019'!K22 -> 0 | X69: =IF(P69=0," -",T69/P69) -> 1 | Y69: =IF(P69=0," -",IF(X69>100%,100%,X69)) -> 1 | Z69: =IF(Q69=0," -",U69/Q69) -> 0 | AA69: =IF(Q69=0," -",IF(Z69>100%,100%,Z69)) -> 0 | AB69: =IF(R69=0," -",V69/R69) -> 0 | AC69: =IF(R69=0," -",IF(AB69>100%,100%,AB69)) -> 0 | AD69: =IF(S69=0," -",W69/S69) -> 0 | AE69: =IF(S69=0," -",IF(AD69>100%,100%,AD69)) -> 0 | AF69: =+AVERAGE(T69:W69)/O69 -> 0.25 | AG69: 0.25 | AH69: 0.25 | AI69: ='[10]2016'!P22 -> 0 | AJ69: ='[10]2016'!Q22 -> 0 | AK69: ='[10]2016'!R22 -> 0 | AL69: - | AM69: - | AN69: ='[10]2017'!P22 -> 0 | AO69: ='[10]2017'!Q22 -> 0 | AP69: ='[10]2017'!R22 -> 0 | AQ69: - | AR69: - | AS69: ='[10]2018'!P22 -> 0 | AT69: ='[10]2018'!Q22 -> 0 | AU69: ='[10]2018'!R22 -> 0 | AV69: - | AW69: - | AX69: ='[10]2019'!P22 -> 0 | AY69: ='[10]2019'!Q22 -> 0 | AZ69: ='[10]2019'!R22 -> 0 | BA69: - | BB69: - | BC69: 0 | BD69: 0 | BE69: 0 | BF69: - | BG69: - | BH69: ='[1]LÍNEA 1'!AO69 -> 16. Paz, justicia e instituciones sólidas | BI69: ='[1]LÍNEA 1'!AP69 -> Fortalecimiento Institucional | BJ69: Ofc. Sistemas
K70: Mantener 1 sección en línea dentro de la página web institucional con información actualizada sobre decretos y resolución de la Administración así como de proyectos de acuerdo y acuerdos municipales. | L70: ='[1]LÍNEA 1'!P70 -> - | M70: ='[1]LÍNEA 1'!Q70 -> Número de secciones mantenidas en línea dentro de la página web institucional con información actualizada sobre decretos y resolución de la Administración así como de proyectos de acuerdo y acuerdos municipales. | N70: 1 | O70: ='[1]LÍNEA 1'!S70 -> 1 | P70: ='[1]LÍNEA 1'!T70 -> 1 | Q70: ='[1]LÍNEA 1'!U70 -> 1 | R70: ='[1]LÍNEA 1'!V70 -> 1 | S70: ='[1]LÍNEA 1'!W70 -> 1 | T70: ='[10]2016'!K23 -> 1 | U70: ='[10]2017'!K23 -> 0 | V70: ='[10]2018'!K23 -> 0 | W70: ='[10]2019'!K23 -> 0 | X70: =IF(P70=0," -",T70/P70) -> 1 | Y70: =IF(P70=0," -",IF(X70>100%,100%,X70)) -> 1 | Z70: =IF(Q70=0," -",U70/Q70) -> 0 | AA70: =IF(Q70=0," -",IF(Z70>100%,100%,Z70)) -> 0 | AB70: =IF(R70=0," -",V70/R70) -> 0 | AC70: =IF(R70=0," -",IF(AB70>100%,100%,AB70)) -> 0 | AD70: =IF(S70=0," -",W70/S70) -> 0 | AE70: =IF(S70=0," -",IF(AD70>100%,100%,AD70)) -> 0 | AF70: =+AVERAGE(T70:W70)/O70 -> 0.25 | AG70: 0.25 | AH70: 0.25 | AI70: ='[10]2016'!P23 -> 0 | AJ70: ='[10]2016'!Q23 -> 0 | AK70: ='[10]2016'!R23 -> 0 | AL70: - | AM70: - | AN70: ='[10]2017'!P23 -> 0 | AO70: ='[10]2017'!Q23 -> 0 | AP70: ='[10]2017'!R23 -> 0 | AQ70: - | AR70: - | AS70: ='[10]2018'!P23 -> 0 | AT70: ='[10]2018'!Q23 -> 0 | AU70: ='[10]2018'!R23 -> 0 | AV70: - | AW70: - | AX70: ='[10]2019'!P23 -> 0 | AY70: ='[10]2019'!Q23 -> 0 | AZ70: ='[10]2019'!R23 -> 0 | BA70: - | BB70: - | BC70: 0 | BD70: 0 | BE70: 0 | BF70: - | BG70: - | BH70: ='[1]LÍNEA 1'!AO70 -> 16. Paz, justicia e instituciones sólidas | BI70: ='[1]LÍNEA 1'!AP70 -> Fortalecimiento Institucional | BJ70: Ofc. Sistemas
K71: Implementar y mantener 1 estrategia para la socialización del plan anti-corrupción y atención al ciudadano. | L71: ='[1]LÍNEA 1'!P71 -> - | M71: ='[1]LÍNEA 1'!Q71 -> Número de estrategias implementadas y mantenidas para la socialización del plan anti-corrupción y atención al ciudadano. | N71: 0 | O71: ='[1]LÍNEA 1'!S71 -> 1 | P71: ='[1]LÍNEA 1'!T71 -> 1 | Q71: ='[1]LÍNEA 1'!U71 -> 1 | R71: ='[1]LÍNEA 1'!V71 -> 1 | S71: ='[1]LÍNEA 1'!W71 -> 1 | T71: ='[6]2016'!$K$14 -> 1 | U71: ='[6]2017'!$K$14 -> 0 | V71: ='[6]2018'!$K$14 -> 0 | W71: ='[6]2019'!$K$14 -> 0 | X71: =IF(P71=0," -",T71/P71) -> 1 | Y71: =IF(P71=0," -",IF(X71>100%,100%,X71)) -> 1 | Z71: =IF(Q71=0," -",U71/Q71) -> 0 | AA71: =IF(Q71=0," -",IF(Z71>100%,100%,Z71)) -> 0 | AB71: =IF(R71=0," -",V71/R71) -> 0 | AC71: =IF(R71=0," -",IF(AB71>100%,100%,AB71)) -> 0 | AD71: =IF(S71=0," -",W71/S71) -> 0 | AE71: =IF(S71=0," -",IF(AD71>100%,100%,AD71)) -> 0 | AF71: =+AVERAGE(T71:W71)/O71 -> 0.25 | AG71: 0.25 | AH71: 0.25 | AI71: ='[6]2016'!P14 -> 0 | AJ71: ='[6]2016'!Q14 -> 0 | AK71: ='[6]2016'!R14 -> 0 | AL71: - | AM71: - | AN71: ='[6]2017'!P14 -> 0 | AO71: ='[6]2017'!Q14 -> 0 | AP71: ='[6]2017'!R14 -> 0 | AQ71: - | AR71: - | AS71: ='[6]2018'!P14 -> 0 | AT71: ='[6]2018'!Q14 -> 0 | AU71: ='[6]2018'!R14 -> 0 | AV71: - | AW71: - | AX71: ='[6]2019'!P14 -> 0 | AY71: ='[6]2019'!Q14 -> 0 | AZ71: ='[6]2019'!R14 -> 0 | BA71: - | BB71: - | BC71: 0 | BD71: 0 | BE71: 0 | BF71: - | BG71: - | BH71: ='[1]LÍNEA 1'!AO71 -> 16. Paz, justicia e instituciones sólidas | BI71: ='[1]LÍNEA 1'!AP71 -> Fortalecimiento Institucional | BJ71: Sec. Planeación
I72: =+RESUMEN!J17 -> 0.2 | J72: GOBIERNO COMPRENSIBLE Y ACCESIBLE | K72: Publicar mantener en línea el 100% de la información sobre la estructura orgánica, las funciones y los deberes de las dependencias así como los medios de contacto y/o servicios de estas. | L72: ='[1]LÍNEA 1'!P72 -> - | M72: ='[1]LÍNEA 1'!Q72 -> Porcentaje de información publicados y mantenidos en línea sobre la estructura orgánica, las funciones y los deberes de las dependencias así como los medios de contacto y/o servicios de estas. | N72: 0.5 | O72: ='[1]LÍNEA 1'!S72 -> 1 | P72: ='[1]LÍNEA 1'!T72 -> 1 | Q72: ='[1]LÍNEA 1'!U72 -> 1 | R72: ='[1]LÍNEA 1'!V72 -> 1 | S72: ='[1]LÍNEA 1'!W72 -> 1 | T72: ='[10]2016'!K24 -> 1 | U72: ='[10]2017'!K24 -> 0 | V72: ='[10]2018'!K24 -> 0 | W72: ='[10]2019'!K24 -> 0 | X72: =IF(P72=0," -",T72/P72) -> 1 | Y72: =IF(P72=0," -",IF(X72>100%,100%,X72)) -> 1 | Z72: =IF(Q72=0," -",U72/Q72) -> 0 | AA72: =IF(Q72=0," -",IF(Z72>100%,100%,Z72)) -> 0 | AB72: =IF(R72=0," -",V72/R72) -> 0 | AC72: =IF(R72=0," -",IF(AB72>100%,100%,AB72)) -> 0 | AD72: =IF(S72=0," -",W72/S72) -> 0 | AE72: =IF(S72=0," -",IF(AD72>100%,100%,AD72)) -> 0 | AF72: =+AVERAGE(T72:W72)/O72 -> 0.25 | AG72: 0.25 | AH72: 0.25 | AI72: ='[10]2016'!P24 -> 0 | AJ72: ='[10]2016'!Q24 -> 0 | AK72: ='[10]2016'!R24 -> 0 | AL72: - | AM72: - | AN72: ='[10]2017'!P24 -> 0 | AO72: ='[10]2017'!Q24 -> 0 | AP72: ='[10]2017'!R24 -> 0 | AQ72: - | AR72: - | AS72: ='[10]2018'!P24 -> 0 | AT72: ='[10]2018'!Q24 -> 0 | AU72: ='[10]2018'!R24 -> 0 | AV72: - | AW72: - | AX72: ='[10]2019'!P24 -> 0 | AY72: ='[10]2019'!Q24 -> 0 | AZ72: ='[10]2019'!R24 -> 0 | BA72: - | BB72: - | BC72: 0 | BD72: 0 | BE72: 0 | BF72: - | BG72: - | BH72: ='[1]LÍNEA 1'!AO72 -> 16. Paz, justicia e instituciones sólidas | BI72: ='[1]LÍNEA 1'!AP72 -> Fortalecimiento Institucional | BJ72: Ofc. Sistemas
K73: Publicar y mantener actualizado en línea el directorio de servidores públicos. | L73: ='[1]LÍNEA 1'!P73 -> - | M73: ='[1]LÍNEA 1'!Q73 -> Número de directorios de servidores públicos publicados y mantenidos en línea. | N73: 1 | O73: ='[1]LÍNEA 1'!S73 -> 1 | P73: ='[1]LÍNEA 1'!T73 -> 1 | Q73: ='[1]LÍNEA 1'!U73 -> 1 | R73: ='[1]LÍNEA 1'!V73 -> 1 | S73: ='[1]LÍNEA 1'!W73 -> 1 | T73: ='[10]2016'!K25 -> 1 | U73: ='[10]2017'!K25 -> 0 | V73: ='[10]2018'!K25 -> 0 | W73: ='[10]2019'!K25 -> 0 | X73: =IF(P73=0," -",T73/P73) -> 1 | Y73: =IF(P73=0," -",IF(X73>100%,100%,X73)) -> 1 | Z73: =IF(Q73=0," -",U73/Q73) -> 0 | AA73: =IF(Q73=0," -",IF(Z73>100%,100%,Z73)) -> 0 | AB73: =IF(R73=0," -",V73/R73) -> 0 | AC73: =IF(R73=0," -",IF(AB73>100%,100%,AB73)) -> 0 | AD73: =IF(S73=0," -",W73/S73) -> 0 | AE73: =IF(S73=0," -",IF(AD73>100%,100%,AD73)) -> 0 | AF73: =+AVERAGE(T73:W73)/O73 -> 0.25 | AG73: 0.25 | AH73: 0.25 | AI73: ='[10]2016'!P25 -> 0 | AJ73: ='[10]2016'!Q25 -> 0 | AK73: ='[10]2016'!R25 -> 0 | AL73: - | AM73: - | AN73: ='[10]2017'!P25 -> 0 | AO73: ='[10]2017'!Q25 -> 0 | AP73: ='[10]2017'!R25 -> 0 | AQ73: - | AR73: - | AS73: ='[10]2018'!P25 -> 0 | AT73: ='[10]2018'!Q25 -> 0 | AU73: ='[10]2018'!R25 -> 0 | AV73: - | AW73: - | AX73: ='[10]2019'!P25 -> 0 | AY73: ='[10]2019'!Q25 -> 0 | AZ73: ='[10]2019'!R25 -> 0 | BA73: - | BB73: - | BC73: 0 | BD73: 0 | BE73: 0 | BF73: - | BG73: - | BH73: ='[1]LÍNEA 1'!AO73 -> 16. Paz, justicia e instituciones sólidas | BI73: ='[1]LÍNEA 1'!AP73 -> Fortalecimiento Institucional | BJ73: Ofc. Sistemas
K74: Publicar y mantener actualizado en línea el manual de funciones de la Administración Central. | L74: ='[1]LÍNEA 1'!P74 -> - | M74: ='[1]LÍNEA 1'!Q74 -> Número de directorios de manuales de funciones de la Administración Central publicados y mantenidos en línea. | N74: 1 | O74: ='[1]LÍNEA 1'!S74 -> 1 | P74: ='[1]LÍNEA 1'!T74 -> 1 | Q74: ='[1]LÍNEA 1'!U74 -> 1 | R74: ='[1]LÍNEA 1'!V74 -> 1 | S74: ='[1]LÍNEA 1'!W74 -> 1 | T74: ='[10]2016'!K26 -> 1 | U74: ='[10]2017'!K26 -> 0 | V74: ='[10]2018'!K26 -> 0 | W74: ='[10]2019'!K26 -> 0 | X74: =IF(P74=0," -",T74/P74) -> 1 | Y74: =IF(P74=0," -",IF(X74>100%,100%,X74)) -> 1 | Z74: =IF(Q74=0," -",U74/Q74) -> 0 | AA74: =IF(Q74=0," -",IF(Z74>100%,100%,Z74)) -> 0 | AB74: =IF(R74=0," -",V74/R74) -> 0 | AC74: =IF(R74=0," -",IF(AB74>100%,100%,AB74)) -> 0 | AD74: =IF(S74=0," -",W74/S74) -> 0 | AE74: =IF(S74=0," -",IF(AD74>100%,100%,AD74)) -> 0 | AF74: =+AVERAGE(T74:W74)/O74 -> 0.25 | AG74: 0.25 | AH74: 0.25 | AI74: ='[10]2016'!P26 -> 0 | AJ74: ='[10]2016'!Q26 -> 0 | AK74: ='[10]2016'!R26 -> 0 | AL74: - | AM74: - | AN74: ='[10]2017'!P26 -> 0 | AO74: ='[10]2017'!Q26 -> 0 | AP74: ='[10]2017'!R26 -> 0 | AQ74: - | AR74: - | AS74: ='[10]2018'!P26 -> 0 | AT74: ='[10]2018'!Q26 -> 0 | AU74: ='[10]2018'!R26 -> 0 | AV74: - | AW74: - | AX74: ='[10]2019'!P26 -> 0 | AY74: ='[10]2019'!Q26 -> 0 | AZ74: ='[10]2019'!R26 -> 0 | BA74: - | BB74: - | BC74: 0 | BD74: 0 | BE74: 0 | BF74: - | BG74: - | BH74: ='[1]LÍNEA 1'!AO74 -> 16. Paz, justicia e instituciones sólidas | BI74: ='[1]LÍNEA 1'!AP74 -> Fortalecimiento Institucional | BJ74: Ofc. Sistemas
K75: Realizar 1 caracterización de las personas que requieren trámites y servicios administrativos del gobierno municipal. | L75: ='[1]LÍNEA 1'!P75 -> - | M75: ='[1]LÍNEA 1'!Q75 -> Número de caracterizaciones de las personas que requieren trámites y servicios administrativos del gobierno municipal realizadas. | N75: 0 | O75: ='[1]LÍNEA 1'!S75 -> 1 | P75: ='[1]LÍNEA 1'!T75 -> 0 | Q75: ='[1]LÍNEA 1'!U75 -> 1 | R75: ='[1]LÍNEA 1'!V75 -> 0 | S75: ='[1]LÍNEA 1'!W75 -> 0 | T75: ='[9]2016'!$K$16 -> 0 | U75: ='[9]2017'!$K$16 -> 0 | V75: ='[9]2018'!$K$16 -> 0 | W75: ='[9]2019'!$K$16 -> 0 | X75: =IF(P75=0," -",T75/P75) -> - | Y75: =IF(P75=0," -",IF(X75>100%,100%,X75)) -> - | Z75: =IF(Q75=0," -",U75/Q75) -> 0 | AA75: =IF(Q75=0," -",IF(Z75>100%,100%,Z75)) -> 0 | AB75: =IF(R75=0," -",V75/R75) -> - | AC75: =IF(R75=0," -",IF(AB75>100%,100%,AB75)) -> - | AD75: =IF(S75=0," -",W75/S75) -> - | AE75: =IF(S75=0," -",IF(AD75>100%,100%,AD75)) -> - | AF75: =+SUM(T75:W75)/O75 -> 0 | AG75: 0 | AH75: 0 | AI75: ='[9]2016'!P16 -> 0 | AJ75: ='[9]2016'!Q16 -> 0 | AK75: ='[9]2016'!R16 -> 0 | AL75: - | AM75: - | AN75: ='[9]2017'!P16 -> 0 | AO75: ='[9]2017'!Q16 -> 0 | AP75: ='[9]2017'!R16 -> 0 | AQ75: - | AR75: - | AS75: ='[9]2018'!P16 -> 0 | AT75: ='[9]2018'!Q16 -> 0 | AU75: ='[9]2018'!R16 -> 0 | AV75: - | AW75: - | AX75: ='[9]2019'!P16 -> 0 | AY75: ='[9]2019'!Q16 -> 0 | AZ75: ='[9]2019'!R16 -> 0 | BA75: - | BB75: - | BC75: 0 | BD75: 0 | BE75: 0 | BF75: - | BG75: - | BH75: ='[1]LÍNEA 1'!AO75 -> 16. Paz, justicia e instituciones sólidas | BI75: ='[1]LÍNEA 1'!AP75 -> Fortalecimiento Institucional | BJ75: Sec. Administrativa
K76: Implementar y mantener 1 estrategia de comunicaciones para difundir y promover la oferta institucional así como de sus funciones, deberes y/u obligaciones legales dirigida a la población con enfoque diferencial. | L76: ='[1]LÍNEA 1'!P76 -> 0 | M76: ='[1]LÍNEA 1'!Q76 -> Número de estrategias de comunicaciones implementadas y mantenidas para difundir y promover la oferta institucional así como de sus funciones, deberes y/u obligaciones legales dirigida a la población con enfoque diferencial. | N76: 0 | O76: ='[1]LÍNEA 1'!S76 -> 1 | P76: ='[1]LÍNEA 1'!T76 -> 1 | Q76: ='[1]LÍNEA 1'!U76 -> 1 | R76: ='[1]LÍNEA 1'!V76 -> 1 | S76: ='[1]LÍNEA 1'!W76 -> 1 | T76: ='[8]2016'!$K$18 -> 1 | U76: ='[8]2017'!$K$18 -> 0 | V76: ='[8]2018'!$K$18 -> 0 | W76: ='[8]2019'!$K$18 -> 0 | X76: =IF(P76=0," -",T76/P76) -> 1 | Y76: =IF(P76=0," -",IF(X76>100%,100%,X76)) -> 1 | Z76: =IF(Q76=0," -",U76/Q76) -> 0 | AA76: =IF(Q76=0," -",IF(Z76>100%,100%,Z76)) -> 0 | AB76: =IF(R76=0," -",V76/R76) -> 0 | AC76: =IF(R76=0," -",IF(AB76>100%,100%,AB76)) -> 0 | AD76: =IF(S76=0," -",W76/S76) -> 0 | AE76: =IF(S76=0," -",IF(AD76>100%,100%,AD76)) -> 0 | AF76: =+AVERAGE(T76:W76)/O76 -> 0.25 | AG76: =+IF(AF76>100%,100%,AF76) -> 0.25 | AH76: =+AG76 -> 0.25 | AI76: ='[8]2016'!P18 -> 0 | AJ76: ='[8]2016'!Q18 -> 0 | AK76: ='[8]2016'!R18 -> 0 | AL76: - | AM76: - | AN76: ='[8]2017'!P18 -> 0 | AO76: ='[8]2017'!Q18 -> 0 | AP76: ='[8]2017'!R18 -> 0 | AQ76: - | AR76: - | AS76: ='[8]2018'!P18 -> 250000 | AT76: ='[8]2018'!Q18 -> 0 | AU76: ='[8]2018'!R18 -> 0 | AV76: 0 | AW76: - | AX76: ='[8]2019'!P18 -> 250000 | AY76: ='[8]2019'!Q18 -> 0 | AZ76: ='[8]2019'!R18 -> 0 | BA76: 0 | BB76: - | BC76: 500000 | BD76: 0 | BE76: 0 | BF76: 0 | BG76: - | BH76: ='[1]LÍNEA 1'!AO76 -> 16. Paz, justicia e instituciones sólidas | BI76: ='[1]LÍNEA 1'!AP76 -> Fortalecimiento Institucional | BJ76: Ofc. Prensa
Y77: =+AVERAGE(Y11:Y76) -> 0.8887755102 | AA77: 0 | AC77: 0 | AE77: 0 | AG77: =+AVERAGE(AG11:AG76) -> 0.1999152237
D78: =+RESUMEN!J18 -> 0.1895154915 | E78: GOBIERNO LEGAL Y EFECTIVO | F78: Aumentar en un 30% los ingresos provenientes del impuesto predial. | G78: 0 | H78: =+'[1]LÍNEA 1'!H78 -> 0.3 | I78: =+RESUMEN!J19 -> 0.0625 | J78: NUEVO MODELO DE ATENCIÓN A LA CIUDADANÍA | K78: Formular e implementar 1 plan de la excelencia para la gestión de PQRSD en la Administración Municipal (procedimientos e infraestructura). | L78: ='[1]LÍNEA 1'!P78 -> 0 | M78: ='[1]LÍNEA 1'!Q78 -> Número de planes de la excelencia formulados e implementados para la gestión de PQRSD en la Administración Municipal (procedimientos e infraestructura). | N78: 0 | O78: ='[1]LÍNEA 1'!S78 -> 1 | P78: ='[1]LÍNEA 1'!T78 -> 0 | Q78: ='[1]LÍNEA 1'!U78 -> 1 | R78: ='[1]LÍNEA 1'!V78 -> 1 | S78: ='[1]LÍNEA 1'!W78 -> 1 | T78: ='[9]2016'!K18 -> 0 | U78: ='[9]2017'!K18 -> 0 | V78: ='[9]2018'!K18 -> 0 | W78: ='[9]2019'!K18 -> 0 | X78: =IF(P78=0," -",T78/P78) -> - | Y78: =IF(P78=0," -",IF(X78>100%,100%,X78)) -> - | Z78: =IF(Q78=0," -",U78/Q78) -> 0 | AA78: =IF(Q78=0," -",IF(Z78>100%,100%,Z78)) -> 0 | AB78: =IF(R78=0," -",V78/R78) -> 0 | AC78: =IF(R78=0," -",IF(AB78>100%,100%,AB78)) -> 0 | AD78: =IF(S78=0," -",W78/S78) -> 0 | AE78: =IF(S78=0," -",IF(AD78>100%,100%,AD78)) -> 0 | AF78: =+AVERAGE(U78:W78)/O78 -> 0 | AG78: 0 | AH78: 0 | AI78: ='[9]2016'!P18 -> 0 | AJ78: ='[9]2016'!Q18 -> 0 | AK78: ='[9]2016'!R18 -> 0 | AL78: =IF(AI78=0," -",AJ78/AI78) -> - | AM78: =IF(AK78=0," -",IF(AJ78=0,100%,AK78/AJ78)) -> - | AN78: ='[9]2017'!P18 -> 300000 | AO78: ='[9]2017'!Q18 -> 0 | AP78: ='[9]2017'!R18 -> 0 | AQ78: =IF(AN78=0," -",AO78/AN78) -> 0 | AR78: =IF(AP78=0," -",IF(AO78=0,100%,AP78/AO78)) -> - | AS78: ='[9]2018'!P18 -> 500000 | AT78: ='[9]2018'!Q18 -> 0 | AU78: ='[9]2018'!R18 -> 0 | AV78: =IF(AS78=0," -",AT78/AS78) -> 0 | AW78: =IF(AU78=0," -",IF(AT78=0,100%,AU78/AT78)) -> - | AX78: ='[9]2019'!P18 -> 500000 | AY78: ='[9]2019'!Q18 -> 0 | AZ78: ='[9]2019'!R18 -> 0 | BA78: =IF(AX78=0," -",AY78/AX78) -> 0 | BB78: =IF(AZ78=0," -",IF(AY78=0,100%,AZ78/AY78)) -> - | BC78: =+AI78+AN78+AS78+AX78 -> 1300000 | BD78: =+AJ78+AO78+AT78+AY78 -> 0 | BE78: =+AK78+AP78+AU78+AZ78 -> 0 | BF78: =IF(BC78=0," -",BD78/BC78) -> 0 | BG78: =IF(BE78=0," -",IF(BD78=0,100%,BE78/BD78)) -> - | BH78: ='[1]LÍNEA 1'!AO78 -> 16. Paz, justicia e instituciones sólidas | BI78: ='[1]LÍNEA 1'!AP78 -> Fortalecimiento Institucional | BJ78: Sec. Administrativa
K79: Crear 1 cargo del nivel directivo y/o asesor para coordinar la atención a la comunidad en la administración municipal. | L79: ='[1]LÍNEA 1'!P79 -> - | M79: ='[1]LÍNEA 1'!Q79 -> Número de cargos creados del nivel directivo y/o asesor creados para coordinar la atención a la comunidad en la administración municipal. | N79: 0 | O79: ='[1]LÍNEA 1'!S79 -> 1 | P79: ='[1]LÍNEA 1'!T79 -> 0 | Q79: ='[1]LÍNEA 1'!U79 -> 1 | R79: ='[1]LÍNEA 1'!V79 -> 0 | S79: ='[1]LÍNEA 1'!W79 -> 0 | T79: ='[9]2016'!K19 -> 0 | U79: ='[9]2017'!K19 -> 0 | V79: ='[9]2018'!K19 -> 0 | W79: ='[9]2019'!K19 -> 0 | X79: =IF(P79=0," -",T79/P79) -> - | Y79: =IF(P79=0," -",IF(X79>100%,100%,X79)) -> - | Z79: =IF(Q79=0," -",U79/Q79) -> 0 | AA79: =IF(Q79=0," -",IF(Z79>100%,100%,Z79)) -> 0 | AB79: =IF(R79=0," -",V79/R79) -> - | AC79: =IF(R79=0," -",IF(AB79>100%,100%,AB79)) -> - | AD79: =IF(S79=0," -",W79/S79) -> - | AE79: =IF(S79=0," -",IF(AD79>100%,100%,AD79)) -> - | AF79: =+SUM(T79:W79)/O79 -> 0 | AG79: 0 | AH79: 0 | AI79: ='[9]2016'!P19 -> 0 | AJ79: ='[9]2016'!Q19 -> 0 | AK79: ='[9]2016'!R19 -> 0 | AL79: - | AM79: - | AN79: ='[9]2017'!P19 -> 0 | AO79: ='[9]2017'!Q19 -> 0 | AP79: ='[9]2017'!R19 -> 0 | AQ79: - | AR79: - | AS79: ='[9]2018'!P19 -> 0 | AT79: ='[9]2018'!Q19 -> 0 | AU79: ='[9]2018'!R19 -> 0 | AV79: - | AW79: - | AX79: ='[9]2019'!P19 -> 0 | AY79: ='[9]2019'!Q19 -> 0 | AZ79: ='[9]2019'!R19 -> 0 | BA79: - | BB79: - | BC79: 0 | BD79: 0 | BE79: 0 | BF79: - | BG79: - | BH79: ='[1]LÍNEA 1'!AO79 -> 16. Paz, justicia e instituciones sólidas | BI79: ='[1]LÍNEA 1'!AP79 -> Fortalecimiento Institucional | BJ79: Sec. Administrativa
K80: Implementar y mantener 1 red incluyente de asesores de la comunidad en las oficinas de la Administración Municipal. | L80: ='[1]LÍNEA 1'!P80 -> 0 | M80: ='[1]LÍNEA 1'!Q80 -> Número de redes incluyentes de asesores de la comunidad implementadas y mantenidas en las oficinas de la Administración Municipal. | N80: 0 | O80: ='[1]LÍNEA 1'!S80 -> 1 | P80: ='[1]LÍNEA 1'!T80 -> 1 | Q80: ='[1]LÍNEA 1'!U80 -> 1 | R80: ='[1]LÍNEA 1'!V80 -> 1 | S80: ='[1]LÍNEA 1'!W80 -> 1 | T80: ='[9]2016'!K20 -> 1 | U80: ='[9]2017'!K20 -> 0 | V80: ='[9]2018'!K20 -> 0 | W80: ='[9]2019'!K20 -> 0 | X80: =IF(P80=0," -",T80/P80) -> 1 | Y80: =IF(P80=0," -",IF(X80>100%,100%,X80)) -> 1 | Z80: =IF(Q80=0," -",U80/Q80) -> 0 | AA80: =IF(Q80=0," -",IF(Z80>100%,100%,Z80)) -> 0 | AB80: =IF(R80=0," -",V80/R80) -> 0 | AC80: =IF(R80=0," -",IF(AB80>100%,100%,AB80)) -> 0 | AD80: =IF(S80=0," -",W80/S80) -> 0 | AE80: =IF(S80=0," -",IF(AD80>100%,100%,AD80)) -> 0 | AF80: =+AVERAGE(T80:W80)/O80 -> 0.25 | AG80: 0.25 | AH80: 0.25 | AI80: ='[9]2016'!P20 -> 0 | AJ80: ='[9]2016'!Q20 -> 0 | AK80: ='[9]2016'!R20 -> 0 | AL80: - | AM80: - | AN80: ='[9]2017'!P20 -> 0 | AO80: ='[9]2017'!Q20 -> 0 | AP80: ='[9]2017'!R20 -> 0 | AQ80: - | AR80: - | AS80: ='[9]2018'!P20 -> 250000 | AT80: ='[9]2018'!Q20 -> 0 | AU80: ='[9]2018'!R20 -> 0 | AV80: 0 | AW80: - | AX80: ='[9]2019'!P20 -> 250000 | AY80: ='[9]2019'!Q20 -> 0 | AZ80: ='[9]2019'!R20 -> 0 | BA80: 0 | BB80: - | BC80: 500000 | BD80: 0 | BE80: 0 | BF80: 0 | BG80: - | BH80: ='[1]LÍNEA 1'!AO80 -> 16. Paz, justicia e instituciones sólidas | BI80: ='[1]LÍNEA 1'!AP80 -> Fortalecimiento Institucional | BJ80: Sec. Administrativa
K81: Crear e implementar 2 "Centros de atención municipal especializados (CAME)". | L81: ='[1]LÍNEA 1'!P81 -> 0 | M81: ='[1]LÍNEA 1'!Q81 -> Número de "Centros de atención municipal especializados (CAME)" creados e implementados. | N81: 0 | O81: ='[1]LÍNEA 1'!S81 -> 2 | P81: ='[1]LÍNEA 1'!T81 -> 0 | Q81: ='[1]LÍNEA 1'!U81 -> 1 | R81: ='[1]LÍNEA 1'!V81 -> 1 | S81: ='[1]LÍNEA 1'!W81 -> 0 | T81: ='[9]2016'!K21 -> 0 | U81: ='[9]2017'!K21 -> 0 | V81: ='[9]2018'!K21 -> 0 | W81: ='[9]2019'!K21 -> 0 | X81: =IF(P81=0," -",T81/P81) -> - | Y81: =IF(P81=0," -",IF(X81>100%,100%,X81)) -> - | Z81: =IF(Q81=0," -",U81/Q81) -> 0 | AA81: =IF(Q81=0," -",IF(Z81>100%,100%,Z81)) -> 0 | AB81: =IF(R81=0," -",V81/R81) -> 0 | AC81: =IF(R81=0," -",IF(AB81>100%,100%,AB81)) -> 0 | AD81: =IF(S81=0," -",W81/S81) -> - | AE81: =IF(S81=0," -",IF(AD81>100%,100%,AD81)) -> - | AF81: =+SUM(T81:W81)/O81 -> 0 | AG81: 0 | AH81: 0 | AI81: ='[9]2016'!P21 -> 0 | AJ81: ='[9]2016'!Q21 -> 0 | AK81: ='[9]2016'!R21 -> 0 | AL81: - | AM81: - | AN81: ='[9]2017'!P21 -> 300000 | AO81: ='[9]2017'!Q21 -> 0 | AP81: ='[9]2017'!R21 -> 0 | AQ81: 0 | AR81: - | AS81: ='[9]2018'!P21 -> 1000000 | AT81: ='[9]2018'!Q21 -> 0 | AU81: ='[9]2018'!R21 -> 0 | AV81: 0 | AW81: - | AX81: ='[9]2019'!P21 -> 0 | AY81: ='[9]2019'!Q21 -> 0 | AZ81: ='[9]2019'!R21 -> 0 | BA81: - | BB81: - | BC81: 1300000 | BD81: 0 | BE81: 0 | BF81: 0 | BG81: - | BH81: ='[1]LÍNEA 1'!AO81 -> 16. Paz, justicia e instituciones sólidas | BI81: ='[1]LÍNEA 1'!AP81 -> Fortalecimiento Institucional | BJ81: Sec. Administrativa
I82: =+RESUMEN!J20 -> 0.1666666667 | J82: ACCIONES CONSTITUCIONALES Y ACCIONES LEGALES: RESPUESTA Y GESTIÓN SOCIAL Y ESTRATÉGICA | K82: Implementar y mantener el observatorio de acciones constitucionales (derechos de petición, tutelas, acciones populares y acciones de cumplimiento). | L82: ='[1]LÍNEA 1'!P82 -> 0 | M82: ='[1]LÍNEA 1'!Q82 -> Número de observatorios de acciones constitucionales (derechos de petición, tutelas, acciones populares y acciones de cumplimiento) implementados y mantenidos. | N82: 0 | O82: ='[1]LÍNEA 1'!S82 -> 1 | P82: ='[1]LÍNEA 1'!T82 -> 1 | Q82: ='[1]LÍNEA 1'!U82 -> 1 | R82: ='[1]LÍNEA 1'!V82 -> 1 | S82: ='[1]LÍNEA 1'!W82 -> 1 | T82: ='[14]2016'!K18 -> 0 | U82: ='[14]2017'!K18 -> 0 | V82: ='[14]2018'!K18 -> 0 | W82: ='[14]2019'!K18 -> 0 | X82: =IF(P82=0," -",T82/P82) -> 0 | Y82: =IF(P82=0," -",IF(X82>100%,100%,X82)) -> 0 | Z82: =IF(Q82=0," -",U82/Q82) -> 0 | AA82: =IF(Q82=0," -",IF(Z82>100%,100%,Z82)) -> 0 | AB82: =IF(R82=0," -",V82/R82) -> 0 | AC82: =IF(R82=0," -",IF(AB82>100%,100%,AB82)) -> 0 | AD82: =IF(S82=0," -",W82/S82) -> 0 | AE82: =IF(S82=0," -",IF(AD82>100%,100%,AD82)) -> 0 | AF82: =+AVERAGE(T82:W82)/O82 -> 0 | AG82: 0 | AH82: 0 | AI82: ='[14]2016'!P18 -> 0 | AJ82: ='[14]2016'!Q18 -> 0 | AK82: ='[14]2016'!R18 -> 0 | AL82: - | AM82: - | AN82: ='[14]2017'!P18 -> 37500 | AO82: ='[14]2017'!Q18 -> 0 | AP82: ='[14]2017'!R18 -> 0 | AQ82: 0 | AR82: - | AS82: ='[14]2018'!P18 -> 200000 | AT82: ='[14]2018'!Q18 -> 0 | AU82: ='[14]2018'!R18 -> 0 | AV82: 0 | AW82: - | AX82: ='[14]2019'!P18 -> 200000 | AY82: ='[14]2019'!Q18 -> 0 | AZ82: ='[14]2019'!R18 -> 0 | BA82: 0 | BB82: - | BC82: 437500 | BD82: 0 | BE82: 0 | BF82: 0 | BG82: - | BH82: ='[1]LÍNEA 1'!AO82 -> 16. Paz, justicia e instituciones sólidas | BI82: ='[1]LÍNEA 1'!AP82 -> Justicia y Seguridad | BJ82: Sec. Jurídica
K83: Implementar y mantener 1 estrategia para la prevención del daño antijurídico. | L83: ='[1]LÍNEA 1'!P83 -> - | M83: ='[1]LÍNEA 1'!Q83 -> Número de estrategias para la prevención del daño antijurídico implementadas y mantenidas. | N83: 0 | O83: ='[1]LÍNEA 1'!S83 -> 1 | P83: ='[1]LÍNEA 1'!T83 -> 1 | Q83: ='[1]LÍNEA 1'!U83 -> 1 | R83: ='[1]LÍNEA 1'!V83 -> 1 | S83: ='[1]LÍNEA 1'!W83 -> 1 | T83: ='[14]2016'!K19 -> 1 | U83: ='[14]2017'!K19 -> 0 | V83: ='[14]2018'!K19 -> 0 | W83: ='[14]2019'!K19 -> 0 | X83: =IF(P83=0," -",T83/P83) -> 1 | Y83: =IF(P83=0," -",IF(X83>100%,100%,X83)) -> 1 | Z83: =IF(Q83=0," -",U83/Q83) -> 0 | AA83: =IF(Q83=0," -",IF(Z83>100%,100%,Z83)) -> 0 | AB83: =IF(R83=0," -",V83/R83) -> 0 | AC83: =IF(R83=0," -",IF(AB83>100%,100%,AB83)) -> 0 | AD83: =IF(S83=0," -",W83/S83) -> 0 | AE83: =IF(S83=0," -",IF(AD83>100%,100%,AD83)) -> 0 | AF83: =+AVERAGE(T83:W83)/O83 -> 0.25 | AG83: 0.25 | AH83: 0.25 | AI83: ='[14]2016'!P19 -> 0 | AJ83: ='[14]2016'!Q19 -> 0 | AK83: ='[14]2016'!R19 -> 0 | AL83: - | AM83: - | AN83: ='[14]2017'!P19 -> 0 | AO83: ='[14]2017'!Q19 -> 0 | AP83: ='[14]2017'!R19 -> 0 | AQ83: - | AR83: - | AS83: ='[14]2018'!P19 -> 0 | AT83: ='[14]2018'!Q19 -> 0 | AU83: ='[14]2018'!R19 -> 0 | AV83: - | AW83: - | AX83: ='[14]2019'!P19 -> 0 | AY83: ='[14]2019'!Q19 -> 0 | AZ83: ='[14]2019'!R19 -> 0 | BA83: - | BB83: - | BC83: 0 | BD83: 0 | BE83: 0 | BF83: - | BG83: - | BH83: ='[1]LÍNEA 1'!AO83 -> 16. Paz, justicia e instituciones sólidas | BI83: ='[1]LÍNEA 1'!AP83 -> Justicia y Seguridad | BJ83: Sec. Jurídica
K84: Implementar y mantener 1 sistema de información misional que agilice el registro, seguimiento y control de los asuntos de la secretaría jurídica. | L84: ='[1]LÍNEA 1'!P84 -> 0 | M84: ='[1]LÍNEA 1'!Q84 -> Número de sistemas de información misional implementados que agilice el registro, seguimiento y control de los asuntos de la secretaría jurídica. | N84: 0 | O84: ='[1]LÍNEA 1'!S84 -> 1 | P84: ='[1]LÍNEA 1'!T84 -> 1 | Q84: ='[1]LÍNEA 1'!U84 -> 1 | R84: ='[1]LÍNEA 1'!V84 -> 1 | S84: ='[1]LÍNEA 1'!W84 -> 1 | T84: ='[14]2016'!K20 -> 1 | U84: ='[14]2017'!K20 -> 0 | V84: ='[14]2018'!K20 -> 0 | W84: ='[14]2019'!K20 -> 0 | X84: =IF(P84=0," -",T84/P84) -> 1 | Y84: =IF(P84=0," -",IF(X84>100%,100%,X84)) -> 1 | Z84: =IF(Q84=0," -",U84/Q84) -> 0 | AA84: =IF(Q84=0," -",IF(Z84>100%,100%,Z84)) -> 0 | AB84: =IF(R84=0," -",V84/R84) -> 0 | AC84: =IF(R84=0," -",IF(AB84>100%,100%,AB84)) -> 0 | AD84: =IF(S84=0," -",W84/S84) -> 0 | AE84: =IF(S84=0," -",IF(AD84>100%,100%,AD84)) -> 0 | AF84: =+AVERAGE(T84:W84)/O84 -> 0.25 | AG84: 0.25 | AH84: 0.25 | AI84: ='[14]2016'!P20 -> 19000 | AJ84: ='[14]2016'!Q20 -> 19000 | AK84: ='[14]2016'!R20 -> 0 | AL84: 1 | AM84: - | AN84: ='[14]2017'!P20 -> 80000 | AO84: ='[14]2017'!Q20 -> 0 | AP84: ='[14]2017'!R20 -> 0 | AQ84: 0 | AR84: - | AS84: ='[14]2018'!P20 -> 300000 | AT84: ='[14]2018'!Q20 -> 0 | AU84: ='[14]2018'!R20 -> 0 | AV84: 0 | AW84: - | AX84: ='[14]2019'!P20 -> 300000 | AY84: ='[14]2019'!Q20 -> 0 | AZ84: ='[14]2019'!R20 -> 0 | BA84: 0 | BB84: - | BC84: 699000 | BD84: 19000 | BE84: 0 | BF84: 0.02718168813 | BG84: - | BH84: ='[1]LÍNEA 1'!AO84 -> 16. Paz, justicia e instituciones sólidas | BI84: ='[1]LÍNEA 1'!AP84 -> Fortalecimiento Institucional | BJ84: Sec. Jurídica
I85: =+RESUMEN!J21 -> 0.2155555556 | J85: ADMINISTRACIÓN ARTICULADA Y COHERENTE | K85: Ajustar y mantener implementado el Plan Institucional de Capacitación y Formación y el Plan de Bienestar y Estímulos. | L85: ='[1]LÍNEA 1'!P85 -> 2210526 | M85: ='[1]LÍNEA 1'!Q85 -> Número de Planes institucionales de capacitación y formación y de bienestar y estímulos ajustados y mantenidos. | N85: 2 | O85: ='[1]LÍNEA 1'!S85 -> 2 | P85: ='[1]LÍNEA 1'!T85 -> 2 | Q85: ='[1]LÍNEA 1'!U85 -> 2 | R85: ='[1]LÍNEA 1'!V85 -> 2 | S85: ='[1]LÍNEA 1'!W85 -> 2 | T85: ='[9]2016'!K22 -> 2 | U85: ='[9]2017'!K22 -> 0 | V85: ='[9]2018'!K22 -> 0 | W85: ='[9]2019'!K22 -> 0 | X85: =IF(P85=0," -",T85/P85) -> 1 | Y85: =IF(P85=0," -",IF(X85>100%,100%,X85)) -> 1 | Z85: =IF(Q85=0," -",U85/Q85) -> 0 | AA85: =IF(Q85=0," -",IF(Z85>100%,100%,Z85)) -> 0 | AB85: =IF(R85=0," -",V85/R85) -> 0 | AC85: =IF(R85=0," -",IF(AB85>100%,100%,AB85)) -> 0 | AD85: =IF(S85=0," -",W85/S85) -> 0 | AE85: =IF(S85=0," -",IF(AD85>100%,100%,AD85)) -> 0 | AF85: =+AVERAGE(T85:W85)/O85 -> 0.25 | AG85: 0.25 | AH85: 0.25 | AI85: ='[9]2016'!P22 -> 600000 | AJ85: ='[9]2016'!Q22 -> 600000 | AK85: ='[9]2016'!R22 -> 0 | AL85: 1 | AM85: - | AN85: ='[9]2017'!P22 -> 400000 | AO85: ='[9]2017'!Q22 -> 0 | AP85: ='[9]2017'!R22 -> 0 | AQ85: 0 | AR85: - | AS85: ='[9]2018'!P22 -> 1000000 | AT85: ='[9]2018'!Q22 -> 0 | AU85: ='[9]2018'!R22 -> 0 | AV85: 0 | AW85: - | AX85: ='[9]2019'!P22 -> 1000000 | AY85: ='[9]2019'!Q22 -> 0 | AZ85: ='[9]2019'!R22 -> 0 | BA85: 0 | BB85: - | BC85: 3000000 | BD85: 600000 | BE85: 0 | BF85: 0.2 | BG85: - | BH85: ='[1]LÍNEA 1'!AO85 -> 16. Paz, justicia e instituciones sólidas | BI85: ='[1]LÍNEA 1'!AP85 -> Fortalecimiento Institucional | BJ85: Sec. Administrativa
K86: Mantener 1 sistema de gestión y control certificado. | L86: ='[1]LÍNEA 1'!P86 -> 2210527 | M86: ='[1]LÍNEA 1'!Q86 -> Número de sistemas de gestión y control certificados mantenidos. | N86: 1 | O86: ='[1]LÍNEA 1'!S86 -> 1 | P86: ='[1]LÍNEA 1'!T86 -> 1 | Q86: ='[1]LÍNEA 1'!U86 -> 1 | R86: ='[1]LÍNEA 1'!V86 -> 1 | S86: ='[1]LÍNEA 1'!W86 -> 1 | T86: ='[9]2016'!K23 -> 1 | U86: ='[9]2017'!K23 -> 0 | V86: ='[9]2018'!K23 -> 0 | W86: ='[9]2019'!K23 -> 0 | X86: =IF(P86=0," -",T86/P86) -> 1 | Y86: =IF(P86=0," -",IF(X86>100%,100%,X86)) -> 1 | Z86: =IF(Q86=0," -",U86/Q86) -> 0 | AA86: =IF(Q86=0," -",IF(Z86>100%,100%,Z86)) -> 0 | AB86: =IF(R86=0," -",V86/R86) -> 0 | AC86: =IF(R86=0," -",IF(AB86>100%,100%,AB86)) -> 0 | AD86: =IF(S86=0," -",W86/S86) -> 0 | AE86: =IF(S86=0," -",IF(AD86>100%,100%,AD86)) -> 0 | AF86: =+AVERAGE(T86:W86)/O86 -> 0.25 | AG86: 0.25 | AH86: 0.25 | AI86: ='[9]2016'!P23 -> 0 | AJ86: ='[9]2016'!Q23 -> 0 | AK86: ='[9]2016'!R23 -> 0 | AL86: - | AM86: - | AN86: ='[9]2017'!P23 -> 295000 | AO86: ='[9]2017'!Q23 -> 0 | AP86: ='[9]2017'!R23 -> 0 | AQ86: 0 | AR86: - | AS86: ='[9]2018'!P23 -> 300000 | AT86: ='[9]2018'!Q23 -> 0 | AU86: ='[9]2018'!R23 -> 0 | AV86: 0 | AW86: - | AX86: ='[9]2019'!P23 -> 300000 | AY86: ='[9]2019'!Q23 -> 0 | AZ86: ='[9]2019'!R23 -> 0 | BA86: 0 | BB86: - | BC86: 895000 | BD86: 0 | BE86: 0 | BF86: 0 | BG86: - | BH86: ='[1]LÍNEA 1'!AO86 -> 16. Paz, justicia e instituciones sólidas | BI86: ='[1]LÍNEA 1'!AP86 -> Fortalecimiento Institucional | BJ86: Sec. Administrativa
K87: Realizar 3 auditorías de seguimiento por el ente certificador. | L87: ='[1]LÍNEA 1'!P87 -> 2210527 | M87: ='[1]LÍNEA 1'!Q87 -> Número de auditorías de seguimiento por el ente certificador realizadas. | N87: 3 | O87: ='[1]LÍNEA 1'!S87 -> 3 | P87: ='[1]LÍNEA 1'!T87 -> 1 | Q87: ='[1]LÍNEA 1'!U87 -> 0 | R87: ='[1]LÍNEA 1'!V87 -> 1 | S87: ='[1]LÍNEA 1'!W87 -> 1 | T87: ='[9]2016'!K24 -> 1 | U87: ='[9]2017'!K24 -> 0 | V87: ='[9]2018'!K24 -> 0 | W87: ='[9]2019'!K24 -> 0 | X87: =IF(P87=0," -",T87/P87) -> 1 | Y87: =IF(P87=0," -",IF(X87>100%,100%,X87)) -> 1 | Z87: =IF(Q87=0," -",U87/Q87) -> - | AA87: =IF(Q87=0," -",IF(Z87>100%,100%,Z87)) -> - | AB87: =IF(R87=0," -",V87/R87) -> 0 | AC87: =IF(R87=0," -",IF(AB87>100%,100%,AB87)) -> 0 | AD87: =IF(S87=0," -",W87/S87) -> 0 | AE87: =IF(S87=0," -",IF(AD87>100%,100%,AD87)) -> 0 | AF87: =+SUM(T87:W87)/O87 -> 0.3333333333 | AG87: 0.3333333333 | AH87: 0.3333333333 | AI87: ='[9]2016'!P24 -> 200000 | AJ87: ='[9]2016'!Q24 -> 7637 | AK87: ='[9]2016'!R24 -> 0 | AL87: 0.038185 | AM87: - | AN87: ='[9]2017'!P24 -> 0 | AO87: ='[9]2017'!Q24 -> 0 | AP87: ='[9]2017'!R24 -> 0 | AQ87: - | AR87: - | AS87: ='[9]2018'!P24 -> 70000 | AT87: ='[9]2018'!Q24 -> 0 | AU87: ='[9]2018'!R24 -> 0 | AV87: 0 | AW87: - | AX87: ='[9]2019'!P24 -> 70000 | AY87: ='[9]2019'!Q24 -> 0 | AZ87: ='[9]2019'!R24 -> 0 | BA87: 0 | BB87: - | BC87: 340000 | BD87: 7637 | BE87: 0 | BF87: 0.02246176471 | BG87: - | BH87: ='[1]LÍNEA 1'!AO87 -> 16. Paz, justicia e instituciones sólidas | BI87: ='[1]LÍNEA 1'!AP87 -> Fortalecimiento Institucional | BJ87: Sec. Administrativa
F88: Lograr una calificación de 85 en el Índice de Desempeño Integral del DNP. | G88: 75 | H88: =+'[1]LÍNEA 1'!H88 -> 85 | K88: Realizar 1 auditoría de recertificación por el ente certificador. | L88: ='[1]LÍNEA 1'!P88 -> 2210527 | M88: ='[1]LÍNEA 1'!Q88 -> Número de auditorías de recertificación por el ente certificador realizadas. | N88: 1 | O88: ='[1]LÍNEA 1'!S88 -> 1 | P88: ='[1]LÍNEA 1'!T88 -> 0 | Q88: ='[1]LÍNEA 1'!U88 -> 1 | R88: ='[1]LÍNEA 1'!V88 -> 0 | S88: ='[1]LÍNEA 1'!W88 -> 0 | T88: ='[9]2016'!K25 -> 0 | U88: ='[9]2017'!K25 -> 0 | V88: ='[9]2018'!K25 -> 0 | W88: ='[9]2019'!K25 -> 0 | X88: =IF(P88=0," -",T88/P88) -> - | Y88: =IF(P88=0," -",IF(X88>100%,100%,X88)) -> - | Z88: =IF(Q88=0," -",U88/Q88) -> 0 | AA88: =IF(Q88=0," -",IF(Z88>100%,100%,Z88)) -> 0 | AB88: =IF(R88=0," -",V88/R88) -> - | AC88: =IF(R88=0," -",IF(AB88>100%,100%,AB88)) -> - | AD88: =IF(S88=0," -",W88/S88) -> - | AE88: =IF(S88=0," -",IF(AD88>100%,100%,AD88)) -> - | AF88: =+SUM(T88:W88)/O88 -> 0 | AG88: 0 | AH88: 0 | AI88: ='[9]2016'!P25 -> 0 | AJ88: ='[9]2016'!Q25 -> 0 | AK88: ='[9]2016'!R25 -> 0 | AL88: - | AM88: - | AN88: ='[9]2017'!P25 -> 15000 | AO88: ='[9]2017'!Q25 -> 0 | AP88: ='[9]2017'!R25 -> 0 | AQ88: 0 | AR88: - | AS88: ='[9]2018'!P25 -> 0 | AT88: ='[9]2018'!Q25 -> 0 | AU88: ='[9]2018'!R25 -> 0 | AV88: - | AW88: - | AX88: ='[9]2019'!P25 -> 0 | AY88: ='[9]2019'!Q25 -> 0 | AZ88: ='[9]2019'!R25 -> 0 | BA88: - | BB88: - | BC88: 15000 | BD88: 0 | BE88: 0 | BF88: 0 | BG88: - | BH88: ='[1]LÍNEA 1'!AO88 -> 16. Paz, justicia e instituciones sólidas | BI88: ='[1]LÍNEA 1'!AP88 -> Fortalecimiento Institucional | BJ88: Sec. Administrativa
K89: Formular e implementar el Programa de Gestión Documental - PGD y el Plan Institucional de Archivos - PINAR. | L89: ='[1]LÍNEA 1'!P89 -> 2210524 | M89: ='[1]LÍNEA 1'!Q89 -> Número de Programas de Gestión Documental y Planes Institucional de Archivos formulados e implementados. | N89: 2 | O89: ='[1]LÍNEA 1'!S89 -> 2 | P89: ='[1]LÍNEA 1'!T89 -> 2 | Q89: ='[1]LÍNEA 1'!U89 -> 2 | R89: ='[1]LÍNEA 1'!V89 -> 2 | S89: ='[1]LÍNEA 1'!W89 -> 2 | T89: ='[9]2016'!K26 -> 2 | U89: ='[9]2017'!K26 -> 0 | V89: ='[9]2018'!K26 -> 0 | W89: ='[9]2019'!K26 -> 0 | X89: =IF(P89=0," -",T89/P89) -> 1 | Y89: =IF(P89=0," -",IF(X89>100%,100%,X89)) -> 1 | Z89: =IF(Q89=0," -",U89/Q89) -> 0 | AA89: =IF(Q89=0," -",IF(Z89>100%,100%,Z89)) -> 0 | AB89: =IF(R89=0," -",V89/R89) -> 0 | AC89: =IF(R89=0," -",IF(AB89>100%,100%,AB89)) -> 0 | AD89: =IF(S89=0," -",W89/S89) -> 0 | AE89: =IF(S89=0," -",IF(AD89>100%,100%,AD89)) -> 0 | AF89: =+AVERAGE(T89:W89)/O89 -> 0.25 | AG89: 0.25 | AH89: 0.25 | AI89: ='[9]2016'!P26 -> 50000 | AJ89: ='[9]2016'!Q26 -> 0 | AK89: ='[9]2016'!R26 -> 0 | AL89: 0 | AM89: - | AN89: ='[9]2017'!P26 -> 300000 | AO89: ='[9]2017'!Q26 -> 0 | AP89: ='[9]2017'!R26 -> 0 | AQ89: 0 | AR89: - | AS89: ='[9]2018'!P26 -> 200000 | AT89: ='[9]2018'!Q26 -> 0 | AU89: ='[9]2018'!R26 -> 0 | AV89: 0 | AW89: - | AX89: ='[9]2019'!P26 -> 200000 | AY89: ='[9]2019'!Q26 -> 0 | AZ89: ='[9]2019'!R26 -> 0 | BA89: 0 | BB89: - | BC89: 750000 | BD89: 0 | BE89: 0 | BF89: 0 | BG89: - | BH89: ='[1]LÍNEA 1'!AO89 -> 16. Paz, justicia e instituciones sólidas | BI89: ='[1]LÍNEA 1'!AP89 -> Fortalecimiento Institucional | BJ89: Sec. Administrativa
K90: Formular e implementar 1 estrategia de gobierno para la aplicación cabal de la ley 1474 de 2011 estatuto anti-corrupción y el CONPES 167 de 2013. | L90: ='[1]LÍNEA 1'!P90 -> - | M90: ='[1]LÍNEA 1'!Q90 -> Número de estrategias de gobierno formuladas e implementadas para la aplicación cabal de la ley 1474 de 2011 estatuto anti-corrupción y el CONPES 167 de 2013. | N90: 1 | O90: ='[1]LÍNEA 1'!S90 -> 1 | P90: ='[1]LÍNEA 1'!T90 -> 0 | Q90: ='[1]LÍNEA 1'!U90 -> 1 | R90: ='[1]LÍNEA 1'!V90 -> 1 | S90: ='[1]LÍNEA 1'!W90 -> 1 | T90: ='[9]2016'!K27 -> 1 | U90: ='[9]2017'!K27 -> 0 | V90: ='[9]2018'!K27 -> 0 | W90: ='[9]2019'!K27 -> 0 | X90: =IF(P90=0," -",T90/P90) -> - | Y90: =IF(P90=0," -",IF(X90>100%,100%,X90)) -> - | Z90: =IF(Q90=0," -",U90/Q90) -> 0 | AA90: =IF(Q90=0," -",IF(Z90>100%,100%,Z90)) -> 0 | AB90: =IF(R90=0," -",V90/R90) -> 0 | AC90: =IF(R90=0," -",IF(AB90>100%,100%,AB90)) -> 0 | AD90: =IF(S90=0," -",W90/S90) -> 0 | AE90: =IF(S90=0," -",IF(AD90>100%,100%,AD90)) -> 0 | AF90: =+AVERAGE(U90:W90)/O90 -> 0 | AG90: 0 | AH90: 0 | AI90: ='[9]2016'!P27 -> 0 | AJ90: ='[9]2016'!Q27 -> 0 | AK90: ='[9]2016'!R27 -> 0 | AL90: - | AM90: - | AN90: ='[9]2017'!P27 -> 0 | AO90: ='[9]2017'!Q27 -> 0 | AP90: ='[9]2017'!R27 -> 0 | AQ90: - | AR90: - | AS90: ='[9]2018'!P27 -> 0 | AT90: ='[9]2018'!Q27 -> 0 | AU90: ='[9]2018'!R27 -> 0 | AV90: - | AW90: - | AX90: ='[9]2019'!P27 -> 0 | AY90: ='[9]2019'!Q27 -> 0 | AZ90: ='[9]2019'!R27 -> 0 | BA90: - | BB90: - | BC90: 0 | BD90: 0 | BE90: 0 | BF90: - | BG90: - | BH90: ='[1]LÍNEA 1'!AO90 -> 16. Paz, justicia e instituciones sólidas | BI90: ='[1]LÍNEA 1'!AP90 -> Fortalecimiento Institucional | BJ90: Sec. Administrativa
K91: Implementar y mantener el 100% de los procesos necesarios para la formulación y ejecución del Plan Anti-corrupción y Atención al Ciudadano. | L91: ='[1]LÍNEA 1'!P91 -> - | M91: ='[1]LÍNEA 1'!Q91 -> Porcentaje de procesos necesarios implementados y mantenidos para la formulación y ejecución del Plan Anti-corrupción y Atención al Ciudadano. | N91: 0 | O91: ='[1]LÍNEA 1'!S91 -> 1 | P91: ='[1]LÍNEA 1'!T91 -> 1 | Q91: ='[1]LÍNEA 1'!U91 -> 1 | R91: ='[1]LÍNEA 1'!V91 -> 1 | S91: ='[1]LÍNEA 1'!W91 -> 1 | T91: ='[9]2016'!K28 -> 1 | U91: ='[9]2017'!K28 -> 0 | V91: ='[9]2018'!K28 -> 0 | W91: ='[9]2019'!K28 -> 0 | X91: =IF(P91=0," -",T91/P91) -> 1 | Y91: =IF(P91=0," -",IF(X91>100%,100%,X91)) -> 1 | Z91: =IF(Q91=0," -",U91/Q91) -> 0 | AA91: =IF(Q91=0," -",IF(Z91>100%,100%,Z91)) -> 0 | AB91: =IF(R91=0," -",V91/R91) -> 0 | AC91: =IF(R91=0," -",IF(AB91>100%,100%,AB91)) -> 0 | AD91: =IF(S91=0," -",W91/S91) -> 0 | AE91: =IF(S91=0," -",IF(AD91>100%,100%,AD91)) -> 0 | AF91: =+AVERAGE(T91:W91)/O91 -> 0.25 | AG91: 0.25 | AH91: 0.25 | AI91: ='[9]2016'!P28 -> 0 | AJ91: ='[9]2016'!Q28 -> 0 | AK91: ='[9]2016'!R28 -> 0 | AL91: - | AM91: - | AN91: ='[9]2017'!P28 -> 0 | AO91: ='[9]2017'!Q28 -> 0 | AP91: ='[9]2017'!R28 -> 0 | AQ91: - | AR91: - | AS91: ='[9]2018'!P28 -> 0 | AT91: ='[9]2018'!Q28 -> 0 | AU91: ='[9]2018'!R28 -> 0 | AV91: - | AW91: - | AX91: ='[9]2019'!P28 -> 0 | AY91: ='[9]2019'!Q28 -> 0 | AZ91: ='[9]2019'!R28 -> 0 | BA91: - | BB91: - | BC91: 0 | BD91: 0 | BE91: 0 | BF91: - | BG91: - | BH91: ='[1]LÍNEA 1'!AO91 -> 16. Paz, justicia e instituciones sólidas | BI91: ='[1]LÍNEA 1'!AP91 -> Fortalecimiento Institucional | BJ91: Sec. Administrativa
K92: Formular e implementar 1 plan de modernización de la planta de personal. | L92: ='[1]LÍNEA 1'!P92 -> 2210252 | M92: ='[1]LÍNEA 1'!Q92 -> Porcentaje de avance de la formulación e implementación del plan de modernización de la planta de personal. | N92: 0 | O92: ='[1]LÍNEA 1'!S92 -> 1 | P92: ='[1]LÍNEA 1'!T92 -> 0.1 | Q92: ='[1]LÍNEA 1'!U92 -> 0.2 | R92: ='[1]LÍNEA 1'!V92 -> 0.35 | S92: ='[1]LÍNEA 1'!W92 -> 0.35 | T92: ='[9]2016'!K29 -> 0.1 | U92: ='[9]2017'!K29 -> 0 | V92: ='[9]2018'!K29 -> 0 | W92: ='[9]2019'!K29 -> 0 | X92: =IF(P92=0," -",T92/P92) -> 1 | Y92: =IF(P92=0," -",IF(X92>100%,100%,X92)) -> 1 | Z92: =IF(Q92=0," -",U92/Q92) -> 0 | AA92: =IF(Q92=0," -",IF(Z92>100%,100%,Z92)) -> 0 | AB92: =IF(R92=0," -",V92/R92) -> 0 | AC92: =IF(R92=0," -",IF(AB92>100%,100%,AB92)) -> 0 | AD92: =IF(S92=0," -",W92/S92) -> 0 | AE92: =IF(S92=0," -",IF(AD92>100%,100%,AD92)) -> 0 | AF92: =+SUM(T92:W92)/O92 -> 0.1 | AG92: 0.1 | AH92: 0.1 | AI92: ='[9]2016'!P29 -> 325000 | AJ92: ='[9]2016'!Q29 -> 0 | AK92: ='[9]2016'!R29 -> 0 | AL92: 0 | AM92: - | AN92: ='[9]2017'!P29 -> 0 | AO92: ='[9]2017'!Q29 -> 0 | AP92: ='[9]2017'!R29 -> 0 | AQ92: - | AR92: - | AS92: ='[9]2018'!P29 -> 0 | AT92: ='[9]2018'!Q29 -> 0 | AU92: ='[9]2018'!R29 -> 0 | AV92: - | AW92: - | AX92: ='[9]2019'!P29 -> 0 | AY92: ='[9]2019'!Q29 -> 0 | AZ92: ='[9]2019'!R29 -> 0 | BA92: - | BB92: - | BC92: 325000 | BD92: 0 | BE92: 0 | BF92: 0 | BG92: - | BH92: ='[1]LÍNEA 1'!AO92 -> 16. Paz, justicia e instituciones sólidas | BI92: ='[1]LÍNEA 1'!AP92 -> Fortalecimiento Institucional | BJ92: Sec. Administrativa
K93: Crear 1 cargo del nivel directivo y/o asesor adscrito al despacho del Alcalde encargado de la coordinación del gabinete municipal (Jefe de Gabinete). | L93: ='[1]LÍNEA 1'!P93 -> - | M93: ='[1]LÍNEA 1'!Q93 -> Número de cargos creados adscritos al despacho del Alcalde para la coordinación del gabinete municipal (Jefe de Gabinete). | N93: 0 | O93: ='[1]LÍNEA 1'!S93 -> 1 | P93: ='[1]LÍNEA 1'!T93 -> 0 | Q93: ='[1]LÍNEA 1'!U93 -> 1 | R93: ='[1]LÍNEA 1'!V93 -> 0 | S93: ='[1]LÍNEA 1'!W93 -> 0 | T93: ='[9]2016'!K30 -> 0 | U93: ='[9]2017'!K30 -> 0 | V93: ='[9]2018'!K30 -> 0 | W93: ='[9]2019'!K30 -> 0 | X93: =IF(P93=0," -",T93/P93) -> - | Y93: =IF(P93=0," -",IF(X93>100%,100%,X93)) -> - | Z93: =IF(Q93=0," -",U93/Q93) -> 0 | AA93: =IF(Q93=0," -",IF(Z93>100%,100%,Z93)) -> 0 | AB93: =IF(R93=0," -",V93/R93) -> - | AC93: =IF(R93=0," -",IF(AB93>100%,100%,AB93)) -> - | AD93: =IF(S93=0," -",W93/S93) -> - | AE93: =IF(S93=0," -",IF(AD93>100%,100%,AD93)) -> - | AF93: =+SUM(T93:W93)/O93 -> 0 | AG93: 0 | AH93: 0 | AI93: ='[9]2016'!P30 -> 0 | AJ93: ='[9]2016'!Q30 -> 0 | AK93: ='[9]2016'!R30 -> 0 | AL93: - | AM93: - | AN93: ='[9]2017'!P30 -> 0 | AO93: ='[9]2017'!Q30 -> 0 | AP93: ='[9]2017'!R30 -> 0 | AQ93: - | AR93: - | AS93: ='[9]2018'!P30 -> 0 | AT93: ='[9]2018'!Q30 -> 0 | AU93: ='[9]2018'!R30 -> 0 | AV93: - | AW93: - | AX93: ='[9]2019'!P30 -> 0 | AY93: ='[9]2019'!Q30 -> 0 | AZ93: ='[9]2019'!R30 -> 0 | BA93: - | BB93: - | BC93: 0 | BD93: 0 | BE93: 0 | BF93: - | BG93: - | BH93: ='[1]LÍNEA 1'!AO93 -> 16. Paz, justicia e instituciones sólidas | BI93: ='[1]LÍNEA 1'!AP93 -> Fortalecimiento Institucional | BJ93: Sec. Administrativa
K94: Formular e implementar 1 estrategia de gobierno para la aplicación cabal de la ley 1551 de 2012 por medio de la cual se dictaron normas para modernizar la organización y el funcionamiento de los municipios. | L94: ='[1]LÍNEA 1'!P94 -> - | M94: ='[1]LÍNEA 1'!Q94 -> Número de estrategias de gobierno formuladas e implementadas para la aplicación cabal de la ley 1551 de 2012 por medio de la cual se dictaron normas para modernizar la organización y el funcionamiento de los municipios. | N94: 0 | O94: ='[1]LÍNEA 1'!S94 -> 1 | P94: ='[1]LÍNEA 1'!T94 -> 1 | Q94: ='[1]LÍNEA 1'!U94 -> 1 | R94: ='[1]LÍNEA 1'!V94 -> 1 | S94: ='[1]LÍNEA 1'!W94 -> 1 | T94: ='[5]2016'!$K$17 -> 1 | U94: ='[5]2017'!$K$17 -> 0 | V94: ='[5]2018'!$K$17 -> 0 | W94: ='[5]2019'!$K$17 -> 0 | X94: =IF(P94=0," -",T94/P94) -> 1 | Y94: =IF(P94=0," -",IF(X94>100%,100%,X94)) -> 1 | Z94: =IF(Q94=0," -",U94/Q94) -> 0 | AA94: =IF(Q94=0," -",IF(Z94>100%,100%,Z94)) -> 0 | AB94: =IF(R94=0," -",V94/R94) -> 0 | AC94: =IF(R94=0," -",IF(AB94>100%,100%,AB94)) -> 0 | AD94: =IF(S94=0," -",W94/S94) -> 0 | AE94: =IF(S94=0," -",IF(AD94>100%,100%,AD94)) -> 0 | AF94: =+AVERAGE(T94:W94)/O94 -> 0.25 | AG94: 0.25 | AH94: 0.25 | AI94: ='[5]2016'!P17 -> 560017 | AJ94: ='[5]2016'!Q17 -> 560017 | AK94: ='[5]2016'!R17 -> 0 | AL94: 1 | AM94: - | AN94: ='[5]2017'!P17 -> 0 | AO94: ='[5]2017'!Q17 -> 0 | AP94: ='[5]2017'!R17 -> 0 | AQ94: - | AR94: - | AS94: ='[5]2018'!P17 -> 0 | AT94: ='[5]2018'!Q17 -> 0 | AU94: ='[5]2018'!R17 -> 0 | AV94: - | AW94: - | AX94: ='[5]2019'!P17 -> 0 | AY94: ='[5]2019'!Q17 -> 0 | AZ94: ='[5]2019'!R17 -> 0 | BA94: - | BB94: - | BC94: 560017 | BD94: 560017 | BE94: 0 | BF94: 1 | BG94: - | BH94: ='[1]LÍNEA 1'!AO94 -> 16. Paz, justicia e instituciones sólidas | BI94: ='[1]LÍNEA 1'!AP94 -> Fortalecimiento Institucional | BJ94: Sec. Hacienda
K95: Adecuar física y tecnológicamente el archivo de planos. | L95: ='[1]LÍNEA 1'!P95 -> 2210289 | M95: ='[1]LÍNEA 1'!Q95 -> Porcentaje de avance en la adecuación física y tecnológica del archivo de planos. | N95: 0 | O95: ='[1]LÍNEA 1'!S95 -> 1 | P95: ='[1]LÍNEA 1'!T95 -> 0 | Q95: ='[1]LÍNEA 1'!U95 -> 0.4 | R95: ='[1]LÍNEA 1'!V95 -> 0.2 | S95: ='[1]LÍNEA 1'!W95 -> 0.4 | T95: ='[6]2016'!$K$16 -> 0 | U95: ='[6]2017'!$K$16 -> 0 | V95: ='[6]2018'!$K$16 -> 0 | W95: ='[6]2019'!$K$16 -> 0 | X95: =IF(P95=0," -",T95/P95) -> - | Y95: =IF(P95=0," -",IF(X95>100%,100%,X95)) -> - | Z95: =IF(Q95=0," -",U95/Q95) -> 0 | AA95: =IF(Q95=0," -",IF(Z95>100%,100%,Z95)) -> 0 | AB95: =IF(R95=0," -",V95/R95) -> 0 | AC95: =IF(R95=0," -",IF(AB95>100%,100%,AB95)) -> 0 | AD95: =IF(S95=0," -",W95/S95) -> 0 | AE95: =IF(S95=0," -",IF(AD95>100%,100%,AD95)) -> 0 | AF95: =+SUM(T95:W95)/O95 -> 0 | AG95: 0 | AH95: 0 | AI95: ='[6]2016'!P16 -> 0 | AJ95: ='[6]2016'!Q16 -> 0 | AK95: ='[6]2016'!R16 -> 0 | AL95: - | AM95: - | AN95: ='[6]2017'!P16 -> 100000 | AO95: ='[6]2017'!Q16 -> 0 | AP95: ='[6]2017'!R16 -> 0 | AQ95: 0 | AR95: - | AS95: ='[6]2018'!P16 -> 500000 | AT95: ='[6]2018'!Q16 -> 0 | AU95: ='[6]2018'!R16 -> 0 | AV95: 0 | AW95: - | AX95: ='[6]2019'!P16 -> 0 | AY95: ='[6]2019'!Q16 -> 0 | AZ95: ='[6]2019'!R16 -> 0 | BA95: - | BB95: - | BC95: 600000 | BD95: 0 | BE95: 0 | BF95: 0 | BG95: - | BH95: ='[1]LÍNEA 1'!AO95 -> 16. Paz, justicia e instituciones sólidas | BI95: ='[1]LÍNEA 1'!AP95 -> Fortalecimiento Institucional | BJ95: Sec. Planeación
K96: Celebrar 20 acuerdos populares en el territorio para comprometer acciones diversas de gobierno ante problemas comunitarios. | L96: ='[1]LÍNEA 1'!P96 -> - | M96: ='[1]LÍNEA 1'!Q96 -> Número de acuerdos populares celebrados en el territorio para comprometer acciones diversas de gobierno ante problemas comunitarios. | N96: 0 | O96: ='[1]LÍNEA 1'!S96 -> 20 | P96: ='[1]LÍNEA 1'!T96 -> 20 | Q96: ='[1]LÍNEA 1'!U96 -> 0 | R96: ='[1]LÍNEA 1'!V96 -> 0 | S96: ='[1]LÍNEA 1'!W96 -> 0 | T96: ='[3]2016'!$K$29 -> 16 | U96: ='[3]2017'!$K$29 -> 0 | V96: ='[3]2018'!$K$29 -> 0 | W96: ='[3]2019'!$K$29 -> 0 | X96: =IF(P96=0," -",T96/P96) -> 0.8 | Y96: =IF(P96=0," -",IF(X96>100%,100%,X96)) -> 0.8 | Z96: =IF(Q96=0," -",U96/Q96) -> - | AA96: =IF(Q96=0," -",IF(Z96>100%,100%,Z96)) -> - | AB96: =IF(R96=0," -",V96/R96) -> - | AC96: =IF(R96=0," -",IF(AB96>100%,100%,AB96)) -> - | AD96: =IF(S96=0," -",W96/S96) -> - | AE96: =IF(S96=0," -",IF(AD96>100%,100%,AD96)) -> - | AF96: =+SUM(T96:W96)/O96 -> 0.8 | AG96: 0.8 | AH96: 0.8 | AI96: ='[3]2016'!P29 -> 0 | AJ96: ='[3]2016'!Q29 -> 0 | AK96: ='[3]2016'!R29 -> 0 | AL96: - | AM96: - | AN96: ='[3]2017'!P29 -> 0 | AO96: ='[3]2017'!Q29 -> 0 | AP96: ='[3]2017'!R29 -> 0 | AQ96: - | AR96: - | AS96: ='[3]2018'!P29 -> 0 | AT96: ='[3]2018'!Q29 -> 0 | AU96: ='[3]2018'!R29 -> 0 | AV96: - | AW96: - | AX96: ='[3]2019'!P29 -> 0 | AY96: ='[3]2019'!Q29 -> 0 | AZ96: ='[3]2019'!R29 -> 0 | BA96: - | BB96: - | BC96: 0 | BD96: 0 | BE96: 0 | BF96: - | BG96: - | BH96: ='[1]LÍNEA 1'!AO96 -> 16. Paz, justicia e instituciones sólidas | BI96: ='[1]LÍNEA 1'!AP96 -> Fortalecimiento Institucional | BJ96: Sec. Desarrollo Social
K97: Formular e implementar 1 plan institucional en Bomberos de Bucaramanga. | L97: ='[1]LÍNEA 1'!P97 -> 22141 22151 22161 | M97: ='[1]LÍNEA 1'!Q97 -> Número de planes institucionales integrales formulados e implementados en Bomberos de Bucaramanga. | N97: 0 | O97: ='[1]LÍNEA 1'!S97 -> 1 | P97: ='[1]LÍNEA 1'!T97 -> 0 | Q97: ='[1]LÍNEA 1'!U97 -> 1 | R97: ='[1]LÍNEA 1'!V97 -> 1 | S97: ='[1]LÍNEA 1'!W97 -> 1 | T97: ='[15]2016'!$K$12 -> 0 | U97: ='[15]2017'!$K$12 -> 0 | V97: ='[15]2018'!$K$12 -> 0 | W97: ='[15]2019'!$K$12 -> 0 | X97: =IF(P97=0," -",T97/P97) -> - | Y97: =IF(P97=0," -",IF(X97>100%,100%,X97)) -> - | Z97: =IF(Q97=0," -",U97/Q97) -> 0 | AA97: =IF(Q97=0," -",IF(Z97>100%,100%,Z97)) -> 0 | AB97: =IF(R97=0," -",V97/R97) -> 0 | AC97: =IF(R97=0," -",IF(AB97>100%,100%,AB97)) -> 0 | AD97: =IF(S97=0," -",W97/S97) -> 0 | AE97: =IF(S97=0," -",IF(AD97>100%,100%,AD97)) -> 0 | AF97: =+AVERAGE(U97:W97)/O97 -> 0 | AG97: 0 | AH97: 0 | AI97: ='[15]2016'!P12 -> 770000 | AJ97: ='[15]2016'!Q12 -> 0 | AK97: ='[15]2016'!R12 -> 0 | AL97: 0 | AM97: - | AN97: ='[15]2017'!P12 -> 808500 | AO97: ='[15]2017'!Q12 -> 0 | AP97: ='[15]2017'!R12 -> 0 | AQ97: 0 | AR97: - | AS97: ='[15]2018'!P12 -> 848925 | AT97: ='[15]2018'!Q12 -> 0 | AU97: ='[15]2018'!R12 -> 0 | AV97: 0 | AW97: - | AX97: ='[15]2019'!P12 -> 891371 | AY97: ='[15]2019'!Q12 -> 0 | AZ97: ='[15]2019'!R12 -> 0 | BA97: 0 | BB97: - | BC97: 3318796 | BD97: 0 | BE97: 0 | BF97: 0 | BG97: - | BH97: ='[1]LÍNEA 1'!AO97 -> 16. Paz, justicia e instituciones sólidas | BI97: ='[1]LÍNEA 1'!AP97 -> Fortalecimiento Institucional | BJ97: Bomberos
F98: Mantener una calificación de solvente en el Índice de Desempeño Fiscal del DNP. | G98: Solvente | H98: Solvente | K98: Formular e implementar 1 plan de adquisición de equipos tecnológicos. | L98: ='[1]LÍNEA 1'!P98 -> 2210289 | M98: ='[1]LÍNEA 1'!Q98 -> Porcentaje de avance en la formulación e implementación del plan de adquisición de equipos tecnológicos. | N98: 0 | O98: ='[1]LÍNEA 1'!S98 -> 1 | P98: ='[1]LÍNEA 1'!T98 -> 0 | Q98: ='[1]LÍNEA 1'!U98 -> 0.2 | R98: ='[1]LÍNEA 1'!V98 -> 0.4 | S98: ='[1]LÍNEA 1'!W98 -> 0.4 | T98: ='[10]2016'!$K$28 -> 0.5 | U98: ='[10]2017'!$K$28 -> 0 | V98: ='[10]2018'!$K$28 -> 0 | W98: ='[10]2019'!$K$28 -> 0 | X98: =IF(P98=0," -",T98/P98) -> - | Y98: =IF(P98=0," -",IF(X98>100%,100%,X98)) -> - | Z98: =IF(Q98=0," -",U98/Q98) -> 0 | AA98: =IF(Q98=0," -",IF(Z98>100%,100%,Z98)) -> 0 | AB98: =IF(R98=0," -",V98/R98) -> 0 | AC98: =IF(R98=0," -",IF(AB98>100%,100%,AB98)) -> 0 | AD98: =IF(S98=0," -",W98/S98) -> 0 | AE98: =IF(S98=0," -",IF(AD98>100%,100%,AD98)) -> 0 | AF98: =+SUM(T98:W98)/O98 -> 0.5 | AG98: 0.5 | AH98: 0.5 | AI98: ='[10]2016'!P28 -> 0 | AJ98: ='[10]2016'!Q28 -> 0 | AK98: ='[10]2016'!R28 -> 0 | AL98: - | AM98: - | AN98: ='[10]2017'!P28 -> 2405000 | AO98: ='[10]2017'!Q28 -> 0 | AP98: ='[10]2017'!R28 -> 0 | AQ98: 0 | AR98: - | AS98: ='[10]2018'!P28 -> 1650000 | AT98: ='[10]2018'!Q28 -> 0 | AU98: ='[10]2018'!R28 -> 0 | AV98: 0 | AW98: - | AX98: ='[10]2019'!P28 -> 1650000 | AY98: ='[10]2019'!Q28 -> 0 | AZ98: ='[10]2019'!R28 -> 0 | BA98: 0 | BB98: - | BC98: 5705000 | BD98: 0 | BE98: 0 | BF98: 0 | BG98: - | BH98: ='[1]LÍNEA 1'!AO98 -> 16. Paz, justicia e instituciones sólidas | BI98: ='[1]LÍNEA 1'!AP98 -> Fortalecimiento Institucional | BJ98: Ofc. Sistemas
K99: Formular e implementar 1 plan de fortalecimiento institucional para la Dirección de Tránsito de Bucaramanga. | L99: ='[1]LÍNEA 1'!P99 -> O535060101 O535060102 O535060103 O535060104 | M99: ='[1]LÍNEA 1'!Q99 -> Número de planes de fortalecimiento institucional para la Dirección de tránsito de Bucaramanga formulados e implementados. | N99: 1 | O99: ='[1]LÍNEA 1'!S99 -> 1 | P99: ='[1]LÍNEA 1'!T99 -> 1 | Q99: ='[1]LÍNEA 1'!U99 -> 1 | R99: ='[1]LÍNEA 1'!V99 -> 1 | S99: ='[1]LÍNEA 1'!W99 -> 1 | T99: ='[16]2016'!$K$12 -> 1 | U99: ='[16]2017'!$K$12 -> 0 | V99: ='[16]2018'!$K$12 -> 0 | W99: ='[16]2019'!$K$12 -> 0 | X99: =IF(P99=0," -",T99/P99) -> 1 | Y99: =IF(P99=0," -",IF(X99>100%,100%,X99)) -> 1 | Z99: =IF(Q99=0," -",U99/Q99) -> 0 | AA99: =IF(Q99=0," -",IF(Z99>100%,100%,Z99)) -> 0 | AB99: =IF(R99=0," -",V99/R99) -> 0 | AC99: =IF(R99=0," -",IF(AB99>100%,100%,AB99)) -> 0 | AD99: =IF(S99=0," -",W99/S99) -> 0 | AE99: =IF(S99=0," -",IF(AD99>100%,100%,AD99)) -> 0 | AF99: =+AVERAGE(T99:W99)/O99 -> 0.25 | AG99: 0.25 | AH99: 0.25 | AI99: ='[16]2016'!P12 -> 2830991 | AJ99: ='[16]2016'!Q12 -> 234557 | AK99: ='[16]2016'!R12 -> 300929 | AL99: 0.08285331886 | AM99: 1.282967466 | AN99: ='[16]2017'!P12 -> 1432100 | AO99: ='[16]2017'!Q12 -> 0 | AP99: ='[16]2017'!R12 -> 0 | AQ99: 0 | AR99: - | AS99: ='[16]2018'!P12 -> 1503705 | AT99: ='[16]2018'!Q12 -> 0 | AU99: ='[16]2018'!R12 -> 0 | AV99: 0 | AW99: - | AX99: ='[16]2019'!P12 -> 1578890 | AY99: ='[16]2019'!Q12 -> 0 | AZ99: ='[16]2019'!R12 -> 0 | BA99: 0 | BB99: - | BC99: 7345686 | BD99: 234557 | BE99: 300929 | BF99: 0.0319312587 | BG99: 1.282967466 | BH99: ='[1]LÍNEA 1'!AO99 -> 16. Paz, justicia e instituciones sólidas | BI99: ='[1]LÍNEA 1'!AP99 -> Fortalecimiento Institucional | BJ99: Dir. Tránsito
I100: =+RESUMEN!J22 -> 0.1538461538 | J100: UNA CIUDAD VISIBLE QUE TOMA DECISIONES INTELIGENTES | K100: Mantener actualizada la base de datos del SISBEN. | L100: ='[1]LÍNEA 1'!P100 -> 2210844 | M100: ='[1]LÍNEA 1'!Q100 -> Número de bases de datos del SISBEN actualizadas. | N100: 1 | O100: ='[1]LÍNEA 1'!S100 -> 1 | P100: ='[1]LÍNEA 1'!T100 -> 1 | Q100: ='[1]LÍNEA 1'!U100 -> 1 | R100: ='[1]LÍNEA 1'!V100 -> 1 | S100: ='[1]LÍNEA 1'!W100 -> 1 | T100: ='[6]2016'!K17 -> 1 | U100: ='[6]2017'!K17 -> 0 | V100: ='[6]2018'!K17 -> 0 | W100: ='[6]2019'!K17 -> 0 | X100: =IF(P100=0," -",T100/P100) -> 1 | Y100: =IF(P100=0," -",IF(X100>100%,100%,X100)) -> 1 | Z100: =IF(Q100=0," -",U100/Q100) -> 0 | AA100: =IF(Q100=0," -",IF(Z100>100%,100%,Z100)) -> 0 | AB100: =IF(R100=0," -",V100/R100) -> 0 | AC100: =IF(R100=0," -",IF(AB100>100%,100%,AB100)) -> 0 | AD100: =IF(S100=0," -",W100/S100) -> 0 | AE100: =IF(S100=0," -",IF(AD100>100%,100%,AD100)) -> 0 | AF100: =+AVERAGE(T100:W100)/O100 -> 0.25 | AG100: 0.25 | AH100: 0.25 | AI100: ='[6]2016'!P17 -> 355000 | AJ100: ='[6]2016'!Q17 -> 269367 | AK100: ='[6]2016'!R17 -> 0 | AL100: 0.7587802817 | AM100: - | AN100: ='[6]2017'!P17 -> 390000 | AO100: ='[6]2017'!Q17 -> 0 | AP100: ='[6]2017'!R17 -> 0 | AQ100: 0 | AR100: - | AS100: ='[6]2018'!P17 -> 0 | AT100: ='[6]2018'!Q17 -> 0 | AU100: ='[6]2018'!R17 -> 0 | AV100: - | AW100: - | AX100: ='[6]2019'!P17 -> 0 | AY100: ='[6]2019'!Q17 -> 0 | AZ100: ='[6]2019'!R17 -> 0 | BA100: - | BB100: - | BC100: 745000 | BD100: 269367 | BE100: 0 | BF100: 0.361566443 | BG100: - | BH100: ='[1]LÍNEA 1'!AO100 -> 16. Paz, justicia e instituciones sólidas | BI100: ='[1]LÍNEA 1'!AP100 -> Salud | BJ100: Sec. Planeación
K101: Implementar la nueva metodología SISBEN 4. | L101: ='[1]LÍNEA 1'!P101 -> 2210844 | M101: ='[1]LÍNEA 1'!Q101 -> Número de metodologías SISBEN 4 implementadas. | N101: 0 | O101: ='[1]LÍNEA 1'!S101 -> 1 | P101: ='[1]LÍNEA 1'!T101 -> 0 | Q101: ='[1]LÍNEA 1'!U101 -> 1 | R101: ='[1]LÍNEA 1'!V101 -> 0 | S101: ='[1]LÍNEA 1'!W101 -> 0 | T101: ='[6]2016'!K18 -> 0 | U101: ='[6]2017'!K18 -> 0 | V101: ='[6]2018'!K18 -> 0 | W101: ='[6]2019'!K18 -> 0 | X101: =IF(P101=0," -",T101/P101) -> - | Y101: =IF(P101=0," -",IF(X101>100%,100%,X101)) -> - | Z101: =IF(Q101=0," -",U101/Q101) -> 0 | AA101: =IF(Q101=0," -",IF(Z101>100%,100%,Z101)) -> 0 | AB101: =IF(R101=0," -",V101/R101) -> - | AC101: =IF(R101=0," -",IF(AB101>100%,100%,AB101)) -> - | AD101: =IF(S101=0," -",W101/S101) -> - | AE101: =IF(S101=0," -",IF(AD101>100%,100%,AD101)) -> - | AF101: =+SUM(T101:W101)/O101 -> 0 | AG101: 0 | AH101: 0 | AI101: ='[6]2016'!P18 -> 0 | AJ101: ='[6]2016'!Q18 -> 0 | AK101: ='[6]2016'!R18 -> 0 | AL101: - | AM101: - | AN101: ='[6]2017'!P18 -> 200000 | AO101: ='[6]2017'!Q18 -> 0 | AP101: ='[6]2017'!R18 -> 0 | AQ101: 0 | AR101: - | AS101: ='[6]2018'!P18 -> 0 | AT101: ='[6]2018'!Q18 -> 0 | AU101: ='[6]2018'!R18 -> 0 | AV101: - | AW101: - | AX101: ='[6]2019'!P18 -> 0 | AY101: ='[6]2019'!Q18 -> 0 | AZ101: ='[6]2019'!R18 -> 0 | BA101: - | BB101: - | BC101: 200000 | BD101: 0 | BE101: 0 | BF101: 0 | BG101: - | BH101: ='[1]LÍNEA 1'!AO101 -> 16. Paz, justicia e instituciones sólidas | BI101: ='[1]LÍNEA 1'!AP101 -> Salud | BJ101: Sec. Planeación
K102: Readecuar 1 oficina para el SISBEN | L102: ='[1]LÍNEA 1'!P102 -> 2210844 | M102: ='[1]LÍNEA 1'!Q102 -> Número de oficinas para el SISBEN readecuadas. | N102: 0 | O102: ='[1]LÍNEA 1'!S102 -> 1 | P102: ='[1]LÍNEA 1'!T102 -> 0 | Q102: ='[1]LÍNEA 1'!U102 -> 1 | R102: ='[1]LÍNEA 1'!V102 -> 0 | S102: ='[1]LÍNEA 1'!W102 -> 0 | T102: ='[6]2016'!K19 -> 0 | U102: ='[6]2017'!K19 -> 0 | V102: ='[6]2018'!K19 -> 0 | W102: ='[6]2019'!K19 -> 0 | X102: =IF(P102=0," -",T102/P102) -> - | Y102: =IF(P102=0," -",IF(X102>100%,100%,X102)) -> - | Z102: =IF(Q102=0," -",U102/Q102) -> 0 | AA102: =IF(Q102=0," -",IF(Z102>100%,100%,Z102)) -> 0 | AB102: =IF(R102=0," -",V102/R102) -> - | AC102: =IF(R102=0," -",IF(AB102>100%,100%,AB102)) -> - | AD102: =IF(S102=0," -",W102/S102) -> - | AE102: =IF(S102=0," -",IF(AD102>100%,100%,AD102)) -> - | AF102: =+SUM(T102:W102)/O102 -> 0 | AG102: 0 | AH102: 0 | AI102: ='[6]2016'!P19 -> 0 | AJ102: ='[6]2016'!Q19 -> 0 | AK102: ='[6]2016'!R19 -> 0 | AL102: - | AM102: - | AN102: ='[6]2017'!P19 -> 300000 | AO102: ='[6]2017'!Q19 -> 0 | AP102: ='[6]2017'!R19 -> 0 | AQ102: 0 | AR102: - | AS102: ='[6]2018'!P19 -> 0 | AT102: ='[6]2018'!Q19 -> 0 | AU102: ='[6]2018'!R19 -> 0 | AV102: - | AW102: - | AX102: ='[6]2019'!P19 -> 0 | AY102: ='[6]2019'!Q19 -> 0 | AZ102: ='[6]2019'!R19 -> 0 | BA102: - | BB102: - | BC102: 300000 | BD102: 0 | BE102: 0 | BF102: 0 | BG102: - | BH102: ='[1]LÍNEA 1'!AO102 -> 16. Paz, justicia e instituciones sólidas | BI102: ='[1]LÍNEA 1'!AP102 -> Fortalecimiento Institucional | BJ102: Sec. Planeación
K103: Mantener el fortalecimiento del grupo de clasificación socioeconómico y estadístico. | L103: ='[1]LÍNEA 1'!P103 -> 2210844 | M103: ='[1]LÍNEA 1'!Q103 -> Número de grupos de clasificación socioeconómico y estadístico fortalecidos. | N103: 1 | O103: ='[1]LÍNEA 1'!S103 -> 1 | P103: ='[1]LÍNEA 1'!T103 -> 1 | Q103: ='[1]LÍNEA 1'!U103 -> 1 | R103: ='[1]LÍNEA 1'!V103 -> 1 | S103: ='[1]LÍNEA 1'!W103 -> 1 | T103: ='[6]2016'!K20 -> 1 | U103: ='[6]2017'!K20 -> 0 | V103: ='[6]2018'!K20 -> 0 | W103: ='[6]2019'!K20 -> 0 | X103: =IF(P103=0," -",T103/P103) -> 1 | Y103: =IF(P103=0," -",IF(X103>100%,100%,X103)) -> 1 | Z103: =IF(Q103=0," -",U103/Q103) -> 0 | AA103: =IF(Q103=0," -",IF(Z103>100%,100%,Z103)) -> 0 | AB103: =IF(R103=0," -",V103/R103) -> 0 | AC103: =IF(R103=0," -",IF(AB103>100%,100%,AB103)) -> 0 | AD103: =IF(S103=0," -",W103/S103) -> 0 | AE103: =IF(S103=0," -",IF(AD103>100%,100%,AD103)) -> 0 | AF103: =+AVERAGE(T103:W103)/O103 -> 0.25 | AG103: 0.25 | AH103: 0.25 | AI103: ='[6]2016'!P20 -> 0 | AJ103: ='[6]2016'!Q20 -> 0 | AK103: ='[6]2016'!R20 -> 0 | AL103: - | AM103: - | AN103: ='[6]2017'!P20 -> 0 | AO103: ='[6]2017'!Q20 -> 0 | AP103: ='[6]2017'!R20 -> 0 | AQ103: - | AR103: - | AS103: ='[6]2018'!P20 -> 30000 | AT103: ='[6]2018'!Q20 -> 0 | AU103: ='[6]2018'!R20 -> 0 | AV103: 0 | AW103: - | AX103: ='[6]2019'!P20 -> 30000 | AY103: ='[6]2019'!Q20 -> 0 | AZ103: ='[6]2019'!R20 -> 0 | BA103: 0 | BB103: - | BC103: 60000 | BD103: 0 | BE103: 0 | BF103: 0 | BG103: - | BH103: ='[1]LÍNEA 1'!AO103 -> 16. Paz, justicia e instituciones sólidas | BI103: ='[1]LÍNEA 1'!AP103 -> Fortalecimiento Institucional | BJ103: Sec. Planeación
K104: Mantener actualizada la base de datos de estratificación urbana y rural. | L104: ='[1]LÍNEA 1'!P104 -> 2210833 | M104: ='[1]LÍNEA 1'!Q104 -> Número de base de datos de estratificación urbana y rural actualizada. | N104: 1 | O104: ='[1]LÍNEA 1'!S104 -> 1 | P104: ='[1]LÍNEA 1'!T104 -> 1 | Q104: ='[1]LÍNEA 1'!U104 -> 1 | R104: ='[1]LÍNEA 1'!V104 -> 1 | S104: ='[1]LÍNEA 1'!W104 -> 1 | T104: ='[6]2016'!K21 -> 1 | U104: ='[6]2017'!K21 -> 0 | V104: ='[6]2018'!K21 -> 0 | W104: ='[6]2019'!K21 -> 0 | X104: =IF(P104=0," -",T104/P104) -> 1 | Y104: =IF(P104=0," -",IF(X104>100%,100%,X104)) -> 1 | Z104: =IF(Q104=0," -",U104/Q104) -> 0 | AA104: =IF(Q104=0," -",IF(Z104>100%,100%,Z104)) -> 0 | AB104: =IF(R104=0," -",V104/R104) -> 0 | AC104: =IF(R104=0," -",IF(AB104>100%,100%,AB104)) -> 0 | AD104: =IF(S104=0," -",W104/S104) -> 0 | AE104: =IF(S104=0," -",IF(AD104>100%,100%,AD104)) -> 0 | AF104: =+AVERAGE(T104:W104)/O104 -> 0.25 | AG104: 0.25 | AH104: 0.25 | AI104: ='[6]2016'!P21 -> 47245 | AJ104: ='[6]2016'!Q21 -> 25101 | AK104: ='[6]2016'!R21 -> 0 | AL104: 0.5312943169 | AM104: - | AN104: ='[6]2017'!P21 -> 125000 | AO104: ='[6]2017'!Q21 -> 0 | AP104: ='[6]2017'!R21 -> 0 | AQ104: 0 | AR104: - | AS104: ='[6]2018'!P21 -> 0 | AT104: ='[6]2018'!Q21 -> 0 | AU104: ='[6]2018'!R21 -> 0 | AV104: - | AW104: - | AX104: ='[6]2019'!P21 -> 0 | AY104: ='[6]2019'!Q21 -> 0 | AZ104: ='[6]2019'!R21 -> 0 | BA104: - | BB104: - | BC104: 172245 | BD104: 25101 | BE104: 0 | BF104: 0.1457284682 | BG104: - | BH104: ='[1]LÍNEA 1'!AO104 -> 16. Paz, justicia e instituciones sólidas | BI104: ='[1]LÍNEA 1'!AP104 -> Fortalecimiento Institucional | BJ104: Sec. Planeación
K105: Realizar la revisión general de la estratificación urbana y rural y su respectiva socialización. | L105: ='[1]LÍNEA 1'!P105 -> - | M105: ='[1]LÍNEA 1'!Q105 -> Número de revisiones y socializaciones generales de la estratificación urbana y rural realizadas. | N105: 0 | O105: ='[1]LÍNEA 1'!S105 -> 1 | P105: ='[1]LÍNEA 1'!T105 -> 0 | Q105: ='[1]LÍNEA 1'!U105 -> 1 | R105: ='[1]LÍNEA 1'!V105 -> 0 | S105: ='[1]LÍNEA 1'!W105 -> 0 | T105: ='[6]2016'!K22 -> 1 | U105: ='[6]2017'!K22 -> 0 | V105: ='[6]2018'!K22 -> 0 | W105: ='[6]2019'!K22 -> 0 | X105: =IF(P105=0," -",T105/P105) -> - | Y105: =IF(P105=0," -",IF(X105>100%,100%,X105)) -> - | Z105: =IF(Q105=0," -",U105/Q105) -> 0 | AA105: =IF(Q105=0," -",IF(Z105>100%,100%,Z105)) -> 0 | AB105: =IF(R105=0," -",V105/R105) -> - | AC105: =IF(R105=0," -",IF(AB105>100%,100%,AB105)) -> - | AD105: =IF(S105=0," -",W105/S105) -> - | AE105: =IF(S105=0," -",IF(AD105>100%,100%,AD105)) -> - | AF105: =+SUM(T105:W105)/O105 -> 1 | AG105: 1 | AH105: 1 | AI105: ='[6]2016'!P22 -> 0 | AJ105: ='[6]2016'!Q22 -> 0 | AK105: ='[6]2016'!R22 -> 0 | AL105: - | AM105: - | AN105: ='[6]2017'!P22 -> 200000 | AO105: ='[6]2017'!Q22 -> 0 | AP105: ='[6]2017'!R22 -> 0 | AQ105: 0 | AR105: - | AS105: ='[6]2018'!P22 -> 0 | AT105: ='[6]2018'!Q22 -> 0 | AU105: ='[6]2018'!R22 -> 0 | AV105: - | AW105: - | AX105: ='[6]2019'!P22 -> 0 | AY105: ='[6]2019'!Q22 -> 0 | AZ105: ='[6]2019'!R22 -> 0 | BA105: - | BB105: - | BC105: 200000 | BD105: 0 | BE105: 0 | BF105: 0 | BG105: - | BH105: ='[1]LÍNEA 1'!AO105 -> 16. Paz, justicia e instituciones sólidas | BI105: ='[1]LÍNEA 1'!AP105 -> Fortalecimiento Institucional | BJ105: Sec. Planeación
K106: Implementar y mantener 1 estrategia para fortalecer el observatorio metropolitano y ampliar su alcance. | L106: ='[1]LÍNEA 1'!P106 -> 2210100 | M106: ='[1]LÍNEA 1'!Q106 -> Número de estrategias implementadas y mantenidas para fortalecer el Observatorio Metropolitano y ampliar su alcance. | N106: 0 | O106: ='[1]LÍNEA 1'!S106 -> 1 | P106: ='[1]LÍNEA 1'!T106 -> 0 | Q106: ='[1]LÍNEA 1'!U106 -> 1 | R106: ='[1]LÍNEA 1'!V106 -> 1 | S106: ='[1]LÍNEA 1'!W106 -> 1 | T106: ='[6]2016'!K23 -> 0 | U106: ='[6]2017'!K23 -> 0 | V106: ='[6]2018'!K23 -> 0 | W106: ='[6]2019'!K23 -> 0 | X106: =IF(P106=0," -",T106/P106) -> - | Y106: =IF(P106=0," -",IF(X106>100%,100%,X106)) -> - | Z106: =IF(Q106=0," -",U106/Q106) -> 0 | AA106: =IF(Q106=0," -",IF(Z106>100%,100%,Z106)) -> 0 | AB106: =IF(R106=0," -",V106/R106) -> 0 | AC106: =IF(R106=0," -",IF(AB106>100%,100%,AB106)) -> 0 | AD106: =IF(S106=0," -",W106/S106) -> 0 | AE106: =IF(S106=0," -",IF(AD106>100%,100%,AD106)) -> 0 | AF106: =+AVERAGE(U106:W106)/O106 -> 0 | AG106: 0 | AH106: 0 | AI106: ='[6]2016'!P23 -> 0 | AJ106: ='[6]2016'!Q23 -> 0 | AK106: ='[6]2016'!R23 -> 0 | AL106: - | AM106: - | AN106: ='[6]2017'!P23 -> 250000 | AO106: ='[6]2017'!Q23 -> 0 | AP106: ='[6]2017'!R23 -> 0 | AQ106: 0 | AR106: - | AS106: ='[6]2018'!P23 -> 500000 | AT106: ='[6]2018'!Q23 -> 0 | AU106: ='[6]2018'!R23 -> 0 | AV106: 0 | AW106: - | AX106: ='[6]2019'!P23 -> 500000 | AY106: ='[6]2019'!Q23 -> 0 | AZ106: ='[6]2019'!R23 -> 0 | BA106: 0 | BB106: - | BC106: 1250000 | BD106: 0 | BE106: 0 | BF106: 0 | BG106: - | BH106: ='[1]LÍNEA 1'!AO106 -> 16. Paz, justicia e instituciones sólidas | BI106: ='[1]LÍNEA 1'!AP106 -> Fortalecimiento Institucional | BJ106: Sec. Planeación
K107: Crear 4 rankings MI (Medición Integral) Ciudad. | L107: ='[1]LÍNEA 1'!P107 -> - | M107: ='[1]LÍNEA 1'!Q107 -> Número de rankings MI (Medición Integral) Ciudad creados. | N107: 0 | O107: ='[1]LÍNEA 1'!S107 -> 4 | P107: ='[1]LÍNEA 1'!T107 -> 0 | Q107: ='[1]LÍNEA 1'!U107 -> 0 | R107: ='[1]LÍNEA 1'!V107 -> 2 | S107: ='[1]LÍNEA 1'!W107 -> 2 | T107: ='[6]2016'!K24 -> 0 | U107: ='[6]2017'!K24 -> 0 | V107: ='[6]2018'!K24 -> 0 | W107: ='[6]2019'!K24 -> 0 | X107: =IF(P107=0," -",T107/P107) -> - | Y107: =IF(P107=0," -",IF(X107>100%,100%,X107)) -> - | Z107: =IF(Q107=0," -",U107/Q107) -> - | AA107: =IF(Q107=0," -",IF(Z107>100%,100%,Z107)) -> - | AB107: =IF(R107=0," -",V107/R107) -> 0 | AC107: =IF(R107=0," -",IF(AB107>100%,100%,AB107)) -> 0 | AD107: =IF(S107=0," -",W107/S107) -> 0 | AE107: =IF(S107=0," -",IF(AD107>100%,100%,AD107)) -> 0 | AF107: =+SUM(T107:W107)/O107 -> 0 | AG107: 0 | AH107: 0 | AI107: ='[6]2016'!P24 -> 0 | AJ107: ='[6]2016'!Q24 -> 0 | AK107: ='[6]2016'!R24 -> 0 | AL107: - | AM107: - | AN107: ='[6]2017'!P24 -> 0 | AO107: ='[6]2017'!Q24 -> 0 | AP107: ='[6]2017'!R24 -> 0 | AQ107: - | AR107: - | AS107: ='[6]2018'!P24 -> 0 | AT107: ='[6]2018'!Q24 -> 0 | AU107: ='[6]2018'!R24 -> 0 | AV107: - | AW107: - | AX107: ='[6]2019'!P24 -> 0 | AY107: ='[6]2019'!Q24 -> 0 | AZ107: ='[6]2019'!R24 -> 0 | BA107: - | BB107: - | BC107: 0 | BD107: 0 | BE107: 0 | BF107: - | BG107: - | BH107: ='[1]LÍNEA 1'!AO107 -> 16. Paz, justicia e instituciones sólidas | BI107: ='[1]LÍNEA 1'!AP107 -> Fortalecimiento Institucional | BJ107: Sec. Planeación
F108: Lograr que el 60% de los ciudadanos considere como buena la gestión del Alcalde/Gobierno municipal de acuerdo a la encuesta Cómo Vamos. | G108: 0.3 | H108: =+'[1]LÍNEA 1'!H108 -> 0.6 | K108: Apoyar 4 investigaciones académicas sobre temas urbanos de Bucaramanga que contribuyan a la comprensión de un problema público y a la formulación de políticas para solucionarlo. | L108: ='[1]LÍNEA 1'!P108 -> 2210100 | M108: ='[1]LÍNEA 1'!Q108 -> Número de investigaciones académicas apoyadas sobre temas urbanos de Bucaramanga que contribuyan a la comprensión de un problema público y a la formulación de políticas para solucionarlo. | N108: 0 | O108: ='[1]LÍNEA 1'!S108 -> 4 | P108: ='[1]LÍNEA 1'!T108 -> 1 | Q108: ='[1]LÍNEA 1'!U108 -> 1 | R108: ='[1]LÍNEA 1'!V108 -> 1 | S108: ='[1]LÍNEA 1'!W108 -> 1 | T108: ='[6]2016'!K25 -> 1 | U108: ='[6]2017'!K25 -> 0 | V108: ='[6]2018'!K25 -> 0 | W108: ='[6]2019'!K25 -> 0 | X108: =IF(P108=0," -",T108/P108) -> 1 | Y108: =IF(P108=0," -",IF(X108>100%,100%,X108)) -> 1 | Z108: =IF(Q108=0," -",U108/Q108) -> 0 | AA108: =IF(Q108=0," -",IF(Z108>100%,100%,Z108)) -> 0 | AB108: =IF(R108=0," -",V108/R108) -> 0 | AC108: =IF(R108=0," -",IF(AB108>100%,100%,AB108)) -> 0 | AD108: =IF(S108=0," -",W108/S108) -> 0 | AE108: =IF(S108=0," -",IF(AD108>100%,100%,AD108)) -> 0 | AF108: =+SUM(T108:W108)/O108 -> 0.25 | AG108: 0.25 | AH108: 0.25 | AI108: ='[6]2016'!P25 -> 0 | AJ108: ='[6]2016'!Q25 -> 0 | AK108: ='[6]2016'!R25 -> 0 | AL108: - | AM108: - | AN108: ='[6]2017'!P25 -> 0 | AO108: ='[6]2017'!Q25 -> 0 | AP108: ='[6]2017'!R25 -> 0 | AQ108: - | AR108: - | AS108: ='[6]2018'!P25 -> 100000 | AT108: ='[6]2018'!Q25 -> 0 | AU108: ='[6]2018'!R25 -> 0 | AV108: 0 | AW108: - | AX108: ='[6]2019'!P25 -> 100000 | AY108: ='[6]2019'!Q25 -> 0 | AZ108: ='[6]2019'!R25 -> 0 | BA108: 0 | BB108: - | BC108: 200000 | BD108: 0 | BE108: 0 | BF108: 0 | BG108: - | BH108: ='[1]LÍNEA 1'!AO108 -> 16. Paz, justicia e instituciones sólidas | BI108: ='[1]LÍNEA 1'!AP108 -> Fortalecimiento Institucional | BJ108: Sec. Planeación
K109: Crear y mantener 1 banco de datos y estadísticas para la gestión pública. | L109: ='[1]LÍNEA 1'!P109 -> 0 | M109: ='[1]LÍNEA 1'!Q109 -> Número de bancos de datos y estadísticas para la gestión pública creados y mantenidos. | N109: 0 | O109: ='[1]LÍNEA 1'!S109 -> 1 | P109: ='[1]LÍNEA 1'!T109 -> 0 | Q109: ='[1]LÍNEA 1'!U109 -> 1 | R109: ='[1]LÍNEA 1'!V109 -> 1 | S109: ='[1]LÍNEA 1'!W109 -> 1 | T109: ='[17]2016'!$K$12 -> 0 | U109: ='[17]2017'!$K$12 -> 0 | V109: ='[17]2018'!$K$12 -> 0 | W109: ='[17]2019'!$K$12 -> 0 | X109: =IF(P109=0," -",T109/P109) -> - | Y109: =IF(P109=0," -",IF(X109>100%,100%,X109)) -> - | Z109: =IF(Q109=0," -",U109/Q109) -> 0 | AA109: =IF(Q109=0," -",IF(Z109>100%,100%,Z109)) -> 0 | AB109: =IF(R109=0," -",V109/R109) -> 0 | AC109: =IF(R109=0," -",IF(AB109>100%,100%,AB109)) -> 0 | AD109: =IF(S109=0," -",W109/S109) -> 0 | AE109: =IF(S109=0," -",IF(AD109>100%,100%,AD109)) -> 0 | AF109: =+AVERAGE(T109:W109)/O109 -> 0 | AG109: 0 | AH109: 0 | AI109: ='[17]2016'!P12 -> 150000 | AJ109: ='[17]2016'!Q12 -> 0 | AK109: ='[17]2016'!R12 -> 0 | AL109: 0 | AM109: - | AN109: ='[17]2017'!P12 -> 200000 | AO109: ='[17]2017'!Q12 -> 0 | AP109: ='[17]2017'!R12 -> 0 | AQ109: 0 | AR109: - | AS109: ='[17]2018'!P12 -> 200000 | AT109: ='[17]2018'!Q12 -> 0 | AU109: ='[17]2018'!R12 -> 0 | AV109: 0 | AW109: - | AX109: ='[17]2019'!P12 -> 200000 | AY109: ='[17]2019'!Q12 -> 0 | AZ109: ='[17]2019'!R12 -> 0 | BA109: 0 | BB109: - | BC109: 750000 | BD109: 0 | BE109: 0 | BF109: 0 | BG109: - | BH109: ='[1]LÍNEA 1'!AO109 -> 16. Paz, justicia e instituciones sólidas | BI109: ='[1]LÍNEA 1'!AP109 -> Fortalecimiento Institucional | BJ109: Sec. Salud y Ambiente
K110: Implementar y mantener 1 estrategia de comunicación y pedagógica para promover la apropiación del territorio y para fortalecer el conocimiento de la propia ciudad entre los ciudadanos. | L110: ='[1]LÍNEA 1'!P110 -> 2.2.1.35.2 | M110: ='[1]LÍNEA 1'!Q110 -> Número de estrategias de comunicación y pedagógicas implementadas y mantenidas para promover la apropiación del territorio y para fortalecer el conocimiento de la propia ciudad entre los ciudadanos. | N110: 0 | O110: ='[1]LÍNEA 1'!S110 -> 1 | P110: ='[1]LÍNEA 1'!T110 -> 1 | Q110: ='[1]LÍNEA 1'!U110 -> 1 | R110: ='[1]LÍNEA 1'!V110 -> 1 | S110: ='[1]LÍNEA 1'!W110 -> 1 | T110: ='[12]2016'!K14 -> 0 | U110: ='[12]2017'!K14 -> 0 | V110: ='[12]2018'!K14 -> 0 | W110: ='[12]2019'!K14 -> 0 | X110: =IF(P110=0," -",T110/P110) -> 0 | Y110: =IF(P110=0," -",IF(X110>100%,100%,X110)) -> 0 | Z110: =IF(Q110=0," -",U110/Q110) -> 0 | AA110: =IF(Q110=0," -",IF(Z110>100%,100%,Z110)) -> 0 | AB110: =IF(R110=0," -",V110/R110) -> 0 | AC110: =IF(R110=0," -",IF(AB110>100%,100%,AB110)) -> 0 | AD110: =IF(S110=0," -",W110/S110) -> 0 | AE110: =IF(S110=0," -",IF(AD110>100%,100%,AD110)) -> 0 | AF110: =+AVERAGE(T110:W110)/O110 -> 0 | AG110: 0 | AH110: 0 | AI110: ='[12]2016'!P14 -> 60000 | AJ110: ='[12]2016'!Q14 -> 0 | AK110: ='[12]2016'!R14 -> 0 | AL110: 0 | AM110: - | AN110: ='[12]2017'!P14 -> 100000 | AO110: ='[12]2017'!Q14 -> 0 | AP110: ='[12]2017'!R14 -> 0 | AQ110: 0 | AR110: - | AS110: ='[12]2018'!P14 -> 100000 | AT110: ='[12]2018'!Q14 -> 0 | AU110: ='[12]2018'!R14 -> 0 | AV110: 0 | AW110: - | AX110: ='[12]2019'!P14 -> 100000 | AY110: ='[12]2019'!Q14 -> 0 | AZ110: ='[12]2019'!R14 -> 0 | BA110: 0 | BB110: - | BC110: 360000 | BD110: 0 | BE110: 0 | BF110: 0 | BG110: - | BH110: ='[1]LÍNEA 1'!AO110 -> 16. Paz, justicia e instituciones sólidas | BI110: ='[1]LÍNEA 1'!AP110 -> Cultura | BJ110: IMCT
K111: Implementar y mantener 1 plataforma en línea sobre temas y datos actualizados de la ciudad (historia, cultura, turismo, geografía, economía, sociales, movilidad, espacio público entre otros factores). | L111: ='[1]LÍNEA 1'!P111 -> 2.2.1.35.3 | M111: ='[1]LÍNEA 1'!Q111 -> Número de plataformas en línea implementadas y mantenidas sobre temas y datos actualizados de la ciudad (historia, cultura, turismo, geografía, economía, sociales, movilidad, espacio público entre otros factores). | N111: 0 | O111: ='[1]LÍNEA 1'!S111 -> 1 | P111: ='[1]LÍNEA 1'!T111 -> 1 | Q111: ='[1]LÍNEA 1'!U111 -> 1 | R111: ='[1]LÍNEA 1'!V111 -> 1 | S111: ='[1]LÍNEA 1'!W111 -> 1 | T111: ='[12]2016'!K15 -> 0 | U111: ='[12]2017'!K15 -> 0 | V111: ='[12]2018'!K15 -> 0 | W111: ='[12]2019'!K15 -> 0 | X111: =IF(P111=0," -",T111/P111) -> 0 | Y111: =IF(P111=0," -",IF(X111>100%,100%,X111)) -> 0 | Z111: =IF(Q111=0," -",U111/Q111) -> 0 | AA111: =IF(Q111=0," -",IF(Z111>100%,100%,Z111)) -> 0 | AB111: =IF(R111=0," -",V111/R111) -> 0 | AC111: =IF(R111=0," -",IF(AB111>100%,100%,AB111)) -> 0 | AD111: =IF(S111=0," -",W111/S111) -> 0 | AE111: =IF(S111=0," -",IF(AD111>100%,100%,AD111)) -> 0 | AF111: =+AVERAGE(T111:W111)/O111 -> 0 | AG111: 0 | AH111: 0 | AI111: ='[12]2016'!P15 -> 80000 | AJ111: ='[12]2016'!Q15 -> 0 | AK111: ='[12]2016'!R15 -> 0 | AL111: 0 | AM111: - | AN111: ='[12]2017'!P15 -> 80000 | AO111: ='[12]2017'!Q15 -> 0 | AP111: ='[12]2017'!R15 -> 0 | AQ111: 0 | AR111: - | AS111: ='[12]2018'!P15 -> 0 | AT111: ='[12]2018'!Q15 -> 0 | AU111: ='[12]2018'!R15 -> 0 | AV111: - | AW111: - | AX111: ='[12]2019'!P15 -> 0 | AY111: ='[12]2019'!Q15 -> 0 | AZ111: ='[12]2019'!R15 -> 0 | BA111: - | BB111: - | BC111: 160000 | BD111: 0 | BE111: 0 | BF111: 0 | BG111: - | BH111: ='[1]LÍNEA 1'!AO111 -> 16. Paz, justicia e instituciones sólidas | BI111: ='[1]LÍNEA 1'!AP111 -> Cultura | BJ111: IMCT
K112: Crear y mantener el libro virtual o plataforma en línea de la historia de las comunas. | L112: ='[1]LÍNEA 1'!P112 -> 2.2.1.35.4 | M112: ='[1]LÍNEA 1'!Q112 -> Número de libros virtuales o plataformas en línea creadas y mantenidas de la historia de las comunas. | N112: 0 | O112: ='[1]LÍNEA 1'!S112 -> 1 | P112: ='[1]LÍNEA 1'!T112 -> 1 | Q112: ='[1]LÍNEA 1'!U112 -> 1 | R112: ='[1]LÍNEA 1'!V112 -> 1 | S112: ='[1]LÍNEA 1'!W112 -> 1 | T112: ='[12]2016'!K16 -> 0 | U112: ='[12]2017'!K16 -> 0 | V112: ='[12]2018'!K16 -> 0 | W112: ='[12]2019'!K16 -> 0 | X112: =IF(P112=0," -",T112/P112) -> 0 | Y112: =IF(P112=0," -",IF(X112>100%,100%,X112)) -> 0 | Z112: =IF(Q112=0," -",U112/Q112) -> 0 | AA112: =IF(Q112=0," -",IF(Z112>100%,100%,Z112)) -> 0 | AB112: =IF(R112=0," -",V112/R112) -> 0 | AC112: =IF(R112=0," -",IF(AB112>100%,100%,AB112)) -> 0 | AD112: =IF(S112=0," -",W112/S112) -> 0 | AE112: =IF(S112=0," -",IF(AD112>100%,100%,AD112)) -> 0 | AF112: =+AVERAGE(T112:W112)/O112 -> 0 | AG112: 0 | AH112: 0 | AI112: ='[12]2016'!P16 -> 70000 | AJ112: ='[12]2016'!Q16 -> 0 | AK112: ='[12]2016'!R16 -> 0 | AL112: 0 | AM112: - | AN112: ='[12]2017'!P16 -> 50000 | AO112: ='[12]2017'!Q16 -> 0 | AP112: ='[12]2017'!R16 -> 0 | AQ112: 0 | AR112: - | AS112: ='[12]2018'!P16 -> 0 | AT112: ='[12]2018'!Q16 -> 0 | AU112: ='[12]2018'!R16 -> 0 | AV112: - | AW112: - | AX112: ='[12]2019'!P16 -> 0 | AY112: ='[12]2019'!Q16 -> 0 | AZ112: ='[12]2019'!R16 -> 0 | BA112: - | BB112: - | BC112: 120000 | BD112: 0 | BE112: 0 | BF112: 0 | BG112: - | BH112: ='[1]LÍNEA 1'!AO112 -> 16. Paz, justicia e instituciones sólidas | BI112: ='[1]LÍNEA 1'!AP112 -> Cultura | BJ112: IMCT
I113: =+RESUMEN!J23 -> 0.295 | J113: FINANZAS PÚBLICAS SOSTENIBLES Y COMPRENSIBLES PARA LA CIUDADANÍA | K113: Garantizar que 3 documentos financieros estén disponibles y sean de fácil acceso e interpretación. | L113: ='[1]LÍNEA 1'!P113 -> - | M113: ='[1]LÍNEA 1'!Q113 -> Número de documentos financieros disponibles de fácil acceso e interpretación. | N113: 0 | O113: ='[1]LÍNEA 1'!S113 -> 3 | P113: ='[1]LÍNEA 1'!T113 -> 3 | Q113: ='[1]LÍNEA 1'!U113 -> 3 | R113: ='[1]LÍNEA 1'!V113 -> 3 | S113: ='[1]LÍNEA 1'!W113 -> 3 | T113: ='[5]2016'!K18 -> 3 | U113: ='[5]2017'!K18 -> 0 | V113: ='[5]2018'!K18 -> 0 | W113: ='[5]2019'!K18 -> 0 | X113: =IF(P113=0," -",T113/P113) -> 1 | Y113: =IF(P113=0," -",IF(X113>100%,100%,X113)) -> 1 | Z113: =IF(Q113=0," -",U113/Q113) -> 0 | AA113: =IF(Q113=0," -",IF(Z113>100%,100%,Z113)) -> 0 | AB113: =IF(R113=0," -",V113/R113) -> 0 | AC113: =IF(R113=0," -",IF(AB113>100%,100%,AB113)) -> 0 | AD113: =IF(S113=0," -",W113/S113) -> 0 | AE113: =IF(S113=0," -",IF(AD113>100%,100%,AD113)) -> 0 | AF113: =+AVERAGE(T113:W113)/O113 -> 0.25 | AG113: 0.25 | AH113: 0.25 | AI113: ='[5]2016'!P18 -> 0 | AJ113: ='[5]2016'!Q18 -> 0 | AK113: ='[5]2016'!R18 -> 0 | AL113: - | AM113: - | AN113: ='[5]2017'!P18 -> 0 | AO113: ='[5]2017'!Q18 -> 0 | AP113: ='[5]2017'!R18 -> 0 | AQ113: - | AR113: - | AS113: ='[5]2018'!P18 -> 0 | AT113: ='[5]2018'!Q18 -> 0 | AU113: ='[5]2018'!R18 -> 0 | AV113: - | AW113: - | AX113: ='[5]2019'!P18 -> 0 | AY113: ='[5]2019'!Q18 -> 0 | AZ113: ='[5]2019'!R18 -> 0 | BA113: - | BB113: - | BC113: 0 | BD113: 0 | BE113: 0 | BF113: - | BG113: - | BH113: ='[1]LÍNEA 1'!AO113 -> 16. Paz, justicia e instituciones sólidas | BI113: ='[1]LÍNEA 1'!AP113 -> Fortalecimiento Institucional | BJ113: Sec. Hacienda
K114: Realizar 16 videos que permitan dar a conocer de manera didáctica al ciudadano la información financiera del municipio. | L114: ='[1]LÍNEA 1'!P114 -> - | M114: ='[1]LÍNEA 1'!Q114 -> Número de videos realizados que permitan dar a conocer de manera didáctica al ciudadano la información financiera del municipio. | N114: 0 | O114: ='[1]LÍNEA 1'!S114 -> 16 | P114: ='[1]LÍNEA 1'!T114 -> 4 | Q114: ='[1]LÍNEA 1'!U114 -> 4 | R114: ='[1]LÍNEA 1'!V114 -> 4 | S114: ='[1]LÍNEA 1'!W114 -> 4 | T114: ='[5]2016'!K19 -> 4 | U114: ='[5]2017'!K19 -> 0 | V114: ='[5]2018'!K19 -> 0 | W114: ='[5]2019'!K19 -> 0 | X114: =IF(P114=0," -",T114/P114) -> 1 | Y114: =IF(P114=0," -",IF(X114>100%,100%,X114)) -> 1 | Z114: =IF(Q114=0," -",U114/Q114) -> 0 | AA114: =IF(Q114=0," -",IF(Z114>100%,100%,Z114)) -> 0 | AB114: =IF(R114=0," -",V114/R114) -> 0 | AC114: =IF(R114=0," -",IF(AB114>100%,100%,AB114)) -> 0 | AD114: =IF(S114=0," -",W114/S114) -> 0 | AE114: =IF(S114=0," -",IF(AD114>100%,100%,AD114)) -> 0 | AF114: =+SUM(T114:W114)/O114 -> 0.25 | AG114: 0.25 | AH114: 0.25 | AI114: ='[5]2016'!P19 -> 0 | AJ114: ='[5]2016'!Q19 -> 0 | AK114: ='[5]2016'!R19 -> 0 | AL114: - | AM114: - | AN114: ='[5]2017'!P19 -> 0 | AO114: ='[5]2017'!Q19 -> 0 | AP114: ='[5]2017'!R19 -> 0 | AQ114: - | AR114: - | AS114: ='[5]2018'!P19 -> 0 | AT114: ='[5]2018'!Q19 -> 0 | AU114: ='[5]2018'!R19 -> 0 | AV114: - | AW114: - | AX114: ='[5]2019'!P19 -> 0 | AY114: ='[5]2019'!Q19 -> 0 | AZ114: ='[5]2019'!R19 -> 0 | BA114: - | BB114: - | BC114: 0 | BD114: 0 | BE114: 0 | BF114: - | BG114: - | BH114: ='[1]LÍNEA 1'!AO114 -> 16. Paz, justicia e instituciones sólidas | BI114: ='[1]LÍNEA 1'!AP114 -> Fortalecimiento Institucional | BJ114: Sec. Hacienda
K115: Implementar y mantener la norma internacional de información financiera - NIIF. | L115: ='[1]LÍNEA 1'!P115 -> 2210277 | M115: ='[1]LÍNEA 1'!Q115 -> Número de normas internacionales de información financiera - NIIF implementadas y mantenidas. | N115: 0 | O115: ='[1]LÍNEA 1'!S115 -> 1 | P115: ='[1]LÍNEA 1'!T115 -> 1 | Q115: ='[1]LÍNEA 1'!U115 -> 1 | R115: ='[1]LÍNEA 1'!V115 -> 1 | S115: ='[1]LÍNEA 1'!W115 -> 1 | T115: ='[5]2016'!K20 -> 0.3 | U115: ='[5]2017'!K20 -> 0 | V115: ='[5]2018'!K20 -> 0 | W115: ='[5]2019'!K20 -> 0 | X115: =IF(P115=0," -",T115/P115) -> 0.3 | Y115: =IF(P115=0," -",IF(X115>100%,100%,X115)) -> 0.3 | Z115: =IF(Q115=0," -",U115/Q115) -> 0 | AA115: =IF(Q115=0," -",IF(Z115>100%,100%,Z115)) -> 0 | AB115: =IF(R115=0," -",V115/R115) -> 0 | AC115: =IF(R115=0," -",IF(AB115>100%,100%,AB115)) -> 0 | AD115: =IF(S115=0," -",W115/S115) -> 0 | AE115: =IF(S115=0," -",IF(AD115>100%,100%,AD115)) -> 0 | AF115: =+AVERAGE(T115:W115)/O115 -> 0.075 | AG115: 0.075 | AH115: 0.075 | AI115: ='[5]2016'!P20 -> 400000 | AJ115: ='[5]2016'!Q20 -> 59940 | AK115: ='[5]2016'!R20 -> 0 | AL115: 0.14985 | AM115: - | AN115: ='[5]2017'!P20 -> 350000 | AO115: ='[5]2017'!Q20 -> 0 | AP115: ='[5]2017'!R20 -> 0 | AQ115: 0 | AR115: - | AS115: ='[5]2018'!P20 -> 0 | AT115: ='[5]2018'!Q20 -> 0 | AU115: ='[5]2018'!R20 -> 0 | AV115: - | AW115: - | AX115: ='[5]2019'!P20 -> 0 | AY115: ='[5]2019'!Q20 -> 0 | AZ115: ='[5]2019'!R20 -> 0 | BA115: - | BB115: - | BC115: 750000 | BD115: 59940 | BE115: 0 | BF115: 0.07992 | BG115: - | BH115: ='[1]LÍNEA 1'!AO115 -> 16. Paz, justicia e instituciones sólidas | BI115: ='[1]LÍNEA 1'!AP115 -> Fortalecimiento Institucional | BJ115: Sec. Hacienda
K116: Actualizar el estatuto tributario. | L116: ='[1]LÍNEA 1'!P116 -> - | M116: ='[1]LÍNEA 1'!Q116 -> Número de estatutos tributarios actualizados. | N116: 1 | O116: ='[1]LÍNEA 1'!S116 -> 1 | P116: ='[1]LÍNEA 1'!T116 -> 0 | Q116: ='[1]LÍNEA 1'!U116 -> 1 | R116: ='[1]LÍNEA 1'!V116 -> 0 | S116: ='[1]LÍNEA 1'!W116 -> 0 | T116: ='[5]2016'!K21 -> 0.7 | U116: ='[5]2017'!K21 -> 0 | V116: ='[5]2018'!K21 -> 0 | W116: ='[5]2019'!K21 -> 0 | X116: =IF(P116=0," -",T116/P116) -> - | Y116: =IF(P116=0," -",IF(X116>100%,100%,X116)) -> - | Z116: =IF(Q116=0," -",U116/Q116) -> 0 | AA116: =IF(Q116=0," -",IF(Z116>100%,100%,Z116)) -> 0 | AB116: =IF(R116=0," -",V116/R116) -> - | AC116: =IF(R116=0," -",IF(AB116>100%,100%,AB116)) -> - | AD116: =IF(S116=0," -",W116/S116) -> - | AE116: =IF(S116=0," -",IF(AD116>100%,100%,AD116)) -> - | AF116: =+SUM(T116:W116)/O116 -> 0.7 | AG116: 0.7 | AH116: 0.7 | AI116: ='[5]2016'!P21 -> 0 | AJ116: ='[5]2016'!Q21 -> 0 | AK116: ='[5]2016'!R21 -> 0 | AL116: - | AM116: - | AN116: ='[5]2017'!P21 -> 0 | AO116: ='[5]2017'!Q21 -> 0 | AP116: ='[5]2017'!R21 -> 0 | AQ116: - | AR116: - | AS116: ='[5]2018'!P21 -> 0 | AT116: ='[5]2018'!Q21 -> 0 | AU116: ='[5]2018'!R21 -> 0 | AV116: - | AW116: - | AX116: ='[5]2019'!P21 -> 0 | AY116: ='[5]2019'!Q21 -> 0 | AZ116: ='[5]2019'!R21 -> 0 | BA116: - | BB116: - | BC116: 0 | BD116: 0 | BE116: 0 | BF116: - | BG116: - | BH116: ='[1]LÍNEA 1'!AO116 -> 16. Paz, justicia e instituciones sólidas | BI116: ='[1]LÍNEA 1'!AP116 -> Fortalecimiento Institucional | BJ116: Sec. Hacienda
F117: Lograr una calificación de 80 en el componente organización de la información del IGA. | G117: 53.3 | H117: =+'[1]LÍNEA 1'!H117 -> 80 | K117: Realizar 5 acciones tendientes al fortalecimiento de los ingresos. | L117: ='[1]LÍNEA 1'!P117 -> 2210289 2210272 2210277 | M117: ='[1]LÍNEA 1'!Q117 -> Número de acciones realizadas tendientes al fortalecimiento de los ingresos. | N117: 1 | O117: ='[1]LÍNEA 1'!S117 -> 5 | P117: ='[1]LÍNEA 1'!T117 -> 2 | Q117: ='[1]LÍNEA 1'!U117 -> 3 | R117: ='[1]LÍNEA 1'!V117 -> 0 | S117: ='[1]LÍNEA 1'!W117 -> 0 | T117: ='[5]2016'!K22 -> 1 | U117: ='[5]2017'!K22 -> 0 | V117: ='[5]2018'!K22 -> 0 | W117: ='[5]2019'!K22 -> 0 | X117: =IF(P117=0," -",T117/P117) -> 0.5 | Y117: =IF(P117=0," -",IF(X117>100%,100%,X117)) -> 0.5 | Z117: =IF(Q117=0," -",U117/Q117) -> 0 | AA117: =IF(Q117=0," -",IF(Z117>100%,100%,Z117)) -> 0 | AB117: =IF(R117=0," -",V117/R117) -> - | AC117: =IF(R117=0," -",IF(AB117>100%,100%,AB117)) -> - | AD117: =IF(S117=0," -",W117/S117) -> - | AE117: =IF(S117=0," -",IF(AD117>100%,100%,AD117)) -> - | AF117: =+SUM(T117:W117)/O117 -> 0.2 | AG117: 0.2 | AH117: 0.2 | AI117: ='[5]2016'!P22 -> 1439983 | AJ117: ='[5]2016'!Q22 -> 267300 | AK117: ='[5]2016'!R22 -> 0 | AL117: 0.1856271914 | AM117: - | AN117: ='[5]2017'!P22 -> 8859734 | AO117: ='[5]2017'!Q22 -> 0 | AP117: ='[5]2017'!R22 -> 0 | AQ117: 0 | AR117: - | AS117: ='[5]2018'!P22 -> 0 | AT117: ='[5]2018'!Q22 -> 0 | AU117: ='[5]2018'!R22 -> 0 | AV117: - | AW117: - | AX117: ='[5]2019'!P22 -> 0 | AY117: ='[5]2019'!Q22 -> 0 | AZ117: ='[5]2019'!R22 -> 0 | BA117: - | BB117: - | BC117: 10299717 | BD117: 267300 | BE117: 0 | BF117: 0.02595216937 | BG117: - | BH117: ='[1]LÍNEA 1'!AO117 -> 16. Paz, justicia e instituciones sólidas | BI117: ='[1]LÍNEA 1'!AP117 -> Fortalecimiento Institucional | BJ117: Sec. Hacienda
I118: =+RESUMEN!J24 -> 0.1541666667 | J118: GESTIÓN INTELIGENTE DEL PATRIMONIO INMOBILIARIO MUNICIPAL | K118: Realizar y mantener actualizado en línea 1 inventario del los bienes inmuebles del municipio. | L118: ='[1]LÍNEA 1'!P118 -> - | M118: ='[1]LÍNEA 1'!Q118 -> Número de inventarios en línea de los bienes inmuebles del municipio realizados y mantenidos. | N118: 0 | O118: ='[1]LÍNEA 1'!S118 -> 1 | P118: ='[1]LÍNEA 1'!T118 -> 1 | Q118: ='[1]LÍNEA 1'!U118 -> 1 | R118: ='[1]LÍNEA 1'!V118 -> 1 | S118: ='[1]LÍNEA 1'!W118 -> 1 | T118: ='[18]2016'!K12 -> 0.85 | U118: ='[18]2017'!K12 -> 0 | V118: ='[18]2018'!K12 -> 0 | W118: ='[18]2019'!K12 -> 0 | X118: =IF(P118=0," -",T118/P118) -> 0.85 | Y118: =IF(P118=0," -",IF(X118>100%,100%,X118)) -> 0.85 | Z118: =IF(Q118=0," -",U118/Q118) -> 0 | AA118: =IF(Q118=0," -",IF(Z118>100%,100%,Z118)) -> 0 | AB118: =IF(R118=0," -",V118/R118) -> 0 | AC118: =IF(R118=0," -",IF(AB118>100%,100%,AB118)) -> 0 | AD118: =IF(S118=0," -",W118/S118) -> 0 | AE118: =IF(S118=0," -",IF(AD118>100%,100%,AD118)) -> 0 | AF118: =+AVERAGE(T118:W118)/O118 -> 0.2125 | AG118: 0.2125 | AH118: 0.2125 | AI118: ='[18]2016'!P12 -> 0 | AJ118: ='[18]2016'!Q12 -> 0 | AK118: ='[18]2016'!R12 -> 0 | AL118: - | AM118: - | AN118: ='[18]2017'!P12 -> 0 | AO118: ='[18]2017'!Q12 -> 0 | AP118: ='[18]2017'!R12 -> 0 | AQ118: - | AR118: - | AS118: ='[18]2018'!P12 -> 0 | AT118: ='[18]2018'!Q12 -> 0 | AU118: ='[18]2018'!R12 -> 0 | AV118: - | AW118: - | AX118: ='[18]2019'!P12 -> 0 | AY118: ='[18]2019'!Q12 -> 0 | AZ118: ='[18]2019'!R12 -> 0 | BA118: - | BB118: - | BC118: 0 | BD118: 0 | BE118: 0 | BF118: - | BG118: - | BH118: ='[1]LÍNEA 1'!AO118 -> 16. Paz, justicia e instituciones sólidas | BI118: ='[1]LÍNEA 1'!AP118 -> Equipamiento | BJ118: DADEP
K119: Incorporar 300 predios de propiedad del municipio cuya titulación se encuentra pendiente. | L119: ='[1]LÍNEA 1'!P119 -> - | M119: ='[1]LÍNEA 1'!Q119 -> Número de predios de propiedad del municipio cuya titulación se encuentra pendiente incorporados. | N119: 208 | O119: ='[1]LÍNEA 1'!S119 -> 300 | P119: ='[1]LÍNEA 1'!T119 -> 0 | Q119: ='[1]LÍNEA 1'!U119 -> 0 | R119: ='[1]LÍNEA 1'!V119 -> 150 | S119: ='[1]LÍNEA 1'!W119 -> 150 | T119: ='[18]2016'!K13 -> 0 | U119: ='[18]2017'!K13 -> 0 | V119: ='[18]2018'!K13 -> 0 | W119: ='[18]2019'!K13 -> 0 | X119: =IF(P119=0," -",T119/P119) -> - | Y119: =IF(P119=0," -",IF(X119>100%,100%,X119)) -> - | Z119: =IF(Q119=0," -",U119/Q119) -> - | AA119: =IF(Q119=0," -",IF(Z119>100%,100%,Z119)) -> - | AB119: =IF(R119=0," -",V119/R119) -> 0 | AC119: =IF(R119=0," -",IF(AB119>100%,100%,AB119)) -> 0 | AD119: =IF(S119=0," -",W119/S119) -> 0 | AE119: =IF(S119=0," -",IF(AD119>100%,100%,AD119)) -> 0 | AF119: =+SUM(T119:W119)/O119 -> 0 | AG119: 0 | AH119: 0 | AI119: ='[18]2016'!P13 -> 0 | AJ119: ='[18]2016'!Q13 -> 0 | AK119: ='[18]2016'!R13 -> 0 | AL119: - | AM119: - | AN119: ='[18]2017'!P13 -> 0 | AO119: ='[18]2017'!Q13 -> 0 | AP119: ='[18]2017'!R13 -> 0 | AQ119: - | AR119: - | AS119: ='[18]2018'!P13 -> 0 | AT119: ='[18]2018'!Q13 -> 0 | AU119: ='[18]2018'!R13 -> 0 | AV119: - | AW119: - | AX119: ='[18]2019'!P13 -> 0 | AY119: ='[18]2019'!Q13 -> 0 | AZ119: ='[18]2019'!R13 -> 0 | BA119: - | BB119: - | BC119: 0 | BD119: 0 | BE119: 0 | BF119: - | BG119: - | BH119: ='[1]LÍNEA 1'!AO119 -> 16. Paz, justicia e instituciones sólidas | BI119: ='[1]LÍNEA 1'!AP119 -> Equipamiento | BJ119: DADEP
K120: Adquirir el 100% de los predios requeridos para la ejecución de obras de desarrollo para la ciudad. | L120: ='[1]LÍNEA 1'!P120 -> - | M120: ='[1]LÍNEA 1'!Q120 -> Porcentaje de predios requeridos adquiridos para la ejecución de obras de desarrollo para la ciudad. | N120: 1 | O120: ='[1]LÍNEA 1'!S120 -> 1 | P120: ='[1]LÍNEA 1'!T120 -> 1 | Q120: ='[1]LÍNEA 1'!U120 -> 1 | R120: ='[1]LÍNEA 1'!V120 -> 1 | S120: ='[1]LÍNEA 1'!W120 -> 1 | T120: ='[7]2016'!$K$15 -> 1 | U120: ='[7]2017'!$K$15 -> 0 | V120: ='[7]2018'!$K$15 -> 0 | W120: ='[7]2019'!$K$15 -> 0 | X120: =IF(P120=0," -",T120/P120) -> 1 | Y120: =IF(P120=0," -",IF(X120>100%,100%,X120)) -> 1 | Z120: =IF(Q120=0," -",U120/Q120) -> 0 | AA120: =IF(Q120=0," -",IF(Z120>100%,100%,Z120)) -> 0 | AB120: =IF(R120=0," -",V120/R120) -> 0 | AC120: =IF(R120=0," -",IF(AB120>100%,100%,AB120)) -> 0 | AD120: =IF(S120=0," -",W120/S120) -> 0 | AE120: =IF(S120=0," -",IF(AD120>100%,100%,AD120)) -> 0 | AF120: =+AVERAGE(T120:W120)/O120 -> 0.25 | AG120: 0.25 | AH120: 0.25 | AI120: ='[7]2016'!P15 -> 0 | AJ120: ='[7]2016'!Q15 -> 0 | AK120: ='[7]2016'!R15 -> 0 | AL120: - | AM120: - | AN120: ='[7]2017'!P15 -> 0 | AO120: ='[7]2017'!Q15 -> 0 | AP120: ='[7]2017'!R15 -> 0 | AQ120: - | AR120: - | AS120: ='[7]2018'!P15 -> 0 | AT120: ='[7]2018'!Q15 -> 0 | AU120: ='[7]2018'!R15 -> 0 | AV120: - | AW120: - | AX120: ='[7]2019'!P15 -> 0 | AY120: ='[7]2019'!Q15 -> 0 | AZ120: ='[7]2019'!R15 -> 0 | BA120: - | BB120: - | BC120: 0 | BD120: 0 | BE120: 0 | BF120: - | BG120: - | BH120: ='[1]LÍNEA 1'!AO120 -> 9. Industria, innovación e infraestructura | BI120: ='[1]LÍNEA 1'!AP120 -> Equipamiento | BJ120: Sec. Infraestructura
I121: =+RESUMEN!J25 -> 0.1058888889 | J121: INSPECCIONES Y COMISARÍAS QUE FUNCIONAN | K121: Sistematizar el 100% de los procesos que adelantan las inspecciones de policía. | L121: ='[1]LÍNEA 1'!P121 -> 0 | M121: ='[1]LÍNEA 1'!Q121 -> Porcentaje de avance en la sistematización de los procesos que adelantan las inspecciones de policía. | N121: 0 | O121: ='[1]LÍNEA 1'!S121 -> 1 | P121: ='[1]LÍNEA 1'!T121 -> 0 | Q121: ='[1]LÍNEA 1'!U121 -> 0.7 | R121: ='[1]LÍNEA 1'!V121 -> 0.3 | S121: ='[1]LÍNEA 1'!W121 -> 0 | T121: ='[2]2016'!K15 -> 0 | U121: ='[2]2017'!K15 -> 0 | V121: ='[2]2018'!K15 -> 0 | W121: ='[2]2019'!K15 -> 0 | X121: =IF(P121=0," -",T121/P121) -> - | Y121: =IF(P121=0," -",IF(X121>100%,100%,X121)) -> - | Z121: =IF(Q121=0," -",U121/Q121) -> 0 | AA121: =IF(Q121=0," -",IF(Z121>100%,100%,Z121)) -> 0 | AB121: =IF(R121=0," -",V121/R121) -> 0 | AC121: =IF(R121=0," -",IF(AB121>100%,100%,AB121)) -> 0 | AD121: =IF(S121=0," -",W121/S121) -> - | AE121: =IF(S121=0," -",IF(AD121>100%,100%,AD121)) -> - | AF121: =+SUM(T121:W121)/O121 -> 0 | AG121: 0 | AH121: 0 | AI121: ='[2]2016'!P15 -> 225205 | AJ121: ='[2]2016'!Q15 -> 0 | AK121: ='[2]2016'!R15 -> 0 | AL121: 0 | AM121: - | AN121: ='[2]2017'!P15 -> 50000 | AO121: ='[2]2017'!Q15 -> 0 | AP121: ='[2]2017'!R15 -> 0 | AQ121: 0 | AR121: - | AS121: ='[2]2018'!P15 -> 0 | AT121: ='[2]2018'!Q15 -> 0 | AU121: ='[2]2018'!R15 -> 0 | AV121: - | AW121: - | AX121: ='[2]2019'!P15 -> 0 | AY121: ='[2]2019'!Q15 -> 0 | AZ121: ='[2]2019'!R15 -> 0 | BA121: - | BB121: - | BC121: 275205 | BD121: 0 | BE121: 0 | BF121: 0 | BG121: - | BH121: ='[1]LÍNEA 1'!AO121 -> 16. Paz, justicia e instituciones sólidas | BI121: ='[1]LÍNEA 1'!AP121 -> Justicia y Seguridad | BJ121: Sec. Interior
K122: Descongestionar 9.000 procesos de las inspecciones iniciados antes del 2012 y que impiden la buena atención al ciudadano. | L122: ='[1]LÍNEA 1'!P122 -> - | M122: ='[1]LÍNEA 1'!Q122 -> Número de procesos descongestionados de las inspecciones iniciados antes del 2012 y que impiden la buena atención al ciudadano. | N122: 0 | O122: ='[1]LÍNEA 1'!S122 -> 9000 | P122: ='[1]LÍNEA 1'!T122 -> 3000 | Q122: ='[1]LÍNEA 1'!U122 -> 2000 | R122: ='[1]LÍNEA 1'!V122 -> 2000 | S122: ='[1]LÍNEA 1'!W122 -> 2000 | T122: ='[2]2016'!K16 -> 4077 | U122: ='[2]2017'!K16 -> 0 | V122: ='[2]2018'!K16 -> 0 | W122: ='[2]2019'!K16 -> 0 | X122: =IF(P122=0," -",T122/P122) -> 1.359 | Y122: =IF(P122=0," -",IF(X122>100%,100%,X122)) -> 1 | Z122: =IF(Q122=0," -",U122/Q122) -> 0 | AA122: =IF(Q122=0," -",IF(Z122>100%,100%,Z122)) -> 0 | AB122: =IF(R122=0," -",V122/R122) -> 0 | AC122: =IF(R122=0," -",IF(AB122>100%,100%,AB122)) -> 0 | AD122: =IF(S122=0," -",W122/S122) -> 0 | AE122: =IF(S122=0," -",IF(AD122>100%,100%,AD122)) -> 0 | AF122: =+SUM(T122:W122)/O122 -> 0.453 | AG122: 0.453 | AH122: 0.453 | AI122: ='[2]2016'!P16 -> 256848 | AJ122: ='[2]2016'!Q16 -> 256633 | AK122: ='[2]2016'!R16 -> 0 | AL122: 0.999162929 | AM122: - | AN122: ='[2]2017'!P16 -> 115500 | AO122: ='[2]2017'!Q16 -> 0 | AP122: ='[2]2017'!R16 -> 0 | AQ122: 0 | AR122: - | AS122: ='[2]2018'!P16 -> 0 | AT122: ='[2]2018'!Q16 -> 0 | AU122: ='[2]2018'!R16 -> 0 | AV122: - | AW122: - | AX122: ='[2]2019'!P16 -> 0 | AY122: ='[2]2019'!Q16 -> 0 | AZ122: ='[2]2019'!R16 -> 0 | BA122: - | BB122: - | BC122: 372348 | BD122: 256633 | BE122: 0 | BF122: 0.6892288934 | BG122: - | BH122: ='[1]LÍNEA 1'!AO122 -> 16. Paz, justicia e instituciones sólidas | BI122: ='[1]LÍNEA 1'!AP122 -> Justicia y Seguridad | BJ122: Sec. Interior
K123: Formular e implementar 1 plan de descongestión y gestión. | L123: ='[1]LÍNEA 1'!P123 -> - | M123: ='[1]LÍNEA 1'!Q123 -> Número de planes de descongestión y gestión formulados e implementados. | N123: 1 | O123: ='[1]LÍNEA 1'!S123 -> 1 | P123: ='[1]LÍNEA 1'!T123 -> 1 | Q123: ='[1]LÍNEA 1'!U123 -> 1 | R123: ='[1]LÍNEA 1'!V123 -> 1 | S123: ='[1]LÍNEA 1'!W123 -> 1 | T123: ='[2]2016'!K17 -> 1 | U123: ='[2]2017'!K17 -> 0 | V123: ='[2]2018'!K17 -> 0 | W123: ='[2]2019'!K17 -> 0 | X123: =IF(P123=0," -",T123/P123) -> 1 | Y123: =IF(P123=0," -",IF(X123>100%,100%,X123)) -> 1 | Z123: =IF(Q123=0," -",U123/Q123) -> 0 | AA123: =IF(Q123=0," -",IF(Z123>100%,100%,Z123)) -> 0 | AB123: =IF(R123=0," -",V123/R123) -> 0 | AC123: =IF(R123=0," -",IF(AB123>100%,100%,AB123)) -> 0 | AD123: =IF(S123=0," -",W123/S123) -> 0 | AE123: =IF(S123=0," -",IF(AD123>100%,100%,AD123)) -> 0 | AF123: =+AVERAGE(T123:W123)/O123 -> 0.25 | AG123: 0.25 | AH123: 0.25 | AI123: ='[2]2016'!P17 -> 0 | AJ123: ='[2]2016'!Q17 -> 0 | AK123: ='[2]2016'!R17 -> 0 | AL123: - | AM123: - | AN123: ='[2]2017'!P17 -> 825000 | AO123: ='[2]2017'!Q17 -> 0 | AP123: ='[2]2017'!R17 -> 0 | AQ123: 0 | AR123: - | AS123: ='[2]2018'!P17 -> 0 | AT123: ='[2]2018'!Q17 -> 0 | AU123: ='[2]2018'!R17 -> 0 | AV123: - | AW123: - | AX123: ='[2]2019'!P17 -> 0 | AY123: ='[2]2019'!Q17 -> 0 | AZ123: ='[2]2019'!R17 -> 0 | BA123: - | BB123: - | BC123: 825000 | BD123: 0 | BE123: 0 | BF123: 0 | BG123: - | BH123: ='[1]LÍNEA 1'!AO123 -> 16. Paz, justicia e instituciones sólidas | BI123: ='[1]LÍNEA 1'!AP123 -> Justicia y Seguridad | BJ123: Sec. Interior
K124: Formular e implementar 1 estrategia robusta de transparencia en las inspecciones. | L124: ='[1]LÍNEA 1'!P124 -> - | M124: ='[1]LÍNEA 1'!Q124 -> Número de estrategias robustas de transparencia en las inspecciones formulados e implementados. | N124: 0 | O124: ='[1]LÍNEA 1'!S124 -> 1 | P124: ='[1]LÍNEA 1'!T124 -> 1 | Q124: ='[1]LÍNEA 1'!U124 -> 1 | R124: ='[1]LÍNEA 1'!V124 -> 1 | S124: ='[1]LÍNEA 1'!W124 -> 1 | T124: ='[2]2016'!K18 -> 1 | U124: ='[2]2017'!K18 -> 0 | V124: ='[2]2018'!K18 -> 0 | W124: ='[2]2019'!K18 -> 0 | X124: =IF(P124=0," -",T124/P124) -> 1 | Y124: =IF(P124=0," -",IF(X124>100%,100%,X124)) -> 1 | Z124: =IF(Q124=0," -",U124/Q124) -> 0 | AA124: =IF(Q124=0," -",IF(Z124>100%,100%,Z124)) -> 0 | AB124: =IF(R124=0," -",V124/R124) -> 0 | AC124: =IF(R124=0," -",IF(AB124>100%,100%,AB124)) -> 0 | AD124: =IF(S124=0," -",W124/S124) -> 0 | AE124: =IF(S124=0," -",IF(AD124>100%,100%,AD124)) -> 0 | AF124: =+AVERAGE(T124:W124)/O124 -> 0.25 | AG124: 0.25 | AH124: 0.25 | AI124: ='[2]2016'!P18 -> 0 | AJ124: ='[2]2016'!Q18 -> 0 | AK124: ='[2]2016'!R18 -> 0 | AL124: - | AM124: - | AN124: ='[2]2017'!P18 -> 0 | AO124: ='[2]2017'!Q18 -> 0 | AP124: ='[2]2017'!R18 -> 0 | AQ124: - | AR124: - | AS124: ='[2]2018'!P18 -> 0 | AT124: ='[2]2018'!Q18 -> 0 | AU124: ='[2]2018'!R18 -> 0 | AV124: - | AW124: - | AX124: ='[2]2019'!P18 -> 0 | AY124: ='[2]2019'!Q18 -> 0 | AZ124: ='[2]2019'!R18 -> 0 | BA124: - | BB124: - | BC124: 0 | BD124: 0 | BE124: 0 | BF124: - | BG124: - | BH124: ='[1]LÍNEA 1'!AO124 -> 16. Paz, justicia e instituciones sólidas | BI124: ='[1]LÍNEA 1'!AP124 -> Justicia y Seguridad | BJ124: Sec. Interior
K125: Crear 4 cargos supernumerarios para la descongestión de las inspecciones municipales de policía. | L125: ='[1]LÍNEA 1'!P125 -> - | M125: ='[1]LÍNEA 1'!Q125 -> Número de cargos supernumerarios creados para la descongestión de las inspecciones municipales de policía. | N125: 0 | O125: ='[1]LÍNEA 1'!S125 -> 4 | P125: ='[1]LÍNEA 1'!T125 -> 0 | Q125: ='[1]LÍNEA 1'!U125 -> 4 | R125: ='[1]LÍNEA 1'!V125 -> 0 | S125: ='[1]LÍNEA 1'!W125 -> 0 | T125: ='[2]2016'!K19 -> 0 | U125: ='[2]2017'!K19 -> 0 | V125: ='[2]2018'!K19 -> 0 | W125: ='[2]2019'!K19 -> 0 | X125: =IF(P125=0," -",T125/P125) -> - | Y125: =IF(P125=0," -",IF(X125>100%,100%,X125)) -> - | Z125: =IF(Q125=0," -",U125/Q125) -> 0 | AA125: =IF(Q125=0," -",IF(Z125>100%,100%,Z125)) -> 0 | AB125: =IF(R125=0," -",V125/R125) -> - | AC125: =IF(R125=0," -",IF(AB125>100%,100%,AB125)) -> - | AD125: =IF(S125=0," -",W125/S125) -> - | AE125: =IF(S125=0," -",IF(AD125>100%,100%,AD125)) -> - | AF125: =+SUM(T125:W125)/O125 -> 0 | AG125: 0 | AH125: 0 | AI125: ='[2]2016'!P19 -> 0 | AJ125: ='[2]2016'!Q19 -> 0 | AK125: ='[2]2016'!R19 -> 0 | AL125: - | AM125: - | AN125: ='[2]2017'!P19 -> 0 | AO125: ='[2]2017'!Q19 -> 0 | AP125: ='[2]2017'!R19 -> 0 | AQ125: - | AR125: - | AS125: ='[2]2018'!P19 -> 0 | AT125: ='[2]2018'!Q19 -> 0 | AU125: ='[2]2018'!R19 -> 0 | AV125: - | AW125: - | AX125: ='[2]2019'!P19 -> 0 | AY125: ='[2]2019'!Q19 -> 0 | AZ125: ='[2]2019'!R19 -> 0 | BA125: - | BB125: - | BC125: 0 | BD125: 0 | BE125: 0 | BF125: - | BG125: - | BH125: ='[1]LÍNEA 1'!AO125 -> 16. Paz, justicia e instituciones sólidas | BI125: ='[1]LÍNEA 1'!AP125 -> Justicia y Seguridad | BJ125: Sec. Interior
F126: Lograr la probabilidad del 75% de cumplir la función administrativa según INTEGRA. | G126: 0.6198 | H126: =+'[1]LÍNEA 1'!H126 -> 0.75 | K126: Mejorar y equipar las 2 sedes de comisaría de familia (Norte y Joya). | L126: ='[1]LÍNEA 1'!P126 -> 2210264 | M126: ='[1]LÍNEA 1'!Q126 -> Número de sedes de comisarías de familia (Norte y Joya) mejoradas y equipadas. | N126: 2 | O126: ='[1]LÍNEA 1'!S126 -> 2 | P126: ='[1]LÍNEA 1'!T126 -> 0 | Q126: ='[1]LÍNEA 1'!U126 -> 0 | R126: ='[1]LÍNEA 1'!V126 -> 2 | S126: ='[1]LÍNEA 1'!W126 -> 0 | T126: ='[2]2016'!K20 -> 0 | U126: ='[2]2017'!K20 -> 0 | V126: ='[2]2018'!K20 -> 0 | W126: ='[2]2019'!K20 -> 0 | X126: =IF(P126=0," -",T126/P126) -> - | Y126: =IF(P126=0," -",IF(X126>100%,100%,X126)) -> - | Z126: =IF(Q126=0," -",U126/Q126) -> - | AA126: =IF(Q126=0," -",IF(Z126>100%,100%,Z126)) -> - | AB126: =IF(R126=0," -",V126/R126) -> 0 | AC126: =IF(R126=0," -",IF(AB126>100%,100%,AB126)) -> 0 | AD126: =IF(S126=0," -",W126/S126) -> - | AE126: =IF(S126=0," -",IF(AD126>100%,100%,AD126)) -> - | AF126: =+SUM(T126:W126)/O126 -> 0 | AG126: 0 | AH126: 0 | AI126: ='[2]2016'!P20 -> 0 | AJ126: ='[2]2016'!Q20 -> 0 | AK126: ='[2]2016'!R20 -> 0 | AL126: - | AM126: - | AN126: ='[2]2017'!P20 -> 0 | AO126: ='[2]2017'!Q20 -> 0 | AP126: ='[2]2017'!R20 -> 0 | AQ126: - | AR126: - | AS126: ='[2]2018'!P20 -> 0 | AT126: ='[2]2018'!Q20 -> 0 | AU126: ='[2]2018'!R20 -> 0 | AV126: - | AW126: - | AX126: ='[2]2019'!P20 -> 0 | AY126: ='[2]2019'!Q20 -> 0 | AZ126: ='[2]2019'!R20 -> 0 | BA126: - | BB126: - | BC126: 0 | BD126: 0 | BE126: 0 | BF126: - | BG126: - | BH126: ='[1]LÍNEA 1'!AO126 -> 16. Paz, justicia e instituciones sólidas | BI126: ='[1]LÍNEA 1'!AP126 -> Justicia y Seguridad | BJ126: Sec. Interior
K127: Adecuar y equipar las 2 sedes nuevas de comisaría de familia (Oriente y Sur). | L127: ='[1]LÍNEA 1'!P127 -> - | M127: ='[1]LÍNEA 1'!Q127 -> Número de sedes nuevas de comisarías de familias (Oriente y Sur) adecuadas y equipadas. | N127: 0 | O127: ='[1]LÍNEA 1'!S127 -> 2 | P127: ='[1]LÍNEA 1'!T127 -> 0 | Q127: ='[1]LÍNEA 1'!U127 -> 0 | R127: ='[1]LÍNEA 1'!V127 -> 1 | S127: ='[1]LÍNEA 1'!W127 -> 1 | T127: ='[2]2016'!K21 -> 0 | U127: ='[2]2017'!K21 -> 0 | V127: ='[2]2018'!K21 -> 0 | W127: ='[2]2019'!K21 -> 0 | X127: =IF(P127=0," -",T127/P127) -> - | Y127: =IF(P127=0," -",IF(X127>100%,100%,X127)) -> - | Z127: =IF(Q127=0," -",U127/Q127) -> - | AA127: =IF(Q127=0," -",IF(Z127>100%,100%,Z127)) -> - | AB127: =IF(R127=0," -",V127/R127) -> 0 | AC127: =IF(R127=0," -",IF(AB127>100%,100%,AB127)) -> 0 | AD127: =IF(S127=0," -",W127/S127) -> 0 | AE127: =IF(S127=0," -",IF(AD127>100%,100%,AD127)) -> 0 | AF127: =+SUM(T127:W127)/O127 -> 0 | AG127: 0 | AH127: 0 | AI127: ='[2]2016'!P21 -> 0 | AJ127: ='[2]2016'!Q21 -> 0 | AK127: ='[2]2016'!R21 -> 0 | AL127: - | AM127: - | AN127: ='[2]2017'!P21 -> 0 | AO127: ='[2]2017'!Q21 -> 0 | AP127: ='[2]2017'!R21 -> 0 | AQ127: - | AR127: - | AS127: ='[2]2018'!P21 -> 0 | AT127: ='[2]2018'!Q21 -> 0 | AU127: ='[2]2018'!R21 -> 0 | AV127: - | AW127: - | AX127: ='[2]2019'!P21 -> 0 | AY127: ='[2]2019'!Q21 -> 0 | AZ127: ='[2]2019'!R21 -> 0 | BA127: - | BB127: - | BC127: 0 | BD127: 0 | BE127: 0 | BF127: - | BG127: - | BH127: ='[1]LÍNEA 1'!AO127 -> 16. Paz, justicia e instituciones sólidas | BI127: ='[1]LÍNEA 1'!AP127 -> Justicia y Seguridad | BJ127: Sec. Interior
K128: Digitalizar y sistematizar el 100% el procedimiento del funcionamiento de las comisarías de familia. | L128: ='[1]LÍNEA 1'!P128 -> 0 | M128: ='[1]LÍNEA 1'!Q128 -> Porcentaje de procedimientos de las comisarías de familia digitalizados y sistematizados, | N128: 0 | O128: ='[1]LÍNEA 1'!S128 -> 1 | P128: ='[1]LÍNEA 1'!T128 -> 0 | Q128: ='[1]LÍNEA 1'!U128 -> 1 | R128: ='[1]LÍNEA 1'!V128 -> 0 | S128: ='[1]LÍNEA 1'!W128 -> 0 | T128: ='[2]2016'!K22 -> 0 | U128: ='[2]2017'!K22 -> 0 | V128: ='[2]2018'!K22 -> 0 | W128: ='[2]2019'!K22 -> 0 | X128: =IF(P128=0," -",T128/P128) -> - | Y128: =IF(P128=0," -",IF(X128>100%,100%,X128)) -> - | Z128: =IF(Q128=0," -",U128/Q128) -> 0 | AA128: =IF(Q128=0," -",IF(Z128>100%,100%,Z128)) -> 0 | AB128: =IF(R128=0," -",V128/R128) -> - | AC128: =IF(R128=0," -",IF(AB128>100%,100%,AB128)) -> - | AD128: =IF(S128=0," -",W128/S128) -> - | AE128: =IF(S128=0," -",IF(AD128>100%,100%,AD128)) -> - | AF128: =+SUM(T128:W128)/O128 -> 0 | AG128: 0 | AH128: 0 | AI128: ='[2]2016'!P22 -> 91425 | AJ128: ='[2]2016'!Q22 -> 0 | AK128: ='[2]2016'!R22 -> 0 | AL128: 0 | AM128: - | AN128: ='[2]2017'!P22 -> 70000 | AO128: ='[2]2017'!Q22 -> 0 | AP128: ='[2]2017'!R22 -> 0 | AQ128: 0 | AR128: - | AS128: ='[2]2018'!P22 -> 0 | AT128: ='[2]2018'!Q22 -> 0 | AU128: ='[2]2018'!R22 -> 0 | AV128: - | AW128: - | AX128: ='[2]2019'!P22 -> 0 | AY128: ='[2]2019'!Q22 -> 0 | AZ128: ='[2]2019'!R22 -> 0 | BA128: - | BB128: - | BC128: 161425 | BD128: 0 | BE128: 0 | BF128: 0 | BG128: - | BH128: ='[1]LÍNEA 1'!AO128 -> 16. Paz, justicia e instituciones sólidas | BI128: ='[1]LÍNEA 1'!AP128 -> Justicia y Seguridad | BJ128: Sec. Interior
K129: Implementar y mantener 1 plan de mejoramiento en las comisarías de familia. | L129: ='[1]LÍNEA 1'!P129 -> - | M129: ='[1]LÍNEA 1'!Q129 -> Número de planes de mejoramiento de las comisarías de familia implementadas y mantenidas. | N129: 1 | O129: ='[1]LÍNEA 1'!S129 -> 1 | P129: ='[1]LÍNEA 1'!T129 -> 0 | Q129: ='[1]LÍNEA 1'!U129 -> 1 | R129: ='[1]LÍNEA 1'!V129 -> 1 | S129: ='[1]LÍNEA 1'!W129 -> 1 | T129: ='[2]2016'!K23 -> 0.5 | U129: ='[2]2017'!K23 -> 0 | V129: ='[2]2018'!K23 -> 0 | W129: ='[2]2019'!K23 -> 0 | X129: =IF(P129=0," -",T129/P129) -> - | Y129: =IF(P129=0," -",IF(X129>100%,100%,X129)) -> - | Z129: =IF(Q129=0," -",U129/Q129) -> 0 | AA129: =IF(Q129=0," -",IF(Z129>100%,100%,Z129)) -> 0 | AB129: =IF(R129=0," -",V129/R129) -> 0 | AC129: =IF(R129=0," -",IF(AB129>100%,100%,AB129)) -> 0 | AD129: =IF(S129=0," -",W129/S129) -> 0 | AE129: =IF(S129=0," -",IF(AD129>100%,100%,AD129)) -> 0 | AF129: =+AVERAGE(U129:W129)/O129 -> 0 | AG129: 0 | AH129: 0 | AI129: ='[2]2016'!P23 -> 98000 | AJ129: ='[2]2016'!Q23 -> 0 | AK129: ='[2]2016'!R23 -> 0 | AL129: 0 | AM129: - | AN129: ='[2]2017'!P23 -> 37400 | AO129: ='[2]2017'!Q23 -> 0 | AP129: ='[2]2017'!R23 -> 0 | AQ129: 0 | AR129: - | AS129: ='[2]2018'!P23 -> 0 | AT129: ='[2]2018'!Q23 -> 0 | AU129: ='[2]2018'!R23 -> 0 | AV129: - | AW129: - | AX129: ='[2]2019'!P23 -> 0 | AY129: ='[2]2019'!Q23 -> 0 | AZ129: ='[2]2019'!R23 -> 0 | BA129: - | BB129: - | BC129: 135400 | BD129: 0 | BE129: 0 | BF129: 0 | BG129: - | BH129: ='[1]LÍNEA 1'!AO129 -> 16. Paz, justicia e instituciones sólidas | BI129: ='[1]LÍNEA 1'!AP129 -> Justicia y Seguridad | BJ129: Sec. Interior
I130: =+RESUMEN!J26 -> 0.3625 | J130: CULTURA DE LA LEGALIDAD Y LA ÉTICA PÚBLICA | K130: Realizar 8 capacitaciones dirigidas a servidores públicos en lo atinente al régimen disciplinario de los servidores públicos. | L130: ='[1]LÍNEA 1'!P130 -> - | M130: ='[1]LÍNEA 1'!Q130 -> Número de capacitaciones realizadas dirigidas a servidores públicos en lo atinente al régimen disciplinario de los servidores públicos. | N130: 8 | O130: ='[1]LÍNEA 1'!S130 -> 8 | P130: ='[1]LÍNEA 1'!T130 -> 2 | Q130: ='[1]LÍNEA 1'!U130 -> 2 | R130: ='[1]LÍNEA 1'!V130 -> 2 | S130: ='[1]LÍNEA 1'!W130 -> 2 | T130: ='[19]2016'!K12 -> 3 | U130: ='[19]2017'!K12 -> 0 | V130: ='[19]2018'!K12 -> 0 | W130: ='[19]2019'!K12 -> 0 | X130: =IF(P130=0," -",T130/P130) -> 1.5 | Y130: =IF(P130=0," -",IF(X130>100%,100%,X130)) -> 1 | Z130: =IF(Q130=0," -",U130/Q130) -> 0 | AA130: =IF(Q130=0," -",IF(Z130>100%,100%,Z130)) -> 0 | AB130: =IF(R130=0," -",V130/R130) -> 0 | AC130: =IF(R130=0," -",IF(AB130>100%,100%,AB130)) -> 0 | AD130: =IF(S130=0," -",W130/S130) -> 0 | AE130: =IF(S130=0," -",IF(AD130>100%,100%,AD130)) -> 0 | AF130: =+SUM(T130:W130)/O130 -> 0.375 | AG130: 0.375 | AH130: 0.375 | AI130: ='[19]2016'!P12 -> 0 | AJ130: ='[19]2016'!Q12 -> 0 | AK130: ='[19]2016'!R12 -> 0 | AL130: - | AM130: - | AN130: ='[19]2017'!P12 -> 0 | AO130: ='[19]2017'!Q12 -> 0 | AP130: ='[19]2017'!R12 -> 0 | AQ130: - | AR130: - | AS130: ='[19]2018'!P12 -> 0 | AT130: ='[19]2018'!Q12 -> 0 | AU130: ='[19]2018'!R12 -> 0 | AV130: - | AW130: - | AX130: ='[19]2019'!P12 -> 0 | AY130: ='[19]2019'!Q12 -> 0 | AZ130: ='[19]2019'!R12 -> 0 | BA130: - | BB130: - | BC130: 0 | BD130: 0 | BE130: 0 | BF130: - | BG130: - | BH130: ='[1]LÍNEA 1'!AO130 -> 16. Paz, justicia e instituciones sólidas | BI130: ='[1]LÍNEA 1'!AP130 -> Justicia y Seguridad | BJ130: Ofc. Control Interno Disciplinario
K131: Crear y mantener 1 base de datos que permita tener acceso ágil a la información de procesos que se adelantan. | L131: ='[1]LÍNEA 1'!P131 -> - | M131: ='[1]LÍNEA 1'!Q131 -> Número de bases de datos creadas y mantenidas que permitan tener acceso ágil a la información de procesos que se adelantan. | N131: 0 | O131: ='[1]LÍNEA 1'!S131 -> 1 | P131: ='[1]LÍNEA 1'!T131 -> 1 | Q131: ='[1]LÍNEA 1'!U131 -> 1 | R131: ='[1]LÍNEA 1'!V131 -> 1 | S131: ='[1]LÍNEA 1'!W131 -> 1 | T131: ='[19]2016'!K13 -> 1 | U131: ='[19]2017'!K13 -> 0 | V131: ='[19]2018'!K13 -> 0 | W131: ='[19]2019'!K13 -> 0 | X131: =IF(P131=0," -",T131/P131) -> 1 | Y131: =IF(P131=0," -",IF(X131>100%,100%,X131)) -> 1 | Z131: =IF(Q131=0," -",U131/Q131) -> 0 | AA131: =IF(Q131=0," -",IF(Z131>100%,100%,Z131)) -> 0 | AB131: =IF(R131=0," -",V131/R131) -> 0 | AC131: =IF(R131=0," -",IF(AB131>100%,100%,AB131)) -> 0 | AD131: =IF(S131=0," -",W131/S131) -> 0 | AE131: =IF(S131=0," -",IF(AD131>100%,100%,AD131)) -> 0 | AF131: =+AVERAGE(T131:W131)/O131 -> 0.25 | AG131: 0.25 | AH131: 0.25 | AI131: ='[19]2016'!P13 -> 0 | AJ131: ='[19]2016'!Q13 -> 0 | AK131: ='[19]2016'!R13 -> 0 | AL131: - | AM131: - | AN131: ='[19]2017'!P13 -> 0 | AO131: ='[19]2017'!Q13 -> 0 | AP131: ='[19]2017'!R13 -> 0 | AQ131: - | AR131: - | AS131: ='[19]2018'!P13 -> 0 | AT131: ='[19]2018'!Q13 -> 0 | AU131: ='[19]2018'!R13 -> 0 | AV131: - | AW131: - | AX131: ='[19]2019'!P13 -> 0 | AY131: ='[19]2019'!Q13 -> 0 | AZ131: ='[19]2019'!R13 -> 0 | BA131: - | BB131: - | BC131: 0 | BD131: 0 | BE131: 0 | BF131: - | BG131: - | BH131: ='[1]LÍNEA 1'!AO131 -> 16. Paz, justicia e instituciones sólidas | BI131: ='[1]LÍNEA 1'!AP131 -> Justicia y Seguridad | BJ131: Ofc. Control Interno Disciplinario
K132: Mantener el seguimiento, asesoría y evaluación a los 19 procesos de la Administración Central. | L132: ='[1]LÍNEA 1'!P132 -> - | M132: ='[1]LÍNEA 1'!Q132 -> Número de procesos de la Administración Central con seguimiento, asesoría y evaluación mantenidos. | N132: 19 | O132: ='[1]LÍNEA 1'!S132 -> 19 | P132: ='[1]LÍNEA 1'!T132 -> 19 | Q132: ='[1]LÍNEA 1'!U132 -> 19 | R132: ='[1]LÍNEA 1'!V132 -> 19 | S132: ='[1]LÍNEA 1'!W132 -> 19 | T132: ='[20]2016'!$K$12 -> 19 | U132: ='[20]2017'!$K$12 -> 0 | V132: ='[20]2018'!$K$12 -> 0 | W132: ='[20]2019'!$K$12 -> 0 | X132: =IF(P132=0," -",T132/P132) -> 1 | Y132: =IF(P132=0," -",IF(X132>100%,100%,X132)) -> 1 | Z132: =IF(Q132=0," -",U132/Q132) -> 0 | AA132: =IF(Q132=0," -",IF(Z132>100%,100%,Z132)) -> 0 | AB132: =IF(R132=0," -",V132/R132) -> 0 | AC132: =IF(R132=0," -",IF(AB132>100%,100%,AB132)) -> 0 | AD132: =IF(S132=0," -",W132/S132) -> 0 | AE132: =IF(S132=0," -",IF(AD132>100%,100%,AD132)) -> 0 | AF132: =+AVERAGE(T132:W132)/O132 -> 0.25 | AG132: 0.25 | AH132: 0.25 | AI132: ='[20]2016'!P12 -> 0 | AJ132: ='[20]2016'!Q12 -> 0 | AK132: ='[20]2016'!R12 -> 0 | AL132: - | AM132: - | AN132: ='[20]2017'!P12 -> 0 | AO132: ='[20]2017'!Q12 -> 0 | AP132: ='[20]2017'!R12 -> 0 | AQ132: - | AR132: - | AS132: ='[20]2018'!P12 -> 0 | AT132: ='[20]2018'!Q12 -> 0 | AU132: ='[20]2018'!R12 -> 0 | AV132: - | AW132: - | AX132: ='[20]2019'!P12 -> 0 | AY132: ='[20]2019'!Q12 -> 0 | AZ132: ='[20]2019'!R12 -> 0 | BA132: - | BB132: - | BC132: 0 | BD132: 0 | BE132: 0 | BF132: - | BG132: - | BH132: ='[1]LÍNEA 1'!AO132 -> 16. Paz, justicia e instituciones sólidas | BI132: ='[1]LÍNEA 1'!AP132 -> Justicia y Seguridad | BJ132: Ofc. Control Interno
K133: Implementar y mantener 1 estrategia de gobierno para la promoción y adopción de la Cultura de la Legalidad y la Integridad para Colombia CLIC entre los servidores públicos y la ciudadanía. | L133: ='[1]LÍNEA 1'!P133 -> - | M133: ='[1]LÍNEA 1'!Q133 -> Número de estrategias de gobierno implementadas y mantenidas para la promoción y adopción de la Cultura de la Legalidad y la Integridad para Colombia CLIC entre los servidores públicos y la ciudadanía. | N133: 0 | O133: ='[1]LÍNEA 1'!S133 -> 1 | P133: ='[1]LÍNEA 1'!T133 -> 1 | Q133: ='[1]LÍNEA 1'!U133 -> 1 | R133: ='[1]LÍNEA 1'!V133 -> 1 | S133: ='[1]LÍNEA 1'!W133 -> 1 | T133: ='[14]2016'!K21 -> 0.7 | U133: ='[14]2017'!K21 -> 0 | V133: ='[14]2018'!K21 -> 0 | W133: ='[14]2019'!K21 -> 0 | X133: =IF(P133=0," -",T133/P133) -> 0.7 | Y133: =IF(P133=0," -",IF(X133>100%,100%,X133)) -> 0.7 | Z133: =IF(Q133=0," -",U133/Q133) -> 0 | AA133: =IF(Q133=0," -",IF(Z133>100%,100%,Z133)) -> 0 | AB133: =IF(R133=0," -",V133/R133) -> 0 | AC133: =IF(R133=0," -",IF(AB133>100%,100%,AB133)) -> 0 | AD133: =IF(S133=0," -",W133/S133) -> 0 | AE133: =IF(S133=0," -",IF(AD133>100%,100%,AD133)) -> 0 | AF133: =+AVERAGE(T133:W133)/O133 -> 0.175 | AG133: 0.175 | AH133: 0.175 | AI133: ='[14]2016'!P21 -> 0 | AJ133: ='[14]2016'!Q21 -> 0 | AK133: ='[14]2016'!R21 -> 0 | AL133: - | AM133: - | AN133: ='[14]2017'!P21 -> 0 | AO133: ='[14]2017'!Q21 -> 0 | AP133: ='[14]2017'!R21 -> 0 | AQ133: - | AR133: - | AS133: ='[14]2018'!P21 -> 0 | AT133: ='[14]2018'!Q21 -> 0 | AU133: ='[14]2018'!R21 -> 0 | AV133: - | AW133: - | AX133: ='[14]2019'!P21 -> 0 | AY133: ='[14]2019'!Q21 -> 0 | AZ133: ='[14]2019'!R21 -> 0 | BA133: - | BB133: - | BC133: 0 | BD133: 0 | BE133: 0 | BF133: - | BG133: - | BH133: ='[1]LÍNEA 1'!AO133 -> 16. Paz, justicia e instituciones sólidas | BI133: ='[1]LÍNEA 1'!AP133 -> Justicia y Seguridad | BJ133: Sec. Jurídica
K134: Realizar 8 capacitaciones en materia de contratación estatal dirigida a servidores públicos. | L134: ='[1]LÍNEA 1'!P134 -> 0 | M134: ='[1]LÍNEA 1'!Q134 -> Número de capacitaciones realizadas en materia de contratación estatal dirigida a servidores públicos. | N134: 0 | O134: ='[1]LÍNEA 1'!S134 -> 8 | P134: ='[1]LÍNEA 1'!T134 -> 2 | Q134: ='[1]LÍNEA 1'!U134 -> 2 | R134: ='[1]LÍNEA 1'!V134 -> 2 | S134: ='[1]LÍNEA 1'!W134 -> 2 | T134: ='[14]2016'!K22 -> 7 | U134: ='[14]2017'!K22 -> 0 | V134: ='[14]2018'!K22 -> 0 | W134: ='[14]2019'!K22 -> 0 | X134: =IF(P134=0," -",T134/P134) -> 3.5 | Y134: =IF(P134=0," -",IF(X134>100%,100%,X134)) -> 1 | Z134: =IF(Q134=0," -",U134/Q134) -> 0 | AA134: =IF(Q134=0," -",IF(Z134>100%,100%,Z134)) -> 0 | AB134: =IF(R134=0," -",V134/R134) -> 0 | AC134: =IF(R134=0," -",IF(AB134>100%,100%,AB134)) -> 0 | AD134: =IF(S134=0," -",W134/S134) -> 0 | AE134: =IF(S134=0," -",IF(AD134>100%,100%,AD134)) -> 0 | AF134: =+SUM(T134:W134)/O134 -> 0.875 | AG134: 0.875 | AH134: 0.875 | AI134: ='[14]2016'!P22 -> 0 | AJ134: ='[14]2016'!Q22 -> 0 | AK134: ='[14]2016'!R22 -> 11400 | AL134: - | AM134: 1 | AN134: ='[14]2017'!P22 -> 20000 | AO134: ='[14]2017'!Q22 -> 0 | AP134: ='[14]2017'!R22 -> 0 | AQ134: 0 | AR134: - | AS134: ='[14]2018'!P22 -> 50000 | AT134: ='[14]2018'!Q22 -> 0 | AU134: ='[14]2018'!R22 -> 0 | AV134: 0 | AW134: - | AX134: ='[14]2019'!P22 -> 50000 | AY134: ='[14]2019'!Q22 -> 0 | AZ134: ='[14]2019'!R22 -> 0 | BA134: 0 | BB134: - | BC134: 120000 | BD134: 0 | BE134: 11400 | BF134: 0 | BG134: 1 | BH134: ='[1]LÍNEA 1'!AO134 -> 16. Paz, justicia e instituciones sólidas | BI134: ='[1]LÍNEA 1'!AP134 -> Justicia y Seguridad | BJ134: Sec. Jurídica
K135: Implementar y mantener 1 estrategia de comunicaciones pedagógica para socializar y fortalecer el sentido de la ética en la gestión pública entre las diversas dependencias. | L135: ='[1]LÍNEA 1'!P135 -> - | M135: ='[1]LÍNEA 1'!Q135 -> Número de estrategias de comunicaciones pedagógicas implementadas y mantenidas para socializar y fortalecer el sentido de la ética en la gestión pública entre las diversas dependencias. | N135: 0 | O135: ='[1]LÍNEA 1'!S135 -> 1 | P135: ='[1]LÍNEA 1'!T135 -> 1 | Q135: ='[1]LÍNEA 1'!U135 -> 1 | R135: ='[1]LÍNEA 1'!V135 -> 1 | S135: ='[1]LÍNEA 1'!W135 -> 1 | T135: ='[14]2016'!K23 -> 1 | U135: ='[14]2017'!K23 -> 0 | V135: ='[14]2018'!K23 -> 0 | W135: ='[14]2019'!K23 -> 0 | X135: =IF(P135=0," -",T135/P135) -> 1 | Y135: =IF(P135=0," -",IF(X135>100%,100%,X135)) -> 1 | Z135: =IF(Q135=0," -",U135/Q135) -> 0 | AA135: =IF(Q135=0," -",IF(Z135>100%,100%,Z135)) -> 0 | AB135: =IF(R135=0," -",V135/R135) -> 0 | AC135: =IF(R135=0," -",IF(AB135>100%,100%,AB135)) -> 0 | AD135: =IF(S135=0," -",W135/S135) -> 0 | AE135: =IF(S135=0," -",IF(AD135>100%,100%,AD135)) -> 0 | AF135: =+AVERAGE(T135:W135)/O135 -> 0.25 | AG135: 0.25 | AH135: 0.25 | AI135: ='[14]2016'!P23 -> 0 | AJ135: ='[14]2016'!Q23 -> 0 | AK135: ='[14]2016'!R23 -> 0 | AL135: - | AM135: - | AN135: ='[14]2017'!P23 -> 0 | AO135: ='[14]2017'!Q23 -> 0 | AP135: ='[14]2017'!R23 -> 0 | AQ135: - | AR135: - | AS135: ='[14]2018'!P23 -> 0 | AT135: ='[14]2018'!Q23 -> 0 | AU135: ='[14]2018'!R23 -> 0 | AV135: - | AW135: - | AX135: ='[14]2019'!P23 -> 0 | AY135: ='[14]2019'!Q23 -> 0 | AZ135: ='[14]2019'!R23 -> 0 | BA135: - | BB135: - | BC135: 0 | BD135: 0 | BE135: 0 | BF135: - | BG135: - | BH135: ='[1]LÍNEA 1'!AO135 -> 16. Paz, justicia e instituciones sólidas | BI135: ='[1]LÍNEA 1'!AP135 -> Justicia y Seguridad | BJ135: Sec. Jurídica
Y136: =+AVERAGE(Y78:Y135) -> 0.8328571429 | AA136: 0 | AC136: 0 | AE136: 0 | AG136: =+AVERAGE(AG78:AG135) -> 0.1904971264
D137: =+RESUMEN!J27 -> 0.2260455128 | E137: GOBIERNO MUNICIPAL EN LÍNEA | F137: Alcanzar un 85% de nivel de satisfacción en trámites electrónicos. | G137: 0.5 | H137: =+'[1]LÍNEA 1'!H137 -> 0.85 | I137: =+RESUMEN!J28 -> 0.1221153846 | J137: CIUDAD MODELO EN GOBIERNO EN LÍNEA | K137: Lograr y mantener el 100% de la implementación del componente TIC servicios. | L137: ='[1]LÍNEA 1'!P137 -> 2210289 | M137: ='[1]LÍNEA 1'!Q137 -> Porcentaje de avance de la implementación del componente TIC servicios. | N137: 0.745 | O137: ='[1]LÍNEA 1'!S137 -> 1 | P137: ='[1]LÍNEA 1'!T137 -> 0.3 | Q137: ='[1]LÍNEA 1'!U137 -> 0.5 | R137: ='[1]LÍNEA 1'!V137 -> 0.8 | S137: ='[1]LÍNEA 1'!W137 -> 1 | T137: ='[10]2016'!K30 -> 0.31 | U137: ='[10]2017'!K30 -> 0 | V137: ='[10]2018'!K30 -> 0 | W137: ='[10]2019'!K30 -> 0 | X137: =IF(P137=0," -",T137/P137) -> 1.033333333 | Y137: =IF(P137=0," -",IF(X137>100%,100%,X137)) -> 1 | Z137: =IF(Q137=0," -",U137/Q137) -> 0 | AA137: =IF(Q137=0," -",IF(Z137>100%,100%,Z137)) -> 0 | AB137: =IF(R137=0," -",V137/R137) -> 0 | AC137: =IF(R137=0," -",IF(AB137>100%,100%,AB137)) -> 0 | AD137: =IF(S137=0," -",W137/S137) -> 0 | AE137: =IF(S137=0," -",IF(AD137>100%,100%,AD137)) -> 0 | AF137: =+AVERAGE(T137:W137)/AVERAGE(P137,Q137,R137,S137) -> 0.1192307692 | AG137: 0.1192307692 | AH137: 0.1192307692 | AI137: ='[10]2016'!P30 -> 0 | AJ137: ='[10]2016'!Q30 -> 0 | AK137: ='[10]2016'!R30 -> 0 | AL137: - | AM137: - | AN137: ='[10]2017'!P30 -> 80000 | AO137: ='[10]2017'!Q30 -> 0 | AP137: ='[10]2017'!R30 -> 0 | AQ137: 0 | AR137: - | AS137: ='[10]2018'!P30 -> 140000 | AT137: ='[10]2018'!Q30 -> 0 | AU137: ='[10]2018'!R30 -> 0 | AV137: 0 | AW137: - | AX137: ='[10]2019'!P30 -> 126000 | AY137: ='[10]2019'!Q30 -> 0 | AZ137: ='[10]2019'!R30 -> 0 | BA137: 0 | BB137: - | BC137: 346000 | BD137: 0 | BE137: 0 | BF137: 0 | BG137: - | BH137: ='[1]LÍNEA 1'!AO137 -> 16. Paz, justicia e instituciones sólidas | BI137: ='[1]LÍNEA 1'!AP137 -> Fortalecimiento insitucional | BJ137: Ofc. Sistemas
K138: Lograr y mantener el 100% de la implementación del componente TIC gobierno abierto. | L138: ='[1]LÍNEA 1'!P138 -> 2210289 | M138: ='[1]LÍNEA 1'!Q138 -> Porcentaje de avance de la implementación del componente TIC gobierno abierto. | N138: 0.44 | O138: ='[1]LÍNEA 1'!S138 -> 1 | P138: ='[1]LÍNEA 1'!T138 -> 0.3 | Q138: ='[1]LÍNEA 1'!U138 -> 0.5 | R138: ='[1]LÍNEA 1'!V138 -> 0.8 | S138: ='[1]LÍNEA 1'!W138 -> 1 | T138: ='[10]2016'!K31 -> 0.29 | U138: ='[10]2017'!K31 -> 0 | V138: ='[10]2018'!K31 -> 0 | W138: ='[10]2019'!K31 -> 0 | X138: =IF(P138=0," -",T138/P138) -> 0.9666666667 | Y138: =IF(P138=0," -",IF(X138>100%,100%,X138)) -> 0.9666666667 | Z138: =IF(Q138=0," -",U138/Q138) -> 0 | AA138: =IF(Q138=0," -",IF(Z138>100%,100%,Z138)) -> 0 | AB138: =IF(R138=0," -",V138/R138) -> 0 | AC138: =IF(R138=0," -",IF(AB138>100%,100%,AB138)) -> 0 | AD138: =IF(S138=0," -",W138/S138) -> 0 | AE138: =IF(S138=0," -",IF(AD138>100%,100%,AD138)) -> 0 | AF138: =+AVERAGE(T138:W138)/AVERAGE(P138,Q138,R138,S138) -> 0.1115384615 | AG138: 0.1115384615 | AH138: 0.1115384615 | AI138: ='[10]2016'!P31 -> 0 | AJ138: ='[10]2016'!Q31 -> 0 | AK138: ='[10]2016'!R31 -> 0 | AL138: - | AM138: - | AN138: ='[10]2017'!P31 -> 44000 | AO138: ='[10]2017'!Q31 -> 0 | AP138: ='[10]2017'!R31 -> 0 | AQ138: 0 | AR138: - | AS138: ='[10]2018'!P31 -> 131000 | AT138: ='[10]2018'!Q31 -> 0 | AU138: ='[10]2018'!R31 -> 0 | AV138: 0 | AW138: - | AX138: ='[10]2019'!P31 -> 118000 | AY138: ='[10]2019'!Q31 -> 0 | AZ138: ='[10]2019'!R31 -> 0 | BA138: 0 | BB138: - | BC138: 293000 | BD138: 0 | BE138: 0 | BF138: 0 | BG138: - | BH138: ='[1]LÍNEA 1'!AO138 -> 16. Paz, justicia e instituciones sólidas | BI138: ='[1]LÍNEA 1'!AP138 -> Fortalecimiento insitucional | BJ138: Ofc. Sistemas
K139: Lograr y mantener el 100% de la implementación del componente TIC gestión. | L139: ='[1]LÍNEA 1'!P139 -> 2210289 | M139: ='[1]LÍNEA 1'!Q139 -> Porcentaje de avance de la implementación del componente TIC gestión. | N139: 0.43 | O139: ='[1]LÍNEA 1'!S139 -> 1 | P139: ='[1]LÍNEA 1'!T139 -> 0.3 | Q139: ='[1]LÍNEA 1'!U139 -> 0.5 | R139: ='[1]LÍNEA 1'!V139 -> 0.8 | S139: ='[1]LÍNEA 1'!W139 -> 1 | T139: ='[10]2016'!K32 -> 0.37 | U139: ='[10]2017'!K32 -> 0 | V139: ='[10]2018'!K32 -> 0 | W139: ='[10]2019'!K32 -> 0 | X139: =IF(P139=0," -",T139/P139) -> 1.233333333 | Y139: =IF(P139=0," -",IF(X139>100%,100%,X139)) -> 1 | Z139: =IF(Q139=0," -",U139/Q139) -> 0 | AA139: =IF(Q139=0," -",IF(Z139>100%,100%,Z139)) -> 0 | AB139: =IF(R139=0," -",V139/R139) -> 0 | AC139: =IF(R139=0," -",IF(AB139>100%,100%,AB139)) -> 0 | AD139: =IF(S139=0," -",W139/S139) -> 0 | AE139: =IF(S139=0," -",IF(AD139>100%,100%,AD139)) -> 0 | AF139: =+AVERAGE(T139:W139)/AVERAGE(P139,Q139,R139,S139) -> 0.1423076923 | AG139: 0.1423076923 | AH139: 0.1423076923 | AI139: ='[10]2016'!P32 -> 0 | AJ139: ='[10]2016'!Q32 -> 0 | AK139: ='[10]2016'!R32 -> 0 | AL139: - | AM139: - | AN139: ='[10]2017'!P32 -> 25000 | AO139: ='[10]2017'!Q32 -> 0 | AP139: ='[10]2017'!R32 -> 0 | AQ139: 0 | AR139: - | AS139: ='[10]2018'!P32 -> 92000 | AT139: ='[10]2018'!Q32 -> 0 | AU139: ='[10]2018'!R32 -> 0 | AV139: 0 | AW139: - | AX139: ='[10]2019'!P32 -> 0 | AY139: ='[10]2019'!Q32 -> 0 | AZ139: ='[10]2019'!R32 -> 0 | BA139: - | BB139: - | BC139: 117000 | BD139: 0 | BE139: 0 | BF139: 0 | BG139: - | BH139: ='[1]LÍNEA 1'!AO139 -> 16. Paz, justicia e instituciones sólidas | BI139: ='[1]LÍNEA 1'!AP139 -> Fortalecimiento insitucional | BJ139: Ofc. Sistemas
K140: Lograr y mantener el 100% de la implementación del componente seguridad de la información y protección de datos. | L140: ='[1]LÍNEA 1'!P140 -> 2210289 | M140: ='[1]LÍNEA 1'!Q140 -> Porcentaje de avance de la implementación del componente seguridad de la información y protección de datos. | N140: 0.15 | O140: ='[1]LÍNEA 1'!S140 -> 1 | P140: ='[1]LÍNEA 1'!T140 -> 0.3 | Q140: ='[1]LÍNEA 1'!U140 -> 0.5 | R140: ='[1]LÍNEA 1'!V140 -> 0.8 | S140: ='[1]LÍNEA 1'!W140 -> 1 | T140: ='[10]2016'!K33 -> 0.3 | U140: ='[10]2017'!K33 -> 0 | V140: ='[10]2018'!K33 -> 0 | W140: ='[10]2019'!K33 -> 0 | X140: =IF(P140=0," -",T140/P140) -> 1 | Y140: =IF(P140=0," -",IF(X140>100%,100%,X140)) -> 1 | Z140: =IF(Q140=0," -",U140/Q140) -> 0 | AA140: =IF(Q140=0," -",IF(Z140>100%,100%,Z140)) -> 0 | AB140: =IF(R140=0," -",V140/R140) -> 0 | AC140: =IF(R140=0," -",IF(AB140>100%,100%,AB140)) -> 0 | AD140: =IF(S140=0," -",W140/S140) -> 0 | AE140: =IF(S140=0," -",IF(AD140>100%,100%,AD140)) -> 0 | AF140: =+AVERAGE(T140:W140)/AVERAGE(P140,Q140,R140,S140) -> 0.1153846154 | AG140: =+IF(AF140>100%,100%,AF140) -> 0.1153846154 | AH140: =+AG140 -> 0.1153846154 | AI140: ='[10]2016'!P33 -> 0 | AJ140: ='[10]2016'!Q33 -> 0 | AK140: ='[10]2016'!R33 -> 0 | AL140: - | AM140: - | AN140: ='[10]2017'!P33 -> 100000 | AO140: ='[10]2017'!Q33 -> 0 | AP140: ='[10]2017'!R33 -> 0 | AQ140: 0 | AR140: - | AS140: ='[10]2018'!P33 -> 230000 | AT140: ='[10]2018'!Q33 -> 0 | AU140: ='[10]2018'!R33 -> 0 | AV140: 0 | AW140: - | AX140: ='[10]2019'!P33 -> 240000 | AY140: ='[10]2019'!Q33 -> 0 | AZ140: ='[10]2019'!R33 -> 0 | BA140: 0 | BB140: - | BC140: 570000 | BD140: 0 | BE140: 0 | BF140: 0 | BG140: - | BH140: ='[1]LÍNEA 1'!AO140 -> 16. Paz, justicia e instituciones sólidas | BI140: ='[1]LÍNEA 1'!AP140 -> Fortalecimiento insitucional | BJ140: Ofc. Sistemas
I141: =+RESUMEN!J29 -> 0.3279 | J141: VIVE DIGITAL PARA LAS CIUDADANAS Y CIUDADANOS | K141: Adecuar y mantener en funcionamiento los 8 puntos VIVE DIGITAL. | L141: ='[1]LÍNEA 1'!P141 -> - | M141: ='[1]LÍNEA 1'!Q141 -> Número de puntos VIVE DIGITAL adecuados y mantenidos en funcionamiento. | N141: 8 | O141: ='[1]LÍNEA 1'!S141 -> 8 | P141: ='[1]LÍNEA 1'!T141 -> 8 | Q141: ='[1]LÍNEA 1'!U141 -> 8 | R141: ='[1]LÍNEA 1'!V141 -> 8 | S141: ='[1]LÍNEA 1'!W141 -> 8 | T141: ='[10]2016'!K34 -> 8 | U141: ='[10]2017'!K34 -> 0 | V141: ='[10]2018'!K34 -> 0 | W141: ='[10]2019'!K34 -> 0 | X141: =IF(P141=0," -",T141/P141) -> 1 | Y141: =IF(P141=0," -",IF(X141>100%,100%,X141)) -> 1 | Z141: =IF(Q141=0," -",U141/Q141) -> 0 | AA141: =IF(Q141=0," -",IF(Z141>100%,100%,Z141)) -> 0 | AB141: =IF(R141=0," -",V141/R141) -> 0 | AC141: =IF(R141=0," -",IF(AB141>100%,100%,AB141)) -> 0 | AD141: =IF(S141=0," -",W141/S141) -> 0 | AE141: =IF(S141=0," -",IF(AD141>100%,100%,AD141)) -> 0 | AF141: =+AVERAGE(T141:W141)/O141 -> 0.25 | AG141: 0.25 | AH141: 0.25 | AI141: ='[10]2016'!P34 -> 0 | AJ141: ='[10]2016'!Q34 -> 0 | AK141: ='[10]2016'!R34 -> 0 | AL141: =IF(AI141=0," -",AJ141/AI141) -> - | AM141: =IF(AK141=0," -",IF(AJ141=0,100%,AK141/AJ141)) -> - | AN141: ='[10]2017'!P34 -> 0 | AO141: ='[10]2017'!Q34 -> 0 | AP141: ='[10]2017'!R34 -> 0 | AQ141: =IF(AN141=0," -",AO141/AN141) -> - | AR141: =IF(AP141=0," -",IF(AO141=0,100%,AP141/AO141)) -> - | AS141: ='[10]2018'!P34 -> 0 | AT141: ='[10]2018'!Q34 -> 0 | AU141: ='[10]2018'!R34 -> 0 | AV141: =IF(AS141=0," -",AT141/AS141) -> - | AW141: =IF(AU141=0," -",IF(AT141=0,100%,AU141/AT141)) -> - | AX141: ='[10]2019'!P34 -> 0 | AY141: ='[10]2019'!Q34 -> 0 | AZ141: ='[10]2019'!R34 -> 0 | BA141: =IF(AX141=0," -",AY141/AX141) -> - | BB141: =IF(AZ141=0," -",IF(AY141=0,100%,AZ141/AY141)) -> - | BC141: =+AI141+AN141+AS141+AX141 -> 0 | BD141: =+AJ141+AO141+AT141+AY141 -> 0 | BE141: =+AK141+AP141+AU141+AZ141 -> 0 | BF141: =IF(BC141=0," -",BD141/BC141) -> - | BG141: =IF(BE141=0," -",IF(BD141=0,100%,BE141/BD141)) -> - | BH141: ='[1]LÍNEA 1'!AO141 -> 9. Industria, innovación e infraestructura | BI141: ='[1]LÍNEA 1'!AP141 -> Fortalecimiento insitucional | BJ141: Ofc. Sistemas
F142: Lograr que 10.000 ciudadanos usen datos públicos y participen por redes electrónicas. | G142: 0 | H142: =+'[1]LÍNEA 1'!H142 -> 10000 | K142: Mantener en funcionamiento el VIVE LAB. | L142: ='[1]LÍNEA 1'!P142 -> - | M142: ='[1]LÍNEA 1'!Q142 -> Número de VIVE LABS mantenidos en funcionamiento. | N142: 1 | O142: ='[1]LÍNEA 1'!S142 -> 1 | P142: ='[1]LÍNEA 1'!T142 -> 1 | Q142: ='[1]LÍNEA 1'!U142 -> 1 | R142: ='[1]LÍNEA 1'!V142 -> 1 | S142: ='[1]LÍNEA 1'!W142 -> 1 | T142: ='[10]2016'!K35 -> 1 | U142: ='[10]2017'!K35 -> 0 | V142: ='[10]2018'!K35 -> 0 | W142: ='[10]2019'!K35 -> 0 | X142: =IF(P142=0," -",T142/P142) -> 1 | Y142: =IF(P142=0," -",IF(X142>100%,100%,X142)) -> 1 | Z142: =IF(Q142=0," -",U142/Q142) -> 0 | AA142: =IF(Q142=0," -",IF(Z142>100%,100%,Z142)) -> 0 | AB142: =IF(R142=0," -",V142/R142) -> 0 | AC142: =IF(R142=0," -",IF(AB142>100%,100%,AB142)) -> 0 | AD142: =IF(S142=0," -",W142/S142) -> 0 | AE142: =IF(S142=0," -",IF(AD142>100%,100%,AD142)) -> 0 | AF142: =+AVERAGE(T142:W142)/O142 -> 0.25 | AG142: 0.25 | AH142: 0.25 | AI142: ='[10]2016'!P35 -> 0 | AJ142: ='[10]2016'!Q35 -> 0 | AK142: ='[10]2016'!R35 -> 0 | AL142: - | AM142: - | AN142: ='[10]2017'!P35 -> 0 | AO142: ='[10]2017'!Q35 -> 0 | AP142: ='[10]2017'!R35 -> 0 | AQ142: - | AR142: - | AS142: ='[10]2018'!P35 -> 0 | AT142: ='[10]2018'!Q35 -> 0 | AU142: ='[10]2018'!R35 -> 0 | AV142: - | AW142: - | AX142: ='[10]2019'!P35 -> 0 | AY142: ='[10]2019'!Q35 -> 0 | AZ142: ='[10]2019'!R35 -> 0 | BA142: - | BB142: - | BC142: 0 | BD142: 0 | BE142: 0 | BF142: - | BG142: - | BH142: ='[1]LÍNEA 1'!AO142 -> 16. Paz, justicia e instituciones sólidas | BI142: ='[1]LÍNEA 1'!AP142 -> Fortalecimiento insitucional | BJ142: Ofc. Sistemas
K143: Capacitar 5.000 ciudadanos en los puntos VIVE DIGITAL y VIVE LAB. | L143: ='[1]LÍNEA 1'!P143 -> - | M143: ='[1]LÍNEA 1'!Q143 -> Número de ciudadanos capacitados en los puntos VIVE DIGITAL y VIVE LAB. | N143: 0 | O143: ='[1]LÍNEA 1'!S143 -> 5000 | P143: ='[1]LÍNEA 1'!T143 -> 250 | Q143: ='[1]LÍNEA 1'!U143 -> 1550 | R143: ='[1]LÍNEA 1'!V143 -> 1600 | S143: ='[1]LÍNEA 1'!W143 -> 1600 | T143: ='[10]2016'!K36 -> 702 | U143: ='[10]2017'!K36 -> 0 | V143: ='[10]2018'!K36 -> 0 | W143: ='[10]2019'!K36 -> 0 | X143: =IF(P143=0," -",T143/P143) -> 2.808 | Y143: =IF(P143=0," -",IF(X143>100%,100%,X143)) -> 1 | Z143: =IF(Q143=0," -",U143/Q143) -> 0 | AA143: =IF(Q143=0," -",IF(Z143>100%,100%,Z143)) -> 0 | AB143: =IF(R143=0," -",V143/R143) -> 0 | AC143: =IF(R143=0," -",IF(AB143>100%,100%,AB143)) -> 0 | AD143: =IF(S143=0," -",W143/S143) -> 0 | AE143: =IF(S143=0," -",IF(AD143>100%,100%,AD143)) -> 0 | AF143: =+SUM(T143:W143)/O143 -> 0.1404 | AG143: 0.1404 | AH143: 0.1404 | AI143: ='[10]2016'!P36 -> 0 | AJ143: ='[10]2016'!Q36 -> 0 | AK143: ='[10]2016'!R36 -> 0 | AL143: - | AM143: - | AN143: ='[10]2017'!P36 -> 0 | AO143: ='[10]2017'!Q36 -> 0 | AP143: ='[10]2017'!R36 -> 0 | AQ143: - | AR143: - | AS143: ='[10]2018'!P36 -> 0 | AT143: ='[10]2018'!Q36 -> 0 | AU143: ='[10]2018'!R36 -> 0 | AV143: - | AW143: - | AX143: ='[10]2019'!P36 -> 0 | AY143: ='[10]2019'!Q36 -> 0 | AZ143: ='[10]2019'!R36 -> 0 | BA143: - | BB143: - | BC143: 0 | BD143: 0 | BE143: 0 | BF143: - | BG143: - | BH143: ='[1]LÍNEA 1'!AO143 -> 16. Paz, justicia e instituciones sólidas | BI143: ='[1]LÍNEA 1'!AP143 -> Fortalecimiento insitucional | BJ143: Ofc. Sistemas
K144: Atender 30.000 ciudadanos en los puntos VIVE DIGITAL y VIVE LAB. | L144: ='[1]LÍNEA 1'!P144 -> - | M144: ='[1]LÍNEA 1'!Q144 -> Número de ciudadanos atendidos en los puntos VIVE DIGITAL y VIVE LAB. | N144: 0 | O144: ='[1]LÍNEA 1'!S144 -> 30000 | P144: ='[1]LÍNEA 1'!T144 -> 3750 | Q144: ='[1]LÍNEA 1'!U144 -> 8750 | R144: ='[1]LÍNEA 1'!V144 -> 8750 | S144: ='[1]LÍNEA 1'!W144 -> 8750 | T144: ='[10]2016'!K37 -> 29973 | U144: ='[10]2017'!K37 -> 0 | V144: ='[10]2018'!K37 -> 0 | W144: ='[10]2019'!K37 -> 0 | X144: =IF(P144=0," -",T144/P144) -> 7.9928 | Y144: =IF(P144=0," -",IF(X144>100%,100%,X144)) -> 1 | Z144: =IF(Q144=0," -",U144/Q144) -> 0 | AA144: =IF(Q144=0," -",IF(Z144>100%,100%,Z144)) -> 0 | AB144: =IF(R144=0," -",V144/R144) -> 0 | AC144: =IF(R144=0," -",IF(AB144>100%,100%,AB144)) -> 0 | AD144: =IF(S144=0," -",W144/S144) -> 0 | AE144: =IF(S144=0," -",IF(AD144>100%,100%,AD144)) -> 0 | AF144: =+SUM(T144:W144)/O144 -> 0.9991 | AG144: 0.9991 | AH144: 0.9991 | AI144: ='[10]2016'!P37 -> 0 | AJ144: ='[10]2016'!Q37 -> 0 | AK144: ='[10]2016'!R37 -> 0 | AL144: - | AM144: - | AN144: ='[10]2017'!P37 -> 0 | AO144: ='[10]2017'!Q37 -> 0 | AP144: ='[10]2017'!R37 -> 0 | AQ144: - | AR144: - | AS144: ='[10]2018'!P37 -> 0 | AT144: ='[10]2018'!Q37 -> 0 | AU144: ='[10]2018'!R37 -> 0 | AV144: - | AW144: - | AX144: ='[10]2019'!P37 -> 0 | AY144: ='[10]2019'!Q37 -> 0 | AZ144: ='[10]2019'!R37 -> 0 | BA144: - | BB144: - | BC144: 0 | BD144: 0 | BE144: 0 | BF144: - | BG144: - | BH144: ='[1]LÍNEA 1'!AO144 -> 16. Paz, justicia e instituciones sólidas | BI144: ='[1]LÍNEA 1'!AP144 -> Fortalecimiento insitucional | BJ144: Ofc. Sistemas
K145: Construir y mantener 1 punto VIVE DIGITAL. | L145: ='[1]LÍNEA 1'!P145 -> 2210198 | M145: ='[1]LÍNEA 1'!Q145 -> Número de puntos vive DIGITAL construidos y mantenidos. | N145: 8 | O145: ='[1]LÍNEA 1'!S145 -> 1 | P145: ='[1]LÍNEA 1'!T145 -> 0 | Q145: ='[1]LÍNEA 1'!U145 -> 0 | R145: ='[1]LÍNEA 1'!V145 -> 1 | S145: ='[1]LÍNEA 1'!W145 -> 1 | T145: ='[7]2016'!$K$17 -> 0 | U145: ='[7]2017'!$K$17 -> 0 | V145: ='[7]2018'!$K$17 -> 0 | W145: ='[7]2019'!$K$17 -> 0 | X145: =IF(P145=0," -",T145/P145) -> - | Y145: =IF(P145=0," -",IF(X145>100%,100%,X145)) -> - | Z145: =IF(Q145=0," -",U145/Q145) -> - | AA145: =IF(Q145=0," -",IF(Z145>100%,100%,Z145)) -> - | AB145: =IF(R145=0," -",V145/R145) -> 0 | AC145: =IF(R145=0," -",IF(AB145>100%,100%,AB145)) -> 0 | AD145: =IF(S145=0," -",W145/S145) -> 0 | AE145: =IF(S145=0," -",IF(AD145>100%,100%,AD145)) -> 0 | AF145: =+AVERAGE(T145:W145)/O145 -> 0 | AG145: 0 | AH145: 0 | AI145: ='[7]2016'!P17 -> 0 | AJ145: ='[7]2016'!Q17 -> 0 | AK145: ='[7]2016'!R17 -> 0 | AL145: - | AM145: - | AN145: ='[7]2017'!P17 -> 0 | AO145: ='[7]2017'!Q17 -> 0 | AP145: ='[7]2017'!R17 -> 0 | AQ145: - | AR145: - | AS145: ='[7]2018'!P17 -> 200000 | AT145: ='[7]2018'!Q17 -> 0 | AU145: ='[7]2018'!R17 -> 0 | AV145: 0 | AW145: - | AX145: ='[7]2019'!P17 -> 0 | AY145: ='[7]2019'!Q17 -> 0 | AZ145: ='[7]2019'!R17 -> 0 | BA145: - | BB145: - | BC145: 200000 | BD145: 0 | BE145: 0 | BF145: 0 | BG145: - | BH145: ='[1]LÍNEA 1'!AO145 -> 9. Industria, innovación e infraestructura | BI145: ='[1]LÍNEA 1'!AP145 -> Promoción del Desarrollo | BJ145: Sec. Infraestructura
I146: =+RESUMEN!J30 -> 0.0375 | J146: GESTIÓN Y MEJORAMIENTO DE LOS SISTEMAS DE INFORMACIÓN | K146: Crear y/o documentar 4 sistemas de información pertenecientes al Core de la Alcaldía. | L146: ='[1]LÍNEA 1'!P146 -> 0 | M146: ='[1]LÍNEA 1'!Q146 -> Número de sistemas de información creados y/o documentados pertenecientes al Core de la Alcaldía. | N146: 1 | O146: ='[1]LÍNEA 1'!S146 -> 4 | P146: ='[1]LÍNEA 1'!T146 -> 0 | Q146: ='[1]LÍNEA 1'!U146 -> 2 | R146: ='[1]LÍNEA 1'!V146 -> 1 | S146: ='[1]LÍNEA 1'!W146 -> 1 | T146: ='[10]2016'!K38 -> 0.3 | U146: ='[10]2017'!K38 -> 0 | V146: ='[10]2018'!K38 -> 0 | W146: ='[10]2019'!K38 -> 0 | X146: =IF(P146=0," -",T146/P146) -> - | Y146: =IF(P146=0," -",IF(X146>100%,100%,X146)) -> - | Z146: =IF(Q146=0," -",U146/Q146) -> 0 | AA146: =IF(Q146=0," -",IF(Z146>100%,100%,Z146)) -> 0 | AB146: =IF(R146=0," -",V146/R146) -> 0 | AC146: =IF(R146=0," -",IF(AB146>100%,100%,AB146)) -> 0 | AD146: =IF(S146=0," -",W146/S146) -> 0 | AE146: =IF(S146=0," -",IF(AD146>100%,100%,AD146)) -> 0 | AF146: =+SUM(T146:W146)/O146 -> 0.075 | AG146: 0.075 | AH146: 0.075 | AI146: ='[10]2016'!P38 -> 0 | AJ146: ='[10]2016'!Q38 -> 0 | AK146: ='[10]2016'!R38 -> 0 | AL146: - | AM146: - | AN146: ='[10]2017'!P38 -> 0 | AO146: ='[10]2017'!Q38 -> 0 | AP146: ='[10]2017'!R38 -> 0 | AQ146: - | AR146: - | AS146: ='[10]2018'!P38 -> 200000 | AT146: ='[10]2018'!Q38 -> 0 | AU146: ='[10]2018'!R38 -> 0 | AV146: 0 | AW146: - | AX146: ='[10]2019'!P38 -> 0 | AY146: ='[10]2019'!Q38 -> 0 | AZ146: ='[10]2019'!R38 -> 0 | BA146: - | BB146: - | BC146: 200000 | BD146: 0 | BE146: 0 | BF146: 0 | BG146: - | BH146: ='[1]LÍNEA 1'!AO146 -> 16. Paz, justicia e instituciones sólidas | BI146: ='[1]LÍNEA 1'!AP146 -> Fortalecimiento insitucional | BJ146: Ofc. Sistemas
F147: Lograr una calificación de 90 en el Índice de Gobierno Abierto - IGA. | G147: 77 | H147: =+'[1]LÍNEA 1'!H147 -> 90 | K147: Implementar 1 ambiente de desarrollo y prueba para los sistemas de información de la Alcaldía. | L147: ='[1]LÍNEA 1'!P147 -> 0 | M147: ='[1]LÍNEA 1'!Q147 -> Porcentaje de avance en la implementación del ambiente de desarrollo y prueba para los sistemas de información de la Alcaldía. | N147: 0 | O147: ='[1]LÍNEA 1'!S147 -> 1 | P147: ='[1]LÍNEA 1'!T147 -> 0 | Q147: ='[1]LÍNEA 1'!U147 -> 0 | R147: ='[1]LÍNEA 1'!V147 -> 0.5 | S147: ='[1]LÍNEA 1'!W147 -> 0.5 | T147: ='[10]2016'!K39 -> 0 | U147: ='[10]2017'!K39 -> 0 | V147: ='[10]2018'!K39 -> 0 | W147: ='[10]2019'!K39 -> 0 | X147: =IF(P147=0," -",T147/P147) -> - | Y147: =IF(P147=0," -",IF(X147>100%,100%,X147)) -> - | Z147: =IF(Q147=0," -",U147/Q147) -> - | AA147: =IF(Q147=0," -",IF(Z147>100%,100%,Z147)) -> - | AB147: =IF(R147=0," -",V147/R147) -> 0 | AC147: =IF(R147=0," -",IF(AB147>100%,100%,AB147)) -> 0 | AD147: =IF(S147=0," -",W147/S147) -> 0 | AE147: =IF(S147=0," -",IF(AD147>100%,100%,AD147)) -> 0 | AF147: =+SUM(T147:W147)/O147 -> 0 | AG147: 0 | AH147: 0 | AI147: ='[10]2016'!P39 -> 0 | AJ147: ='[10]2016'!Q39 -> 0 | AK147: ='[10]2016'!R39 -> 0 | AL147: - | AM147: - | AN147: ='[10]2017'!P39 -> 0 | AO147: ='[10]2017'!Q39 -> 0 | AP147: ='[10]2017'!R39 -> 0 | AQ147: - | AR147: - | AS147: ='[10]2018'!P39 -> 40000 | AT147: ='[10]2018'!Q39 -> 0 | AU147: ='[10]2018'!R39 -> 0 | AV147: 0 | AW147: - | AX147: ='[10]2019'!P39 -> 0 | AY147: ='[10]2019'!Q39 -> 0 | AZ147: ='[10]2019'!R39 -> 0 | BA147: - | BB147: - | BC147: 40000 | BD147: 0 | BE147: 0 | BF147: 0 | BG147: - | BH147: ='[1]LÍNEA 1'!AO147 -> 16. Paz, justicia e instituciones sólidas | BI147: ='[1]LÍNEA 1'!AP147 -> Fortalecimiento insitucional | BJ147: Ofc. Sistemas
I148: =+RESUMEN!J31 -> 0.4166666667 | J148: TECNOLOGÍA PARA LA INTERACCIÓN CIUDADANA | K148: Mantener actualizados 10 grupos de contenidos de información pública en el portal web. | L148: ='[1]LÍNEA 1'!P148 -> 0 | M148: ='[1]LÍNEA 1'!Q148 -> Número de grupos de contenidos de información pública en el portal web mantenidos. | N148: 10 | O148: ='[1]LÍNEA 1'!S148 -> 10 | P148: ='[1]LÍNEA 1'!T148 -> 10 | Q148: ='[1]LÍNEA 1'!U148 -> 10 | R148: ='[1]LÍNEA 1'!V148 -> 10 | S148: ='[1]LÍNEA 1'!W148 -> 10 | T148: ='[10]2016'!K40 -> 10 | U148: ='[10]2017'!K40 -> 0 | V148: ='[10]2018'!K40 -> 0 | W148: ='[10]2019'!K40 -> 0 | X148: =IF(P148=0," -",T148/P148) -> 1 | Y148: =IF(P148=0," -",IF(X148>100%,100%,X148)) -> 1 | Z148: =IF(Q148=0," -",U148/Q148) -> 0 | AA148: =IF(Q148=0," -",IF(Z148>100%,100%,Z148)) -> 0 | AB148: =IF(R148=0," -",V148/R148) -> 0 | AC148: =IF(R148=0," -",IF(AB148>100%,100%,AB148)) -> 0 | AD148: =IF(S148=0," -",W148/S148) -> 0 | AE148: =IF(S148=0," -",IF(AD148>100%,100%,AD148)) -> 0 | AF148: =+AVERAGE(T148:W148)/O148 -> 0.25 | AG148: 0.25 | AH148: 0.25 | AI148: ='[10]2016'!P40 -> 0 | AJ148: ='[10]2016'!Q40 -> 0 | AK148: ='[10]2016'!R40 -> 0 | AL148: - | AM148: - | AN148: ='[10]2017'!P40 -> 0 | AO148: ='[10]2017'!Q40 -> 0 | AP148: ='[10]2017'!R40 -> 0 | AQ148: - | AR148: - | AS148: ='[10]2018'!P40 -> 17000 | AT148: ='[10]2018'!Q40 -> 0 | AU148: ='[10]2018'!R40 -> 0 | AV148: 0 | AW148: - | AX148: ='[10]2019'!P40 -> 17000 | AY148: ='[10]2019'!Q40 -> 0 | AZ148: ='[10]2019'!R40 -> 0 | BA148: 0 | BB148: - | BC148: 34000 | BD148: 0 | BE148: 0 | BF148: 0 | BG148: - | BH148: ='[1]LÍNEA 1'!AO148 -> 16. Paz, justicia e instituciones sólidas | BI148: ='[1]LÍNEA 1'!AP148 -> Fortalecimiento insitucional | BJ148: Ofc. Sistemas
K149: Formular y mantener 2 planes de implementación de Gobierno en Línea de los Institutos Descentralizados y las Instituciones Educativas Oficiales. | L149: ='[1]LÍNEA 1'!P149 -> 0 | M149: ='[1]LÍNEA 1'!Q149 -> Número de planes de implementación de Gobierno en Línea formulados e implementados de los institutos descentralizados y las Instituciones Educativas Oficiales. | N149: 0 | O149: ='[1]LÍNEA 1'!S149 -> 2 | P149: ='[1]LÍNEA 1'!T149 -> 0 | Q149: ='[1]LÍNEA 1'!U149 -> 2 | R149: ='[1]LÍNEA 1'!V149 -> 2 | S149: ='[1]LÍNEA 1'!W149 -> 2 | T149: ='[10]2016'!K41 -> 0 | U149: ='[10]2017'!K41 -> 0 | V149: ='[10]2018'!K41 -> 0 | W149: ='[10]2019'!K41 -> 0 | X149: =IF(P149=0," -",T149/P149) -> - | Y149: =IF(P149=0," -",IF(X149>100%,100%,X149)) -> - | Z149: =IF(Q149=0," -",U149/Q149) -> 0 | AA149: =IF(Q149=0," -",IF(Z149>100%,100%,Z149)) -> 0 | AB149: =IF(R149=0," -",V149/R149) -> 0 | AC149: =IF(R149=0," -",IF(AB149>100%,100%,AB149)) -> 0 | AD149: =IF(S149=0," -",W149/S149) -> 0 | AE149: =IF(S149=0," -",IF(AD149>100%,100%,AD149)) -> 0 | AF149: =+AVERAGE(U149:W149)/O149 -> 0 | AG149: 0 | AH149: 0 | AI149: ='[10]2016'!P41 -> 0 | AJ149: ='[10]2016'!Q41 -> 0 | AK149: ='[10]2016'!R41 -> 0 | AL149: - | AM149: - | AN149: ='[10]2017'!P41 -> 0 | AO149: ='[10]2017'!Q41 -> 0 | AP149: ='[10]2017'!R41 -> 0 | AQ149: - | AR149: - | AS149: ='[10]2018'!P41 -> 17000 | AT149: ='[10]2018'!Q41 -> 0 | AU149: ='[10]2018'!R41 -> 0 | AV149: 0 | AW149: - | AX149: ='[10]2019'!P41 -> 17000 | AY149: ='[10]2019'!Q41 -> 0 | AZ149: ='[10]2019'!R41 -> 0 | BA149: 0 | BB149: - | BC149: 34000 | BD149: 0 | BE149: 0 | BF149: 0 | BG149: - | BH149: ='[1]LÍNEA 1'!AO149 -> 16. Paz, justicia e instituciones sólidas | BI149: ='[1]LÍNEA 1'!AP149 -> Fortalecimiento insitucional | BJ149: Ofc. Sistemas
K150: Rediseñar la web de portales web. | L150: ='[1]LÍNEA 1'!P150 -> - | M150: ='[1]LÍNEA 1'!Q150 -> Número de portales web rediseñadas. | N150: 0 | O150: ='[1]LÍNEA 1'!S150 -> 1 | P150: ='[1]LÍNEA 1'!T150 -> 1 | Q150: ='[1]LÍNEA 1'!U150 -> 0 | R150: ='[1]LÍNEA 1'!V150 -> 0 | S150: ='[1]LÍNEA 1'!W150 -> 0 | T150: ='[10]2016'!K42 -> 1 | U150: ='[10]2017'!K42 -> 0 | V150: ='[10]2018'!K42 -> 0 | W150: ='[10]2019'!K42 -> 0 | X150: =IF(P150=0," -",T150/P150) -> 1 | Y150: =IF(P150=0," -",IF(X150>100%,100%,X150)) -> 1 | Z150: =IF(Q150=0," -",U150/Q150) -> - | AA150: =IF(Q150=0," -",IF(Z150>100%,100%,Z150)) -> - | AB150: =IF(R150=0," -",V150/R150) -> - | AC150: =IF(R150=0," -",IF(AB150>100%,100%,AB150)) -> - | AD150: =IF(S150=0," -",W150/S150) -> - | AE150: =IF(S150=0," -",IF(AD150>100%,100%,AD150)) -> - | AF150: =+SUM(T150:W150)/O150 -> 1 | AG150: 1 | AH150: 1 | AI150: ='[10]2016'!P42 -> 0 | AJ150: ='[10]2016'!Q42 -> 0 | AK150: ='[10]2016'!R42 -> 0 | AL150: - | AM150: - | AN150: ='[10]2017'!P42 -> 0 | AO150: ='[10]2017'!Q42 -> 0 | AP150: ='[10]2017'!R42 -> 0 | AQ150: - | AR150: - | AS150: ='[10]2018'!P42 -> 0 | AT150: ='[10]2018'!Q42 -> 0 | AU150: ='[10]2018'!R42 -> 0 | AV150: - | AW150: - | AX150: ='[10]2019'!P42 -> 0 | AY150: ='[10]2019'!Q42 -> 0 | AZ150: ='[10]2019'!R42 -> 0 | BA150: - | BB150: - | BC150: 0 | BD150: 0 | BE150: 0 | BF150: - | BG150: - | BH150: ='[1]LÍNEA 1'!AO150 -> 16. Paz, justicia e instituciones sólidas | BI150: ='[1]LÍNEA 1'!AP150 -> Promoción del Desarrollo | BJ150: Ofc. Sistemas
Y151: =+AVERAGE(Y137:Y150) -> 0.9966666667 | AA151: 0 | AC151: 0 | AE151: 0 | AG151: =+AVERAGE(AG137:AG150) -> 0.2466401099
D152: =+RESUMEN!J32 -> 0.1233611111 | E152: GOBERNANZA URBANA | F152: Disminuir a 1.400 número de quejas presentadas por las obras que se ejecutan. | G152: 1536 | H152: =+'[1]LÍNEA 1'!H152 -> 1400 | I152: =+RESUMEN!J33 -> 0.2138888889 | J152: ORDENAMIENTO TERRITORIAL EN MARHA | K152: Realizar visita de control de obra al 100% de las obras licenciadas por los curadores urbanos. | L152: ='[1]LÍNEA 1'!P152 -> 2210987 | M152: ='[1]LÍNEA 1'!Q152 -> Porcentaje de la obras licenciadas por los curadores urbanos con control de obra. | N152: 0.9 | O152: ='[1]LÍNEA 1'!S152 -> 1 | P152: ='[1]LÍNEA 1'!T152 -> 1 | Q152: ='[1]LÍNEA 1'!U152 -> 1 | R152: ='[1]LÍNEA 1'!V152 -> 1 | S152: ='[1]LÍNEA 1'!W152 -> 1 | T152: ='[6]2016'!K27 -> 0.85 | U152: ='[6]2017'!K27 -> 0 | V152: ='[6]2018'!K27 -> 0 | W152: ='[6]2019'!K27 -> 0 | X152: =IF(P152=0," -",T152/P152) -> 0.85 | Y152: =IF(P152=0," -",IF(X152>100%,100%,X152)) -> 0.85 | Z152: =IF(Q152=0," -",U152/Q152) -> 0 | AA152: =IF(Q152=0," -",IF(Z152>100%,100%,Z152)) -> 0 | AB152: =IF(R152=0," -",V152/R152) -> 0 | AC152: =IF(R152=0," -",IF(AB152>100%,100%,AB152)) -> 0 | AD152: =IF(S152=0," -",W152/S152) -> 0 | AE152: =IF(S152=0," -",IF(AD152>100%,100%,AD152)) -> 0 | AF152: =+AVERAGE(T152:W152)/O152 -> 0.2125 | AG152: 0.2125 | AH152: 0.2125 | AI152: ='[6]2016'!P27 -> 740333 | AJ152: ='[6]2016'!Q27 -> 222835 | AK152: ='[6]2016'!R27 -> 0 | AL152: 0.3009929316 | AM152: - | AN152: ='[6]2017'!P27 -> 208000 | AO152: ='[6]2017'!Q27 -> 0 | AP152: ='[6]2017'!R27 -> 0 | AQ152: 0 | AR152: - | AS152: ='[6]2018'!P27 -> 0 | AT152: ='[6]2018'!Q27 -> 0 | AU152: ='[6]2018'!R27 -> 0 | AV152: - | AW152: - | AX152: ='[6]2019'!P27 -> 0 | AY152: ='[6]2019'!Q27 -> 0 | AZ152: ='[6]2019'!R27 -> 0 | BA152: - | BB152: - | BC152: 948333 | BD152: 222835 | BE152: 0 | BF152: 0.234975478 | BG152: - | BH152: ='[1]LÍNEA 1'!AO152 -> 16. Paz, justicia e instituciones sólidas | BI152: ='[1]LÍNEA 1'!AP152 -> Fortalecimiento insitucional | BJ152: Sec. Planeación
K153: Realizar visita de control de obra al 100% de las obras sin licencia. | L153: ='[1]LÍNEA 1'!P153 -> 2210987 | M153: ='[1]LÍNEA 1'!Q153 -> Porcentaje de obras sin licencia con visita de control de obra. | N153: 0.7 | O153: ='[1]LÍNEA 1'!S153 -> 1 | P153: ='[1]LÍNEA 1'!T153 -> 1 | Q153: ='[1]LÍNEA 1'!U153 -> 1 | R153: ='[1]LÍNEA 1'!V153 -> 1 | S153: ='[1]LÍNEA 1'!W153 -> 1 | T153: ='[6]2016'!K28 -> 0.9 | U153: ='[6]2017'!K28 -> 0 | V153: ='[6]2018'!K28 -> 0 | W153: ='[6]2019'!K28 -> 0 | X153: =IF(P153=0," -",T153/P153) -> 0.9 | Y153: =IF(P153=0," -",IF(X153>100%,100%,X153)) -> 0.9 | Z153: =IF(Q153=0," -",U153/Q153) -> 0 | AA153: =IF(Q153=0," -",IF(Z153>100%,100%,Z153)) -> 0 | AB153: =IF(R153=0," -",V153/R153) -> 0 | AC153: =IF(R153=0," -",IF(AB153>100%,100%,AB153)) -> 0 | AD153: =IF(S153=0," -",W153/S153) -> 0 | AE153: =IF(S153=0," -",IF(AD153>100%,100%,AD153)) -> 0 | AF153: =+AVERAGE(T153:W153)/O153 -> 0.225 | AG153: 0.225 | AH153: 0.225 | AI153: ='[6]2016'!P28 -> 740333 | AJ153: ='[6]2016'!Q28 -> 222835 | AK153: ='[6]2016'!R28 -> 0 | AL153: 0.3009929316 | AM153: - | AN153: ='[6]2017'!P28 -> 208000 | AO153: ='[6]2017'!Q28 -> 0 | AP153: ='[6]2017'!R28 -> 0 | AQ153: 0 | AR153: - | AS153: ='[6]2018'!P28 -> 0 | AT153: ='[6]2018'!Q28 -> 0 | AU153: ='[6]2018'!R28 -> 0 | AV153: - | AW153: - | AX153: ='[6]2019'!P28 -> 0 | AY153: ='[6]2019'!Q28 -> 0 | AZ153: ='[6]2019'!R28 -> 0 | BA153: - | BB153: - | BC153: 948333 | BD153: 222835 | BE153: 0 | BF153: 0.234975478 | BG153: - | BH153: ='[1]LÍNEA 1'!AO153 -> 16. Paz, justicia e instituciones sólidas | BI153: ='[1]LÍNEA 1'!AP153 -> Fortalecimiento insitucional | BJ153: Sec. Planeación
K154: Realizar visita de control de obra al 100% de las obras que presenten queja o solicitud. | L154: ='[1]LÍNEA 1'!P154 -> 2210987 | M154: ='[1]LÍNEA 1'!Q154 -> Porcentaje de obras con visita de control de obra por queja o solicitud. | N154: 0.7 | O154: ='[1]LÍNEA 1'!S154 -> 1 | P154: ='[1]LÍNEA 1'!T154 -> 1 | Q154: ='[1]LÍNEA 1'!U154 -> 1 | R154: ='[1]LÍNEA 1'!V154 -> 1 | S154: ='[1]LÍNEA 1'!W154 -> 1 | T154: ='[6]2016'!K29 -> 0.95 | U154: ='[6]2017'!K29 -> 0 | V154: ='[6]2018'!K29 -> 0 | W154: ='[6]2019'!K29 -> 0 | X154: =IF(P154=0," -",T154/P154) -> 0.95 | Y154: =IF(P154=0," -",IF(X154>100%,100%,X154)) -> 0.95 | Z154: =IF(Q154=0," -",U154/Q154) -> 0 | AA154: =IF(Q154=0," -",IF(Z154>100%,100%,Z154)) -> 0 | AB154: =IF(R154=0," -",V154/R154) -> 0 | AC154: =IF(R154=0," -",IF(AB154>100%,100%,AB154)) -> 0 | AD154: =IF(S154=0," -",W154/S154) -> 0 | AE154: =IF(S154=0," -",IF(AD154>100%,100%,AD154)) -> 0 | AF154: =+AVERAGE(T154:W154)/O154 -> 0.2375 | AG154: 0.2375 | AH154: 0.2375 | AI154: ='[6]2016'!P29 -> 740333 | AJ154: ='[6]2016'!Q29 -> 222835 | AK154: ='[6]2016'!R29 -> 0 | AL154: 0.3009929316 | AM154: - | AN154: ='[6]2017'!P29 -> 209000 | AO154: ='[6]2017'!Q29 -> 0 | AP154: ='[6]2017'!R29 -> 0 | AQ154: 0 | AR154: - | AS154: ='[6]2018'!P29 -> 0 | AT154: ='[6]2018'!Q29 -> 0 | AU154: ='[6]2018'!R29 -> 0 | AV154: - | AW154: - | AX154: ='[6]2019'!P29 -> 0 | AY154: ='[6]2019'!Q29 -> 0 | AZ154: ='[6]2019'!R29 -> 0 | BA154: - | BB154: - | BC154: 949333 | BD154: 222835 | BE154: 0 | BF154: 0.2347279616 | BG154: - | BH154: ='[1]LÍNEA 1'!AO154 -> 16. Paz, justicia e instituciones sólidas | BI154: ='[1]LÍNEA 1'!AP154 -> Fortalecimiento insitucional | BJ154: Sec. Planeación
K155: Elaborar 1 documento guía para la aplicación de los elementos relevantes del POT. | L155: ='[1]LÍNEA 1'!P155 -> 2210906 | M155: ='[1]LÍNEA 1'!Q155 -> Número de documentos guías elaborados para la aplicación de los elementos relevantes del POT. | N155: 0 | O155: ='[1]LÍNEA 1'!S155 -> 1 | P155: ='[1]LÍNEA 1'!T155 -> 0 | Q155: ='[1]LÍNEA 1'!U155 -> 1 | R155: ='[1]LÍNEA 1'!V155 -> 0 | S155: ='[1]LÍNEA 1'!W155 -> 0 | T155: ='[6]2016'!K30 -> 0 | U155: ='[6]2017'!K30 -> 0 | V155: ='[6]2018'!K30 -> 0 | W155: ='[6]2019'!K30 -> 0 | X155: =IF(P155=0," -",T155/P155) -> - | Y155: =IF(P155=0," -",IF(X155>100%,100%,X155)) -> - | Z155: =IF(Q155=0," -",U155/Q155) -> 0 | AA155: =IF(Q155=0," -",IF(Z155>100%,100%,Z155)) -> 0 | AB155: =IF(R155=0," -",V155/R155) -> - | AC155: =IF(R155=0," -",IF(AB155>100%,100%,AB155)) -> - | AD155: =IF(S155=0," -",W155/S155) -> - | AE155: =IF(S155=0," -",IF(AD155>100%,100%,AD155)) -> - | AF155: =+SUM(T155:W155)/O155 -> 0 | AG155: 0 | AH155: 0 | AI155: ='[6]2016'!P30 -> 0 | AJ155: ='[6]2016'!Q30 -> 0 | AK155: ='[6]2016'!R30 -> 0 | AL155: - | AM155: - | AN155: ='[6]2017'!P30 -> 0 | AO155: ='[6]2017'!Q30 -> 0 | AP155: ='[6]2017'!R30 -> 0 | AQ155: - | AR155: - | AS155: ='[6]2018'!P30 -> 20000 | AT155: ='[6]2018'!Q30 -> 0 | AU155: ='[6]2018'!R30 -> 0 | AV155: 0 | AW155: - | AX155: ='[6]2019'!P30 -> 0 | AY155: ='[6]2019'!Q30 -> 0 | AZ155: ='[6]2019'!R30 -> 0 | BA155: - | BB155: - | BC155: 20000 | BD155: 0 | BE155: 0 | BF155: 0 | BG155: - | BH155: ='[1]LÍNEA 1'!AO155 -> 16. Paz, justicia e instituciones sólidas | BI155: ='[1]LÍNEA 1'!AP155 -> Promoción del Desarrollo | BJ155: Sec. Planeación
K156: Desarrollar el plug-in para el POT on-line. | L156: ='[1]LÍNEA 1'!P156 -> 2210906 | M156: ='[1]LÍNEA 1'!Q156 -> Número de plugs-in para el POT on-line desarrollados. | N156: 0 | O156: ='[1]LÍNEA 1'!S156 -> 1 | P156: ='[1]LÍNEA 1'!T156 -> 1 | Q156: ='[1]LÍNEA 1'!U156 -> 0 | R156: ='[1]LÍNEA 1'!V156 -> 0 | S156: ='[1]LÍNEA 1'!W156 -> 0 | T156: ='[6]2016'!K31 -> 1 | U156: ='[6]2017'!K31 -> 0 | V156: ='[6]2018'!K31 -> 0 | W156: ='[6]2019'!K31 -> 0 | X156: =IF(P156=0," -",T156/P156) -> 1 | Y156: =IF(P156=0," -",IF(X156>100%,100%,X156)) -> 1 | Z156: =IF(Q156=0," -",U156/Q156) -> - | AA156: =IF(Q156=0," -",IF(Z156>100%,100%,Z156)) -> - | AB156: =IF(R156=0," -",V156/R156) -> - | AC156: =IF(R156=0," -",IF(AB156>100%,100%,AB156)) -> - | AD156: =IF(S156=0," -",W156/S156) -> - | AE156: =IF(S156=0," -",IF(AD156>100%,100%,AD156)) -> - | AF156: =+SUM(T156:W156)/O156 -> 1 | AG156: 1 | AH156: 1 | AI156: ='[6]2016'!P31 -> 0 | AJ156: ='[6]2016'!Q31 -> 0 | AK156: ='[6]2016'!R31 -> 0 | AL156: - | AM156: - | AN156: ='[6]2017'!P31 -> 0 | AO156: ='[6]2017'!Q31 -> 0 | AP156: ='[6]2017'!R31 -> 0 | AQ156: - | AR156: - | AS156: ='[6]2018'!P31 -> 370000 | AT156: ='[6]2018'!Q31 -> 0 | AU156: ='[6]2018'!R31 -> 0 | AV156: 0 | AW156: - | AX156: ='[6]2019'!P31 -> 0 | AY156: ='[6]2019'!Q31 -> 0 | AZ156: ='[6]2019'!R31 -> 0 | BA156: - | BB156: - | BC156: 370000 | BD156: 0 | BE156: 0 | BF156: 0 | BG156: - | BH156: ='[1]LÍNEA 1'!AO156 -> 16. Paz, justicia e instituciones sólidas | BI156: ='[1]LÍNEA 1'!AP156 -> Promoción del Desarrollo | BJ156: Sec. Planeación
K157: Realizar 1 estudio para aplicar la plusvalía en el municipio. | L157: ='[1]LÍNEA 1'!P157 -> 2210158 | M157: ='[1]LÍNEA 1'!Q157 -> Porcentaje de avance en la realización del estudio para aplicar la plusvalía en el municipio. | N157: 0 | O157: ='[1]LÍNEA 1'!S157 -> 1 | P157: ='[1]LÍNEA 1'!T157 -> 0 | Q157: ='[1]LÍNEA 1'!U157 -> 1 | R157: ='[1]LÍNEA 1'!V157 -> 0 | S157: ='[1]LÍNEA 1'!W157 -> 0 | T157: ='[6]2016'!K32 -> 0 | U157: ='[6]2017'!K32 -> 0 | V157: ='[6]2018'!K32 -> 0 | W157: ='[6]2019'!K32 -> 0 | X157: =IF(P157=0," -",T157/P157) -> - | Y157: =IF(P157=0," -",IF(X157>100%,100%,X157)) -> - | Z157: =IF(Q157=0," -",U157/Q157) -> 0 | AA157: =IF(Q157=0," -",IF(Z157>100%,100%,Z157)) -> 0 | AB157: =IF(R157=0," -",V157/R157) -> - | AC157: =IF(R157=0," -",IF(AB157>100%,100%,AB157)) -> - | AD157: =IF(S157=0," -",W157/S157) -> - | AE157: =IF(S157=0," -",IF(AD157>100%,100%,AD157)) -> - | AF157: =+SUM(T157:W157)/O157 -> 0 | AG157: 0 | AH157: 0 | AI157: ='[6]2016'!P32 -> 0 | AJ157: ='[6]2016'!Q32 -> 0 | AK157: ='[6]2016'!R32 -> 0 | AL157: - | AM157: - | AN157: ='[6]2017'!P32 -> 600000 | AO157: ='[6]2017'!Q32 -> 0 | AP157: ='[6]2017'!R32 -> 0 | AQ157: 0 | AR157: - | AS157: ='[6]2018'!P32 -> 0 | AT157: ='[6]2018'!Q32 -> 0 | AU157: ='[6]2018'!R32 -> 0 | AV157: - | AW157: - | AX157: ='[6]2019'!P32 -> 0 | AY157: ='[6]2019'!Q32 -> 0 | AZ157: ='[6]2019'!R32 -> 0 | BA157: - | BB157: - | BC157: 600000 | BD157: 0 | BE157: 0 | BF157: 0 | BG157: - | BH157: ='[1]LÍNEA 1'!AO157 -> 16. Paz, justicia e instituciones sólidas | BI157: ='[1]LÍNEA 1'!AP157 -> Promoción del Desarrollo | BJ157: Sec. Planeación
F158: Lograr 10.000 M2 de espacio público efectivo por aportes de deberes urbanísticos. | G158: 0 | H158: =+'[1]LÍNEA 1'!H158 -> 10000 | K158: Realizar 1 estudios de estructuración zonal. | L158: ='[1]LÍNEA 1'!P158 -> 2210158 | M158: ='[1]LÍNEA 1'!Q158 -> Porcentaje de avance en la realización del estudio de estructuración zonal. | N158: 0 | O158: ='[1]LÍNEA 1'!S158 -> 1 | P158: ='[1]LÍNEA 1'!T158 -> 0 | Q158: ='[1]LÍNEA 1'!U158 -> 0.6 | R158: ='[1]LÍNEA 1'!V158 -> 0.4 | S158: ='[1]LÍNEA 1'!W158 -> 0 | T158: ='[6]2016'!K33 -> 0 | U158: ='[6]2017'!K33 -> 0 | V158: ='[6]2018'!K33 -> 0 | W158: ='[6]2019'!K33 -> 0 | X158: =IF(P158=0," -",T158/P158) -> - | Y158: =IF(P158=0," -",IF(X158>100%,100%,X158)) -> - | Z158: =IF(Q158=0," -",U158/Q158) -> 0 | AA158: =IF(Q158=0," -",IF(Z158>100%,100%,Z158)) -> 0 | AB158: =IF(R158=0," -",V158/R158) -> 0 | AC158: =IF(R158=0," -",IF(AB158>100%,100%,AB158)) -> 0 | AD158: =IF(S158=0," -",W158/S158) -> - | AE158: =IF(S158=0," -",IF(AD158>100%,100%,AD158)) -> - | AF158: =+SUM(T158:W158)/O158 -> 0 | AG158: 0 | AH158: 0 | AI158: ='[6]2016'!P33 -> 0 | AJ158: ='[6]2016'!Q33 -> 0 | AK158: ='[6]2016'!R33 -> 0 | AL158: - | AM158: - | AN158: ='[6]2017'!P33 -> 500000 | AO158: ='[6]2017'!Q33 -> 0 | AP158: ='[6]2017'!R33 -> 0 | AQ158: 0 | AR158: - | AS158: ='[6]2018'!P33 -> 0 | AT158: ='[6]2018'!Q33 -> 0 | AU158: ='[6]2018'!R33 -> 0 | AV158: - | AW158: - | AX158: ='[6]2019'!P33 -> 0 | AY158: ='[6]2019'!Q33 -> 0 | AZ158: ='[6]2019'!R33 -> 0 | BA158: - | BB158: - | BC158: 500000 | BD158: 0 | BE158: 0 | BF158: 0 | BG158: - | BH158: ='[1]LÍNEA 1'!AO158 -> 16. Paz, justicia e instituciones sólidas | BI158: ='[1]LÍNEA 1'!AP158 -> Promoción del Desarrollo | BJ158: Sec. Planeación
K159: Mantener actualizado el expediente municipal. | L159: ='[1]LÍNEA 1'!P159 -> 2210906 | M159: ='[1]LÍNEA 1'!Q159 -> Número de expedientes municipales actualizados. | N159: 1 | O159: ='[1]LÍNEA 1'!S159 -> 1 | P159: ='[1]LÍNEA 1'!T159 -> 1 | Q159: ='[1]LÍNEA 1'!U159 -> 1 | R159: ='[1]LÍNEA 1'!V159 -> 1 | S159: ='[1]LÍNEA 1'!W159 -> 1 | T159: ='[6]2016'!K34 -> 1 | U159: ='[6]2017'!K34 -> 0 | V159: ='[6]2018'!K34 -> 0 | W159: ='[6]2019'!K34 -> 0 | X159: =IF(P159=0," -",T159/P159) -> 1 | Y159: =IF(P159=0," -",IF(X159>100%,100%,X159)) -> 1 | Z159: =IF(Q159=0," -",U159/Q159) -> 0 | AA159: =IF(Q159=0," -",IF(Z159>100%,100%,Z159)) -> 0 | AB159: =IF(R159=0," -",V159/R159) -> 0 | AC159: =IF(R159=0," -",IF(AB159>100%,100%,AB159)) -> 0 | AD159: =IF(S159=0," -",W159/S159) -> 0 | AE159: =IF(S159=0," -",IF(AD159>100%,100%,AD159)) -> 0 | AF159: =+AVERAGE(T159:W159)/O159 -> 0.25 | AG159: 0.25 | AH159: 0.25 | AI159: ='[6]2016'!P34 -> 32500 | AJ159: ='[6]2016'!Q34 -> 32500 | AK159: ='[6]2016'!R34 -> 0 | AL159: 1 | AM159: - | AN159: ='[6]2017'!P34 -> 382000 | AO159: ='[6]2017'!Q34 -> 0 | AP159: ='[6]2017'!R34 -> 0 | AQ159: 0 | AR159: - | AS159: ='[6]2018'!P34 -> 0 | AT159: ='[6]2018'!Q34 -> 0 | AU159: ='[6]2018'!R34 -> 0 | AV159: - | AW159: - | AX159: ='[6]2019'!P34 -> 0 | AY159: ='[6]2019'!Q34 -> 0 | AZ159: ='[6]2019'!R34 -> 0 | BA159: - | BB159: - | BC159: 414500 | BD159: 32500 | BE159: 0 | BF159: 0.07840772014 | BG159: - | BH159: ='[1]LÍNEA 1'!AO159 -> 16. Paz, justicia e instituciones sólidas | BI159: ='[1]LÍNEA 1'!AP159 -> Promoción del Desarrollo | BJ159: Sec. Planeación
K160: Actualizar la lista indicativa de Bienes de Interés Cultural - BIC. | L160: ='[1]LÍNEA 1'!P160 -> - | M160: ='[1]LÍNEA 1'!Q160 -> Número de listas indicativas de bienes de interés cultural actualizadas. | N160: 1 | O160: ='[1]LÍNEA 1'!S160 -> 1 | P160: ='[1]LÍNEA 1'!T160 -> 0 | Q160: ='[1]LÍNEA 1'!U160 -> 0 | R160: ='[1]LÍNEA 1'!V160 -> 0 | S160: ='[1]LÍNEA 1'!W160 -> 1 | T160: ='[6]2016'!K35 -> 0 | U160: ='[6]2017'!K35 -> 0 | V160: ='[6]2018'!K35 -> 0 | W160: ='[6]2019'!K35 -> 0 | X160: =IF(P160=0," -",T160/P160) -> - | Y160: =IF(P160=0," -",IF(X160>100%,100%,X160)) -> - | Z160: =IF(Q160=0," -",U160/Q160) -> - | AA160: =IF(Q160=0," -",IF(Z160>100%,100%,Z160)) -> - | AB160: =IF(R160=0," -",V160/R160) -> - | AC160: =IF(R160=0," -",IF(AB160>100%,100%,AB160)) -> - | AD160: =IF(S160=0," -",W160/S160) -> 0 | AE160: =IF(S160=0," -",IF(AD160>100%,100%,AD160)) -> 0 | AF160: =+SUM(T160:W160)/O160 -> 0 | AG160: 0 | AH160: 0 | AI160: ='[6]2016'!P35 -> 0 | AJ160: ='[6]2016'!Q35 -> 0 | AK160: ='[6]2016'!R35 -> 0 | AL160: - | AM160: - | AN160: ='[6]2017'!P35 -> 0 | AO160: ='[6]2017'!Q35 -> 0 | AP160: ='[6]2017'!R35 -> 0 | AQ160: - | AR160: - | AS160: ='[6]2018'!P35 -> 0 | AT160: ='[6]2018'!Q35 -> 0 | AU160: ='[6]2018'!R35 -> 0 | AV160: - | AW160: - | AX160: ='[6]2019'!P35 -> 0 | AY160: ='[6]2019'!Q35 -> 0 | AZ160: ='[6]2019'!R35 -> 0 | BA160: - | BB160: - | BC160: 0 | BD160: 0 | BE160: 0 | BF160: - | BG160: - | BH160: ='[1]LÍNEA 1'!AO160 -> 16. Paz, justicia e instituciones sólidas | BI160: ='[1]LÍNEA 1'!AP160 -> Promoción del Desarrollo | BJ160: Sec. Planeación
I161: =+RESUMEN!J34 -> 0.175 | J161: DISEÑO URBANO INTELIGENTE Y SUSTENTABLE | K161: Conformar y mantener el equipo de diseño del taller de arquitectura. | L161: ='[1]LÍNEA 1'!P161 -> 2210269 | M161: ='[1]LÍNEA 1'!Q161 -> Número de equipos de diseño del taller de arquitectura conformados y mantenidos. | N161: 0 | O161: ='[1]LÍNEA 1'!S161 -> 1 | P161: ='[1]LÍNEA 1'!T161 -> 1 | Q161: ='[1]LÍNEA 1'!U161 -> 1 | R161: ='[1]LÍNEA 1'!V161 -> 1 | S161: ='[1]LÍNEA 1'!W161 -> 1 | T161: ='[6]2016'!K36 -> 1 | U161: ='[6]2017'!K36 -> 0 | V161: ='[6]2018'!K36 -> 0 | W161: ='[6]2019'!K36 -> 0 | X161: =IF(P161=0," -",T161/P161) -> 1 | Y161: =IF(P161=0," -",IF(X161>100%,100%,X161)) -> 1 | Z161: =IF(Q161=0," -",U161/Q161) -> 0 | AA161: =IF(Q161=0," -",IF(Z161>100%,100%,Z161)) -> 0 | AB161: =IF(R161=0," -",V161/R161) -> 0 | AC161: =IF(R161=0," -",IF(AB161>100%,100%,AB161)) -> 0 | AD161: =IF(S161=0," -",W161/S161) -> 0 | AE161: =IF(S161=0," -",IF(AD161>100%,100%,AD161)) -> 0 | AF161: =+AVERAGE(T161:W161)/O161 -> 0.25 | AG161: 0.25 | AH161: 0.25 | AI161: ='[6]2016'!P36 -> 1000000 | AJ161: ='[6]2016'!Q36 -> 241300 | AK161: ='[6]2016'!R36 -> 0 | AL161: 0.2413 | AM161: - | AN161: ='[6]2017'!P36 -> 198000 | AO161: ='[6]2017'!Q36 -> 0 | AP161: ='[6]2017'!R36 -> 0 | AQ161: 0 | AR161: - | AS161: ='[6]2018'!P36 -> 400000 | AT161: ='[6]2018'!Q36 -> 0 | AU161: ='[6]2018'!R36 -> 0 | AV161: 0 | AW161: - | AX161: ='[6]2019'!P36 -> 400000 | AY161: ='[6]2019'!Q36 -> 0 | AZ161: ='[6]2019'!R36 -> 0 | BA161: 0 | BB161: - | BC161: 1998000 | BD161: 241300 | BE161: 0 | BF161: 0.1207707708 | BG161: - | BH161: ='[1]LÍNEA 1'!AO161 -> 16. Paz, justicia e instituciones sólidas | BI161: ='[1]LÍNEA 1'!AP161 -> Promoción del Desarrollo | BJ161: Sec. Planeación
K162: Realizar 150 propuestas para proyectos básicos que contengan los lineamientos de diseño urbano. | L162: ='[1]LÍNEA 1'!P162 -> - | M162: ='[1]LÍNEA 1'!Q162 -> Número de propuestas para proyectos básicos realizados que contengan los lineamientos de diseño urbano. | N162: 0 | O162: ='[1]LÍNEA 1'!S162 -> 150 | P162: ='[1]LÍNEA 1'!T162 -> 15 | Q162: ='[1]LÍNEA 1'!U162 -> 60 | R162: ='[1]LÍNEA 1'!V162 -> 50 | S162: ='[1]LÍNEA 1'!W162 -> 25 | T162: ='[6]2016'!K37 -> 15 | U162: ='[6]2017'!K37 -> 0 | V162: ='[6]2018'!K37 -> 0 | W162: ='[6]2019'!K37 -> 0 | X162: =IF(P162=0," -",T162/P162) -> 1 | Y162: =IF(P162=0," -",IF(X162>100%,100%,X162)) -> 1 | Z162: =IF(Q162=0," -",U162/Q162) -> 0 | AA162: =IF(Q162=0," -",IF(Z162>100%,100%,Z162)) -> 0 | AB162: =IF(R162=0," -",V162/R162) -> 0 | AC162: =IF(R162=0," -",IF(AB162>100%,100%,AB162)) -> 0 | AD162: =IF(S162=0," -",W162/S162) -> 0 | AE162: =IF(S162=0," -",IF(AD162>100%,100%,AD162)) -> 0 | AF162: =+SUM(T162:W162)/O162 -> 0.1 | AG162: 0.1 | AH162: 0.1 | AI162: ='[6]2016'!P37 -> 0 | AJ162: ='[6]2016'!Q37 -> 0 | AK162: ='[6]2016'!R37 -> 0 | AL162: - | AM162: - | AN162: ='[6]2017'!P37 -> 0 | AO162: ='[6]2017'!Q37 -> 0 | AP162: ='[6]2017'!R37 -> 0 | AQ162: - | AR162: - | AS162: ='[6]2018'!P37 -> 0 | AT162: ='[6]2018'!Q37 -> 0 | AU162: ='[6]2018'!R37 -> 0 | AV162: - | AW162: - | AX162: ='[6]2019'!P37 -> 0 | AY162: ='[6]2019'!Q37 -> 0 | AZ162: ='[6]2019'!R37 -> 0 | BA162: - | BB162: - | BC162: 0 | BD162: 0 | BE162: 0 | BF162: - | BG162: - | BH162: ='[1]LÍNEA 1'!AO162 -> 11. Ciudades y comunidades sostenibles | BI162: ='[1]LÍNEA 1'!AP162 -> Promoción del Desarrollo | BJ162: Sec. Planeación
I163: =+RESUMEN!J35 -> 0.10625 | J163: UNA CIUDAD QUE HACE Y EJECUTA PLANES | K163: Estructurar 1 Plan Integral Zonal - PIZ. | L163: ='[1]LÍNEA 1'!P163 -> 2210158 | M163: ='[1]LÍNEA 1'!Q163 -> Porcentaje de avance de la estructuración del Plan Integral Zonal - PIZ. | N163: 0 | O163: ='[1]LÍNEA 1'!S163 -> 1 | P163: ='[1]LÍNEA 1'!T163 -> 0 | Q163: ='[1]LÍNEA 1'!U163 -> 1 | R163: ='[1]LÍNEA 1'!V163 -> 0 | S163: ='[1]LÍNEA 1'!W163 -> 0 | T163: ='[6]2016'!K38 -> 0 | U163: ='[6]2017'!K38 -> 0 | V163: ='[6]2018'!K38 -> 0 | W163: ='[6]2019'!K38 -> 0 | X163: =IF(P163=0," -",T163/P163) -> - | Y163: =IF(P163=0," -",IF(X163>100%,100%,X163)) -> - | Z163: =IF(Q163=0," -",U163/Q163) -> 0 | AA163: =IF(Q163=0," -",IF(Z163>100%,100%,Z163)) -> 0 | AB163: =IF(R163=0," -",V163/R163) -> - | AC163: =IF(R163=0," -",IF(AB163>100%,100%,AB163)) -> - | AD163: =IF(S163=0," -",W163/S163) -> - | AE163: =IF(S163=0," -",IF(AD163>100%,100%,AD163)) -> - | AF163: =+SUM(T163:W163)/O163 -> 0 | AG163: 0 | AH163: 0 | AI163: ='[6]2016'!P38 -> 0 | AJ163: ='[6]2016'!Q38 -> 0 | AK163: ='[6]2016'!R38 -> 0 | AL163: - | AM163: - | AN163: ='[6]2017'!P38 -> 900000 | AO163: ='[6]2017'!Q38 -> 0 | AP163: ='[6]2017'!R38 -> 0 | AQ163: 0 | AR163: - | AS163: ='[6]2018'!P38 -> 0 | AT163: ='[6]2018'!Q38 -> 0 | AU163: ='[6]2018'!R38 -> 0 | AV163: - | AW163: - | AX163: ='[6]2019'!P38 -> 0 | AY163: ='[6]2019'!Q38 -> 0 | AZ163: ='[6]2019'!R38 -> 0 | BA163: - | BB163: - | BC163: 900000 | BD163: 0 | BE163: 0 | BF163: 0 | BG163: - | BH163: ='[1]LÍNEA 1'!AO163 -> 11. Ciudades y comunidades sostenibles | BI163: ='[1]LÍNEA 1'!AP163 -> Promoción del Desarrollo | BJ163: Sec. Planeación
F164: Lograr la evaluación del 100% del modelo territorial planteado en el Plan de Ordenamiento Territorial - POT. | G164: 0.3 | H164: =+'[1]LÍNEA 1'!H164 -> 1 | K164: Ejecutar 1 Plan Integral Zonal. | L164: ='[1]LÍNEA 1'!P164 -> 2210158 | M164: ='[1]LÍNEA 1'!Q164 -> Porcentaje de avance en la ejecución del Plan Integral Zonal - PIZ. | N164: 0 | O164: ='[1]LÍNEA 1'!S164 -> 1 | P164: ='[1]LÍNEA 1'!T164 -> 0 | Q164: ='[1]LÍNEA 1'!U164 -> 0 | R164: ='[1]LÍNEA 1'!V164 -> 0.25 | S164: ='[1]LÍNEA 1'!W164 -> 0.75 | T164: ='[6]2016'!K39 -> 0 | U164: ='[6]2017'!K39 -> 0 | V164: ='[6]2018'!K39 -> 0 | W164: ='[6]2019'!K39 -> 0 | X164: =IF(P164=0," -",T164/P164) -> - | Y164: =IF(P164=0," -",IF(X164>100%,100%,X164)) -> - | Z164: =IF(Q164=0," -",U164/Q164) -> - | AA164: =IF(Q164=0," -",IF(Z164>100%,100%,Z164)) -> - | AB164: =IF(R164=0," -",V164/R164) -> 0 | AC164: =IF(R164=0," -",IF(AB164>100%,100%,AB164)) -> 0 | AD164: =IF(S164=0," -",W164/S164) -> 0 | AE164: =IF(S164=0," -",IF(AD164>100%,100%,AD164)) -> 0 | AF164: =+SUM(T164:W164)/O164 -> 0 | AG164: 0 | AH164: 0 | AI164: ='[6]2016'!P39 -> 0 | AJ164: ='[6]2016'!Q39 -> 0 | AK164: ='[6]2016'!R39 -> 0 | AL164: - | AM164: - | AN164: ='[6]2017'!P39 -> 0 | AO164: ='[6]2017'!Q39 -> 0 | AP164: ='[6]2017'!R39 -> 0 | AQ164: - | AR164: - | AS164: ='[6]2018'!P39 -> 100000 | AT164: ='[6]2018'!Q39 -> 0 | AU164: ='[6]2018'!R39 -> 0 | AV164: 0 | AW164: - | AX164: ='[6]2019'!P39 -> 100000 | AY164: ='[6]2019'!Q39 -> 0 | AZ164: ='[6]2019'!R39 -> 0 | BA164: 0 | BB164: - | BC164: 200000 | BD164: 0 | BE164: 0 | BF164: 0 | BG164: - | BH164: ='[1]LÍNEA 1'!AO164 -> 11. Ciudades y comunidades sostenibles | BI164: ='[1]LÍNEA 1'!AP164 -> Promoción del Desarrollo | BJ164: Sec. Planeación
K165: Realizar 1 estudio que contenga los lineamientos y directrices generales del gran bosque de los cerros orientales de escala metropolitana. | L165: ='[1]LÍNEA 1'!P165 -> 2210270 | M165: ='[1]LÍNEA 1'!Q165 -> Porcentaje de avance de la realización del estudio que contenga los lineamientos y directrices generales del gran bosque de los cerros orientales de escala metropolitana. | N165: 0 | O165: ='[1]LÍNEA 1'!S165 -> 1 | P165: ='[1]LÍNEA 1'!T165 -> 0 | Q165: ='[1]LÍNEA 1'!U165 -> 0 | R165: ='[1]LÍNEA 1'!V165 -> 0.75 | S165: ='[1]LÍNEA 1'!W165 -> 0.25 | T165: ='[6]2016'!K40 -> 0 | U165: ='[6]2017'!K40 -> 0 | V165: ='[6]2018'!K40 -> 0 | W165: ='[6]2019'!K40 -> 0 | X165: =IF(P165=0," -",T165/P165) -> - | Y165: =IF(P165=0," -",IF(X165>100%,100%,X165)) -> - | Z165: =IF(Q165=0," -",U165/Q165) -> - | AA165: =IF(Q165=0," -",IF(Z165>100%,100%,Z165)) -> - | AB165: =IF(R165=0," -",V165/R165) -> 0 | AC165: =IF(R165=0," -",IF(AB165>100%,100%,AB165)) -> 0 | AD165: =IF(S165=0," -",W165/S165) -> 0 | AE165: =IF(S165=0," -",IF(AD165>100%,100%,AD165)) -> 0 | AF165: =+SUM(T165:W165)/O165 -> 0 | AG165: 0 | AH165: 0 | AI165: ='[6]2016'!P40 -> 0 | AJ165: ='[6]2016'!Q40 -> 0 | AK165: ='[6]2016'!R40 -> 0 | AL165: - | AM165: - | AN165: ='[6]2017'!P40 -> 0 | AO165: ='[6]2017'!Q40 -> 0 | AP165: ='[6]2017'!R40 -> 0 | AQ165: - | AR165: - | AS165: ='[6]2018'!P40 -> 0 | AT165: ='[6]2018'!Q40 -> 0 | AU165: ='[6]2018'!R40 -> 0 | AV165: - | AW165: - | AX165: ='[6]2019'!P40 -> 0 | AY165: ='[6]2019'!Q40 -> 0 | AZ165: ='[6]2019'!R40 -> 0 | BA165: - | BB165: - | BC165: 0 | BD165: 0 | BE165: 0 | BF165: - | BG165: - | BH165: ='[1]LÍNEA 1'!AO165 -> 11. Ciudades y comunidades sostenibles | BI165: ='[1]LÍNEA 1'!AP165 -> Equipamiento | BJ165: Sec. Planeación
K166: Formular el Plan Maestro de Espacio Público. | L166: ='[1]LÍNEA 1'!P166 -> 2210158 | M166: ='[1]LÍNEA 1'!Q166 -> Porcentaje de avance de la formulación del Plan Maestro de Espacio Público. | N166: 0 | O166: ='[1]LÍNEA 1'!S166 -> 1 | P166: ='[1]LÍNEA 1'!T166 -> 0 | Q166: ='[1]LÍNEA 1'!U166 -> 1 | R166: ='[1]LÍNEA 1'!V166 -> 0 | S166: ='[1]LÍNEA 1'!W166 -> 0 | T166: ='[6]2016'!K41 -> 0 | U166: ='[6]2017'!K41 -> 0 | V166: ='[6]2018'!K41 -> 0 | W166: ='[6]2019'!K41 -> 0 | X166: =IF(P166=0," -",T166/P166) -> - | Y166: =IF(P166=0," -",IF(X166>100%,100%,X166)) -> - | Z166: =IF(Q166=0," -",U166/Q166) -> 0 | AA166: =IF(Q166=0," -",IF(Z166>100%,100%,Z166)) -> 0 | AB166: =IF(R166=0," -",V166/R166) -> - | AC166: =IF(R166=0," -",IF(AB166>100%,100%,AB166)) -> - | AD166: =IF(S166=0," -",W166/S166) -> - | AE166: =IF(S166=0," -",IF(AD166>100%,100%,AD166)) -> - | AF166: =+SUM(T166:W166)/O166 -> 0 | AG166: 0 | AH166: 0 | AI166: ='[6]2016'!P41 -> 0 | AJ166: ='[6]2016'!Q41 -> 0 | AK166: ='[6]2016'!R41 -> 0 | AL166: - | AM166: - | AN166: ='[6]2017'!P41 -> 1000000 | AO166: ='[6]2017'!Q41 -> 0 | AP166: ='[6]2017'!R41 -> 0 | AQ166: 0 | AR166: - | AS166: ='[6]2018'!P41 -> 0 | AT166: ='[6]2018'!Q41 -> 0 | AU166: ='[6]2018'!R41 -> 0 | AV166: - | AW166: - | AX166: ='[6]2019'!P41 -> 0 | AY166: ='[6]2019'!Q41 -> 0 | AZ166: ='[6]2019'!R41 -> 0 | BA166: - | BB166: - | BC166: 1000000 | BD166: 0 | BE166: 0 | BF166: 0 | BG166: - | BH166: ='[1]LÍNEA 1'!AO166 -> 11. Ciudades y comunidades sostenibles | BI166: ='[1]LÍNEA 1'!AP166 -> Promoción del Desarrollo | BJ166: Sec. Planeación
K167: Realizar el 100% de los diseños, estudios, consultorías e interventorías para ejecutar los proyectos y las obras del Plan de Desarrollo 2016 - 2019 y otros planes de ciudad. | L167: ='[1]LÍNEA 1'!P167 -> - | M167: ='[1]LÍNEA 1'!Q167 -> Porcentaje de diseños, estudios, consultorías e interventorias realizadas para para ejecutar los proyectos y las obras del Plan de Desarrollo 2016 - 2019 y otros planes de ciudad. | N167: 1 | O167: ='[1]LÍNEA 1'!S167 -> 1 | P167: ='[1]LÍNEA 1'!T167 -> 1 | Q167: ='[1]LÍNEA 1'!U167 -> 1 | R167: ='[1]LÍNEA 1'!V167 -> 1 | S167: ='[1]LÍNEA 1'!W167 -> 1 | T167: ='[7]2016'!$K$19 -> 1 | U167: ='[7]2017'!$K$19 -> 0 | V167: ='[7]2018'!$K$19 -> 0 | W167: ='[7]2019'!$K$19 -> 0 | X167: =IF(P167=0," -",T167/P167) -> 1 | Y167: =IF(P167=0," -",IF(X167>100%,100%,X167)) -> 1 | Z167: =IF(Q167=0," -",U167/Q167) -> 0 | AA167: =IF(Q167=0," -",IF(Z167>100%,100%,Z167)) -> 0 | AB167: =IF(R167=0," -",V167/R167) -> 0 | AC167: =IF(R167=0," -",IF(AB167>100%,100%,AB167)) -> 0 | AD167: =IF(S167=0," -",W167/S167) -> 0 | AE167: =IF(S167=0," -",IF(AD167>100%,100%,AD167)) -> 0 | AF167: =+AVERAGE(T167:W167)/O167 -> 0.25 | AG167: 0.25 | AH167: 0.25 | AI167: ='[7]2016'!P19 -> 385956 | AJ167: ='[7]2016'!Q19 -> 302350 | AK167: ='[7]2016'!R19 -> 0 | AL167: 0.7833794526 | AM167: - | AN167: ='[7]2017'!P19 -> 6390000 | AO167: ='[7]2017'!Q19 -> 0 | AP167: ='[7]2017'!R19 -> 0 | AQ167: 0 | AR167: - | AS167: ='[7]2018'!P19 -> 0 | AT167: ='[7]2018'!Q19 -> 0 | AU167: ='[7]2018'!R19 -> 0 | AV167: - | AW167: - | AX167: ='[7]2019'!P19 -> 0 | AY167: ='[7]2019'!Q19 -> 0 | AZ167: ='[7]2019'!R19 -> 0 | BA167: - | BB167: - | BC167: 6775956 | BD167: 302350 | BE167: 0 | BF167: 0.04462100994 | BG167: - | BH167: ='[1]LÍNEA 1'!AO167 -> 16. Paz, justicia e instituciones sólidas | BI167: ='[1]LÍNEA 1'!AP167 -> Promoción del Desarrollo | BJ167: Sec. Infraestructura
K168: Ajustar el Plan Local de Seguridad Vial. | L168: ='[1]LÍNEA 1'!P168 -> - | M168: ='[1]LÍNEA 1'!Q168 -> Número de ajustes al Plan Local de Seguridad Vial realizados. | N168: 1 | O168: ='[1]LÍNEA 1'!S168 -> 1 | P168: ='[1]LÍNEA 1'!T168 -> 1 | Q168: ='[1]LÍNEA 1'!U168 -> 0 | R168: ='[1]LÍNEA 1'!V168 -> 0 | S168: ='[1]LÍNEA 1'!W168 -> 0 | T168: ='[16]2016'!$K$14 -> 1 | U168: ='[16]2017'!$K$14 -> 0 | V168: ='[16]2018'!$K$14 -> 0 | W168: ='[16]2019'!$K$14 -> 0 | X168: =IF(P168=0," -",T168/P168) -> 1 | Y168: =IF(P168=0," -",IF(X168>100%,100%,X168)) -> 1 | Z168: =IF(Q168=0," -",U168/Q168) -> - | AA168: =IF(Q168=0," -",IF(Z168>100%,100%,Z168)) -> - | AB168: =IF(R168=0," -",V168/R168) -> - | AC168: =IF(R168=0," -",IF(AB168>100%,100%,AB168)) -> - | AD168: =IF(S168=0," -",W168/S168) -> - | AE168: =IF(S168=0," -",IF(AD168>100%,100%,AD168)) -> - | AF168: =+AVERAGE(T168:W168)/O168 -> 0.25 | AG168: 0.25 | AH168: 0.25 | AI168: ='[16]2016'!P14 -> 0 | AJ168: ='[16]2016'!Q14 -> 0 | AK168: ='[16]2016'!R14 -> 0 | AL168: - | AM168: - | AN168: ='[16]2017'!P14 -> 0 | AO168: ='[16]2017'!Q14 -> 0 | AP168: ='[16]2017'!R14 -> 0 | AQ168: - | AR168: - | AS168: ='[16]2018'!P14 -> 0 | AT168: ='[16]2018'!Q14 -> 0 | AU168: ='[16]2018'!R14 -> 0 | AV168: - | AW168: - | AX168: ='[16]2019'!P14 -> 0 | AY168: ='[16]2019'!Q14 -> 0 | AZ168: ='[16]2019'!R14 -> 0 | BA168: - | BB168: - | BC168: 0 | BD168: 0 | BE168: 0 | BF168: - | BG168: - | BH168: ='[1]LÍNEA 1'!AO168 -> 11. Ciudades y comunidades sostenibles | BI168: ='[1]LÍNEA 1'!AP168 -> Promoción del Desarrollo | BJ168: Dir. Tránsito
K169: Formular e implementar el Plan Estratégico de Seguridad Vial en METROLÍNEA. | L169: ='[1]LÍNEA 1'!P169 -> 21032501 | M169: ='[1]LÍNEA 1'!Q169 -> Número de Planes Estratégicos de Seguridad Vial en METROLÍNEA formulados e implementados. | N169: 0.01 | O169: ='[1]LÍNEA 1'!S169 -> 1 | P169: ='[1]LÍNEA 1'!T169 -> 1 | Q169: ='[1]LÍNEA 1'!U169 -> 1 | R169: ='[1]LÍNEA 1'!V169 -> 1 | S169: ='[1]LÍNEA 1'!W169 -> 1 | T169: ='[21]2016'!$K$12 -> 0.4 | U169: ='[21]2017'!$K$12 -> 0 | V169: ='[21]2018'!$K$12 -> 0 | W169: ='[21]2019'!$K$12 -> 0 | X169: =IF(P169=0," -",T169/P169) -> 0.4 | Y169: =IF(P169=0," -",IF(X169>100%,100%,X169)) -> 0.4 | Z169: =IF(Q169=0," -",U169/Q169) -> 0 | AA169: =IF(Q169=0," -",IF(Z169>100%,100%,Z169)) -> 0 | AB169: =IF(R169=0," -",V169/R169) -> 0 | AC169: =IF(R169=0," -",IF(AB169>100%,100%,AB169)) -> 0 | AD169: =IF(S169=0," -",W169/S169) -> 0 | AE169: =IF(S169=0," -",IF(AD169>100%,100%,AD169)) -> 0 | AF169: =+AVERAGE(T169:W169)/O169 -> 0.1 | AG169: 0.1 | AH169: 0.1 | AI169: ='[21]2016'!P12 -> 0 | AJ169: ='[21]2016'!Q12 -> 0 | AK169: ='[21]2016'!R12 -> 0 | AL169: - | AM169: - | AN169: ='[21]2017'!P12 -> 50000 | AO169: ='[21]2017'!Q12 -> 0 | AP169: ='[21]2017'!R12 -> 0 | AQ169: 0 | AR169: - | AS169: ='[21]2018'!P12 -> 50000 | AT169: ='[21]2018'!Q12 -> 0 | AU169: ='[21]2018'!R12 -> 0 | AV169: 0 | AW169: - | AX169: ='[21]2019'!P12 -> 50000 | AY169: ='[21]2019'!Q12 -> 0 | AZ169: ='[21]2019'!R12 -> 0 | BA169: 0 | BB169: - | BC169: 150000 | BD169: 0 | BE169: 0 | BF169: 0 | BG169: - | BH169: ='[1]LÍNEA 1'!AO169 -> 11. Ciudades y comunidades sostenibles | BI169: ='[1]LÍNEA 1'!AP169 -> Transporte | BJ169: METROLÍNEA
F170: Construir 20 obras de infraestructura de espacio público ideadas por el taller de arquitectura. | G170: 0 | H170: =+'[1]LÍNEA 1'!H170 -> 20 | K170: Apoyar el proceso de formulación y ejecución del Plan Maestro Santander Life en coordinación con el Área Metropolitana de Bucaramanga. | L170: ='[1]LÍNEA 1'!P170 -> 0542900401 | M170: ='[1]LÍNEA 1'!Q170 -> Número de Planes Maestros Santander Life apoyados en su proceso de formulación y ejecución en coordinación con el Área Metropolitana de Bucaramanga. | N170: 0 | O170: ='[1]LÍNEA 1'!S170 -> 1 | P170: ='[1]LÍNEA 1'!T170 -> 1 | Q170: ='[1]LÍNEA 1'!U170 -> 1 | R170: ='[1]LÍNEA 1'!V170 -> 1 | S170: ='[1]LÍNEA 1'!W170 -> 1 | T170: ='[22]2016'!$K$12 -> 1 | U170: ='[22]2017'!$K$12 -> 0 | V170: ='[22]2018'!$K$12 -> 0 | W170: ='[22]2019'!$K$12 -> 0 | X170: =IF(P170=0," -",T170/P170) -> 1 | Y170: =IF(P170=0," -",IF(X170>100%,100%,X170)) -> 1 | Z170: =IF(Q170=0," -",U170/Q170) -> 0 | AA170: =IF(Q170=0," -",IF(Z170>100%,100%,Z170)) -> 0 | AB170: =IF(R170=0," -",V170/R170) -> 0 | AC170: =IF(R170=0," -",IF(AB170>100%,100%,AB170)) -> 0 | AD170: =IF(S170=0," -",W170/S170) -> 0 | AE170: =IF(S170=0," -",IF(AD170>100%,100%,AD170)) -> 0 | AF170: =+AVERAGE(T170:W170)/O170 -> 0.25 | AG170: 0.25 | AH170: 0.25 | AI170: ='[22]2016'!P12 -> 0 | AJ170: ='[22]2016'!Q12 -> 0 | AK170: ='[22]2016'!R12 -> 0 | AL170: - | AM170: - | AN170: ='[22]2017'!P12 -> 0 | AO170: ='[22]2017'!Q12 -> 0 | AP170: ='[22]2017'!R12 -> 0 | AQ170: - | AR170: - | AS170: ='[22]2018'!P12 -> 0 | AT170: ='[22]2018'!Q12 -> 0 | AU170: ='[22]2018'!R12 -> 0 | AV170: - | AW170: - | AX170: ='[22]2019'!P12 -> 0 | AY170: ='[22]2019'!Q12 -> 0 | AZ170: ='[22]2019'!R12 -> 0 | BA170: - | BB170: - | BC170: 0 | BD170: 0 | BE170: 0 | BF170: - | BG170: - | BH170: ='[1]LÍNEA 1'!AO170 -> 11. Ciudades y comunidades sostenibles | BI170: ='[1]LÍNEA 1'!AP170 -> Promoción del Desarrollo | BJ170: IMEBU
I171: =+RESUMEN!J36 -> 0.08 | J171: TERRITORIOS VULNERABLES, TERRITORIOS VISIBLES | K171: Elaborar 1 documento guía que contenga la norma, lineamientos y procesos para la legalización de asentamientos. | L171: ='[1]LÍNEA 1'!P171 -> 2210159 | M171: ='[1]LÍNEA 1'!Q171 -> Porcentaje de avance en la elaboración del documento guía que contenga la norma, lineamientos y procesos para la legalización de asentamientos. | N171: 0 | O171: ='[1]LÍNEA 1'!S171 -> 1 | P171: ='[1]LÍNEA 1'!T171 -> 0.1 | Q171: ='[1]LÍNEA 1'!U171 -> 0.9 | R171: ='[1]LÍNEA 1'!V171 -> 0 | S171: ='[1]LÍNEA 1'!W171 -> 0 | T171: ='[6]2016'!K42 -> 0.15 | U171: ='[6]2017'!K42 -> 0 | V171: ='[6]2018'!K42 -> 0 | W171: ='[6]2019'!K42 -> 0 | X171: =IF(P171=0," -",T171/P171) -> 1.5 | Y171: =IF(P171=0," -",IF(X171>100%,100%,X171)) -> 1 | Z171: =IF(Q171=0," -",U171/Q171) -> 0 | AA171: =IF(Q171=0," -",IF(Z171>100%,100%,Z171)) -> 0 | AB171: =IF(R171=0," -",V171/R171) -> - | AC171: =IF(R171=0," -",IF(AB171>100%,100%,AB171)) -> - | AD171: =IF(S171=0," -",W171/S171) -> - | AE171: =IF(S171=0," -",IF(AD171>100%,100%,AD171)) -> - | AF171: =+SUM(T171:W171)/O171 -> 0.15 | AG171: 0.15 | AH171: 0.15 | AI171: ='[6]2016'!P42 -> 36750 | AJ171: ='[6]2016'!Q42 -> 36750 | AK171: ='[6]2016'!R42 -> 0 | AL171: 1 | AM171: - | AN171: ='[6]2017'!P42 -> 18000 | AO171: ='[6]2017'!Q42 -> 0 | AP171: ='[6]2017'!R42 -> 0 | AQ171: 0 | AR171: - | AS171: ='[6]2018'!P42 -> 0 | AT171: ='[6]2018'!Q42 -> 0 | AU171: ='[6]2018'!R42 -> 0 | AV171: - | AW171: - | AX171: ='[6]2019'!P42 -> 0 | AY171: ='[6]2019'!Q42 -> 0 | AZ171: ='[6]2019'!R42 -> 0 | BA171: - | BB171: - | BC171: 54750 | BD171: 36750 | BE171: 0 | BF171: 0.6712328767 | BG171: - | BH171: ='[1]LÍNEA 1'!AO171 -> 11. Ciudades y comunidades sostenibles | BI171: ='[1]LÍNEA 1'!AP171 -> Promoción del Desarrollo | BJ171: Sec. Planeación
K172: Elaborar 1 documento guía que contenga el proceso para obtener la titularidad del predio en barrios legalizados. | L172: ='[1]LÍNEA 1'!P172 -> 2210159 | M172: ='[1]LÍNEA 1'!Q172 -> Porcentaje de avance en la elaboración del documento guía que contenga el proceso para obtener la titularidad del predio en barrios legalizados. | N172: 0 | O172: ='[1]LÍNEA 1'!S172 -> 1 | P172: ='[1]LÍNEA 1'!T172 -> 0.1 | Q172: ='[1]LÍNEA 1'!U172 -> 0.9 | R172: ='[1]LÍNEA 1'!V172 -> 0 | S172: ='[1]LÍNEA 1'!W172 -> 0 | T172: ='[6]2016'!K43 -> 0.15 | U172: ='[6]2017'!K43 -> 0 | V172: ='[6]2018'!K43 -> 0 | W172: ='[6]2019'!K43 -> 0 | X172: =IF(P172=0," -",T172/P172) -> 1.5 | Y172: =IF(P172=0," -",IF(X172>100%,100%,X172)) -> 1 | Z172: =IF(Q172=0," -",U172/Q172) -> 0 | AA172: =IF(Q172=0," -",IF(Z172>100%,100%,Z172)) -> 0 | AB172: =IF(R172=0," -",V172/R172) -> - | AC172: =IF(R172=0," -",IF(AB172>100%,100%,AB172)) -> - | AD172: =IF(S172=0," -",W172/S172) -> - | AE172: =IF(S172=0," -",IF(AD172>100%,100%,AD172)) -> - | AF172: =+SUM(T172:W172)/O172 -> 0.15 | AG172: 0.15 | AH172: 0.15 | AI172: ='[6]2016'!P43 -> 0 | AJ172: ='[6]2016'!Q43 -> 0 | AK172: ='[6]2016'!R43 -> 0 | AL172: - | AM172: - | AN172: ='[6]2017'!P43 -> 50000 | AO172: ='[6]2017'!Q43 -> 0 | AP172: ='[6]2017'!R43 -> 0 | AQ172: 0 | AR172: - | AS172: ='[6]2018'!P43 -> 0 | AT172: ='[6]2018'!Q43 -> 0 | AU172: ='[6]2018'!R43 -> 0 | AV172: - | AW172: - | AX172: ='[6]2019'!P43 -> 0 | AY172: ='[6]2019'!Q43 -> 0 | AZ172: ='[6]2019'!R43 -> 0 | BA172: - | BB172: - | BC172: 50000 | BD172: 0 | BE172: 0 | BF172: 0 | BG172: - | BH172: ='[1]LÍNEA 1'!AO172 -> 11. Ciudades y comunidades sostenibles | BI172: ='[1]LÍNEA 1'!AP172 -> Promoción del Desarrollo | BJ172: Sec. Planeación
K173: Revisar y asignar las nomenclaturas de 10 barrios legalizados. | L173: ='[1]LÍNEA 1'!P173 -> 2210159 | M173: ='[1]LÍNEA 1'!Q173 -> Número de barrios legalizados con la revisión y asignación de nomenclaturas. | N173: 0 | O173: ='[1]LÍNEA 1'!S173 -> 10 | P173: ='[1]LÍNEA 1'!T173 -> 1 | Q173: ='[1]LÍNEA 1'!U173 -> 3 | R173: ='[1]LÍNEA 1'!V173 -> 4 | S173: ='[1]LÍNEA 1'!W173 -> 2 | T173: ='[6]2016'!K44 -> 1 | U173: ='[6]2017'!K44 -> 0 | V173: ='[6]2018'!K44 -> 0 | W173: ='[6]2019'!K44 -> 0 | X173: =IF(P173=0," -",T173/P173) -> 1 | Y173: =IF(P173=0," -",IF(X173>100%,100%,X173)) -> 1 | Z173: =IF(Q173=0," -",U173/Q173) -> 0 | AA173: =IF(Q173=0," -",IF(Z173>100%,100%,Z173)) -> 0 | AB173: =IF(R173=0," -",V173/R173) -> 0 | AC173: =IF(R173=0," -",IF(AB173>100%,100%,AB173)) -> 0 | AD173: =IF(S173=0," -",W173/S173) -> 0 | AE173: =IF(S173=0," -",IF(AD173>100%,100%,AD173)) -> 0 | AF173: =+SUM(T173:W173)/O173 -> 0.1 | AG173: 0.1 | AH173: 0.1 | AI173: ='[6]2016'!P44 -> 0 | AJ173: ='[6]2016'!Q44 -> 0 | AK173: ='[6]2016'!R44 -> 0 | AL173: - | AM173: - | AN173: ='[6]2017'!P44 -> 132000 | AO173: ='[6]2017'!Q44 -> 0 | AP173: ='[6]2017'!R44 -> 0 | AQ173: 0 | AR173: - | AS173: ='[6]2018'!P44 -> 125000 | AT173: ='[6]2018'!Q44 -> 0 | AU173: ='[6]2018'!R44 -> 0 | AV173: 0 | AW173: - | AX173: ='[6]2019'!P44 -> 80000 | AY173: ='[6]2019'!Q44 -> 0 | AZ173: ='[6]2019'!R44 -> 0 | BA173: 0 | BB173: - | BC173: 337000 | BD173: 0 | BE173: 0 | BF173: 0 | BG173: - | BH173: ='[1]LÍNEA 1'!AO173 -> 11. Ciudades y comunidades sostenibles | BI173: ='[1]LÍNEA 1'!AP173 -> Promoción del Desarrollo | BJ173: Sec. Planeación
K174: Implementar y mantener 1 capítulo especial dentro del observatorio metropolitano para estudiar los territorios vulnerables y generar información sobre sus condiciones y problemáticas. | L174: ='[1]LÍNEA 1'!P174 -> - | M174: ='[1]LÍNEA 1'!Q174 -> Número de capítulos especiales implementados y mantenidos dentro del observatorio metropolitano para estudiar los territorios vulnerables y generar información sobre sus condiciones y problemáticas. | N174: 0 | O174: ='[1]LÍNEA 1'!S174 -> 1 | P174: ='[1]LÍNEA 1'!T174 -> 0 | Q174: ='[1]LÍNEA 1'!U174 -> 1 | R174: ='[1]LÍNEA 1'!V174 -> 1 | S174: ='[1]LÍNEA 1'!W174 -> 1 | T174: ='[6]2016'!K45 -> 0 | U174: ='[6]2017'!K45 -> 0 | V174: ='[6]2018'!K45 -> 0 | W174: ='[6]2019'!K45 -> 0 | X174: =IF(P174=0," -",T174/P174) -> - | Y174: =IF(P174=0," -",IF(X174>100%,100%,X174)) -> - | Z174: =IF(Q174=0," -",U174/Q174) -> 0 | AA174: =IF(Q174=0," -",IF(Z174>100%,100%,Z174)) -> 0 | AB174: =IF(R174=0," -",V174/R174) -> 0 | AC174: =IF(R174=0," -",IF(AB174>100%,100%,AB174)) -> 0 | AD174: =IF(S174=0," -",W174/S174) -> 0 | AE174: =IF(S174=0," -",IF(AD174>100%,100%,AD174)) -> 0 | AF174: =+AVERAGE(U174:W174)/O174 -> 0 | AG174: 0 | AH174: 0 | AI174: ='[6]2016'!P45 -> 0 | AJ174: ='[6]2016'!Q45 -> 0 | AK174: ='[6]2016'!R45 -> 0 | AL174: - | AM174: - | AN174: ='[6]2017'!P45 -> 0 | AO174: ='[6]2017'!Q45 -> 0 | AP174: ='[6]2017'!R45 -> 0 | AQ174: - | AR174: - | AS174: ='[6]2018'!P45 -> 0 | AT174: ='[6]2018'!Q45 -> 0 | AU174: ='[6]2018'!R45 -> 0 | AV174: - | AW174: - | AX174: ='[6]2019'!P45 -> 0 | AY174: ='[6]2019'!Q45 -> 0 | AZ174: ='[6]2019'!R45 -> 0 | BA174: - | BB174: - | BC174: 0 | BD174: 0 | BE174: 0 | BF174: - | BG174: - | BH174: ='[1]LÍNEA 1'!AO174 -> 11. Ciudades y comunidades sostenibles | BI174: ='[1]LÍNEA 1'!AP174 -> Atención a grupos vulnerables - Promoción Social | BJ174: Sec. Planeación
K175: Realizar 20 audiencias con representantes de las fuerzas vivas de la ciudad, la comunidad afectada y los medios de comunicación para dar a conocer y discutir la realidad de los territorios vulnerables. | L175: ='[1]LÍNEA 1'!P175 -> - | M175: ='[1]LÍNEA 1'!Q175 -> Número de audiencias realizadas con representantes de las fuerzas vivas de la ciudad, la comunidad afectada y los medios de comunicación para dar a conocer y discutir la realidad de los territorios vulnerables. | N175: 0 | O175: ='[1]LÍNEA 1'!S175 -> 20 | P175: ='[1]LÍNEA 1'!T175 -> 0 | Q175: ='[1]LÍNEA 1'!U175 -> 7 | R175: ='[1]LÍNEA 1'!V175 -> 7 | S175: ='[1]LÍNEA 1'!W175 -> 6 | T175: ='[6]2016'!K46 -> 0 | U175: ='[6]2017'!K46 -> 0 | V175: ='[6]2018'!K46 -> 0 | W175: ='[6]2019'!K46 -> 0 | X175: =IF(P175=0," -",T175/P175) -> - | Y175: =IF(P175=0," -",IF(X175>100%,100%,X175)) -> - | Z175: =IF(Q175=0," -",U175/Q175) -> 0 | AA175: =IF(Q175=0," -",IF(Z175>100%,100%,Z175)) -> 0 | AB175: =IF(R175=0," -",V175/R175) -> 0 | AC175: =IF(R175=0," -",IF(AB175>100%,100%,AB175)) -> 0 | AD175: =IF(S175=0," -",W175/S175) -> 0 | AE175: =IF(S175=0," -",IF(AD175>100%,100%,AD175)) -> 0 | AF175: =+SUM(T175:W175)/O175 -> 0 | AG175: 0 | AH175: 0 | AI175: ='[6]2016'!P46 -> 0 | AJ175: ='[6]2016'!Q46 -> 0 | AK175: ='[6]2016'!R46 -> 0 | AL175: - | AM175: - | AN175: ='[6]2017'!P46 -> 0 | AO175: ='[6]2017'!Q46 -> 0 | AP175: ='[6]2017'!R46 -> 0 | AQ175: - | AR175: - | AS175: ='[6]2018'!P46 -> 0 | AT175: ='[6]2018'!Q46 -> 0 | AU175: ='[6]2018'!R46 -> 0 | AV175: - | AW175: - | AX175: ='[6]2019'!P46 -> 0 | AY175: ='[6]2019'!Q46 -> 0 | AZ175: ='[6]2019'!R46 -> 0 | BA175: - | BB175: - | BC175: 0 | BD175: 0 | BE175: 0 | BF175: - | BG175: - | BH175: ='[1]LÍNEA 1'!AO175 -> 16. Paz, justicia e instituciones sólidas | BI175: ='[1]LÍNEA 1'!AP175 -> Atención a grupos vulnerables - Promoción Social | BJ175: Sec. Planeación
F176: Construir 10 obras o proyectos de infraestructura pública en territorios limítrofes concertados con el Área. | G176: 0 | H176: =+'[1]LÍNEA 1'!H176 -> 10 | I176: =+RESUMEN!J37 -> 0.04166666667 | J176: TERRITORIOS METROPOLITANOS, PLANES CONJUNTOS | K176: Realizar el Plan Maestro Conjunto para el desarrollo del Valle del Río de Oro en coordinación con el Área Metropolitana de Bucaramanga y el municipio de Girón. | L176: ='[1]LÍNEA 1'!P176 -> - | M176: ='[1]LÍNEA 1'!Q176 -> Número de Planes Maestros Conjuntos realizados para el desarrollo del Valle del Río de Oro en coordinación con el Área Metropolitana de Bucaramanga y el municipio de Girón. | N176: 0 | O176: ='[1]LÍNEA 1'!S176 -> 1 | P176: ='[1]LÍNEA 1'!T176 -> 0 | Q176: ='[1]LÍNEA 1'!U176 -> 1 | R176: ='[1]LÍNEA 1'!V176 -> 0 | S176: ='[1]LÍNEA 1'!W176 -> 0 | T176: ='[6]2016'!K47 -> 0 | U176: ='[6]2017'!K47 -> 0 | V176: ='[6]2018'!K47 -> 0 | W176: ='[6]2019'!K47 -> 0 | X176: =IF(P176=0," -",T176/P176) -> - | Y176: =IF(P176=0," -",IF(X176>100%,100%,X176)) -> - | Z176: =IF(Q176=0," -",U176/Q176) -> 0 | AA176: =IF(Q176=0," -",IF(Z176>100%,100%,Z176)) -> 0 | AB176: =IF(R176=0," -",V176/R176) -> - | AC176: =IF(R176=0," -",IF(AB176>100%,100%,AB176)) -> - | AD176: =IF(S176=0," -",W176/S176) -> - | AE176: =IF(S176=0," -",IF(AD176>100%,100%,AD176)) -> - | AF176: =+SUM(T176:W176)/O176 -> 0 | AG176: 0 | AH176: 0 | AI176: ='[6]2016'!P47 -> 0 | AJ176: ='[6]2016'!Q47 -> 0 | AK176: ='[6]2016'!R47 -> 0 | AL176: - | AM176: - | AN176: ='[6]2017'!P47 -> 0 | AO176: ='[6]2017'!Q47 -> 0 | AP176: ='[6]2017'!R47 -> 0 | AQ176: - | AR176: - | AS176: ='[6]2018'!P47 -> 0 | AT176: ='[6]2018'!Q47 -> 0 | AU176: ='[6]2018'!R47 -> 0 | AV176: - | AW176: - | AX176: ='[6]2019'!P47 -> 0 | AY176: ='[6]2019'!Q47 -> 0 | AZ176: ='[6]2019'!R47 -> 0 | BA176: - | BB176: - | BC176: 0 | BD176: 0 | BE176: 0 | BF176: - | BG176: - | BH176: ='[1]LÍNEA 1'!AO176 -> 11. Ciudades y comunidades sostenibles | BI176: ='[1]LÍNEA 1'!AP176 -> Ambiental | BJ176: Sec. Planeación
K177: Formular 1 plan de acción conjunto para el desarrollo y el mejoramiento de la infraestructura pública en el sur de Bucaramanga, norte de Floridablanca en coordinación con el Área Metropolitana y la Alcaldía de dicho municipio. | L177: ='[1]LÍNEA 1'!P177 -> 0 | M177: ='[1]LÍNEA 1'!Q177 -> Número de planes de acción formulados para el desarrollo y el mejoramiento de la infraestructura pública en el sur de Bucaramanga, norte de Floridablanca en coordinación con el Área Metropolitana y la Alcaldía de dicho municipio. | N177: 0 | O177: ='[1]LÍNEA 1'!S177 -> 1 | P177: ='[1]LÍNEA 1'!T177 -> 0 | Q177: ='[1]LÍNEA 1'!U177 -> 1 | R177: ='[1]LÍNEA 1'!V177 -> 0 | S177: ='[1]LÍNEA 1'!W177 -> 0 | T177: ='[13]2016'!K17 -> 0.25 | U177: ='[13]2017'!K17 -> 0 | V177: ='[13]2018'!K17 -> 0 | W177: ='[13]2019'!K17 -> 0 | X177: =IF(P177=0," -",T177/P177) -> - | Y177: =IF(P177=0," -",IF(X177>100%,100%,X177)) -> - | Z177: =IF(Q177=0," -",U177/Q177) -> 0 | AA177: =IF(Q177=0," -",IF(Z177>100%,100%,Z177)) -> 0 | AB177: =IF(R177=0," -",V177/R177) -> - | AC177: =IF(R177=0," -",IF(AB177>100%,100%,AB177)) -> - | AD177: =IF(S177=0," -",W177/S177) -> - | AE177: =IF(S177=0," -",IF(AD177>100%,100%,AD177)) -> - | AF177: =+SUM(T177:W177)/O177 -> 0.25 | AG177: 0.25 | AH177: 0.25 | AI177: ='[13]2016'!P17 -> 505440 | AJ177: ='[13]2016'!Q17 -> 505440 | AK177: ='[13]2016'!R17 -> 0 | AL177: 1 | AM177: - | AN177: ='[13]2017'!P17 -> 200000 | AO177: ='[13]2017'!Q17 -> 0 | AP177: ='[13]2017'!R17 -> 0 | AQ177: 0 | AR177: - | AS177: ='[13]2018'!P17 -> 0 | AT177: ='[13]2018'!Q17 -> 0 | AU177: ='[13]2018'!R17 -> 0 | AV177: - | AW177: - | AX177: ='[13]2019'!P17 -> 0 | AY177: ='[13]2019'!Q17 -> 0 | AZ177: ='[13]2019'!R17 -> 0 | BA177: - | BB177: - | BC177: 705440 | BD177: 505440 | BE177: 0 | BF177: 0.7164889998 | BG177: - | BH177: ='[1]LÍNEA 1'!AO177 -> 11. Ciudades y comunidades sostenibles | BI177: ='[1]LÍNEA 1'!AP177 -> Equipamiento | BJ177: AMB
K178: Implementar y mantener 1 estrategia de mejoramiento del ornato en sectores limítrofes con los municipios de Girón y Floridablanca en coordinación con el Área Metropolitana de Bucaramanga. | L178: ='[1]LÍNEA 1'!P178 -> - | M178: ='[1]LÍNEA 1'!Q178 -> Número de estrategias de mejoramiento del ornato implementadas y mantenidas en sectores limítrofes con los municipios de Girón y Floridablanca en coordinación con el Área Metropolitana de Bucaramanga. | N178: 0 | O178: ='[1]LÍNEA 1'!S178 -> 1 | P178: ='[1]LÍNEA 1'!T178 -> 0 | Q178: ='[1]LÍNEA 1'!U178 -> 1 | R178: ='[1]LÍNEA 1'!V178 -> 1 | S178: ='[1]LÍNEA 1'!W178 -> 1 | T178: ='[13]2016'!K18 -> 0.25 | U178: ='[13]2017'!K18 -> 0 | V178: ='[13]2018'!K18 -> 0 | W178: ='[13]2019'!K18 -> 0 | X178: =IF(P178=0," -",T178/P178) -> - | Y178: =IF(P178=0," -",IF(X178>100%,100%,X178)) -> - | Z178: =IF(Q178=0," -",U178/Q178) -> 0 | AA178: =IF(Q178=0," -",IF(Z178>100%,100%,Z178)) -> 0 | AB178: =IF(R178=0," -",V178/R178) -> 0 | AC178: =IF(R178=0," -",IF(AB178>100%,100%,AB178)) -> 0 | AD178: =IF(S178=0," -",W178/S178) -> 0 | AE178: =IF(S178=0," -",IF(AD178>100%,100%,AD178)) -> 0 | AF178: =+AVERAGE(U178:W178)/O178 -> 0 | AG178: 0 | AH178: 0 | AI178: ='[13]2016'!P18 -> 505440 | AJ178: ='[13]2016'!Q18 -> 505440 | AK178: ='[13]2016'!R18 -> 0 | AL178: 1 | AM178: - | AN178: ='[13]2017'!P18 -> 0 | AO178: ='[13]2017'!Q18 -> 0 | AP178: ='[13]2017'!R18 -> 0 | AQ178: - | AR178: - | AS178: ='[13]2018'!P18 -> 0 | AT178: ='[13]2018'!Q18 -> 0 | AU178: ='[13]2018'!R18 -> 0 | AV178: - | AW178: - | AX178: ='[13]2019'!P18 -> 0 | AY178: ='[13]2019'!Q18 -> 0 | AZ178: ='[13]2019'!R18 -> 0 | BA178: - | BB178: - | BC178: 505440 | BD178: 505440 | BE178: 0 | BF178: 1 | BG178: - | BH178: ='[1]LÍNEA 1'!AO178 -> 11. Ciudades y comunidades sostenibles | BI178: ='[1]LÍNEA 1'!AP178 -> Promoción del Desarrollo | BJ178: AMB
K179: Crear y mantener 1 centro de estudios urbanos y territoriales en el Área Metropolitana de Bucaramanga. | L179: ='[1]LÍNEA 1'!P179 -> - | M179: ='[1]LÍNEA 1'!Q179 -> Número de centros de estudios urbanos y territoriales creados y mantenidos en el Área Metropolitana de Bucaramanga. | N179: 0 | O179: ='[1]LÍNEA 1'!S179 -> 1 | P179: ='[1]LÍNEA 1'!T179 -> 0 | Q179: ='[1]LÍNEA 1'!U179 -> 1 | R179: ='[1]LÍNEA 1'!V179 -> 1 | S179: ='[1]LÍNEA 1'!W179 -> 1 | T179: ='[13]2016'!K19 -> 0 | U179: ='[13]2017'!K19 -> 0 | V179: ='[13]2018'!K19 -> 0 | W179: ='[13]2019'!K19 -> 0 | X179: =IF(P179=0," -",T179/P179) -> - | Y179: =IF(P179=0," -",IF(X179>100%,100%,X179)) -> - | Z179: =IF(Q179=0," -",U179/Q179) -> 0 | AA179: =IF(Q179=0," -",IF(Z179>100%,100%,Z179)) -> 0 | AB179: =IF(R179=0," -",V179/R179) -> 0 | AC179: =IF(R179=0," -",IF(AB179>100%,100%,AB179)) -> 0 | AD179: =IF(S179=0," -",W179/S179) -> 0 | AE179: =IF(S179=0," -",IF(AD179>100%,100%,AD179)) -> 0 | AF179: =+AVERAGE(U179:W179)/O179 -> 0 | AG179: 0 | AH179: 0 | AI179: ='[13]2016'!P19 -> 0 | AJ179: ='[13]2016'!Q19 -> 0 | AK179: ='[13]2016'!R19 -> 0 | AL179: - | AM179: - | AN179: ='[13]2017'!P19 -> 0 | AO179: ='[13]2017'!Q19 -> 0 | AP179: ='[13]2017'!R19 -> 0 | AQ179: - | AR179: - | AS179: ='[13]2018'!P19 -> 0 | AT179: ='[13]2018'!Q19 -> 0 | AU179: ='[13]2018'!R19 -> 0 | AV179: - | AW179: - | AX179: ='[13]2019'!P19 -> 0 | AY179: ='[13]2019'!Q19 -> 0 | AZ179: ='[13]2019'!R19 -> 0 | BA179: - | BB179: - | BC179: 0 | BD179: 0 | BE179: 0 | BF179: - | BG179: - | BH179: ='[1]LÍNEA 1'!AO179 -> 11. Ciudades y comunidades sostenibles | BI179: ='[1]LÍNEA 1'!AP179 -> Promoción del Desarrollo | BJ179: AMB
K180: Generar 8 espacios de encuentro entre gabinetes para el diálogo y coordinación institucional con el gobierno del municipio de Girón. | L180: ='[1]LÍNEA 1'!P180 -> - | M180: ='[1]LÍNEA 1'!Q180 -> Número de espacios de encuentro generados entre gabinetes para el diálogo y coordinación institucional con el gobierno del municipio de Girón. | N180: 0 | O180: ='[1]LÍNEA 1'!S180 -> 8 | P180: ='[1]LÍNEA 1'!T180 -> 0 | Q180: ='[1]LÍNEA 1'!U180 -> 2 | R180: ='[1]LÍNEA 1'!V180 -> 3 | S180: ='[1]LÍNEA 1'!W180 -> 3 | T180: ='[13]2016'!K20 -> 0 | U180: ='[13]2017'!K20 -> 0 | V180: ='[13]2018'!K20 -> 0 | W180: ='[13]2019'!K20 -> 0 | X180: =IF(P180=0," -",T180/P180) -> - | Y180: =IF(P180=0," -",IF(X180>100%,100%,X180)) -> - | Z180: =IF(Q180=0," -",U180/Q180) -> 0 | AA180: =IF(Q180=0," -",IF(Z180>100%,100%,Z180)) -> 0 | AB180: =IF(R180=0," -",V180/R180) -> 0 | AC180: =IF(R180=0," -",IF(AB180>100%,100%,AB180)) -> 0 | AD180: =IF(S180=0," -",W180/S180) -> 0 | AE180: =IF(S180=0," -",IF(AD180>100%,100%,AD180)) -> 0 | AF180: =+SUM(T180:W180)/O180 -> 0 | AG180: 0 | AH180: 0 | AI180: ='[13]2016'!P20 -> 0 | AJ180: ='[13]2016'!Q20 -> 0 | AK180: ='[13]2016'!R20 -> 0 | AL180: - | AM180: - | AN180: ='[13]2017'!P20 -> 0 | AO180: ='[13]2017'!Q20 -> 0 | AP180: ='[13]2017'!R20 -> 0 | AQ180: - | AR180: - | AS180: ='[13]2018'!P20 -> 0 | AT180: ='[13]2018'!Q20 -> 0 | AU180: ='[13]2018'!R20 -> 0 | AV180: - | AW180: - | AX180: ='[13]2019'!P20 -> 0 | AY180: ='[13]2019'!Q20 -> 0 | AZ180: ='[13]2019'!R20 -> 0 | BA180: - | BB180: - | BC180: 0 | BD180: 0 | BE180: 0 | BF180: - | BG180: - | BH180: ='[1]LÍNEA 1'!AO180 -> 16. Paz, justicia e instituciones sólidas | BI180: ='[1]LÍNEA 1'!AP180 -> Fortalecimiento insitucional | BJ180: AMB
K181: Generar 8 espacios de encuentro entre gabinetes para el diálogo y coordinación institucional con el gobierno del municipio de Floridablanca. | L181: ='[1]LÍNEA 1'!P181 -> - | M181: ='[1]LÍNEA 1'!Q181 -> Número de espacios de encuentro generados entre gabinetes para el diálogo y coordinación institucional con el gobierno del municipio de Floridablanca. | N181: 0 | O181: ='[1]LÍNEA 1'!S181 -> 8 | P181: ='[1]LÍNEA 1'!T181 -> 0 | Q181: ='[1]LÍNEA 1'!U181 -> 2 | R181: ='[1]LÍNEA 1'!V181 -> 3 | S181: ='[1]LÍNEA 1'!W181 -> 3 | T181: ='[13]2016'!K21 -> 0 | U181: ='[13]2017'!K21 -> 0 | V181: ='[13]2018'!K21 -> 0 | W181: ='[13]2019'!K21 -> 0 | X181: =IF(P181=0," -",T181/P181) -> - | Y181: =IF(P181=0," -",IF(X181>100%,100%,X181)) -> - | Z181: =IF(Q181=0," -",U181/Q181) -> 0 | AA181: =IF(Q181=0," -",IF(Z181>100%,100%,Z181)) -> 0 | AB181: =IF(R181=0," -",V181/R181) -> 0 | AC181: =IF(R181=0," -",IF(AB181>100%,100%,AB181)) -> 0 | AD181: =IF(S181=0," -",W181/S181) -> 0 | AE181: =IF(S181=0," -",IF(AD181>100%,100%,AD181)) -> 0 | AF181: =+SUM(T181:W181)/O181 -> 0 | AG181: 0 | AH181: 0 | AI181: ='[13]2016'!P21 -> 0 | AJ181: ='[13]2016'!Q21 -> 0 | AK181: ='[13]2016'!R21 -> 0 | AL181: - | AM181: - | AN181: ='[13]2017'!P21 -> 0 | AO181: ='[13]2017'!Q21 -> 0 | AP181: ='[13]2017'!R21 -> 0 | AQ181: - | AR181: - | AS181: ='[13]2018'!P21 -> 0 | AT181: ='[13]2018'!Q21 -> 0 | AU181: ='[13]2018'!R21 -> 0 | AV181: - | AW181: - | AX181: ='[13]2019'!P21 -> 0 | AY181: ='[13]2019'!Q21 -> 0 | AZ181: ='[13]2019'!R21 -> 0 | BA181: - | BB181: - | BC181: 0 | BD181: 0 | BE181: 0 | BF181: - | BG181: - | BH181: ='[1]LÍNEA 1'!AO181 -> 16. Paz, justicia e instituciones sólidas | BI181: ='[1]LÍNEA 1'!AP181 -> Fortalecimiento insitucional | BJ181: AMB
Y182: =+AVERAGE(Y152:Y181) -> 0.9357142857 | AA182: 0 | AC182: 0 | AE182: 0 | AG182: =+AVERAGE(AG152:AG181) -> 0.1258333333
T186: 2016 | U186: 2017 | V186: 2018 | W186: 2019 | X186: CA
R187: Administrativa | T187: =+AVERAGE(Y30:Y31,Y67:Y68,Y75,Y78:Y81,Y85:Y93) -> 1 | U187: =+AVERAGE(AA30:AA31,AA67:AA68,AA75,AA78:AA81,AA85:AA93) -> 0 | V187: =+AVERAGE(AC30:AC31,AC67:AC68,AC75,AC78:AC81,AC85:AC93) -> 0 | W187: =+AVERAGE(AE30:AE31,AE67:AE68,AE75,AE78:AE81,AE85:AE93) -> 0 | X187: =+AVERAGE(AG30:AG31,AG67:AG68,AG75,AG78:AG81,AG85:AG93) -> 0.1074074074
R188: AMB | T188: =+AVERAGE(Y57:Y60,Y177:Y181) ->  | U188: =+AVERAGE(AA57:AA60,AA177:AA181) -> 0 | V188: =+AVERAGE(AC57:AC60,AC177:AC181) -> 0 | W188: =+AVERAGE(AE57:AE60,AE177:AE181) -> 0 | X188: =+AVERAGE(AG57:AG60,AG177:AG181) -> 0.02777777778
R189: Bomberos | T189: =+Y97 -> - | U189: =+AA97 -> 0 | V189: =+AC97 -> 0 | W189: =+AE97 -> 0 | X189: =+AG97 -> 0
R190: Control Interno | T190: =+Y132 -> 1 | U190: =+AA132 -> 0 | V190: =+AC132 -> 0 | W190: =+AE132 -> 0 | X190: =+AG132 -> 0.25
R191: Control Interno Disciplinario | T191: =+AVERAGE(Y130:Y131) -> 1 | U191: =+AVERAGE(AA130:AA131) -> 0 | V191: =+AVERAGE(AC130:AC131) -> 0 | W191: =+AVERAGE(AE130:AE131) -> 0 | X191: =+AVERAGE(AG130:AG131) -> 0.3125
R192: DADEP | T192: =+AVERAGE(Y118:Y119) -> 0.85 | U192: =+AVERAGE(AA118:AA119) -> 0 | V192: =+AVERAGE(AC118:AC119) -> 0 | W192: =+AVERAGE(AE118:AE119) -> 0 | X192: =+AVERAGE(AG118:AG119) -> 0.10625
R193: Desarrollo Social | T193: =+AVERAGE(Y12,Y18,Y25:Y29,Y35:Y43,Y96) -> 0.7384615385 | U193: =+AVERAGE(AA12,AA18,AA25:AA29,AA35:AA43,AA96) -> 0 | V193: =+AVERAGE(AC12,AC18,AC25:AC29,AC35:AC43,AC96) -> 0 | W193: =+AVERAGE(AE12,AE18,AE25:AE29,AE35:AE43,AE96) -> 0 | X193: =+AVERAGE(AG12,AG18,AG25:AG29,AG35:AG43,AG96) -> 0.2629411765
R194: Educación | T194: =+Y13 -> 1 | U194: =+AA13 -> 0 | V194: =+AC13 -> 0 | W194: =+AE13 -> 0 | X194: =+AG13 -> 0.08571428571
R195: Hacienda | T195: =+AVERAGE(Y16,Y55,Y94,Y113:Y117) -> 0.8285714286 | U195: =+AVERAGE(AA16,AA55,AA94,AA113:AA117) -> 0 | V195: =+AVERAGE(AC16,AC55,AC94,AC113:AC117) -> 0 | W195: =+AVERAGE(AE16,AE55,AE94,AE113:AE117) -> 0 | X195: =+AVERAGE(AG16,AG55,AG94,AG113:AG117) -> 0.2647321429
R196: IMCT | T196: =+AVERAGE(Y56,Y110:Y112) -> 0 | U196: =+AVERAGE(AA56,AA110:AA112) -> 0 | V196: =+AVERAGE(AC56,AC110:AC112) -> 0 | W196: =+AVERAGE(AE56,AE110:AE112) -> 0 | X196: =+AVERAGE(AG56,AG110:AG112) -> 0
R197: IMEBU | T197: =+Y170 -> 1 | U197: =+AA170 -> 0 | V197: =+AC170 -> 0 | W197: =+AE170 -> 0 | X197: =+AG170 -> 0.25
R198: Infraestructura | T198: =+AVERAGE(Y19,Y45,Y120,Y145,Y167) -> 0.6666666667 | U198: =+AVERAGE(AA19,AA45,AA120,AA145,AA167) -> 0 | V198: =+AVERAGE(AC19,AC45,AC120,AC145,AC167) -> 0 | W198: =+AVERAGE(AE19,AE45,AE120,AE145,AE167) -> 0 | X198: =+AVERAGE(AG19,AG45,AG120,AG145,AG167) -> 0.1
R199: Interior | T199: =+AVERAGE(Y11,Y32,Y121:Y129) -> 1 | U199: =+AVERAGE(AA11,AA32,AA121:AA129) -> 0 | V199: =+AVERAGE(AC11,AC32,AC121:AC129) -> 0 | W199: =+AVERAGE(AE11,AE32,AE121:AE129) -> 0 | X199: =+AVERAGE(AG11,AG32,AG121:AG129) -> 0.1169393939
R200: Jurídica | T200: =+AVERAGE(Y62:Y66,Y82:Y84,Y133:Y135) -> 0.845 | U200: =+AVERAGE(AA62:AA66,AA82:AA84,AA133:AA135) -> 0 | V200: =+AVERAGE(AC62:AC66,AC82:AC84,AC133:AC135) -> 0 | W200: =+AVERAGE(AE62:AE66,AE82:AE84,AE133:AE135) -> 0 | X200: =+AVERAGE(AG62:AG66,AG82:AG84,AG133:AG135) -> 0.3170454545
R201: Metrolínea | T201: =+Y169 -> 0.4 | U201: =+AA169 -> 0 | V201: =+AC169 -> 0 | W201: =+AE169 -> 0 | X201: =+AG169 -> 0.1
R202: Planeación | T202: =+AVERAGE(Y17,Y44,Y71,Y95,Y100:Y108,Y152:Y166,Y171:Y176) -> 0.9823529412 | U202: =+AVERAGE(AA17,AA44,AA71,AA95,AA100:AA108,AA152:AA166,AA171:AA176) -> 0 | V202: =+AVERAGE(AC17,AC44,AC71,AC95,AC100:AC108,AC152:AC166,AC171:AC176) -> 0 | W202: =+AVERAGE(AE17,AE44,AE71,AE95,AE100:AE108,AE152:AE166,AE171:AE176) -> 0 | X202: =+AVERAGE(AG17,AG44,AG71,AG95,AG100:AG108,AG152:AG166,AG171:AG176) -> 0.1558823529
R203: Prensa | T203: =+AVERAGE(Y20:Y24,Y61,Y76) -> 1 | U203: =+AVERAGE(AA20:AA24,AA61,AA76) -> 0 | V203: =+AVERAGE(AC20:AC24,AC61,AC76) -> 0 | W203: =+AVERAGE(AE20:AE24,AE61,AE76) -> 0 | X203: =+AVERAGE(AG20:AG24,AG61,AG76) -> 0.325
R204: Salud y Ambiente | T204: =+Y109 -> - | U204: =+AA109 -> 0 | V204: =+AC109 -> 0 | W204: =+AE109 -> 0 | X204: =+AG109 -> 0
R205: Sistemas | T205: =+AVERAGE(Y33:Y34,Y46,Y48:Y70,Y72:Y74,Y98,Y137:Y144,Y146:Y150) -> 0.9572222222 | U205: =+AVERAGE(AA33:AA34,AA46,AA48:AA70,AA72:AA74,AA98,AA137:AA144,AA146:AA150) -> 0 | V205: =+AVERAGE(AC33:AC34,AC46,AC48:AC70,AC72:AC74,AC98,AC137:AC144,AC146:AC150) -> 0 | W205: =+AVERAGE(AE33:AE34,AE46,AE48:AE70,AE72:AE74,AE98,AE137:AE144,AE146:AE150) -> 0 | X205: =+AVERAGE(AG33:AG34,AG46,AG48:AG70,AG72:AG74,AG98,AG137:AG144,AG146:AG150) -> 0.2187981089
R206: Tránsito | T206: =+AVERAGE(Y99,Y168) -> 1 | U206: =+AVERAGE(AA99,AA168) -> 0 | V206: =+AVERAGE(AC99,AC168) -> 0 | W206: =+AVERAGE(AE99,AE168) -> 0 | X206: =+AVERAGE(AG99,AG168) -> 0.25
R207: UTSP | T207: =+Y47 -> 1 | U207: =+AA47 -> 0 | V207: =+AC47 -> 0 | W207: =+AE47 -> 0 | X207: =+AG47 -> 0.25

Sheet LÍNEA 2
B3: ALCALDÍA DE BUCARAMANGA
B4: PLAN DE DESARROLLO 2016 - 2019 "GOBIERNO DE LAS CIUDADANAS Y LOS CIUDADANOS"
B5: LÍNEA ESTRATÉGICA 2: INCLUSIÓN SOCIAL
B8: POND | C8: LÍNEA ESTRATÉGICA | D8: POND | E8: COMPONENTE | F8: META DE RESULTADO | G8: LÍNEA BASE | H8: RESULTADO CUATRIENIO | I8: POND | J8: PROGRAMA | K8: META DE PRODUCTO | L8: RUBRO PPTAL | M8: INDICADOR DE PRODUCTO | T8: LOGRO POR VIGENCIA | X8: PORCENTAJE DE CUMPLIMIENTO | AI8: RECURSOS POR FUENTE DE FINANCIACIÓN PARA CADA VIGENCIA (Cifras en Miles de Pesos) | BH8: ODS | BI8: SECTOR
AI9: 2016 | AN9: 2017 | AS9: 2018 | AX9: 2019 | BC9: 2016 - 2019
M10: NOMBRE INDICADOR | N10: LÍNEA BASE | O10: ESPERADO CUATRIENIO | P10: 2016 | Q10: 2017 | R10: 2018 | S10: 2019 | T10: 2016 | U10: 2017 | V10: 2018 | W10: 2019 | X10: 2016 | Z10: 2017 | AB10: 2018 | AD10: 2019 | AF10: 2016 - 2019 | AI10: RECURSOS PROGRAMADOS | AJ10: RECURSOS EJECUTADOS | AK10: RECURSOS GESTIONADOS | AL10: PORCENTAJE EJECUCIÓN | AM10: NIVEL DE GESTIÓN | AN10: RECURSOS PROGRAMADOS | AO10: RECURSOS EJECUTADOS | AP10: RECURSOS GESTIONADOS | AQ10: PORCENTAJE EJECUCIÓN | AR10: NIVEL DE GESTIÓN | AS10: RECURSOS PROGRAMADOS | AT10: RECURSOS EJECUTADOS | AU10: RECURSOS GESTIONADOS | AV10: PORCENTAJE EJECUCIÓN | AW10: NIVEL DE GESTIÓN | AX10: RECURSOS PROGRAMADOS | AY10: RECURSOS EJECUTADOS | AZ10: RECURSOS GESTIONADOS | BA10: PORCENTAJE EJECUCIÓN | BB10: NIVEL DE GESTIÓN | BC10: RECURSOS PROGRAMADOS | BD10: RECURSOS EJECUTADOS | BE10: RECURSOS GESTIONADOS | BF10: PORCENTAJE EJECUCIÓN | BG10: NIVEL DE GESTIÓN | BJ10: RESPONSABLE
B11: =+RESUMEN!J38 -> 0.1671243633 | C11: 2 - INCLUSIÓN SOCIAL | D11: =+RESUMEN!J39 -> 0.1229766865 | E11: ATENCIÓN PRIORITARIA Y FOCALIZADA A GRUPOS DE POBLACIÓN VULNERABLE | F11: Disminuir a 1,2% el índice de pobreza extrema. | G11: 0.013 | H11: =+'[1]LÍNEA 2'!H11 -> 0.012 | I11: =+RESUMEN!J40 -> 0.2465 | J11: HABITANTE DE CALLE | K11: Realizar 16 brigadas extramurales de atención al habitante de calle. | L11: ='[1]LÍNEA 2'!P11 -> 2210713 | M11: ='[1]LÍNEA 2'!Q11 -> Número de brigadas extramurales de atención al habitante de calle realizadas. | N11: 9 | O11: ='[1]LÍNEA 2'!S11 -> 16 | P11: ='[1]LÍNEA 2'!T11 -> 4 | Q11: ='[1]LÍNEA 2'!U11 -> 4 | R11: ='[1]LÍNEA 2'!V11 -> 4 | S11: ='[1]LÍNEA 2'!W11 -> 4 | T11: ='[3]2016'!K31 -> 5 | U11: ='[3]2017'!K31 -> 0 | V11: ='[3]2018'!K31 -> 0 | W11: ='[3]2019'!K31 -> 0 | X11: =IF(P11=0," -",T11/P11) -> 1.25 | Y11: =IF(P11=0," -",IF(X11>100%,100%,X11)) -> 1 | Z11: =IF(Q11=0," -",U11/Q11) -> 0 | AA11: =IF(Q11=0," -",IF(Z11>100%,100%,Z11)) -> 0 | AB11: =IF(R11=0," -",V11/R11) -> 0 | AC11: =IF(R11=0," -",IF(AB11>100%,100%,AB11)) -> 0 | AD11: =IF(S11=0," -",W11/S11) -> 0 | AE11: =IF(S11=0," -",IF(AD11>100%,100%,AD11)) -> 0 | AF11: =+SUM(T11:W11)/O11 -> 0.3125 | AG11: =+IF(AF11>100%,100%,AF11) -> 0.3125 | AH11: =+AG11 -> 0.3125 | AI11: ='[3]2016'!P31 -> 188000 | AJ11: ='[3]2016'!Q31 -> 18535 | AK11: ='[3]2016'!R31 -> 0 | AL11: =IF(AI11=0," -",AJ11/AI11) -> 0.09859042553 | AM11: =IF(AK11=0," -",IF(AJ11=0,100%,AK11/AJ11)) -> - | AN11: ='[3]2017'!P31 -> 86000 | AO11: ='[3]2017'!Q31 -> 0 | AP11: ='[3]2017'!R31 -> 0 | AQ11: =IF(AN11=0," -",AO11/AN11) -> 0 | AR11: =IF(AP11=0," -",IF(AO11=0,100%,AP11/AO11)) -> - | AS11: ='[3]2018'!P31 -> 40000 | AT11: ='[3]2018'!Q31 -> 0 | AU11: ='[3]2018'!R31 -> 0 | AV11: =IF(AS11=0," -",AT11/AS11) -> 0 | AW11: =IF(AU11=0," -",IF(AT11=0,100%,AU11/AT11)) -> - | AX11: ='[3]2019'!P31 -> 40000 | AY11: ='[3]2019'!Q31 -> 0 | AZ11: ='[3]2019'!R31 -> 0 | BA11: =IF(AX11=0," -",AY11/AX11) -> 0 | BB11: =IF(AZ11=0," -",IF(AY11=0,100%,AZ11/AY11)) -> - | BC11: =+AI11+AN11+AS11+AX11 -> 354000 | BD11: 18535 | BE11: 0 | BF11: =IF(BC11=0," -",BD11/BC11) -> 0.05235875706 | BG11: =IF(BE11=0," -",IF(BD11=0,100%,BE11/BD11)) -> - | BH11: ='[1]LÍNEA 2'!AO11 -> 2. Hambre cero | BI11: ='[1]LÍNEA 2'!AP11 -> Atención a grupos vulnerables - Promoción Social | BJ11: Sec. Desarrollo Social
K12: Mantener 500 cupos de servicios integrales intramurales y/o extramurales para habitantes de calle. | L12: ='[1]LÍNEA 2'!P12 -> 2210713 | M12: ='[1]LÍNEA 2'!Q12 -> Número de cupos de servicios integrales intramurales y/o extramurales mantenidos para habitantes de calle. | N12: 321 | O12: ='[1]LÍNEA 2'!S12 -> 500 | P12: ='[1]LÍNEA 2'!T12 -> 500 | Q12: ='[1]LÍNEA 2'!U12 -> 500 | R12: ='[1]LÍNEA 2'!V12 -> 500 | S12: ='[1]LÍNEA 2'!W12 -> 500 | T12: ='[3]2016'!K32 -> 583 | U12: ='[3]2017'!K32 -> 0 | V12: ='[3]2018'!K32 -> 0 | W12: ='[3]2019'!K32 -> 0 | X12: =IF(P12=0," -",T12/P12) -> 1.166 | Y12: =IF(P12=0," -",IF(X12>100%,100%,X12)) -> 1 | Z12: =IF(Q12=0," -",U12/Q12) -> 0 | AA12: =IF(Q12=0," -",IF(Z12>100%,100%,Z12)) -> 0 | AB12: =IF(R12=0," -",V12/R12) -> 0 | AC12: =IF(R12=0," -",IF(AB12>100%,100%,AB12)) -> 0 | AD12: =IF(S12=0," -",W12/S12) -> 0 | AE12: =IF(S12=0," -",IF(AD12>100%,100%,AD12)) -> 0 | AF12: =+AVERAGE(T12:W12)/O12 -> 0.2915 | AG12: =+IF(AF12>100%,100%,AF12) -> 0.2915 | AH12: =+AG12 -> 0.2915 | AI12: ='[3]2016'!P32 -> 433000 | AJ12: ='[3]2016'!Q32 -> 350000 | AK12: ='[3]2016'!R32 -> 0 | AL12: =IF(AI12=0," -",AJ12/AI12) -> 0.8083140878 | AM12: =IF(AK12=0," -",IF(AJ12=0,100%,AK12/AJ12)) -> - | AN12: ='[3]2017'!P32 -> 567600 | AO12: ='[3]2017'!Q32 -> 0 | AP12: ='[3]2017'!R32 -> 0 | AQ12: =IF(AN12=0," -",AO12/AN12) -> 0 | AR12: =IF(AP12=0," -",IF(AO12=0,100%,AP12/AO12)) -> - | AS12: ='[3]2018'!P32 -> 622500 | AT12: ='[3]2018'!Q32 -> 0 | AU12: ='[3]2018'!R32 -> 0 | AV12: =IF(AS12=0," -",AT12/AS12) -> 0 | AW12: =IF(AU12=0," -",IF(AT12=0,100%,AU12/AT12)) -> - | AX12: ='[3]2019'!P32 -> 646012 | AY12: ='[3]2019'!Q32 -> 0 | AZ12: ='[3]2019'!R32 -> 0 | BA12: =IF(AX12=0," -",AY12/AX12) -> 0 | BB12: =IF(AZ12=0," -",IF(AY12=0,100%,AZ12/AY12)) -> - | BC12: 2269112 | BD12: 350000 | BE12: 0 | BF12: =IF(BC12=0," -",BD12/BC12) -> 0.1542453612 | BG12: =IF(BE12=0," -",IF(BD12=0,100%,BE12/BD12)) -> - | BH12: ='[1]LÍNEA 2'!AO12 -> 2. Hambre cero | BI12: ='[1]LÍNEA 2'!AP12 -> Atención a grupos vulnerables - Promoción Social | BJ12: Sec. Desarrollo Social
